Workbook

Sheet Read me!
B3: Steps towards your FlowChart, Energy Balance Overviews and IEA SHC Task 53 Key Figures
B5: RELEASE | E5: V0.106 | H5: ALL Sheets are protected…password:T53
B7: 1 | C7: Description of colors
E8: Drop downs menu | F8: Please select an option! Some options are just for information, others influence the result significantly!
E9: Value to be filled in | F9: Please fill in the certain value! ALL values are needed!
E10: T53 Standard | F10: Input values referring to T53 Standard calculation are unchangeable, decided by the T53 memebers.
E11: Specific value | F11: Specific input values allow a country- or project specific calculation of both technical and economic key figures.
E12: Editing specific values | F12: Cell to edit the specific value (x1, x2)
B13: 2 | C13: Worksheet "INPUTS" defines all types of sources, capacities and dimensions.
C14: Special remarks
D15: Each single drop down or dimension to be filled in may has an influence on the results (both technical and economic key figures).
D16: Take your time and go through with care!
D17: More details about calculations, formulas, methods and utilisation of the Tool are available in the T53 documentation.
B19: 3 | C19: Worksheet "Conversion Factors" includes the necessary factors (general or country specific).
C20: Special remarks
D21: T53 Standard values are unchangeable, because they represent a reasonable average agreed by all T53 members.
D22: Country specific values have to represent a meaningful average.
D23: Specific values for your own interest can be edited at x1 or x2 (marked yellow).
B25: 4 | C25: Enter your data in the worksheet "Data"
C26: Special remarks
D27: The yearly sum will be calculated automatically if only monthly data is edited.
D28: If the data for the Energy Carrier to Hot Backup (EC:HB) is unknown, it will be calculated automatically using the boiler efficiency.
D29: The CAPsolar will only be calculated if data is filled in in column "P".
D31: → Press the calculation button for updated results!
B33: 5 | C33: "EFChart"
C34: Special remarks
D35: Displays all possible engery flows in a system.
B37: 6 | C37: "Results" displays the calculated energy flows and fractions.
C38: Special remarks
D39: The results are just updated by pressing the calculation button in "Data"!
B41: 7 | C41: "Results_T53" displays the calculated primary energy ratio, fractional savings and the SPF equivalent for T53 Standard values.
C42: Special remarks
D43: The results are just updated by pressing the calculation button in "Data"!
D44: The results refers to the T53 Standard values.
B46: 8 | C46: "T53_PER_monthly" visualises the monthly primary energy ratios.
C47: Special remarks
D48: The results refers to the T53 Standard values.
B50: 9 | C50: "Results_spec" displays the calculated primary energy ratio, fractional savings and the SPF equivalent for specific inputs.
C51: Special remarks
D52: The results are just updated by pressing the calculation button in "Data"!
D53: The results refers to the T53 specific values.
B55: 10 | C55: "Labelling"
C56: Special remarks
D57: Displays the energy class basing on fractional savings of each subsystem.
B59: 11 | C59: "Eco-base" gives an overview of economic values.
C60: Special remarks
D61: All relevant economic bases are / has to be defined here.
D62: Includes comparison between SHC and reference system.
D63: Only yellow marked cells can be changed (x1, x2).
D64: T53 and country wise values has been chosen as average standards and are unchangeable.
B66: 12 | C66: "Cost_calc" is the cost calculation of investment, replacement and maintenance.
C67: Special remarks
D68: Includes comparison between SHC and reference system.
B70: 13 | C70: The worksheet "Summary" gives an overview of your plant and its performance.
C71: Special remarks
D72: Included is the overview of the main input values and technical- as well as the economic results.
C74: Originally developed in IEA SHC Task 44 by Roberto Fedrizzi (EURAC) and Michel Haller (SPF) (July 5, 2012)
C75: Adapted to IEA SHC Task 53 needs by Alice Vittoriosi (EURAC), Hilbert Focke (ASIC), Daniel Neyer / Katharina Stadler / Jacqueline Neyer (UIBK) (July 11, 2016)

Sheet INPUTS
C2: INPUTS to the calculation of technical and economic key figures
E4: !!! Please focus on the adequate input of variables - results depend on it significantly !!!
C6: Drop downs menu | D6: Please select an option. Some options are just for information, others influence the result signifcantly!
C7: Value to be filled in | D7: Please fill in the certain value. ALL values are needed!
C8: T53 Standard | D8: Input values to the T53 Standard calculation are unchangable. They were defined and agreed during the work on T53.
C9: Specific value | D9: Input values can be adopted at different, highlighted positions in this Tool. This allowes a country or project specific calculation of both technical and economic key figures.
C10: Editing specific values | D10: Edit the specific value (x1, x2)
E12: More details about calculations, formulas, methods and utilisation of the Tool are avalable in the current documentation.
C15: GENERAL Information | G15: Selection leads to specific values of
C17: Project location | E17: Austria (Vienna) | F17: -
C18: Calc method for CHP (eel; eEC) | E18: Energy balance | F18: - | K18: T53 Standard | L18: specific value
C19: Building category | E19: Residential | F19: - | H19: Primary energy factor for electricity | J19: εel | K19: 0.4 | L19: 0.5910592383
C20: Cooled/heated area | E20: 200 | F20: m² | H20: CO2 factor for electricity | K20: 0.55 | L20: 0.1075272513
C21: Distribution system | E21: Other | F21: -
C23: SOLAR HEATING AND COOLING SYSTEM including BACKUPS | G23: Selection leads to specific values of
C24: Solar | F24: if SPECIFIC which TYPE?
C25: Thermal collector type | E25: no collector
C26: Thermal collector area | E26: 0 | F26: m²
C27: Photovoltaic collector type | E27: PV
C28: Photovoltaic peak load | E28: 11.1 | F28: kWp
C29: Heat sources | D29: heat sources: | F29: Biogas fraction of CHP
D30: bivalent | K30: T53 Standard | L30: specific value
C31: Primary boiler type | E31: Heat Pump | F31: 0.25 | H31: Primary efficiency of the boiler | J31: ηHB | K31: 3.3 | L31: 2
C32: Use of primary boiler for cooling? | E32: no | H32: Primary energy factor for spec. Energy Carrier | J32: εEC | K32: 1000000000000000 | L32: 1000000000000000
C33: Primary boiler peak load (SH/DHW) | D33: P_H1 | E33: 10.6 | F33: kW | H33: CO2 factor for Energy Carrier | J33: CO2 | K33: 1e-05 | L33: 1e-05
C34: Secondary boiler type | E34: no heat source | F34: 0.75 | H34: Secondary efficiency of the boiler | J34: ηHB | K34: 0.856 | L34: 0.814
C35: Use of secondary boiler for cooling? | E35: no | H35: Secondary energy factor for spec. Energy Carrier | J35: εEC | K35: 10 | L35: 16.7
C36: Secondary boiler peak load (SH/DHW) | D36: P_H2 | E36: 0 | F36: kW | H36: CO2 factor for Energy Carrier | J36: CO2 | K36: 0.045 | L36: 0.004
C37: Overall peak load (Ref boiler) | D37: P_Href | E37: 10.6 | F37: kW | H37: Primary energy factor for electricity HP/AHP | J37: eHP | K37: 0 | L37: 0
C38: Cooling | D38: cooling: | H38: Secondary energy factor for electricity HP/AHP | J38: eHP | K38: 0 | L38: 0
D39: bivalent
C40: Primary chiller type | D40: =IF(AND(E41<20,E40=Conversion!F42),"!!! Only air cooled VCC possible !!!","") ->  | E40: no chiller | F40: =IF(OR($E$31=Conversion!$C$37,INPUTS!$E$31=Conversion!$C$39,$E$34=Conversion!$C$37,INPUTS!$E$34=Conversion!$C$39),"Rev. pump for heating & cooling","") ->  | H40: Saisonal Perfomance Factor for VCC | J40: SPFC | K40: 1.8748125 | L40: 3
C41: Primary chiller capacity | D41: P_C1 | E41: 0 | F41: kW | H41: Saisonal Perfomance Factor for ACM (air cooled VCC) | J41: SPFCth | K41: 0 | L41: 3
C42: Secondary chiller type | D42: =IF(AND(E43<20,E42=Conversion!F42),"!!! Only air cooled VCC possible !!!","") ->  | E42: no chiller | H42: Saisonal Perfomance Factor for VCC | J42: SPFC | K42: 1.8748125 | L42: 3
C43: Secondary chiller capacity | D43: P_C2 | E43: 0 | F43: kW | H43: Saisonal Perfomance Factor for ACM (air cooled VCC) | J43: SPFCth | K43: 0 | L43: 3
C44: Cooling peak load (Ref chiller) | D44: P_Cref | E44: 10 | F44: kW | H44: Primary energy factor for electricity VCC/ACM | J44: eKM | K44: 0 | L44: 0
C45: Heat rejection | D45: heat rejection: | H45: Secondary energy factor for electricity VCC/ACM | J45: eKM | K45: 0 | L45: 0
D46: bivalent
C47: Primary cooling tower type | E47: no cooling tower
C48: Primary cooling tower capacity | D48: P_CT | E48: 0 | F48: kW
C49: Primary water consumption for heat rejection or air conditioning - SHC System | D49: V_HR_1 | E49: 0 | F49: m³/a
C50: Secondary cooling tower type | E50: no cooling tower
C51: Secondary cooling tower capacity | D51: P_CT | E51: 0 | F51: kW
C52: Secondary water consumption for heat rejection or air conditioning - SHC System | D52: V_HR_2 | E52: 0 | F52: m³/a
C53: Storage
C55: Primary hot water storage | D55: V_HS_1 | E55: 0.5 | F55: m³ | H55: Primary energy factor for CHP1 electricity | J55: εCHP1 | K55: 1e-05 | L55: 1e-05
C56: Secondary hot water storage | D56: V_HS_2 | E56: 0 | F56: m³ | H56: CO2 factor for CHP1 electricity | J56: CO2 | K56: 1e-05 | L56: 1e-05
C57: Primary cold storage | D57: V_CS_1 | E57: 0 | F57: m³ | H57: Secondary energy factor for CHP2 electricity | J57: εCHP2 | K57: 1e-05 | L57: 1e-05
C58: Secondary cold storage | D58: V_CS_2 | E58: 0 | F58: m³ | H58: CO2 factor for CHP2 electricity | J58: CO2 | K58: 1e-05 | L58: 1e-05
C59: Primary battery storage | D59: BS_1 | E59: 0 | F59: kWh | H59: Primary energy factor for PV electricity | J59: εPV | K59: 10000 | L59: 10000
C60: Secondary battery storage | D60: BS_2 | E60: 0 | F60: kWh | H60: CO2 factor for PV electricity | J60: CO2 | K60: 0 | L60: 0
C61: Rest
C63: Electricity peak in Operation - SHC System | D63: P_el_op | E63: 4 | F63: kW | K63: T53 Standard | L63: specific value
C64: Cost calculation with electricity peak? | E64: =K64 -> yes | H64: Cost calculation with electricity peak? | K64: yes | L64: yes
C65: REFERENCE SYSTEM (only specific) | G65: Selection leads to specific values of
C66: Heat sources (specific,…T53 is natural gas boiler) | F66: if SPECIFIC which TYPE? | K66: T53 Standard | L66: specific value
C67: Boiler type | E67: Natural Gas | H67: Efficiency of the boiler | J67: ηHBref | K67: 0.904 | L67: 0.5938505826
C68: Peak load capacity | D68: P_Href | E68: =E37 -> 10.6 | F68: kW | H68: Ref. energy factor for spec. Energy Carrier | J68: εECref | K68: 0.9 | L68: 0.862
C69: Cooling (specific,…T53 is air cooled VCC) | H69: CO2 factorfor reference Energy Carrier | J69: CO2 | K69: 0.26 | L69: 0.236
H70: Ref. energy factor for electricity HP | J70: eHPref | K70: 0 | L70: 0
C71: Chiller type | D71: =IF(AND(E72<20,E71=Conversion!F42),"!!! Only air cooled VCC possible !!!","") ->  | E71: Air Cooled VCC (5-600kW) | H71: Saisonal Perfomance Factor for reference VCC | J71: SPFCref | K71: 1.875 | L71: 3
C72: Cooling peak load | D72: P_Cref | E72: =E44 -> 10 | F72: kW | H72: Energy Efficiency Ratio for reference VCC | J72: EERCref | K72: 2.853470437 | L72: 3
C73: Storage (specific,…T53 is predefined)
C75: Hot water storage | D75: V_HSref | E75: 0.5 | F75: m³
C76: Cold water storage | D76: V_CSref | E76: 0 | F76: m³
C77: Rest
K78: T53 Standard | L78: specific value
C79: Water consumption for heat rejection or air conditioning - REF System | E79: 0 | F79: m³/a | H79: ="consideration of water for REF ("&ROUND(E79,1)&" m³/a)" -> consideration of water for REF (0 m³/a) | K79: no | L79: yes
C80: Electricity peak in Operation - REF System | E80: =MAX($E$72/2,IF($E$67=Conversion!$C$44,$E$68,IF($E$67=Conversion!$C$46,$E$68/2,$E$68*0.05))) -> 5 | F80: kW | H80: electricty peak in operation - REF | J80: Pel.max | K80: =MAX($E$72/2,$E$68*0.05) -> 5 | L80: =MAX($E$72/2,IF($E$67=Conversion!$C$44,$E$68,IF($E$67=Conversion!$C$46,$E$68/2,$E$68*0.05))) -> 5
C81: Daily domestic hot water consumption (DHW) | D81: Vd | E81: 25.43110466 | F81: l / day
C82: Set point of hot water tank | D82: Tt | E82: 52.5 | F82: °C
C83: Ambient temp. of hot water tank | D83: Ta | E83: 15 | F83: °C | K83: T53 Standard | L83: specific value
C84: Electrical consumption ref for SH&DHW | D84: HB_el_ref | E84: =0.02 -> 0.02 | F84: kWhel/kWhth | H84: Electrical consumption ref for SH&DHW | K84: 0.02 | L84: =IF($E$67=Conversion!$C$46,0.00000001,0.02) -> 0.02
C86: Calculation details (no editing neccessary)
C87: Reference for max performance time (CAPsolar) | D87: t | E87: 4 | F87: h
C88: Switch Capacity ACM | D88: Q_Switch_ACM | E88: 250 | F88: kW
C89: Reference ESEER to SPF | D89: ESEERref_SPF | E89: 0.75

Sheet Conversion
B2: OVERVIEW CONVERSION FACTORS
B4: =INPUTS!C6 -> Drop downs menu | C4: =INPUTS!D6 -> Please select an option. Some options are just for information, others influence the result signifcantly!
B5: =INPUTS!C7 -> Value to be filled in | C5: =INPUTS!D7 -> Please fill in the certain value. ALL values are needed!
B6: =INPUTS!C8 -> T53 Standard | C6: =INPUTS!D8 -> Input values to the T53 Standard calculation are unchangable. They were defined and agreed during the work on T53.
B7: =INPUTS!C9 -> Specific value | C7: =INPUTS!D9 -> Input values can be adopted at different, highlighted positions in this Tool. This allowes a country or project specific calculation of both technical and economic key figures.
B8: =INPUTS!C10 -> Editing specific values | C8: =INPUTS!D10 -> Edit the specific value (x1, x2)
B10: cooling
B12: ="Saisonal Energy Efficiency Ratio - ESEERref, Q_VCC<"&INPUTS!E88&" kW" -> Saisonal Energy Efficiency Ratio - ESEERref, Q_VCC<250 kW | H12: ="Saisonal Energy Efficiency Ratio - ESEER, Q_VCC>"&INPUTS!E88&" kW" -> Saisonal Energy Efficiency Ratio - ESEER, Q_VCC>250 kW
B13: capacity | C13: =F36 -> no chiller | D13: =F42 -> Water Cooled VCC (>20kW) | E13: =F43 -> Air Cooled VCC (5-600kW) | F13: =F44 -> District Cooling | H13: capacity | I13: =C13 -> no chiller | J13: =D13 -> Water Cooled VCC (>20kW) | K13: =E13 -> Air Cooled VCC (5-600kW) | L13: =F13 -> District Cooling
B14: 1 | C14: 2 | D14: 3 | E14: 4 | F14: 5 | G14: 6 | H14: 1 | I14: 2 | J14: 3 | K14: 4 | L14: 5 | M14: 6
B15: 5 | C15: 0.001 | D15: 0 | E15: 2.5 | F15: 2.8 | G15: =B16-B15 -> 5 | H15: 250 | I15: 0.01 | J15: 5.84280686 | K15: 3.947714949 | L15: 6 | M15: =H16-H15 -> 250
B16: 10 | C16: 0.001 | D16: 0 | E16: 2.5 | F16: 2.8 | G16: =B17-B16 -> 10 | H16: 500 | I16: 0.01 | J16: 5.805563857 | K16: 3.775940963 | L16: 6 | M16: =H17-H16 -> 500
B17: 20 | C17: 0.001 | D17: 3.045199088 | E17: 2.919240176 | F17: 2.8 | G17: =B18-B17 -> 30 | H17: 1000 | I17: 0.01 | J17: 5.989955072 | K17: 3.938941738 | L17: 6 | M17: 1000
B18: 50 | C18: 0.001 | D18: 4.059223736 | E18: 4.201826112 | F18: 2.8 | G18: =B19-B18 -> 50
B19: 100 | C19: 0.001 | D19: 4.24516272 | E19: 4.186161566 | F19: 2.8 | G19: =B20-B19 -> 150
B20: 250 | C20: 0.001 | D20: 4.18776574 | E20: 3.947714949 | F20: 2.8 | G20: 250
B23: ="Energy Efficiency Ratio - EERref, Q_VCC<"&INPUTS!E88&" kW" -> Energy Efficiency Ratio - EERref, Q_VCC<250 kW | H23: ="Energy Efficiency Ratio - EERref, Q_VCC>"&INPUTS!E88&" kW" -> Energy Efficiency Ratio - EERref, Q_VCC>250 kW
B24: capacity | C24: =C13 -> no chiller | D24: =D13 -> Water Cooled VCC (>20kW) | E24: =E13 -> Air Cooled VCC (5-600kW) | F24: =F13 -> District Cooling | H24: capacity | I24: =C24 -> no chiller | J24: =D24 -> Water Cooled VCC (>20kW) | K24: =E24 -> Air Cooled VCC (5-600kW) | L24: =F24 -> District Cooling
B25: 1 | C25: 2 | D25: 3 | E25: 4 | F25: 5 | G25: 6 | H25: 1 | I25: 2 | J25: 3 | K25: 4 | L25: 5 | M25: 6
B26: 5 | C26: 0.001 | D26: 0 | E26: 2.751322751 | F26: 2.8 | G26: =B27-B26 -> 5 | H26: 250 | I26: 0.01 | J26: 4.443654461 | K26: 2.709429825 | L26: 6 | M26: =H27-H26 -> 250
B27: 10 | C27: 0.001 | D27: 0 | E27: 2.853470437 | F27: 2.8 | G27: =B28-B27 -> 10 | H27: 500 | I27: 0.01 | J27: 4.533913674 | K27: 3.069787182 | L27: 6 | M27: =H28-H27 -> 500
B28: 20 | C28: 0.001 | D28: 3.725490196 | E28: 2.988980716 | F28: 2.8 | G28: =B29-B28 -> 30 | H28: 1000 | I28: 0.01 | J28: 4.3229663 | K28: 3.224361264 | L28: 6 | M28: 1000
B29: 50 | C29: 0.001 | D29: 3.604651163 | E29: 2.734042553 | F29: 2.8 | G29: =B30-B29 -> 50
B30: 100 | C30: 0.001 | D30: 3.751403969 | E30: 2.784313725 | F30: 2.8 | G30: =B31-B30 -> 150
B31: 250 | C31: 0.001 | D31: 3.64922813 | E31: 2.709429825 | F31: 2.8 | G31: 250
B33: drop downs
A35: dropdown | B35: Country | C35: HB.Type | D35: Coll.Type | E35: PV.Type | F35: Chiller Type | G35: CT.Type | H35: Building | I35: Distribution | J35: Number | K35: HB. Use | L35: HB 4 C | M35: chp_method | N35: HP type
B36: Austria (Vienna) | C36: no heat source | D36: no collector | E36: no PV | F36: no chiller | G36: no cooling tower | H36: Residential | I36: Fan coil | J36: no source | K36: Winter only | L36: no | M36: Electricity credit method | N36: no HP
B37: Australia (New Castle) | C37: =Eco_base!B93 -> Reversible Heat Pump | D37: =Eco_base!B55 -> Flat plate collectors (FPC) | E37: =Eco_base!B65 -> PV | F37: =Eco_base!B118 -> Absorption chiller SE | G37: =Eco_base!B136 -> Cooling tower - wet | H37: Public | I37: Chilled ceiling | J37: monovalent | K37: Winter + Summer | L37: yes | M37: Carnot method | N37: water, soil
B38: France (Perpignon) | C38: =Eco_base!B99 -> Absorption Heat Pump (AHP) | D38: =Eco_base!B56 -> Evacuated tube collectors (ETC) | E38: =Eco_base!B66 -> specific PV | F38: =Eco_base!B122 -> Absorption chiller DE | G38: =Eco_base!B140 -> Cooling tower - dry | H38: Commercial | I38: Concrete core activation | J38: bivalent | M38: Finnish method | N38: air
B39: Germany (Munich) | C39: =Eco_base!B103 -> Reversible AHP | D39: =Eco_base!B57 -> specific SC | F39: =Eco_base!B126 -> Adsorption chiller | G39: =Eco_base!B144 -> Cooling tower - hybrid | H39: Office | I39: Air duct | M39: Energy balance
B40: Italy (Rome) | C40: =Eco_base!B109 -> CHP | F40: =Eco_base!B103 -> Reversible AHP | G40: =Eco_base!B148 -> specific CT | H40: Hotel | I40: Other
B41: P.R. China (Beijing) | C41: =Eco_base!B69 -> Natural Gas | F41: =Eco_base!B93 -> Reversible Heat Pump | H41: Sanitary, Hospital
B42: Spain (Madrid) | C42: =Eco_base!B73 -> Condensing Boiler | F42: =Eco_base!B163 -> Water Cooled VCC (>20kW) | H42: School
B43: Singapore | C43: =Eco_base!B77 -> Oil Boiler | F43: =Eco_base!B167 -> Air Cooled VCC (5-600kW) | H43: Other | K43: sensitiyity values
B44: x1 | C44: =Eco_base!B81 -> Electric Heater | F44: =Eco_base!B130 -> District Cooling | K44: T53
B45: x2 | C45: =Eco_base!B85 -> Pellets | K45: spec
C46: =Eco_base!B89 -> Heat Pump
C47: =Eco_base!B113 -> District Heating
B50: heat sources
B52: efficiency of the boiler - nHB
A53: SPECnHB | B53: =B35 -> Country | C53: month | D53: =C36 -> no heat source | E53: =C41 -> Natural Gas | F53: =C45 -> Pellets | G53: =C46 -> Heat Pump | H53: =C38 -> Absorption Heat Pump (AHP) | I53: =C40 -> CHP | J53: =C47 -> District Heating | K53: =C42 -> Condensing Boiler | L53: =C43 -> Oil Boiler | M53: =C44 -> Electric Heater | N53: =C37 -> Reversible Heat Pump | O53: =C39 -> Reversible AHP
B54: =B36 -> Austria (Vienna) | C54: year | D54: 1e-05 | E54: 0.875 | F54: 0.814 | G54: 2 | H54: 1.5 | I54: 0.56 | J54: 0.85 | K54: 0.9 | L54: 0.835 | M54: 1 | N54: =G54 -> 2 | O54: =H54 -> 1.5
B55: =$B$54 -> Austria (Vienna) | C55: jan | D55: 1e-05 | E55: 0.875 | F55: 0.814 | G55: 2 | H55: 1.5 | I55: 0.56 | J55: 0.835 | K55: 0.9 | L55: 0.835 | M55: 1 | N55: =G55 -> 2 | O55: =H55 -> 1.5
B56: =$B$54 -> Austria (Vienna) | C56: feb | D56: 1e-05 | E56: 0.875 | F56: 0.814 | G56: 2 | H56: 1.5 | I56: 0.56 | J56: 0.835 | K56: 0.9 | L56: 0.835 | M56: 1 | N56: 2 | O56: 1.5
B57: Austria (Vienna) | C57: mar | D57: 1e-05 | E57: 0.875 | F57: 0.814 | G57: 2 | H57: 1.5 | I57: 0.56 | J57: 0.835 | K57: 0.9 | L57: 0.835 | M57: 1 | N57: 2 | O57: 1.5
B58: Austria (Vienna) | C58: apr | D58: 1e-05 | E58: 0.875 | F58: 0.814 | G58: 2 | H58: 1.5 | I58: 0.56 | J58: 0.835 | K58: 0.9 | L58: 0.835 | M58: 1 | N58: 2 | O58: 1.5
B59: Austria (Vienna) | C59: may | D59: 1e-05 | E59: 0.875 | F59: 0.814 | G59: 2 | H59: 1.5 | I59: 0.56 | J59: 0.835 | K59: 0.9 | L59: 0.835 | M59: 1 | N59: 2 | O59: 1.5
B60: Austria (Vienna) | C60: june | D60: 1e-05 | E60: 0.875 | F60: 0.814 | G60: 2 | H60: 1.5 | I60: 0.56 | J60: 0.835 | K60: 0.9 | L60: 0.835 | M60: 1 | N60: 2 | O60: 1.5
B61: Austria (Vienna) | C61: july | D61: 1e-05 | E61: 0.875 | F61: 0.814 | G61: 2 | H61: 1.5 | I61: 0.56 | J61: 0.835 | K61: 0.9 | L61: 0.835 | M61: 1 | N61: 2 | O61: 1.5
B62: Austria (Vienna) | C62: aug | D62: 1e-05 | E62: 0.875 | F62: 0.814 | G62: 2 | H62: 1.5 | I62: 0.56 | J62: 0.835 | K62: 0.9 | L62: 0.835 | M62: 1 | N62: 2 | O62: 1.5
B63: Austria (Vienna) | C63: sept | D63: 1e-05 | E63: 0.875 | F63: 0.814 | G63: 2 | H63: 1.5 | I63: 0.56 | J63: 0.835 | K63: 0.9 | L63: 0.835 | M63: 1 | N63: 2 | O63: 1.5
B64: Austria (Vienna) | C64: oct | D64: 1e-05 | E64: 0.875 | F64: 0.814 | G64: 2 | H64: 1.5 | I64: 0.56 | J64: 0.835 | K64: 0.9 | L64: 0.835 | M64: 1 | N64: 2 | O64: 1.5
B65: Austria (Vienna) | C65: nov | D65: 1e-05 | E65: 0.875 | F65: 0.814 | G65: 2 | H65: 1.5 | I65: 0.56 | J65: 0.835 | K65: 0.9 | L65: 0.835 | M65: 1 | N65: 2 | O65: 1.5
B66: Austria (Vienna) | C66: dec | D66: 1e-05 | E66: 0.875 | F66: 0.814 | G66: 2 | H66: 1.5 | I66: 0.56 | J66: 0.835 | K66: 0.9 | L66: 0.835 | M66: 1 | N66: 2 | O66: 1.5
B67: =B37 -> Australia (New Castle) | C67: year | D67: 1e-05 | E67: 0.66 | F67: 0.85 | G67: 3.3 | H67: 1.5 | I67: 0.56 | J67: 0.85 | K67: 0.9 | L67: 0.835 | M67: 1 | N67: 3.3 | O67: 1.5
B68: =$B$67 -> Australia (New Castle) | C68: jan | D68: 1e-05 | E68: 0.66 | F68: 0.85 | G68: 3.3 | H68: 1.5 | I68: 0.56 | J68: 0.85 | K68: 0.9 | L68: 0.835 | M68: 1 | N68: 3.3 | O68: 1.5
B69: =$B$67 -> Australia (New Castle) | C69: feb | D69: 1e-05 | E69: 0.66 | F69: 0.85 | G69: 3.3 | H69: 1.5 | I69: 0.56 | J69: 0.85 | K69: 0.9 | L69: 0.835 | M69: 1 | N69: 3.3 | O69: 1.5
B70: Australia (New Castle) | C70: mar | D70: 1e-05 | E70: 0.66 | F70: 0.85 | G70: 3.3 | H70: 1.5 | I70: 0.56 | J70: 0.85 | K70: 0.9 | L70: 0.835 | M70: 1 | N70: 3.3 | O70: 1.5
B71: Australia (New Castle) | C71: apr | D71: 1e-05 | E71: 0.66 | F71: 0.85 | G71: 3.3 | H71: 1.5 | I71: 0.56 | J71: 0.85 | K71: 0.9 | L71: 0.835 | M71: 1 | N71: 3.3 | O71: 1.5
B72: Australia (New Castle) | C72: may | D72: 1e-05 | E72: 0.66 | F72: 0.85 | G72: 3.3 | H72: 1.5 | I72: 0.56 | J72: 0.85 | K72: 0.9 | L72: 0.835 | M72: 1 | N72: 3.3 | O72: 1.5
B73: Australia (New Castle) | C73: june | D73: 1e-05 | E73: 0.66 | F73: 0.85 | G73: 3.3 | H73: 1.5 | I73: 0.56 | J73: 0.85 | K73: 0.9 | L73: 0.835 | M73: 1 | N73: 3.3 | O73: 1.5
B74: Australia (New Castle) | C74: july | D74: 1e-05 | E74: 0.66 | F74: 0.85 | G74: 3.3 | H74: 1.5 | I74: 0.56 | J74: 0.85 | K74: 0.9 | L74: 0.835 | M74: 1 | N74: 3.3 | O74: 1.5
B75: Australia (New Castle) | C75: aug | D75: 1e-05 | E75: 0.66 | F75: 0.85 | G75: 3.3 | H75: 1.5 | I75: 0.56 | J75: 0.85 | K75: 0.9 | L75: 0.835 | M75: 1 | N75: 3.3 | O75: 1.5
B76: Australia (New Castle) | C76: sept | D76: 1e-05 | E76: 0.66 | F76: 0.85 | G76: 3.3 | H76: 1.5 | I76: 0.56 | J76: 0.85 | K76: 0.9 | L76: 0.835 | M76: 1 | N76: 3.3 | O76: 1.5
B77: Australia (New Castle) | C77: oct | D77: 1e-05 | E77: 0.66 | F77: 0.85 | G77: 3.3 | H77: 1.5 | I77: 0.56 | J77: 0.85 | K77: 0.9 | L77: 0.835 | M77: 1 | N77: 3.3 | O77: 1.5
B78: Australia (New Castle) | C78: nov | D78: 1e-05 | E78: 0.66 | F78: 0.85 | G78: 3.3 | H78: 1.5 | I78: 0.56 | J78: 0.85 | K78: 0.9 | L78: 0.835 | M78: 1 | N78: 3.3 | O78: 1.5
B79: Australia (New Castle) | C79: dec | D79: 1e-05 | E79: 0.66 | F79: 0.85 | G79: 3.3 | H79: 1.5 | I79: 0.56 | J79: 0.85 | K79: 0.9 | L79: 0.835 | M79: 1 | N79: 3.3 | O79: 1.5
B80: =B38 -> France (Perpignon) | C80: year | D80: 1e-05 | E80: 0.91 | F80: 0.78 | G80: 3.3 | H80: 1.5 | I80: 0.56 | J80: 0.85 | K80: 0.9 | L80: 0.835 | M80: 1 | N80: 3.3 | O80: 1.5
B81: =$B$80 -> France (Perpignon) | C81: jan | D81: 1e-05 | E81: 0.91 | F81: 0.78 | G81: 3.3 | H81: 1.5 | I81: 0.56 | J81: 0.85 | K81: 0.9 | L81: 0.835 | M81: 1 | N81: 3.3 | O81: 1.5
B82: =$B$80 -> France (Perpignon) | C82: feb | D82: 1e-05 | E82: 0.91 | F82: 0.78 | G82: 3.3 | H82: 1.5 | I82: 0.56 | J82: 0.85 | K82: 0.9 | L82: 0.835 | M82: 1 | N82: 3.3 | O82: 1.5
B83: France (Perpignon) | C83: mar | D83: 1e-05 | E83: 0.91 | F83: 0.78 | G83: 3.3 | H83: 1.5 | I83: 0.56 | J83: 0.85 | K83: 0.9 | L83: 0.835 | M83: 1 | N83: 3.3 | O83: 1.5
B84: France (Perpignon) | C84: apr | D84: 1e-05 | E84: 0.91 | F84: 0.78 | G84: 3.3 | H84: 1.5 | I84: 0.56 | J84: 0.85 | K84: 0.9 | L84: 0.835 | M84: 1 | N84: 3.3 | O84: 1.5
B85: France (Perpignon) | C85: may | D85: 1e-05 | E85: 0.91 | F85: 0.78 | G85: 3.3 | H85: 1.5 | I85: 0.56 | J85: 0.85 | K85: 0.9 | L85: 0.835 | M85: 1 | N85: 3.3 | O85: 1.5
B86: France (Perpignon) | C86: june | D86: 1e-05 | E86: 0.91 | F86: 0.78 | G86: 3.3 | H86: 1.5 | I86: 0.56 | J86: 0.85 | K86: 0.9 | L86: 0.835 | M86: 1 | N86: 3.3 | O86: 1.5
B87: France (Perpignon) | C87: july | D87: 1e-05 | E87: 0.91 | F87: 0.78 | G87: 3.3 | H87: 1.5 | I87: 0.56 | J87: 0.85 | K87: 0.9 | L87: 0.835 | M87: 1 | N87: 3.3 | O87: 1.5
B88: France (Perpignon) | C88: aug | D88: 1e-05 | E88: 0.91 | F88: 0.78 | G88: 3.3 | H88: 1.5 | I88: 0.56 | J88: 0.85 | K88: 0.9 | L88: 0.835 | M88: 1 | N88: 3.3 | O88: 1.5
B89: France (Perpignon) | C89: sept | D89: 1e-05 | E89: 0.91 | F89: 0.78 | G89: 3.3 | H89: 1.5 | I89: 0.56 | J89: 0.85 | K89: 0.9 | L89: 0.835 | M89: 1 | N89: 3.3 | O89: 1.5
B90: France (Perpignon) | C90: oct | D90: 1e-05 | E90: 0.91 | F90: 0.78 | G90: 3.3 | H90: 1.5 | I90: 0.56 | J90: 0.85 | K90: 0.9 | L90: 0.835 | M90: 1 | N90: 3.3 | O90: 1.5
B91: France (Perpignon) | C91: nov | D91: 1e-05 | E91: 0.91 | F91: 0.78 | G91: 3.3 | H91: 1.5 | I91: 0.56 | J91: 0.85 | K91: 0.9 | L91: 0.835 | M91: 1 | N91: 3.3 | O91: 1.5
B92: France (Perpignon) | C92: dec | D92: 1e-05 | E92: 0.91 | F92: 0.78 | G92: 3.3 | H92: 1.5 | I92: 0.56 | J92: 0.85 | K92: 0.9 | L92: 0.835 | M92: 1 | N92: 3.3 | O92: 1.5
B93: =B39 -> Germany (Munich) | C93: year | D93: 1e-05 | E93: 0.96 | F93: 0.85 | G93: 3.3 | H93: 1.5 | I93: 0.56 | J93: 0.85 | K93: 0.9 | L93: 0.835 | M93: 1 | N93: 3.3 | O93: 1.5
B94: =$B$93 -> Germany (Munich) | C94: jan | D94: 1e-05 | E94: 0.96 | F94: 0.85 | G94: 3.3 | H94: 1.5 | I94: 0.56 | J94: 0.85 | K94: 0.9 | L94: 0.835 | M94: 1 | N94: 3.3 | O94: 1.5
B95: =$B$93 -> Germany (Munich) | C95: feb | D95: 1e-05 | E95: 0.96 | F95: 0.85 | G95: 3.3 | H95: 1.5 | I95: 0.56 | J95: 0.85 | K95: 0.9 | L95: 0.835 | M95: 1 | N95: 3.3 | O95: 1.5
B96: Germany (Munich) | C96: mar | D96: 1e-05 | E96: 0.96 | F96: 0.85 | G96: 3.3 | H96: 1.5 | I96: 0.56 | J96: 0.85 | K96: 0.9 | L96: 0.835 | M96: 1 | N96: 3.3 | O96: 1.5
B97: Germany (Munich) | C97: apr | D97: 1e-05 | E97: 0.96 | F97: 0.85 | G97: 3.3 | H97: 1.5 | I97: 0.56 | J97: 0.85 | K97: 0.9 | L97: 0.835 | M97: 1 | N97: 3.3 | O97: 1.5
B98: Germany (Munich) | C98: may | D98: 1e-05 | E98: 0.96 | F98: 0.85 | G98: 3.3 | H98: 1.5 | I98: 0.56 | J98: 0.85 | K98: 0.9 | L98: 0.835 | M98: 1 | N98: 3.3 | O98: 1.5
B99: Germany (Munich) | C99: june | D99: 1e-05 | E99: 0.96 | F99: 0.85 | G99: 3.3 | H99: 1.5 | I99: 0.56 | J99: 0.85 | K99: 0.9 | L99: 0.835 | M99: 1 | N99: 3.3 | O99: 1.5
B100: Germany (Munich) | C100: july | D100: 1e-05 | E100: 0.96 | F100: 0.85 | G100: 3.3 | H100: 1.5 | I100: 0.56 | J100: 0.85 | K100: 0.9 | L100: 0.835 | M100: 1 | N100: 3.3 | O100: 1.5
B101: Germany (Munich) | C101: aug | D101: 1e-05 | E101: 0.96 | F101: 0.85 | G101: 3.3 | H101: 1.5 | I101: 0.56 | J101: 0.85 | K101: 0.9 | L101: 0.835 | M101: 1 | N101: 3.3 | O101: 1.5
B102: Germany (Munich) | C102: sept | D102: 1e-05 | E102: 0.96 | F102: 0.85 | G102: 3.3 | H102: 1.5 | I102: 0.56 | J102: 0.85 | K102: 0.9 | L102: 0.835 | M102: 1 | N102: 3.3 | O102: 1.5
B103: Germany (Munich) | C103: oct | D103: 1e-05 | E103: 0.96 | F103: 0.85 | G103: 3.3 | H103: 1.5 | I103: 0.56 | J103: 0.85 | K103: 0.9 | L103: 0.835 | M103: 1 | N103: 3.3 | O103: 1.5
B104: Germany (Munich) | C104: nov | D104: 1e-05 | E104: 0.96 | F104: 0.85 | G104: 3.3 | H104: 1.5 | I104: 0.56 | J104: 0.85 | K104: 0.9 | L104: 0.835 | M104: 1 | N104: 3.3 | O104: 1.5
B105: Germany (Munich) | C105: dec | D105: 1e-05 | E105: 0.96 | F105: 0.85 | G105: 3.3 | H105: 1.5 | I105: 0.56 | J105: 0.85 | K105: 0.9 | L105: 0.835 | M105: 1 | N105: 3.3 | O105: 1.5
B106: =B40 -> Italy (Rome) | C106: year | D106: 1e-05 | E106: 0.9 | F106: 0.85 | G106: 3.3 | H106: 1.5 | I106: 0.56 | J106: 0.85 | K106: 0.9 | L106: 0.835 | M106: 1 | N106: 3.3 | O106: 1.5
B107: =$B$106 -> Italy (Rome) | C107: jan | D107: 1e-05 | E107: 0.9 | F107: 0.85 | G107: 3.3 | H107: 1.5 | I107: 0.56 | J107: 0.85 | K107: 0.9 | L107: 0.835 | M107: 1 | N107: 3.3 | O107: 1.5
B108: =$B$106 -> Italy (Rome) | C108: feb | D108: 1e-05 | E108: 0.9 | F108: 0.85 | G108: 3.3 | H108: 1.5 | I108: 0.56 | J108: 0.85 | K108: 0.9 | L108: 0.835 | M108: 1 | N108: 3.3 | O108: 1.5
B109: Italy (Rome) | C109: mar | D109: 1e-05 | E109: 0.9 | F109: 0.85 | G109: 3.3 | H109: 1.5 | I109: 0.56 | J109: 0.85 | K109: 0.9 | L109: 0.835 | M109: 1 | N109: 3.3 | O109: 1.5
B110: Italy (Rome) | C110: apr | D110: 1e-05 | E110: 0.9 | F110: 0.85 | G110: 3.3 | H110: 1.5 | I110: 0.56 | J110: 0.85 | K110: 0.9 | L110: 0.835 | M110: 1 | N110: 3.3 | O110: 1.5
B111: Italy (Rome) | C111: may | D111: 1e-05 | E111: 0.9 | F111: 0.85 | G111: 3.3 | H111: 1.5 | I111: 0.56 | J111: 0.85 | K111: 0.9 | L111: 0.835 | M111: 1 | N111: 3.3 | O111: 1.5
B112: Italy (Rome) | C112: june | D112: 1e-05 | E112: 0.9 | F112: 0.85 | G112: 3.3 | H112: 1.5 | I112: 0.56 | J112: 0.85 | K112: 0.9 | L112: 0.835 | M112: 1 | N112: 3.3 | O112: 1.5
B113: Italy (Rome) | C113: july | D113: 1e-05 | E113: 0.9 | F113: 0.85 | G113: 3.3 | H113: 1.5 | I113: 0.56 | J113: 0.85 | K113: 0.9 | L113: 0.835 | M113: 1 | N113: 3.3 | O113: 1.5
B114: Italy (Rome) | C114: aug | D114: 1e-05 | E114: 0.9 | F114: 0.85 | G114: 3.3 | H114: 1.5 | I114: 0.56 | J114: 0.85 | K114: 0.9 | L114: 0.835 | M114: 1 | N114: 3.3 | O114: 1.5
B115: Italy (Rome) | C115: sept | D115: 1e-05 | E115: 0.9 | F115: 0.85 | G115: 3.3 | H115: 1.5 | I115: 0.56 | J115: 0.85 | K115: 0.9 | L115: 0.835 | M115: 1 | N115: 3.3 | O115: 1.5
B116: Italy (Rome) | C116: oct | D116: 1e-05 | E116: 0.9 | F116: 0.85 | G116: 3.3 | H116: 1.5 | I116: 0.56 | J116: 0.85 | K116: 0.9 | L116: 0.835 | M116: 1 | N116: 3.3 | O116: 1.5
B117: Italy (Rome) | C117: nov | D117: 1e-05 | E117: 0.9 | F117: 0.85 | G117: 3.3 | H117: 1.5 | I117: 0.56 | J117: 0.85 | K117: 0.9 | L117: 0.835 | M117: 1 | N117: 3.3 | O117: 1.5
B118: Italy (Rome) | C118: dec | D118: 1e-05 | E118: 0.9 | F118: 0.85 | G118: 3.3 | H118: 1.5 | I118: 0.56 | J118: 0.85 | K118: 0.9 | L118: 0.835 | M118: 1 | N118: 3.3 | O118: 1.5
B119: =B41 -> P.R. China (Beijing) | C119: year | D119: 1e-05 | E119: 0.95 | F119: 0.9 | G119: 3.3 | H119: 1.5 | I119: 0.56 | J119: 0.85 | K119: 0.9 | L119: 0.835 | M119: 1 | N119: =G119 -> 3.3 | O119: =H119 -> 1.5
B120: =$B$119 -> P.R. China (Beijing) | C120: jan | D120: 1e-05 | E120: 0.95 | F120: 0.9 | G120: 3.3 | H120: 1.5 | I120: 0.56 | J120: 0.85 | K120: 0.9 | L120: 0.835 | M120: 1 | N120: 3.3 | O120: 1.5
B121: =$B$119 -> P.R. China (Beijing) | C121: feb | D121: 1e-05 | E121: 0.95 | F121: 0.9 | G121: 3.3 | H121: 1.5 | I121: 0.56 | J121: 0.85 | K121: 0.9 | L121: 0.835 | M121: 1 | N121: 3.3 | O121: 1.5
B122: P.R. China (Beijing) | C122: mar | D122: 1e-05 | E122: 0.95 | F122: 0.9 | G122: 3.3 | H122: 1.5 | I122: 0.56 | J122: 0.85 | K122: 0.9 | L122: 0.835 | M122: 1 | N122: 3.3 | O122: 1.5
B123: P.R. China (Beijing) | C123: apr | D123: 1e-05 | E123: 0.95 | F123: 0.9 | G123: 3.3 | H123: 1.5 | I123: 0.56 | J123: 0.85 | K123: 0.9 | L123: 0.835 | M123: 1 | N123: 3.3 | O123: 1.5
B124: P.R. China (Beijing) | C124: may | D124: 1e-05 | E124: 0.95 | F124: 0.9 | G124: 3.3 | H124: 1.5 | I124: 0.56 | J124: 0.85 | K124: 0.9 | L124: 0.835 | M124: 1 | N124: 3.3 | O124: 1.5
B125: P.R. China (Beijing) | C125: june | D125: 1e-05 | E125: 0.95 | F125: 0.9 | G125: 3.3 | H125: 1.5 | I125: 0.56 | J125: 0.85 | K125: 0.9 | L125: 0.835 | M125: 1 | N125: 3.3 | O125: 1.5
B126: P.R. China (Beijing) | C126: july | D126: 1e-05 | E126: 0.95 | F126: 0.9 | G126: 3.3 | H126: 1.5 | I126: 0.56 | J126: 0.85 | K126: 0.9 | L126: 0.835 | M126: 1 | N126: 3.3 | O126: 1.5
B127: P.R. China (Beijing) | C127: aug | D127: 1e-05 | E127: 0.95 | F127: 0.9 | G127: 3.3 | H127: 1.5 | I127: 0.56 | J127: 0.85 | K127: 0.9 | L127: 0.835 | M127: 1 | N127: 3.3 | O127: 1.5
B128: P.R. China (Beijing) | C128: sept | D128: 1e-05 | E128: 0.95 | F128: 0.9 | G128: 3.3 | H128: 1.5 | I128: 0.56 | J128: 0.85 | K128: 0.9 | L128: 0.835 | M128: 1 | N128: 3.3 | O128: 1.5
B129: P.R. China (Beijing) | C129: oct | D129: 1e-05 | E129: 0.95 | F129: 0.9 | G129: 3.3 | H129: 1.5 | I129: 0.56 | J129: 0.85 | K129: 0.9 | L129: 0.835 | M129: 1 | N129: 3.3 | O129: 1.5
B130: P.R. China (Beijing) | C130: nov | D130: 1e-05 | E130: 0.95 | F130: 0.9 | G130: 3.3 | H130: 1.5 | I130: 0.56 | J130: 0.85 | K130: 0.9 | L130: 0.835 | M130: 1 | N130: 3.3 | O130: 1.5
B131: P.R. China (Beijing) | C131: dec | D131: 1e-05 | E131: 0.95 | F131: 0.9 | G131: 3.3 | H131: 1.5 | I131: 0.56 | J131: 0.85 | K131: 0.9 | L131: 0.835 | M131: 1 | N131: 3.3 | O131: 1.5
B132: =$B$42 -> Spain (Madrid) | C132: year | D132: 1e-05 | E132: 0.95 | F132: 0.9 | G132: 3.3 | H132: 1.5 | I132: 0.56 | J132: 0.85 | K132: 0.9 | L132: 0.835 | M132: 1 | N132: =G132 -> 3.3 | O132: =H132 -> 1.5
B133: =$B$42 -> Spain (Madrid) | C133: jan | D133: 1e-05 | E133: 0.95 | F133: 0.9 | G133: 3.3 | H133: 1.5 | I133: 0.56 | J133: 0.85 | K133: 0.9 | L133: 0.835 | M133: 1 | N133: 3.3 | O133: 1.5
B134: Spain (Madrid) | C134: feb | D134: 1e-05 | E134: 0.95 | F134: 0.9 | G134: 3.3 | H134: 1.5 | I134: 0.56 | J134: 0.85 | K134: 0.9 | L134: 0.835 | M134: 1 | N134: 3.3 | O134: 1.5
B135: Spain (Madrid) | C135: mar | D135: 1e-05 | E135: 0.95 | F135: 0.9 | G135: 3.3 | H135: 1.5 | I135: 0.56 | J135: 0.85 | K135: 0.9 | L135: 0.835 | M135: 1 | N135: 3.3 | O135: 1.5
B136: Spain (Madrid) | C136: apr | D136: 1e-05 | E136: 0.95 | F136: 0.9 | G136: 3.3 | H136: 1.5 | I136: 0.56 | J136: 0.85 | K136: 0.9 | L136: 0.835 | M136: 1 | N136: 3.3 | O136: 1.5
B137: Spain (Madrid) | C137: may | D137: 1e-05 | E137: 0.95 | F137: 0.9 | G137: 3.3 | H137: 1.5 | I137: 0.56 | J137: 0.85 | K137: 0.9 | L137: 0.835 | M137: 1 | N137: 3.3 | O137: 1.5
B138: Spain (Madrid) | C138: june | D138: 1e-05 | E138: 0.95 | F138: 0.9 | G138: 3.3 | H138: 1.5 | I138: 0.56 | J138: 0.85 | K138: 0.9 | L138: 0.835 | M138: 1 | N138: 3.3 | O138: 1.5
B139: Spain (Madrid) | C139: july | D139: 1e-05 | E139: 0.95 | F139: 0.9 | G139: 3.3 | H139: 1.5 | I139: 0.56 | J139: 0.85 | K139: 0.9 | L139: 0.835 | M139: 1 | N139: 3.3 | O139: 1.5
B140: Spain (Madrid) | C140: aug | D140: 1e-05 | E140: 0.95 | F140: 0.9 | G140: 3.3 | H140: 1.5 | I140: 0.56 | J140: 0.85 | K140: 0.9 | L140: 0.835 | M140: 1 | N140: 3.3 | O140: 1.5
B141: Spain (Madrid) | C141: sept | D141: 1e-05 | E141: 0.95 | F141: 0.9 | G141: 3.3 | H141: 1.5 | I141: 0.56 | J141: 0.85 | K141: 0.9 | L141: 0.835 | M141: 1 | N141: 3.3 | O141: 1.5
B142: Spain (Madrid) | C142: oct | D142: 1e-05 | E142: 0.95 | F142: 0.9 | G142: 3.3 | H142: 1.5 | I142: 0.56 | J142: 0.85 | K142: 0.9 | L142: 0.835 | M142: 1 | N142: 3.3 | O142: 1.5
B143: Spain (Madrid) | C143: nov | D143: 1e-05 | E143: 0.95 | F143: 0.9 | G143: 3.3 | H143: 1.5 | I143: 0.56 | J143: 0.85 | K143: 0.9 | L143: 0.835 | M143: 1 | N143: 3.3 | O143: 1.5
B144: Spain (Madrid) | C144: dec | D144: 1e-05 | E144: 0.95 | F144: 0.9 | G144: 3.3 | H144: 1.5 | I144: 0.56 | J144: 0.85 | K144: 0.9 | L144: 0.835 | M144: 1 | N144: 3.3 | O144: 1.5
B145: =B43 -> Singapore | C145: year | D145: 1e-05 | E145: 0.95 | F145: 0.9 | G145: 3.3 | H145: 1.5 | I145: 0.56 | J145: 0.85 | K145: 0.9 | L145: 0.835 | M145: 1 | N145: 3.3 | O145: 1.5
B146: =$B$145 -> Singapore | C146: jan | D146: 1e-05 | E146: 0.95 | F146: 0.9 | G146: 3.3 | H146: 1.5 | I146: 0.56 | J146: 0.85 | K146: 0.9 | L146: 0.835 | M146: 1 | N146: 3.3 | O146: 1.5
B147: =$B$145 -> Singapore | C147: feb | D147: 1e-05 | E147: 0.95 | F147: 0.9 | G147: 3.3 | H147: 1.5 | I147: 0.56 | J147: 0.85 | K147: 0.9 | L147: 0.835 | M147: 1 | N147: 3.3 | O147: 1.5
B148: Singapore | C148: mar | D148: 1e-05 | E148: 0.95 | F148: 0.9 | G148: 3.3 | H148: 1.5 | I148: 0.56 | J148: 0.85 | K148: 0.9 | L148: 0.835 | M148: 1 | N148: 3.3 | O148: 1.5
B149: Singapore | C149: apr | D149: 1e-05 | E149: 0.95 | F149: 0.9 | G149: 3.3 | H149: 1.5 | I149: 0.56 | J149: 0.85 | K149: 0.9 | L149: 0.835 | M149: 1 | N149: 3.3 | O149: 1.5
B150: Singapore | C150: may | D150: 1e-05 | E150: 0.95 | F150: 0.9 | G150: 3.3 | H150: 1.5 | I150: 0.56 | J150: 0.85 | K150: 0.9 | L150: 0.835 | M150: 1 | N150: 3.3 | O150: 1.5
B151: Singapore | C151: june | D151: 1e-05 | E151: 0.95 | F151: 0.9 | G151: 3.3 | H151: 1.5 | I151: 0.56 | J151: 0.85 | K151: 0.9 | L151: 0.835 | M151: 1 | N151: 3.3 | O151: 1.5
B152: Singapore | C152: july | D152: 1e-05 | E152: 0.95 | F152: 0.9 | G152: 3.3 | H152: 1.5 | I152: 0.56 | J152: 0.85 | K152: 0.9 | L152: 0.835 | M152: 1 | N152: 3.3 | O152: 1.5
B153: Singapore | C153: aug | D153: 1e-05 | E153: 0.95 | F153: 0.9 | G153: 3.3 | H153: 1.5 | I153: 0.56 | J153: 0.85 | K153: 0.9 | L153: 0.835 | M153: 1 | N153: 3.3 | O153: 1.5
B154: Singapore | C154: sept | D154: 1e-05 | E154: 0.95 | F154: 0.9 | G154: 3.3 | H154: 1.5 | I154: 0.56 | J154: 0.85 | K154: 0.9 | L154: 0.835 | M154: 1 | N154: 3.3 | O154: 1.5
B155: Singapore | C155: oct | D155: 1e-05 | E155: 0.95 | F155: 0.9 | G155: 3.3 | H155: 1.5 | I155: 0.56 | J155: 0.85 | K155: 0.9 | L155: 0.835 | M155: 1 | N155: 3.3 | O155: 1.5
B156: Singapore | C156: nov | D156: 1e-05 | E156: 0.95 | F156: 0.9 | G156: 3.3 | H156: 1.5 | I156: 0.56 | J156: 0.85 | K156: 0.9 | L156: 0.835 | M156: 1 | N156: 3.3 | O156: 1.5
B157: Singapore | C157: dec | D157: 1e-05 | E157: 0.95 | F157: 0.9 | G157: 3.3 | H157: 1.5 | I157: 0.56 | J157: 0.85 | K157: 0.9 | L157: 0.835 | M157: 1 | N157: 3.3 | O157: 1.5
B158: =B44 -> x1 | C158: year | D158: 1e-05 | E158: 0.95 | F158: 0.9 | G158: 4.5 | H158: 1.5 | I158: 0.56 | J158: 0.85 | K158: 0.9 | L158: 0.835 | M158: 1 | N158: 4.5 | O158: 1.5
B159: =$B$158 -> x1 | C159: jan | D159: 1e-05 | E159: 0.95 | F159: 0.9 | G159: =G158 -> 4.5 | H159: 1.5 | I159: 0.56 | J159: 0.85 | K159: 0.9 | L159: 0.835 | M159: 1 | N159: 4.5 | O159: 1.5
B160: =$B$158 -> x1 | C160: feb | D160: 1e-05 | E160: 0.95 | F160: 0.9 | G160: =G159 -> 4.5 | H160: 1.5 | I160: 0.56 | J160: 0.85 | K160: 0.9 | L160: 0.835 | M160: 1 | N160: 4.5 | O160: 1.5
B161: x1 | C161: mar | D161: 1e-05 | E161: 0.95 | F161: 0.9 | G161: 4.5 | H161: 1.5 | I161: 0.56 | J161: 0.85 | K161: 0.9 | L161: 0.835 | M161: 1 | N161: 4.5 | O161: 1.5
B162: x1 | C162: apr | D162: 1e-05 | E162: 0.95 | F162: 0.9 | G162: 4.5 | H162: 1.5 | I162: 0.56 | J162: 0.85 | K162: 0.9 | L162: 0.835 | M162: 1 | N162: 4.5 | O162: 1.5
B163: x1 | C163: may | D163: 1e-05 | E163: 0.95 | F163: 0.9 | G163: 4.5 | H163: 1.5 | I163: 0.56 | J163: 0.85 | K163: 0.9 | L163: 0.835 | M163: 1 | N163: 4.5 | O163: 1.5
B164: x1 | C164: june | D164: 1e-05 | E164: 0.95 | F164: 0.9 | G164: 4.5 | H164: 1.5 | I164: 0.56 | J164: 0.85 | K164: 0.9 | L164: 0.835 | M164: 1 | N164: 4.5 | O164: 1.5
B165: x1 | C165: july | D165: 1e-05 | E165: 0.95 | F165: 0.9 | G165: 4.5 | H165: 1.5 | I165: 0.56 | J165: 0.85 | K165: 0.9 | L165: 0.835 | M165: 1 | N165: 4.5 | O165: 1.5
B166: x1 | C166: aug | D166: 1e-05 | E166: 0.95 | F166: 0.9 | G166: 4.5 | H166: 1.5 | I166: 0.56 | J166: 0.85 | K166: 0.9 | L166: 0.835 | M166: 1 | N166: 4.5 | O166: 1.5
B167: x1 | C167: sept | D167: 1e-05 | E167: 0.95 | F167: 0.9 | G167: 4.5 | H167: 1.5 | I167: 0.56 | J167: 0.85 | K167: 0.9 | L167: 0.835 | M167: 1 | N167: 4.5 | O167: 1.5
B168: x1 | C168: oct | D168: 1e-05 | E168: 0.95 | F168: 0.9 | G168: 4.5 | H168: 1.5 | I168: 0.56 | J168: 0.85 | K168: 0.9 | L168: 0.835 | M168: 1 | N168: 4.5 | O168: 1.5
B169: x1 | C169: nov | D169: 1e-05 | E169: 0.95 | F169: 0.9 | G169: 4.5 | H169: 1.5 | I169: 0.56 | J169: 0.85 | K169: 0.9 | L169: 0.835 | M169: 1 | N169: 4.5 | O169: 1.5
B170: x1 | C170: dec | D170: 1e-05 | E170: 0.95 | F170: 0.9 | G170: 4.5 | H170: 1.5 | I170: 0.56 | J170: 0.85 | K170: 0.9 | L170: 0.835 | M170: 1 | N170: 4.5 | O170: 1.5
B171: =B45 -> x2 | C171: year | D171: 1e-05 | E171: 0.9 | F171: 0.85 | G171: 4.5 | H171: 1.5 | I171: 0.56 | J171: 0.85 | K171: 0.9 | L171: 0.835 | M171: 1 | N171: 4.5 | O171: 1.5
B172: =$B$171 -> x2 | C172: jan | D172: 1e-05 | E172: 0.9 | F172: 0.85 | G172: =G171 -> 4.5 | H172: 1.5 | I172: 0.56 | J172: 0.85 | K172: 0.9 | L172: 0.835 | M172: 1 | N172: 4.5 | O172: 1.5
B173: =$B$171 -> x2 | C173: feb | D173: 1e-05 | E173: 0.9 | F173: 0.85 | G173: =G172 -> 4.5 | H173: 1.5 | I173: 0.56 | J173: 0.85 | K173: 0.9 | L173: 0.835 | M173: 1 | N173: 4.5 | O173: 1.5
B174: x2 | C174: mar | D174: 1e-05 | E174: 0.9 | F174: 0.85 | G174: 4.5 | H174: 1.5 | I174: 0.56 | J174: 0.85 | K174: 0.9 | L174: 0.835 | M174: 1 | N174: 4.5 | O174: 1.5
B175: x2 | C175: apr | D175: 1e-05 | E175: 0.9 | F175: 0.85 | G175: 4.5 | H175: 1.5 | I175: 0.56 | J175: 0.85 | K175: 0.9 | L175: 0.835 | M175: 1 | N175: 4.5 | O175: 1.5
B176: x2 | C176: may | D176: 1e-05 | E176: 0.9 | F176: 0.85 | G176: 4.5 | H176: 1.5 | I176: 0.56 | J176: 0.85 | K176: 0.9 | L176: 0.835 | M176: 1 | N176: 4.5 | O176: 1.5
B177: x2 | C177: june | D177: 1e-05 | E177: 0.9 | F177: 0.85 | G177: 4.5 | H177: 1.5 | I177: 0.56 | J177: 0.85 | K177: 0.9 | L177: 0.835 | M177: 1 | N177: 4.5 | O177: 1.5
B178: x2 | C178: july | D178: 1e-05 | E178: 0.9 | F178: 0.85 | G178: 4.5 | H178: 1.5 | I178: 0.56 | J178: 0.85 | K178: 0.9 | L178: 0.835 | M178: 1 | N178: 4.5 | O178: 1.5
B179: x2 | C179: aug | D179: 1e-05 | E179: 0.9 | F179: 0.85 | G179: 4.5 | H179: 1.5 | I179: 0.56 | J179: 0.85 | K179: 0.9 | L179: 0.835 | M179: 1 | N179: 4.5 | O179: 1.5
B180: x2 | C180: sept | D180: 1e-05 | E180: 0.9 | F180: 0.85 | G180: 4.5 | H180: 1.5 | I180: 0.56 | J180: 0.85 | K180: 0.9 | L180: 0.835 | M180: 1 | N180: 4.5 | O180: 1.5
B181: x2 | C181: oct | D181: 1e-05 | E181: 0.9 | F181: 0.85 | G181: 4.5 | H181: 1.5 | I181: 0.56 | J181: 0.85 | K181: 0.9 | L181: 0.835 | M181: 1 | N181: 4.5 | O181: 1.5
B182: x2 | C182: nov | D182: 1e-05 | E182: 0.9 | F182: 0.85 | G182: 4.5 | H182: 1.5 | I182: 0.56 | J182: 0.85 | K182: 0.9 | L182: 0.835 | M182: 1 | N182: 4.5 | O182: 1.5
B183: x2 | C183: dec | D183: 1e-05 | E183: 0.9 | F183: 0.85 | G183: 4.5 | H183: 1.5 | I183: 0.56 | J183: 0.85 | K183: 0.9 | L183: 0.835 | M183: 1 | N183: 4.5 | O183: 1.5
A184: T53nHB | B184: T53 Standard | C184: year | D184: 1e-05 | E184: 0.904 | F184: 0.856 | G184: 3.3 | H184: 1.5 | I184: 0.56 | J184: 0.85 | K184: 0.9 | L184: 0.835 | M184: 1 | N184: 3.3 | O184: 1.5
B185: T53 Standard | C185: jan | D185: 1e-05 | E185: 0.93 | F185: 0.89 | G185: 3.3 | H185: 1.5 | I185: 0.56 | J185: 0.835 | K185: 0.9 | L185: 0.835 | M185: 1 | N185: =G185 -> 3.3 | O185: =H185 -> 1.5
B186: T53 Standard | C186: feb | D186: 1e-05 | E186: 0.92 | F186: 0.87 | G186: 3.3 | H186: 1.5 | I186: 0.56 | J186: 0.835 | K186: 0.9 | L186: 0.835 | M186: 1 | N186: 3.3 | O186: 1.5
B187: T53 Standard | C187: mar | D187: 1e-05 | E187: 0.9 | F187: 0.86 | G187: 3.3 | H187: 1.5 | I187: 0.56 | J187: 0.835 | K187: 0.9 | L187: 0.835 | M187: 1 | N187: 3.3 | O187: 1.5
B188: T53 Standard | C188: apr | D188: 1e-05 | E188: 0.89 | F188: 0.85 | G188: 3.3 | H188: 1.5 | I188: 0.56 | J188: 0.835 | K188: 0.9 | L188: 0.835 | M188: 1 | N188: 3.3 | O188: 1.5
B189: T53 Standard | C189: may | D189: 1e-05 | E189: 0.82 | F189: 0.78 | G189: 3.3 | H189: 1.5 | I189: 0.56 | J189: 0.835 | K189: 0.9 | L189: 0.835 | M189: 1 | N189: 3.3 | O189: 1.5
B190: T53 Standard | C190: june | D190: 1e-05 | E190: 0.81 | F190: 0.77 | G190: 3.3 | H190: 1.5 | I190: 0.56 | J190: 0.835 | K190: 0.9 | L190: 0.835 | M190: 1 | N190: 3.3 | O190: 1.5
B191: T53 Standard | C191: july | D191: 1e-05 | E191: 0.81 | F191: 0.77 | G191: 3.3 | H191: 1.5 | I191: 0.56 | J191: 0.835 | K191: 0.9 | L191: 0.835 | M191: 1 | N191: 3.3 | O191: 1.5
B192: T53 Standard | C192: aug | D192: 1e-05 | E192: 0.81 | F192: 0.77 | G192: 3.3 | H192: 1.5 | I192: 0.56 | J192: 0.835 | K192: 0.9 | L192: 0.835 | M192: 1 | N192: 3.3 | O192: 1.5
B193: T53 Standard | C193: sept | D193: 1e-05 | E193: 0.82 | F193: 0.78 | G193: 3.3 | H193: 1.5 | I193: 0.56 | J193: 0.835 | K193: 0.9 | L193: 0.835 | M193: 1 | N193: 3.3 | O193: 1.5
B194: T53 Standard | C194: oct | D194: 1e-05 | E194: 0.91 | F194: 0.86 | G194: 3.3 | H194: 1.5 | I194: 0.56 | J194: 0.835 | K194: 0.9 | L194: 0.835 | M194: 1 | N194: 3.3 | O194: 1.5
B195: T53 Standard | C195: nov | D195: 1e-05 | E195: 0.92 | F195: 0.87 | G195: 3.3 | H195: 1.5 | I195: 0.56 | J195: 0.835 | K195: 0.9 | L195: 0.835 | M195: 1 | N195: 3.3 | O195: 1.5
B196: T53 Standard | C196: dec | D196: 1e-05 | E196: 0.93 | F196: 0.88 | G196: 3.3 | H196: 1.5 | I196: 0.56 | J196: 0.835 | K196: 0.9 | L196: 0.835 | M196: 1 | N196: 3.3 | O196: 1.5
B198: primary energy factor for specific Energy Carrier - eEC
A199: SPECeEC | B199: country | C199: month | D199: =C36 -> no heat source | E199: =C41 -> Natural Gas | F199: =C45 -> Pellets | G199: =C46 -> Heat Pump | H199: =C38 -> Absorption Heat Pump (AHP) | I199: =C40 -> CHP | J199: =C47 -> District Heating | K199: =C42 -> Condensing Boiler | L199: =C43 -> Oil Boiler | M199: =C44 -> Electric Heater | N199: =C37 -> Reversible Heat Pump | O199: =C39 -> Reversible AHP
B200: =B36 -> Austria (Vienna) | C200: year | D200: 1e-05 | E200: 0.862 | F200: 16.7 | G200: =10^15 -> 1000000000000000 | H200: =E200 -> 0.862 | I200: 2 | J200: 3.571486 | K200: 0.862 | L200: 0.813 | M200: =D495 -> 0.5910592383 | N200: =G200 -> 1000000000000000 | O200: =H200 -> 0.862
B201: =$B$54 -> Austria (Vienna) | C201: jan | D201: 1e-05 | E201: 0.862 | F201: 16.7 | G201: =10^15 -> 1000000000000000 | H201: 0.862 | I201: 2 | J201: 3.571486 | K201: 0.862 | L201: 0.813 | M201: =D496 -> 0.5297514337 | N201: =G201 -> 1000000000000000 | O201: =H201 -> 0.862
B202: =$B$54 -> Austria (Vienna) | C202: feb | D202: 1e-05 | E202: 0.862 | F202: 16.7 | G202: 1000000000000000 | H202: 0.862 | I202: 2 | J202: 3.571486 | K202: 0.862 | L202: 0.813 | M202: 0.5427454159 | N202: 1000000000000000 | O202: 0.862
B203: Austria (Vienna) | C203: mar | D203: 1e-05 | E203: 0.862 | F203: 16.7 | G203: 1000000000000000 | H203: 0.862 | I203: 2 | J203: 3.571486 | K203: 0.862 | L203: 0.813 | M203: 0.5793871164 | N203: 1000000000000000 | O203: 0.862
B204: Austria (Vienna) | C204: apr | D204: 1e-05 | E204: 0.862 | F204: 16.7 | G204: 1000000000000000 | H204: 0.862 | I204: 2 | J204: 3.571486 | K204: 0.862 | L204: 0.813 | M204: 0.6113395826 | N204: 1000000000000000 | O204: 0.862
B205: Austria (Vienna) | C205: may | D205: 1e-05 | E205: 0.862 | F205: 16.7 | G205: 1000000000000000 | H205: 0.862 | I205: 2 | J205: 3.571486 | K205: 0.862 | L205: 0.813 | M205: 0.6334890996 | N205: 1000000000000000 | O205: 0.862
B206: Austria (Vienna) | C206: june | D206: 1e-05 | E206: 0.862 | F206: 16.7 | G206: 1000000000000000 | H206: 0.862 | I206: 2 | J206: 3.571486 | K206: 0.862 | L206: 0.813 | M206: 0.6369651383 | N206: 1000000000000000 | O206: 0.862
B207: Austria (Vienna) | C207: july | D207: 1e-05 | E207: 0.862 | F207: 16.7 | G207: 1000000000000000 | H207: 0.862 | I207: 2 | J207: 3.571486 | K207: 0.862 | L207: 0.813 | M207: 0.640487436 | N207: 1000000000000000 | O207: 0.862
B208: Austria (Vienna) | C208: aug | D208: 1e-05 | E208: 0.862 | F208: 16.7 | G208: 1000000000000000 | H208: 0.862 | I208: 2 | J208: 3.571486 | K208: 0.862 | L208: 0.813 | M208: 0.6424636019 | N208: 1000000000000000 | O208: 0.862
B209: Austria (Vienna) | C209: sept | D209: 1e-05 | E209: 0.862 | F209: 16.7 | G209: 1000000000000000 | H209: 0.862 | I209: 2 | J209: 3.571486 | K209: 0.862 | L209: 0.813 | M209: 0.6115220369 | N209: 1000000000000000 | O209: 0.862
B210: Austria (Vienna) | C210: oct | D210: 1e-05 | E210: 0.862 | F210: 16.7 | G210: 1000000000000000 | H210: 0.862 | I210: 2 | J210: 3.571486 | K210: 0.862 | L210: 0.813 | M210: 0.5669433986 | N210: 1000000000000000 | O210: 0.862
B211: Austria (Vienna) | C211: nov | D211: 1e-05 | E211: 0.862 | F211: 16.7 | G211: 1000000000000000 | H211: 0.862 | I211: 2 | J211: 3.571486 | K211: 0.862 | L211: 0.813 | M211: 0.5590105746 | N211: 1000000000000000 | O211: 0.862
B212: Austria (Vienna) | C212: dec | D212: 1e-05 | E212: 0.862 | F212: 16.7 | G212: 1000000000000000 | H212: 0.862 | I212: 2 | J212: 3.571486 | K212: 0.862 | L212: 0.813 | M212: 0.5407335578 | N212: 1000000000000000 | O212: 0.862
... 581 more rows

Sheet HP
B1: Source | C1: HP type | D1: month | E1: THT | F1: temp diff HT | G1: TMT | H1: temp diff MT | I1: TLT | J1: temp diff LT | K1: delivery temp diff | L1: Carnot efficiency factor
A3: H1 | B3: =INPUTS!E31 -> Heat Pump | C3: no HP | D3: year | E3: 0 | F3: 0 | G3: 0 | H3: 0 | I3: 0 | J3: 0 | K3: 0 | L3: 0
D4: jan | E4: 0 | F4: 0 | G4: 0 | H4: 0 | I4: 0 | J4: 0 | K4: 0 | L4: 0
D5: feb | E5: 0 | F5: 0 | G5: 0 | H5: 0 | I5: 0 | J5: 0 | K5: 0 | L5: 0
D6: mar | E6: 0 | F6: 0 | G6: 0 | H6: 0 | I6: 0 | J6: 0 | K6: 0 | L6: 0
D7: apr | E7: 0 | F7: 0 | G7: 0 | H7: 0 | I7: 0 | J7: 0 | K7: 0 | L7: 0
D8: may | E8: 0 | F8: 0 | G8: 0 | H8: 0 | I8: 0 | J8: 0 | K8: 0 | L8: 0
D9: june | E9: 0 | F9: 0 | G9: 0 | H9: 0 | I9: 0 | J9: 0 | K9: 0 | L9: 0
D10: july | E10: 0 | F10: 0 | G10: 0 | H10: 0 | I10: 0 | J10: 0 | K10: 0 | L10: 0
D11: aug | E11: 0 | F11: 0 | G11: 0 | H11: 0 | I11: 0 | J11: 0 | K11: 0 | L11: 0
D12: sept | E12: 0 | F12: 0 | G12: 0 | H12: 0 | I12: 0 | J12: 0 | K12: 0 | L12: 0
D13: oct | E13: 0 | F13: 0 | G13: 0 | H13: 0 | I13: 0 | J13: 0 | K13: 0 | L13: 0
D14: nov | E14: 0 | F14: 0 | G14: 0 | H14: 0 | I14: 0 | J14: 0 | K14: 0 | L14: 0
D15: dec | E15: 0 | F15: 0 | G15: 0 | H15: 0 | I15: 0 | J15: 0 | K15: 0 | L15: 0
A16: H2 | B16: =INPUTS!E34 -> no heat source | C16: no HP | D16: year | E16: 90 | F16: 0 | G16: 40 | H16: 5 | I16: 10 | J16: 5 | K16: 5 | L16: 0.5
D17: jan | E17: 90 | F17: 0 | G17: 40 | H17: 5 | I17: 10 | J17: 5 | K17: 5 | L17: 0.5
D18: feb | E18: 90 | F18: 0 | G18: 40 | H18: 5 | I18: 10 | J18: 5 | K18: 5 | L18: 0.5
D19: mar | E19: 90 | F19: 0 | G19: 40 | H19: 5 | I19: 10 | J19: 5 | K19: 5 | L19: 0.5
D20: apr | E20: 90 | F20: 0 | G20: 40 | H20: 5 | I20: 10 | J20: 5 | K20: 5 | L20: 0.5
D21: may | E21: 90 | F21: 0 | G21: 40 | H21: 5 | I21: 10 | J21: 5 | K21: 5 | L21: 0.5
D22: june | E22: 90 | F22: 0 | G22: 40 | H22: 5 | I22: 10 | J22: 5 | K22: 5 | L22: 0.5
D23: july | E23: 90 | F23: 0 | G23: 40 | H23: 5 | I23: 10 | J23: 5 | K23: 5 | L23: 0.5
D24: aug | E24: 90 | F24: 0 | G24: 40 | H24: 5 | I24: 10 | J24: 5 | K24: 5 | L24: 0.5
D25: sept | E25: 90 | F25: 0 | G25: 40 | H25: 5 | I25: 10 | J25: 5 | K25: 5 | L25: 0.5
D26: oct | E26: 90 | F26: 0 | G26: 40 | H26: 5 | I26: 10 | J26: 5 | K26: 5 | L26: 0.5
D27: nov | E27: 90 | F27: 0 | G27: 40 | H27: 5 | I27: 10 | J27: 5 | K27: 5 | L27: 0.5
D28: dec | E28: 90 | F28: 0 | G28: 40 | H28: 5 | I28: 10 | J28: 5 | K28: 5 | L28: 0.5
A29: C1 | B29: =INPUTS!E40 -> no chiller | C29: no HP | D29: year | E29: 0 | F29: 0 | G29: 0 | H29: 0 | I29: 0 | J29: 0 | K29: 0 | L29: 0
D30: jan | E30: 0 | F30: 0 | G30: 0 | H30: 0 | I30: 0 | J30: 0 | K30: 0 | L30: 0
D31: feb | E31: 0 | F31: 0 | G31: 0 | H31: 0 | I31: 0 | J31: 0 | K31: 0 | L31: 0
D32: mar | E32: 0 | F32: 0 | G32: 0 | H32: 0 | I32: 0 | J32: 0 | K32: 0 | L32: 0
D33: apr | E33: 0 | F33: 0 | G33: 0 | H33: 0 | I33: 0 | J33: 0 | K33: 0 | L33: 0
D34: may | E34: 0 | F34: 0 | G34: 0 | H34: 0 | I34: 0 | J34: 0 | K34: 0 | L34: 0
D35: june | E35: 0 | F35: 0 | G35: 0 | H35: 0 | I35: 0 | J35: 0 | K35: 0 | L35: 0
D36: july | E36: 0 | F36: 0 | G36: 0 | H36: 0 | I36: 0 | J36: 0 | K36: 0 | L36: 0
D37: aug | E37: 0 | F37: 0 | G37: 0 | H37: 0 | I37: 0 | J37: 0 | K37: 0 | L37: 0
D38: sept | E38: 0 | F38: 0 | G38: 0 | H38: 0 | I38: 0 | J38: 0 | K38: 0 | L38: 0
D39: oct | E39: 0 | F39: 0 | G39: 0 | H39: 0 | I39: 0 | J39: 0 | K39: 0 | L39: 0
D40: nov | E40: 0 | F40: 0 | G40: 0 | H40: 0 | I40: 0 | J40: 0 | K40: 0 | L40: 0
D41: dec | E41: 0 | F41: 0 | G41: 0 | H41: 0 | I41: 0 | J41: 0 | K41: 0 | L41: 0
A42: C2 | B42: =INPUTS!E42 -> no chiller | C42: no HP | D42: year | E42: 0 | F42: 0 | G42: 0 | H42: 0 | I42: 0 | J42: 0 | K42: 0 | L42: 0
D43: jan | E43: 0 | F43: 0 | G43: 0 | H43: 0 | I43: 0 | J43: 0 | K43: 0 | L43: 0
D44: feb | E44: 0 | F44: 0 | G44: 0 | H44: 0 | I44: 0 | J44: 0 | K44: 0 | L44: 0
D45: mar | E45: 0 | F45: 0 | G45: 0 | H45: 0 | I45: 0 | J45: 0 | K45: 0 | L45: 0
D46: apr | E46: 0 | F46: 0 | G46: 0 | H46: 0 | I46: 0 | J46: 0 | K46: 0 | L46: 0
D47: may | E47: 0 | F47: 0 | G47: 0 | H47: 0 | I47: 0 | J47: 0 | K47: 0 | L47: 0
D48: june | E48: 0 | F48: 0 | G48: 0 | H48: 0 | I48: 0 | J48: 0 | K48: 0 | L48: 0
D49: july | E49: 0 | F49: 0 | G49: 0 | H49: 0 | I49: 0 | J49: 0 | K49: 0 | L49: 0
D50: aug | E50: 0 | F50: 0 | G50: 0 | H50: 0 | I50: 0 | J50: 0 | K50: 0 | L50: 0
D51: sept | E51: 0 | F51: 0 | G51: 0 | H51: 0 | I51: 0 | J51: 0 | K51: 0 | L51: 0
D52: oct | E52: 0 | F52: 0 | G52: 0 | H52: 0 | I52: 0 | J52: 0 | K52: 0 | L52: 0
D53: nov | E53: 0 | F53: 0 | G53: 0 | H53: 0 | I53: 0 | J53: 0 | K53: 0 | L53: 0
D54: dec | E54: 0 | F54: 0 | G54: 0 | H54: 0 | I54: 0 | J54: 0 | K54: 0 | L54: 0
A55: Href | B55: =INPUTS!E67 -> Natural Gas | C55: no HP | D55: year | E55: 0 | F55: 0 | G55: 0 | H55: 0 | I55: 0 | J55: 0 | K55: 0 | L55: 0
D56: jan | E56: 0 | F56: 0 | G56: 0 | H56: 0 | I56: 0 | J56: 0 | K56: 0 | L56: 0
D57: feb | E57: 0 | F57: 0 | G57: 0 | H57: 0 | I57: 0 | J57: 0 | K57: 0 | L57: 0
D58: mar | E58: 0 | F58: 0 | G58: 0 | H58: 0 | I58: 0 | J58: 0 | K58: 0 | L58: 0
D59: apr | E59: 0 | F59: 0 | G59: 0 | H59: 0 | I59: 0 | J59: 0 | K59: 0 | L59: 0
D60: may | E60: 0 | F60: 0 | G60: 0 | H60: 0 | I60: 0 | J60: 0 | K60: 0 | L60: 0
D61: june | E61: 0 | F61: 0 | G61: 0 | H61: 0 | I61: 0 | J61: 0 | K61: 0 | L61: 0
D62: july | E62: 0 | F62: 0 | G62: 0 | H62: 0 | I62: 0 | J62: 0 | K62: 0 | L62: 0
D63: aug | E63: 0 | F63: 0 | G63: 0 | H63: 0 | I63: 0 | J63: 0 | K63: 0 | L63: 0
D64: sept | E64: 0 | F64: 0 | G64: 0 | H64: 0 | I64: 0 | J64: 0 | K64: 0 | L64: 0
D65: oct | E65: 0 | F65: 0 | G65: 0 | H65: 0 | I65: 0 | J65: 0 | K65: 0 | L65: 0
D66: nov | E66: 0 | F66: 0 | G66: 0 | H66: 0 | I66: 0 | J66: 0 | K66: 0 | L66: 0
D67: dec | E67: 0 | F67: 0 | G67: 0 | H67: 0 | I67: 0 | J67: 0 | K67: 0 | L67: 0

Sheet Table (hidden)
F1: 6 | O1: 15 | Z1: 26 | AP1: 42 | BJ1: 62 | BT1: 72
D2: Source.Sink Table: DHW & Heating & Cooling | AN2: Source.Sink Table: DHW & Cooling
B3: Q groups
E4: Sink | F4: =TRANSPOSE(D6:E26) -> Electricity | G4: Energy Carrier | H4: Sun | I4: Ground | J4: Air | K4: Water | L4: Waste Heat | M4: Solar Collectors | N4: Ground Probes | O4: Air Heat Exchanger | P4: Water Heat Exchanger | Q4: Waste Heat Exchanger | R4: Primary Storage | S4: Rejection Storage | T4: Cold Backups | U4: HP | V4: Hot Backups | W4: Secondary Storage | X4: Heat Distribution | Y4: DHW Distribution | Z4: Cold Distribution | AA4: Solar Pump | AB4: Hot T Pump | AC4: Medium T Pump | AD4: Low TPump | AE4: Medium T Pump VCC | AF4: Low T Pump VCC | AG4: Recooling ACM Mode | AH4: Recooling VCC Mode | AI4: Cold Distr. Pump | AJ4: DHW Distr. Pump | AK4: Heat Distr. Pump | AO4: Sink | AP4: Electricity | AQ4: Energy Carrier | AR4: Sun | AS4: Ground | AT4: Air | AU4: Water | AV4: Waste Heat | AW4: Solar Collectors | AX4: Ground Probes | AY4: Air Heat Exchanger | AZ4: Water Heat Exchanger | BA4: Waste Heat Exchanger | BB4: Primary Storage | BC4: Rejection Storage | BD4: Cold Backups | BE4: HP | BF4: Hot Backups | BG4: Secondary Storage | BH4: Heat Distribution | BI4: DHW Distribution | BJ4: Cold Distribution | BK4: Solar Pump | BL4: Hot T Pump | BM4: Medium T Pump | BN4: Low TPump | BO4: Medium T Pump VCC | BP4: Low T Pump VCC | BQ4: Recooling ACM Mode | BR4: Recooling VCC Mode | BS4: Cold Distr. Pump | BT4: DHW Distr. Pump | BU4: HD Distr. Pump
D5: Source | E5: Source | F5: El | G5: EC | H5: Su | I5: Gr | J5: Ar | K5: Wt | L5: He | M5: SC | N5: GP | O5: AH | P5: WH | Q5: HH | R5: PS | S5: RS | T5: CB | U5: HP | V5: HB | W5: SS | X5: HD | Y5: WD | Z5: CD | AA5: SP | AB5: HT | AC5: MT | AD5: LT | AE5: MC | AF5: LC | AG5: CA | AH5: CC | AI5: CD | AJ5: WD | AK5: HD | AN5: Source | AP5: =F5 -> El | AQ5: EC | AR5: Su | AS5: Gr | AT5: Ar | AU5: Wt | AV5: He | AW5: SC | AX5: GP | AY5: AH | AZ5: WH | BA5: HH | BB5: PS | BC5: RS | BD5: CB | BE5: HP | BF5: HB | BG5: SS | BH5: HD | BI5: WD | BJ5: CD | BK5: SP | BL5: HT | BM5: MT | BN5: LT | BO5: MC | BP5: LC | BQ5: CA | BR5: CC | BS5: CD | BT5: WD | BU5: HD
B6: =D6 -> Electricity | C6: =E6 -> El | D6: Electricity | E6: El | T6: x | U6: x | V6: x | AA6: x | AB6: x | AC6: x | AD6: x | AE6: x | AF6: x | AG6: x | AH6: x | AI6: x | AJ6: x | AK6: x | AN6: Electricity | AO6: El | BD6: x | BE6: x | BF6: x | BK6: x | BL6: x | BM6: x | BN6: x | BO6: x | BP6: x | BQ6: x | BR6: x | BS6: x | BT6: x | BU6: x
B7: Purchased Energy | C7: =E7 -> EC | D7: Energy Carrier | E7: EC | V7: x | AN7: Energy Carrier | AO7: EC | BF7: x
D8: Sun | E8: Su | M8: x | AN8: Sun | AO8: Su | AW8: x
D9: Ground | E9: Gr | AN9: Ground | AO9: Gr
D10: Air | E10: Ar | AN10: Air | AO10: Ar
D11: Water | E11: Wt | AN11: Water | AO11: Wt
B12: Renewable Energy | C12: RES | D12: Waste Heat | E12: He | AN12: Waste Heat | AO12: He
D13: Solar Collectors | E13: SC | R13: x | U13: x | X13: x | Y13: x | AN13: Solar Collectors | AO13: SC | BB13: x | BE13: x | BH13: x | BI13: x
D14: Ground Probes | E14: GP | AN14: Ground Probes | AO14: GP
D15: Air Heat Exchanger | E15: AH | J15: x | AN15: Air Heat Exchanger | AO15: AH | AT15: x
D16: Water Heat Exchanger | E16: WH | AN16: Water Heat Exchanger | AO16: WH
B17: RE harvested | C17: REH | D17: Waste Heat Exchanger | E17: HH | AN17: Waste Heat Exchanger | AO17: HH
B18: =D18 -> Primary Storage | C18: =E18 -> PS | D18: Primary Storage | E18: PS | U18: x | X18: x | Y18: x | AN18: Primary Storage | AO18: PS | BE18: x | BH18: x | BI18: x
B19: =D19 -> Rejection Storage | C19: =E19 -> RS | D19: Rejection Storage | E19: RS | AN19: Rejection Storage | AO19: RS
B20: Cold Backups | C20: CB | D20: Cold Backups | E20: CB | O20: x | AN20: Cold Backups | AO20: CB | AY20: x
B21: HP | C21: HP | D21: HP | E21: HP | O21: x | AN21: HP | AO21: HP | AY21: x
B22: Hot Backups | C22: HB | D22: Hot Backups | E22: HB | R22: x | U22: x | X22: x | Y22: x | AN22: Hot Backups | AO22: HB | BB22: x | BE22: x | BH22: x | BI22: x
B23: Secondary Storage | C23: SS | D23: Secondary Storage | E23: SS | T23: x | U23: x | AN23: Secondary Storage | AO23: SS | BD23: x | BE23: x
B24: Heat Distribution | C24: HD | D24: Heat Distribution | E24: HD | AN24: Heat Distribution | AO24: HD
B25: DHW Distribution | C25: WD | D25: DHW Distribution | E25: WD | AN25: DHW Distribution | AO25: WD
B26: Cold Distribution | C26: CD | D26: Cold Distribution | E26: CD | T26: x | U26: x | W26: x | AN26: Cold Distribution | AO26: CD | BD26: x | BE26: x | BG26: x
G29: !!! Automatic EF-chart drawing not active at the moment !!!
G30: !!! If you want to use the EF chart, please go through manually !!!

Sheet Data
A1: DHW & Heating
A2: Energy Data | B2: Nomenclature | C2: Yearly Data | D2: January | E2: February | F2: March | G2: April | H2: May | I2: June | J2: July | K2: August | L2: September | M2: October | N2: November | O2: December | P2: PEAK (in periode of interest)
C3: [kWh] | D3: [kWh] | E3: [kWh] | F3: [kWh] | G3: [kWh] | H3: [kWh] | I3: [kWh] | J3: [kWh] | K3: [kWh] | L3: [kWh] | M3: [kWh] | N3: [kWh] | O3: [kWh] | P3: [kWh]
A4: Energy Carrier to Hot Backups | B4: EC.H1 | C4: 1.2e-05 | D4: 1e-06 | E4: 1e-06 | F4: 1e-06 | G4: 1e-06 | H4: 1e-06 | I4: 1e-06 | J4: 1e-06 | K4: 1e-06 | L4: 1e-06 | M4: 1e-06 | N4: 1e-06 | O4: 1e-06 | P4: 1e-06 | Q4: EC.HB
A5: Energy Carrier to Hot Backups | B5: EC.H2 | C5: 0 | D5: 0 | E5: 0 | F5: 0 | G5: 0 | H5: 0 | I5: 0 | J5: 0 | K5: 0 | L5: 0 | M5: 0 | N5: 0 | O5: 0 | P5: 0
A6: Total Purchased Energy to System | B6: EC.System | C6: 1.2e-05 | D6: 1e-06 | E6: 1e-06 | F6: 1e-06 | G6: 1e-06 | H6: 1e-06 | I6: 1e-06 | J6: 1e-06 | K6: 1e-06 | L6: 1e-06 | M6: 1e-06 | N6: 1e-06 | O6: 1e-06 | Q6: EC.System
A7: Sun to Solar Thermal Collectors | B7: Su.SC | C7: 0 | P7: 1 | Q7: Su.SC
A8: Sun to Photovoltiac Collectors | B8: Su.PV | C8: 13897.8 | J8: 7007.5 | K8: 6890.3 | P8: 1
A9: Total Renewable Energy to System | B9: RES.System | C9: 13897.8 | D9: 0 | E9: 0 | F9: 0 | G9: 0 | H9: 0 | I9: 0 | J9: 7007.5 | K9: 6890.3 | L9: 0 | M9: 0 | N9: 0 | O9: 0 | P9: 1 | Q9: RES.System
A10: Solar Collectors to Heat Source | B10: SC.H1 | C10: 0 | P10: 1
A11: Solar Collectors to Heat Source | B11: SC.H2 | C11: 0 | P11: 1
A12: Solar Collectors to Cold Source (ACM) | B12: SC.C1 | C12: 0 | P12: 1 | Q12: SC.HP
A13: Solar Collectors to Cold Source (ACM) | B13: SC.C2 | C13: 0 | P13: 1
A14: Solar Collectors to Hot Storage | B14: SC.HS | C14: 0 | P14: 1 | Q14: SC.PS
A15: Solar Collectors to District Heating | B15: SC.DH | C15: 0 | P15: 1
A16: Solar Collectors to Heat Distribution | B16: SC.HD | C16: 0 | P16: 1 | Q16: SC.HD
A17: Solar Collectors to DHW Distribution | B17: SC.WD | C17: 0 | P17: 1 | Q17: SC:WD
A18: Heat Exchanger to Primary Heat Source (HP) | B18: HX.H1 | C18: 365.61 | J18: 204.35 | K18: 161.26 | P18: 1
A19: Heat Exchanger to Secondary Heat Source (HP) | B19: HX.H2 | C19: 0 | P19: 1
A20: Heat Exchanger to Hot Storage | B20: HX.HS | C20: 0 | P20: 1
A21: Total RE harvested to System | B21: REH.System | C21: 365.61 | D21: 0 | E21: 0 | F21: 0 | G21: 0 | H21: 0 | I21: 0 | J21: 204.35 | K21: 161.26 | L21: 0 | M21: 0 | N21: 0 | O21: 0 | P21: 1 | Q21: REH.System
A22: Primary Heat Source to Primary Cold Source (ACM) | B22: H1.C1 | C22: 0 | P22: 1 | Q22: HB.HP
A23: Primary Heat Source to Secondary Cold Source (ACM) | B23: H1.C2 | C23: 0 | P23: 1
A24: Primary Heat Source to Hot Storage | B24: H1.HS | C24: 539.47 | J24: 301.42 | K24: 238.05 | P24: 1 | Q24: HB.PS
A25: Primary Heat Source to District Heating | B25: H1.DH | C25: 0 | P25: 1
A26: Primary Heat Source to Heat Distribution | B26: H1.HD | C26: 0 | J26: 0 | K26: 0 | P26: 1 | Q26: HB.HD
A27: Primary Heat Source to DHW Distribution | B27: H1.WD | C27: 0 | P27: 1 | Q27: HB.WD
A28: Total Primary Heat Source to System | B28: H1.System | C28: 539.47 | D28: 0 | E28: 0 | F28: 0 | G28: 0 | H28: 0 | I28: 0 | J28: 301.42 | K28: 238.05 | L28: 0 | M28: 0 | N28: 0 | O28: 0 | P28: 1 | Q28: HB.System
A29: Secondary Heat Source to Primary Cold Source (ACM) | B29: H2.C1 | C29: 0 | P29: 1
A30: Secondary Heat Source to Secondary Cold Source (ACM) | B30: H2.C2 | C30: 0 | P30: 1
A31: Secondary Heat Source to Hot Storage | B31: H2.HS | C31: 0 | P31: 1
A32: Secondary Heat Source to District Heating | B32: H2.DH | C32: 0 | P32: 1
A33: Secondary Heat Source to Heat Distribution | B33: H2.HD | C33: 0 | P33: 1
A34: Secondary Heat Source to DHW Distribution | B34: H2.WD | C34: 0 | P34: 1
A35: Total Secondary Heat Source to System | B35: H2.System | C35: 0 | D35: 0 | E35: 0 | F35: 0 | G35: 0 | H35: 0 | I35: 0 | J35: 0 | K35: 0 | L35: 0 | M35: 0 | N35: 0 | O35: 0 | P35: 1
A36: Hot Storage to Primary Cold Source (AHP) | B36: HS.H1 | C36: 0 | P36: 1
A37: Hot Storage to Secondary Cold Source (AHP) | B37: HS.H2 | C37: 0 | P37: 1
A38: Hot Storage to Primary Cold Source (ACM) | B38: HS.C1 | C38: 0 | P38: 1 | Q38: PS.HP
A39: Hot Storage to Secondary Cold Source (ACM) | B39: HS.C2 | C39: 0 | P39: 1
A40: Hot Storage to District Heating | B40: HS.DH | C40: 0 | P40: 1
A41: Hot Storage to Heat Distribution | B41: HS.HD | C41: 0 | P41: 1 | Q41: PS.HD
A42: Hot Storage to DHW Distribution | B42: HS.WD | C42: 457.62 | J42: 260.49 | K42: 197.13 | P42: 1 | Q42: PS.WD
A43: Total Hot Storage to System | B43: HS.System | C43: 457.62 | D43: 0 | E43: 0 | F43: 0 | G43: 0 | H43: 0 | I43: 0 | J43: 260.49 | K43: 197.13 | L43: 0 | M43: 0 | N43: 0 | O43: 0 | P43: 1 | Q43: PS.System
A44: Primary Cold Source to Heat Exchanger | B44: C1.HX | C44: 0 | D44: 0 | E44: 0 | F44: 0 | G44: 0 | H44: 0 | I44: 0 | J44: 0 | K44: 0 | L44: 0 | M44: 0 | N44: 0 | O44: 0 | P44: 0 | Q44: HP.AH
A45: Secondary Cold Source to Heat Exchanger | B45: C2.HX | C45: 0 | D45: 0 | E45: 0 | F45: 0 | G45: 0 | H45: 0 | I45: 0 | J45: 0 | K45: 0 | L45: 0 | M45: 0 | N45: 0 | O45: 0 | P45: 0 | Q45: CB.AH
A46: Total Cold Source to System | B46: C.System | C46: 0 | D46: 0 | E46: 0 | F46: 0 | G46: 0 | H46: 0 | I46: 0 | J46: 0 | K46: 0 | L46: 0 | M46: 0 | N46: 0 | O46: 0 | P46: 1
A47: Cold Storage to Primary Cold Source | B47: CS.C1 | C47: 0 | P47: 1 | Q47: SS.HP
A48: Cold Storage to Secondary Cold Source | B48: CS.C2 | C48: 0 | P48: 1 | Q48: SS.CB
A49: Cold Storage to Primary Heat Source (AHP) | B49: CS.H1 | C49: 0 | P49: 1
A50: Cold Storage to Secondary Heat Source (AHP) | B50: CS.H2 | C50: 0 | P50: 1
A51: Cold Storage to Heat Exchanger | B51: CS.HX | C51: 0 | P51: 1
A52: Total Secondary Storage to System | B52: CS.System | C52: 0 | D52: 0 | E52: 0 | F52: 0 | G52: 0 | H52: 0 | I52: 0 | J52: 0 | K52: 0 | L52: 0 | M52: 0 | N52: 0 | O52: 0 | P52: 1 | Q52: SS.System
A53: District Cooling to Primary Cold Source | B53: DC.C1 | C53: 0 | P53: 1
A54: District Cooling to Secondary Cold Source | B54: DC.C2 | C54: 0 | P54: 1
A55: District Cooling to Cold Storage | B55: DC.CS | C55: 0 | P55: 1
A56: Total District Cooling to System | B56: DC.System | C56: 0 | D56: 0 | E56: 0 | F56: 0 | G56: 0 | H56: 0 | I56: 0 | J56: 0 | K56: 0 | L56: 0 | M56: 0 | N56: 0 | O56: 0 | P56: 1
A57: Cold Distribution to Heat Exchanger (Freecooling) | B57: CD.HX | C57: 0 | P57: 1
A58: Cold Distribution to Primary Cold Source | B58: CD.C1 | C58: 1595.21 | J58: 1041.97 | K58: 553.24 | P58: 1 | Q58: CD.HP
A59: Cold Distribution to Secondary Cold Source | B59: CD.C2 | C59: 0 | P59: 1 | Q59: CD.CB
A60: Cold Distribution to Primary Heat Source (AHP) | B60: CD.H1 | C60: 0 | P60: 1
A61: Cold Distribution to Secondary Heat Source (AHP) | B61: CD.H2 | C61: 0 | P61: 1
A62: Cold Distribution to Cold Storage | B62: CD.CS | C62: 0 | D62: 0 | E62: 0 | F62: 0 | G62: 0 | H62: 0 | I62: 0 | J62: 0 | K62: 0 | L62: 0 | M62: 0 | N62: 0 | O62: 0 | P62: 1 | Q62: CD.SS
A63: Total Cold Distribution to System | B63: CD.System | C63: 1595.21 | D63: 0 | E63: 0 | F63: 0 | G63: 0 | H63: 0 | I63: 0 | J63: 1041.97 | K63: 553.24 | L63: 0 | M63: 0 | N63: 0 | O63: 0 | P63: 1 | Q63: CD.System
C64: 0
A65: Photovoltaic to Primary Heat Source | B65: PV.H1 | C65: 57.03 | I65: 0 | J65: 32.93 | K65: 24.1 | P65: 1
A66: Photovoltaic to Secondary Heat Source | B66: PV.H2 | C66: 0 | J66: 0 | K66: 0 | P66: 1
A67: Photovoltaic to Hot Storage | B67: PV.HS | C67: 0 | I67: 0 | J67: 0 | K67: 0 | P67: 1
A68: Photovoltaic to Primary Cold Source | B68: PV.C1 | C68: 93.26 | J68: 60.65 | K68: 32.61 | P68: 1
A69: Photovoltaic to Secondary Cold Source | B69: PV.C2 | C69: 0 | J69: 0 | K69: 0 | P69: 1
A70: Photovoltaic to Battery Storage | B70: PV.BS | C70: 0 | J70: 0 | K70: 0 | P70: 1
A71: Photovoltaic to Pumps (El.Aux and El.Distr) | B71: PV.Pumps | C71: 0 | J71: 0 | K71: 0 | P71: 1
A72: Photovoltaic to Domestic Electricity | B72: PV.DE | C72: 474.96 | J72: 254.31 | K72: 220.65 | P72: 1
A73: Total Photovoltaic to System | B73: PV.sys | C73: 2838.62 | I73: 0 | J73: 1431.28 | K73: 1407.34 | P73: 1
A74: Primary Heat Source to Primary Heat Source | B74: CHP1.H1 | C74: 0 | P74: 1
A75: Primary Heat Source to Secondary Heat Source | B75: CHP1.H2 | C75: 0 | P75: 1
A76: Primary Heat Source to Hot Storage | B76: CHP1.HS | C76: 0 | P76: 1
A77: Primary Heat Source to Primary Cold Source | B77: CHP1.C1 | C77: 0 | P77: 1
A78: Primary Heat Source to Secondary Cold Source | B78: CHP1.C2 | C78: 0 | P78: 1
A79: Primary Heat Source to Battery Storage | B79: CHP1.BS | C79: 0 | P79: 1
A80: Primary Heat Source to Pumps (El.Aux and El.Distr) | B80: CHP1.Pumps | C80: 0 | P80: 1
A81: Primary Heat Source to Domestic Electricity | B81: CHP1.DE | C81: 0 | P81: 1
A82: Total Primary Heat Source (only CHP) to System | B82: CHP1.sys | C82: 0 | P82: 1
A83: Secondary Heat Source to Primary Heat Source | B83: CHP2.H1 | C83: 0 | P83: 1
A84: Secondary Heat Source to Secondary Heat Source | B84: CHP2.H2 | C84: 0 | P84: 1
A85: Secondary Heat Source to Hot Storage | B85: CHP2.HS | C85: 0 | P85: 1
A86: Secondary Heat Source to Primary Cold Source | B86: CHP2.C1 | C86: 0 | P86: 1
A87: Secondary Heat Source to Secondary Cold Source | B87: CHP2.C2 | C87: 0 | P87: 1
A88: Secondary Heat Source to Battery Storage | B88: CHP2.BS | C88: 0 | P88: 1
A89: Secondary Heat Source to Pumps (El.Aux and El.Distr) | B89: CHP2.Pumps | C89: 0 | P89: 1
A90: Secondary Heat Source to Domestic Electricity | B90: CHP2.DE | C90: 0 | P90: 1
A91: Total Secondary Heat Source (only CHP) to System | B91: CHP2.sys | C91: 0 | P91: 1
A92: Battery Storage to Switch Board Electricity | B92: BS.El | C92: 0 | P92: 1
A93: Grid to Switch Board Electricity | B93: GD.El | C93: 724.64 | D93: 0 | E93: 0 | F93: 0 | G93: 0 | H93: 0 | I93: 0 | J93: =J102+J118+J124+J126-J73-J82-J91-J92+J95 -> 363.04 | K93: 361.6 | L93: 0 | M93: 0 | N93: 0 | O93: 0 | P93: 1
A94: Total Electricity to Switch Board | B94: El.In.System | C94: 1349.89 | D94: 0 | E94: 0 | F94: 0 | G94: 0 | H94: 0 | I94: 0 | J94: 710.93 | K94: 638.96 | L94: 0 | M94: 0 | N94: 0 | O94: 0 | P94: =P93+P73 -> 2
A95: Switch Board Electricity to Grid | B95: El.GD | C95: 2150.67 | D95: 0 | E95: 0 | F95: 0 | G95: 0 | H95: 0 | I95: 0 | J95: 1057.19 | K95: 1093.48 | L95: 0 | M95: 0 | N95: 0 | O95: 0 | P95: 1
A96: Total Switch Board to Grid | B96: El.GD.System | C96: 2150.67 | D96: 0 | E96: 0 | F96: 0 | G96: 0 | H96: 0 | I96: 0 | J96: 1057.19 | K96: 1093.48 | L96: 0 | M96: 0 | N96: 0 | O96: 0 | P96: 1
A97: Switch Board Electricity to Primary Heat Source | B97: El.H1 | C97: 173.86 | J97: 97.07 | K97: 76.79 | P97: 1 | Q97: El.HB
A98: Switch Board Electricity to Secondary Heat Source | B98: El.H2 | C98: 0 | P98: 1
A99: Switch Board Electricity to Heat Storage (el. Heating Element) | B99: El.HS | C99: 0 | P99: 1
A100: Switch Board Electricity to Primary Cold Source | B100: El.C1 | C100: 156.51 | J100: 101.32 | K100: 55.19 | P100: 1 | Q100: El.HP
A101: Switch Board Electricity to Secondary Cold Source | B101: El.C2 | C101: 0 | P101: 1 | Q101: El.CB
A102: Total Switch Board to System | B102: El.Comp.System | C102: 330.37 | D102: 0 | E102: 0 | F102: 0 | G102: 0 | H102: 0 | I102: 0 | J102: 198.39 | K102: 131.98 | L102: 0 | M102: 0 | N102: 0 | O102: 0 | P102: 1 | Q102: El.System
A103: Switch Board Electricity to Solar Pump | B103: El.SP | C103: 0 | P103: 1 | Q103: El.SP
A104: Switch Board Electricity to H1 Hot Temp. Pump | B104: El.HH1 | C104: 0 | P104: 1
A105: Switch Board Electricity to H1 Medium Temp. Pump | B105: El.MH1 | C105: 0 | P105: 1
A106: Switch Board Electricity to H1 Low Temp. Pump | B106: El.LH1 | C106: 0 | P106: 1
A107: Switch Board Electricity to H2 Hot Temp. Pump | B107: El.HH2 | C107: 0 | P107: 1
A108: Switch Board Electricity to H2 Medium Temp. Pump | B108: El.MH2 | C108: 0 | P108: 1
A109: Switch Board Electricity to H2 Low Temp. Pump | B109: El.LH2 | C109: 0 | P109: 1
A110: Switch Board Electricity to C1 Hot Temp. Pump | B110: El.HC1 | C110: 0 | P110: 1 | Q110: El.HT
A111: Switch Board Electricity to C1 Medium Temp. Pump | B111: El.MC1 | C111: 0 | P111: 1 | Q111: El.MT
A112: Switch Board Electricity to C1 Low Temp. Pump | B112: El.LC1 | C112: 0 | P112: 1 | Q112: El.LT
A113: Switch Board Electricity to C2 Hot Temp. Pump | B113: El.HC2 | C113: 0 | P113: 1
A114: Switch Board Electricity to C2 Medium Temp. Pump | B114: El.MC2 | C114: 0 | P114: 1 | Q114: El.MC
A115: Switch Board Electricity to C2 Low Temp. Pump | B115: El.LC2 | C115: 0 | P115: 1 | Q115: El.LC
A116: Switch Board Electricity to Heat Exchange for Cooling (incl. MT) | B116: El.CX | C116: 0 | P116: 1 | Q116: El.CA&El.CC
A117: Switch Board Electricity to Heat Exchange for Heating | B117: El.HX | C117: 0 | P117: 1
A118: Total Switch Board to Auxiliaries | B118: El.Aux.System | C118: 0 | D118: 0 | E118: 0 | F118: 0 | G118: 0 | H118: 0 | I118: 0 | J118: 0 | K118: 0 | L118: 0 | M118: 0 | N118: 0 | O118: 0 | P118: 1 | Q118: El.Aux.System
A119: Switch Board Electricity to Cold Distr. Pump | B119: El.CD | C119: 0 | P119: 1 | Q119: El.CD
A120: Switch Board Electricity to DHW Distr. Pump | B120: El.WD | C120: 0 | P120: 1 | Q120: El.WD
A121: Switch Board Electricity to Heat Distr. Pump | B121: El.HD | C121: 0 | P121: 1 | Q121: El.HD
A122: Switch Board Electricity to District Cooling | B122: El.DC | C122: 0 | P122: 1
A123: Switch Board Electricity to District Heating | B123: El.DH | C123: 0 | P123: 1
A124: Total Switch Board to Distribution Pumps | B124: El.Distr.System | C124: 0 | D124: 0 | E124: 0 | F124: 0 | G124: 0 | H124: 0 | I124: 0 | J124: 0 | K124: 0 | L124: 0 | M124: 0 | N124: 0 | O124: 0 | P124: 1 | Q124: El.Pumps.System
A125: Switch Board Electricity to Domestic Electricity | B125: El.DE | C125: 1082.22 | J125: 538.74 | K125: 543.48 | P125: 1
A126: Total Switch Board to Domestic Electricity | B126: El.DE.System | C126: 1082.22 | D126: 0 | E126: 0 | F126: 0 | G126: 0 | H126: 0 | I126: 0 | J126: 538.74 | K126: 543.48 | L126: 0 | M126: 0 | N126: 0 | O126: 0 | P126: 1

Sheet Results
B1: Boundary | C1: Thermal En. OUT | D1: Thermal Energy Output to Heating | E1: Nomenclature | F1: Yearly Data | G1: January | H1: February | I1: March | J1: April | K1: May | L1: June | M1: July | N1: August | O1: September | P1: October | Q1: November | R1: December | S1: 10-Day Peak
F2: [kWh] | G2: [kWh] | H2: [kWh] | I2: [kWh] | J2: [kWh] | K2: [kWh] | L2: [kWh] | M2: [kWh] | N2: [kWh] | O2: [kWh] | P2: [kWh] | Q2: [kWh] | R2: [kWh] | S2: [kWh]
B3: System | C3: Thermal IN | D3: Total Cold Distribution to System | E3: QCD.System | F3: 1595.21 | G3: 0 | H3: 0 | I3: 0 | J3: 0 | K3: 0 | L3: 0 | M3: 1041.97 | N3: 553.24 | O3: 0 | P3: 0 | Q3: 0 | R3: 0 | S3: 6
B4: System | C4: Thermal OUT | D4: Total Space Heating from System | E4: QHD.System | F4: 0 | G4: 0 | H4: 0 | I4: 0 | J4: 0 | K4: 0 | L4: 0 | M4: 0 | N4: 0 | O4: 0 | P4: 0 | Q4: 0 | R4: 0 | S4: 4
B5: System | C5: Thermal OUT | D5: Total DHW from System | E5: QWD.System | F5: 457.62 | G5: 0 | H5: 0 | I5: 0 | J5: 0 | K5: 0 | L5: 0 | M5: 260.49 | N5: 197.13 | O5: 0 | P5: 0 | Q5: 0 | R5: 0 | S5: 4
B6: System | C6: Thermal IN | D6: Total District Cooling from System | E6: QDC.System | F6: 0 | G6: 0 | H6: 0 | I6: 0 | J6: 0 | K6: 0 | L6: 0 | M6: 0 | N6: 0 | O6: 0 | P6: 0 | Q6: 0 | R6: 0 | S6: 3
B7: System | C7: Thermal OUT | D7: Total District Heating from System | E7: QDH.System | F7: 0 | G7: 0 | H7: 0 | I7: 0 | J7: 0 | K7: 0 | L7: 0 | M7: 0 | N7: 0 | O7: 0 | P7: 0 | Q7: 0 | R7: 0 | S7: 4
B8: System | C8: Thermal IN/OUT | D8: Total to/from System | E8: Qsystem | F8: 2052.83 | G8: 0 | H8: 0 | I8: 0 | J8: 0 | K8: 0 | L8: 0 | M8: 1302.46 | N8: 750.37 | O8: 0 | P8: 0 | Q8: 0 | R8: 0 | S8: 21
B9: System | C9: Thermal IN | D9: Total Solar Collectors to System | E9: QSC.System | F9: 0 | G9: 0 | H9: 0 | I9: 0 | J9: 0 | K9: 0 | L9: 0 | M9: 0 | N9: 0 | O9: 0 | P9: 0 | Q9: 0 | R9: 0 | S9: 8
B10: System | C10: Thermal IN | D10: Total Heat Exchange to System | E10: QHX.IN | F10: 0 | G10: 0 | H10: 0 | I10: 0 | J10: 0 | K10: 0 | L10: 0 | M10: 0 | N10: 0 | O10: 0 | P10: 0 | Q10: 0 | R10: 0 | S10: 2
B11: System | C11: Thermal IN | D11: Total Heat Exchange to System | E11: QHX.OUT | F11: 365.61 | G11: 0 | H11: 0 | I11: 0 | J11: 0 | K11: 0 | L11: 0 | M11: 204.35 | N11: 161.26 | O11: 0 | P11: 0 | Q11: 0 | R11: 0 | S11: 3
B12: System | C12: Thermal IN | D12: Total Primary Heat Source to System | E12: QH1.System | F12: 539.47 | G12: 0 | H12: 0 | I12: 0 | J12: 0 | K12: 0 | L12: 0 | M12: 301.42 | N12: 238.05 | O12: 0 | P12: 0 | Q12: 0 | R12: 0 | S12: 6
B13: System | C13: Thermal IN | D13: Total Secondary Heat Source to System | E13: QH2.System | F13: 0 | G13: 0 | H13: 0 | I13: 0 | J13: 0 | K13: 0 | L13: 0 | M13: 0 | N13: 0 | O13: 0 | P13: 0 | Q13: 0 | R13: 0 | S13: 6
B14: System | C14: Thermal IN | D14: Total Primary Cold Source to System | E14: QC1.System | F14: 1595.21 | G14: 0 | H14: 0 | I14: 0 | J14: 0 | K14: 0 | L14: 0 | M14: 1041.97 | N14: 553.24 | O14: 0 | P14: 0 | Q14: 0 | R14: 0 | S14: 3
B15: System | C15: Thermal IN | D15: Total Secondary Cold Source to System | E15: QC2.System | F15: 0 | G15: 0 | H15: 0 | I15: 0 | J15: 0 | K15: 0 | L15: 0 | M15: 0 | N15: 0 | O15: 0 | P15: 0 | Q15: 0 | R15: 0 | S15: 3
B16: System | C16: Thermal IN | D16: Total Hot Storage from System | E16: QHS.IN | F16: 539.47 | G16: 0 | H16: 0 | I16: 0 | J16: 0 | K16: 0 | L16: 0 | M16: 301.42 | N16: 238.05 | O16: 0 | P16: 0 | Q16: 0 | R16: 0 | S16: 4
B17: System | C17: Thermal IN | D17: Total Hot Storage to System | E17: QHS.OUT | F17: 457.62 | G17: 0 | H17: 0 | I17: 0 | J17: 0 | K17: 0 | L17: 0 | M17: 260.49 | N17: 197.13 | O17: 0 | P17: 0 | Q17: 0 | R17: 0 | S17: 7
B18: System | C18: Thermal IN | D18: Total Cold Storage from System | E18: QCS.IN | F18: 0 | G18: 0 | H18: 0 | I18: 0 | J18: 0 | K18: 0 | L18: 0 | M18: 0 | N18: 0 | O18: 0 | P18: 0 | Q18: 0 | R18: 0 | S18: 2
B19: System | C19: Thermal IN | D19: Total Cold Storage to System | E19: QCS.OUT | F19: 0 | G19: 0 | H19: 0 | I19: 0 | J19: 0 | K19: 0 | L19: 0 | M19: 0 | N19: 0 | O19: 0 | P19: 0 | Q19: 0 | R19: 0 | S19: 5
B20: System | C20: Losses | D20: Cold Losses | E20: Qcloss | F20: 0 | G20: 0 | H20: 0 | I20: 0 | J20: 0 | K20: 0 | L20: 0 | M20: 0 | N20: 0 | O20: 0 | P20: 0 | Q20: 0 | R20: 0 | S20: 3
B21: System | C21: Losses | D21: Hot Losses | E21: Qhloss | F21: 81.84999847 | G21: 0 | H21: 0 | I21: 0 | J21: 0 | K21: 0 | L21: 0 | M21: 40.93000031 | N21: 40.91999817 | O21: 0 | P21: 0 | Q21: 0 | R21: 0 | S21: 0
B23: System | C23: Fraction | D23: % System to Cold Distribution | E23: %CD.sys | F23: 0.7770784722 | G23: 0 | H23: 0 | I23: 0 | J23: 0 | K23: 0 | L23: 0 | M23: 0.8000015356 | N23: 0.7372896038 | O23: 0 | P23: 0 | Q23: 0 | R23: 0 | S23: 0.2857142857
B24: System | C24: Fraction | D24: % System to Space Heating | E24: %HD.sys | F24: 0 | G24: 0 | H24: 0 | I24: 0 | J24: 0 | K24: 0 | L24: 0 | M24: 0 | N24: 0 | O24: 0 | P24: 0 | Q24: 0 | R24: 0 | S24: 0.1904761905
B25: System | C25: Fraction | D25: % System to DHW | E25: %WD.sys | F25: 0.2229215278 | G25: 0 | H25: 0 | I25: 0 | J25: 0 | K25: 0 | L25: 0 | M25: 0.1999984644 | N25: 0.2627103962 | O25: 0 | P25: 0 | Q25: 0 | R25: 0 | S25: 0.1904761905
B26: System | C26: Fraction | D26: % System to District Cooling | E26: %DC.sys | F26: 0 | G26: 0 | H26: 0 | I26: 0 | J26: 0 | K26: 0 | L26: 0 | M26: 0 | N26: 0 | O26: 0 | P26: 0 | Q26: 0 | R26: 0 | S26: 0.1428571429
B27: System | C27: Fraction | D27: % System to District Heating | E27: %DH.sys | F27: 0 | G27: 0 | H27: 0 | I27: 0 | J27: 0 | K27: 0 | L27: 0 | M27: 0 | N27: 0 | O27: 0 | P27: 0 | Q27: 0 | R27: 0 | S27: 0.1904761905
B28: System | C28: Fraction | D28: % Primary Heat Source to System | E28: %H1.System | F28: 0.2527170479 | G28: 0 | H28: 0 | I28: 0 | J28: 0 | K28: 0 | L28: 0 | M28: 0.2243726701 | N28: 0.3008378744 | O28: 0 | P28: 0 | Q28: 0 | R28: 0 | S28: 0.2727272809
B29: System | C29: Fraction | D29: % Secondary Heat Source to System | E29: %H2.System | F29: 0 | G29: 0 | H29: 0 | I29: 0 | J29: 0 | K29: 0 | L29: 0 | M29: 0 | N29: 0 | O29: 0 | P29: 0 | Q29: 0 | R29: 0 | S29: 0.2727272809
B30: System | C30: Fraction | D30: % Hot Storage from SC to System | E30: %HS.System | F30: 0 | G30: 0 | H30: 0 | I30: 0 | J30: 0 | K30: 0 | L30: 0 | M30: 0 | N30: 0 | O30: 0 | P30: 0 | Q30: 0 | R30: 0 | S30: 0.04545454681
B31: System | C31: Fraction | D31: % Space Heating from SC to System | E31: %HD.System | F31: 0 | G31: 0 | H31: 0 | I31: 0 | J31: 0 | K31: 0 | L31: 0 | M31: 0 | N31: 0 | O31: 0 | P31: 0 | Q31: 0 | R31: 0 | S31: 0.04545454545
B32: System | C32: Fraction | D32: % DHW from SC to System | E32: %WD.System | F32: 0 | G32: 0 | H32: 0 | I32: 0 | J32: 0 | K32: 0 | L32: 0 | M32: 0 | N32: 0 | O32: 0 | P32: 0 | Q32: 0 | R32: 0 | S32: 0.04545454545
B33: System | C33: Fraction | D33: % District Heating from SC to System | E33: %DH.System | F33: 0 | G33: 0 | H33: 0 | I33: 0 | J33: 0 | K33: 0 | L33: 0 | M33: 0 | N33: 0 | O33: 0 | P33: 0 | Q33: 0 | R33: 0 | S33: 0.04545454681
B34: System | C34: Fraction | D34: % Primary Cold Source to System | E34: %C1.System | F34: 0.7472829651 | G34: 0 | H34: 0 | I34: 0 | J34: 0 | K34: 0 | L34: 0 | M34: 0.7756273309 | N34: 0.6991621277 | O34: 0 | P34: 0 | Q34: 0 | R34: 0 | S34: 0.1363636364
B35: System | C35: Fraction | D35: % Secondary Cold Source to System | E35: %C2.System | F35: 0 | G35: 0 | H35: 0 | I35: 0 | J35: 0 | K35: 0 | L35: 0 | M35: 0 | N35: 0 | O35: 0 | P35: 0 | Q35: 0 | R35: 0 | S35: 0.1363636364
B36: Heat Exchanger | C36: Fraction | D36: % Heat Exchanger to Primary Heat Source | E36: %HX.H1 | F36: 1 | G36: 0 | H36: 0 | I36: 0 | J36: 0 | K36: 0 | L36: 0 | M36: 1 | N36: 1 | O36: 0 | P36: 0 | Q36: 0 | R36: 0 | S36: 0.3333333333
B37: Heat Exchanger | C37: Fraction | D37: % Heat Exchanger to Secondary Heat Source | E37: %HX.H2 | F37: 0 | G37: 0 | H37: 0 | I37: 0 | J37: 0 | K37: 0 | L37: 0 | M37: 0 | N37: 0 | O37: 0 | P37: 0 | Q37: 0 | R37: 0 | S37: 0.3333333333
B38: Heat Exchanger | C38: Fraction | D38: % Heat Exchanger to Hot Storage | E38: %HX.HS | F38: 0 | G38: 0 | H38: 0 | I38: 0 | J38: 0 | K38: 0 | L38: 0 | M38: 0 | N38: 0 | O38: 0 | P38: 0 | Q38: 0 | R38: 0 | S38: 0.3333333333
B39: Heat Exchanger | C39: Fraction | D39: % Heat Exchanger from Primary Cold Source | E39: %C1.HXC | F39: 0 | G39: 0 | H39: 0 | I39: 0 | J39: 0 | K39: 0 | L39: 0 | M39: 0 | N39: 0 | O39: 0 | P39: 0 | Q39: 0 | R39: 0 | S39: 0
B40: Heat Exchanger | C40: Fraction | D40: % Heat Exchanger from Secondary Cold Source | E40: %C2.HXC | F40: 0 | G40: 0 | H40: 0 | I40: 0 | J40: 0 | K40: 0 | L40: 0 | M40: 0 | N40: 0 | O40: 0 | P40: 0 | Q40: 0 | R40: 0 | S40: 0
B41: Heat Exchanger | C41: Fraction | D41: % Heat Exchanger from Secondary Cold Source | E41: %CS.HXC | F41: 0 | G41: 0 | H41: 0 | I41: 0 | J41: 0 | K41: 0 | L41: 0 | M41: 0 | N41: 0 | O41: 0 | P41: 0 | Q41: 0 | R41: 0 | S41: 0.5
B42: Heat Exchanger | C42: Fraction | D42: % Heat Exchanger from Cold Distribution | E42: %CD.HXC | F42: 0 | G42: 0 | H42: 0 | I42: 0 | J42: 0 | K42: 0 | L42: 0 | M42: 0 | N42: 0 | O42: 0 | P42: 0 | Q42: 0 | R42: 0 | S42: 0.5
B43: Hot Storage | C43: Fraction | D43: % Hot Storage to Primary Heat Source | E43: %HS.H1 | F43: 0 | G43: 0 | H43: 0 | I43: 0 | J43: 0 | K43: 0 | L43: 0 | M43: 0 | N43: 0 | O43: 0 | P43: 0 | Q43: 0 | R43: 0 | S43: 0.1428571429
B44: Hot Storage | C44: Fraction | D44: % Hot Storage to Secondary Heat Source | E44: %HS.H2 | F44: 0 | G44: 0 | H44: 0 | I44: 0 | J44: 0 | K44: 0 | L44: 0 | M44: 0 | N44: 0 | O44: 0 | P44: 0 | Q44: 0 | R44: 0 | S44: 0.1428571429
B45: Hot Storage | C45: Fraction | D45: % Hot Storage to Primary Cold Source | E45: %HS.C1 | F45: 0 | G45: 0 | H45: 0 | I45: 0 | J45: 0 | K45: 0 | L45: 0 | M45: 0 | N45: 0 | O45: 0 | P45: 0 | Q45: 0 | R45: 0 | S45: 0.1428571429
B46: Hot Storage | C46: Fraction | D46: % Hot Storage to C1 from H1 | E46: %HS.C1:H1 | F46: 0 | G46: 0 | H46: 0 | I46: 0 | J46: 0 | K46: 0 | L46: 0 | M46: 0 | N46: 0 | O46: 0 | P46: 0 | Q46: 0 | R46: 0 | S46: 0
B47: Hot Storage | C47: Fraction | D47: % Hot Storage to C1 from H2 | E47: %HS.C1:H2 | F47: 0 | G47: 0 | H47: 0 | I47: 0 | J47: 0 | K47: 0 | L47: 0 | M47: 0 | N47: 0 | O47: 0 | P47: 0 | Q47: 0 | R47: 0 | S47: 0
B48: Hot Storage | C48: Fraction | D48: % Hot Storage to Secondary Cold Source | E48: %HS.C2 | F48: 0 | G48: 0 | H48: 0 | I48: 0 | J48: 0 | K48: 0 | L48: 0 | M48: 0 | N48: 0 | O48: 0 | P48: 0 | Q48: 0 | R48: 0 | S48: 0.1428571429
B49: Hot Storage | C49: Fraction | D49: % Hot Storage to C2 from H1 | E49: %HS.C2:H1 | F49: 0 | G49: 0 | H49: 0 | I49: 0 | J49: 0 | K49: 0 | L49: 0 | M49: 0 | N49: 0 | O49: 0 | P49: 0 | Q49: 0 | R49: 0 | S49: 0
B50: Hot Storage | C50: Fraction | D50: % Hot Storage to C2 from H2 | E50: %HS.C2:H2 | F50: 0 | G50: 0 | H50: 0 | I50: 0 | J50: 0 | K50: 0 | L50: 0 | M50: 0 | N50: 0 | O50: 0 | P50: 0 | Q50: 0 | R50: 0 | S50: 0
B51: Hot Storage | C51: Fraction | D51: % Hot Storage to District Heating | E51: %HS.DH | F51: 0 | G51: 0 | H51: 0 | I51: 0 | J51: 0 | K51: 0 | L51: 0 | M51: 0 | N51: 0 | O51: 0 | P51: 0 | Q51: 0 | R51: 0 | S51: 0.1428571429
B52: Hot Storage | C52: Fraction | D52: % Hot Storage to Space Heating | E52: %HS.HD | F52: 0 | G52: 0 | H52: 0 | I52: 0 | J52: 0 | K52: 0 | L52: 0 | M52: 0 | N52: 0 | O52: 0 | P52: 0 | Q52: 0 | R52: 0 | S52: 0.1428571429
B53: Hot Storage | C53: Fraction | D53: % Hot Storage to DHW | E53: %HS.WD | F53: 1 | G53: 0 | H53: 0 | I53: 0 | J53: 0 | K53: 0 | L53: 0 | M53: 1 | N53: 1 | O53: 0 | P53: 0 | Q53: 0 | R53: 0 | S53: 0.1428571429
B54: Hot Storage | C54: Fraction | D54: % Hot Storage Losses | E54: %HS.LO | F54: 0.1788601863 | G54: 0 | H54: 0 | I54: 0 | J54: 0 | K54: 0 | L54: 0 | M54: 0.1571269542 | N54: 0.2075787458 | O54: 0 | P54: 0 | Q54: 0 | R54: 0 | S54: 0
B55: Cold Storage | C55: Fraction | D55: % Cold Storage from Primary Heat Source | E55: %CS.H1 | F55: 0 | G55: 0 | H55: 0 | I55: 0 | J55: 0 | K55: 0 | L55: 0 | M55: 0 | N55: 0 | O55: 0 | P55: 0 | Q55: 0 | R55: 0 | S55: 0.2
B56: Cold Storage | C56: Fraction | D56: % Cold Storage from Secondary Heat Source | E56: %CS.H2 | F56: 0 | G56: 0 | H56: 0 | I56: 0 | J56: 0 | K56: 0 | L56: 0 | M56: 0 | N56: 0 | O56: 0 | P56: 0 | Q56: 0 | R56: 0 | S56: 0.2
B57: Cold Storage | C57: Fraction | D57: % Cold Storage from Primary Cold Source | E57: %CS.C1 | F57: 0 | G57: 0 | H57: 0 | I57: 0 | J57: 0 | K57: 0 | L57: 0 | M57: 0 | N57: 0 | O57: 0 | P57: 0 | Q57: 0 | R57: 0 | S57: 0.2
B58: Cold Storage | C58: Fraction | D58: % Cold Storage from Secondary Cold Source | E58: %CS.C2 | F58: 0 | G58: 0 | H58: 0 | I58: 0 | J58: 0 | K58: 0 | L58: 0 | M58: 0 | N58: 0 | O58: 0 | P58: 0 | Q58: 0 | R58: 0 | S58: 0.2
B59: Cold Storage | C59: Fraction | D59: % Cold Storage from Heat Exchanger | E59: %CS.HX | F59: 0 | G59: 0 | H59: 0 | I59: 0 | J59: 0 | K59: 0 | L59: 0 | M59: 0 | N59: 0 | O59: 0 | P59: 0 | Q59: 0 | R59: 0 | S59: 0.2
B60: Cold Storage | C60: Fraction | D60: % Cold Storage Losses | E60: %CS.LO | F60: 0 | G60: 0 | H60: 0 | I60: 0 | J60: 0 | K60: 0 | L60: 0 | M60: 0 | N60: 0 | O60: 0 | P60: 0 | Q60: 0 | R60: 0 | S60: 0.6
B61: Cold Distribution | C61: Fraction | D61: % Cold Distribution from Primary Heat Source (incl. CS) | E61: %CD.H1 | F61: 0 | G61: 0 | H61: 0 | I61: 0 | J61: 0 | K61: 0 | L61: 0 | M61: 0 | N61: 0 | O61: 0 | P61: 0 | Q61: 0 | R61: 0 | S61: 0.32
B62: Cold Distribution | C62: Fraction | D62: % Cold Distribution from Secondary Heat Source (incl. CS) | E62: %CD.H2 | F62: 0 | G62: 0 | H62: 0 | I62: 0 | J62: 0 | K62: 0 | L62: 0 | M62: 0 | N62: 0 | O62: 0 | P62: 0 | Q62: 0 | R62: 0 | S62: 0.32
B63: Cold Distribution | C63: Fraction | D63: % Cold Distribution from Primary Cold Source (incl. CS) | E63: %CD.C1 | F63: 1 | G63: 0 | H63: 0 | I63: 0 | J63: 0 | K63: 0 | L63: 0 | M63: 1 | N63: 1 | O63: 0 | P63: 0 | Q63: 0 | R63: 0 | S63: 0.32
B64: Cold Distribution | C64: Fraction | D64: % Cold Distribution from Secondary Cold Source (incl. CS) | E64: %CD.C2 | F64: 0 | G64: 0 | H64: 0 | I64: 0 | J64: 0 | K64: 0 | L64: 0 | M64: 0 | N64: 0 | O64: 0 | P64: 0 | Q64: 0 | R64: 0 | S64: 0.32
B65: Cold Distribution | C65: Fraction | D65: % Cold Distribution from Heat Exchanger (incl. CS) | E65: %CD.HX | F65: 0 | G65: 0 | H65: 0 | I65: 0 | J65: 0 | K65: 0 | L65: 0 | M65: 0 | N65: 0 | O65: 0 | P65: 0 | Q65: 0 | R65: 0 | S65: 0.32
B66: District Cooling | C66: Fraction | D66: % District Cooling from Primary Cold Source (incl. CS) | E66: %DC.C1 | F66: 0 | G66: 0 | H66: 0 | I66: 0 | J66: 0 | K66: 0 | L66: 0 | M66: 0 | N66: 0 | O66: 0 | P66: 0 | Q66: 0 | R66: 0 | S66: 0.520000002
B67: District Cooling | C67: Fraction | D67: % District Cooling from Secondary Cold Source (incl. CS) | E67: %DC.C2 | F67: 0 | G67: 0 | H67: 0 | I67: 0 | J67: 0 | K67: 0 | L67: 0 | M67: 0 | N67: 0 | O67: 0 | P67: 0 | Q67: 0 | R67: 0 | S67: 0.520000002
B68: Solar Collector | C68: Fraction | D68: % Solar Collectors to Primary Heat Source (HP) | E68: %SC.H1 | F68: 0 | G68: 0 | H68: 0 | I68: 0 | J68: 0 | K68: 0 | L68: 0 | M68: 0 | N68: 0 | O68: 0 | P68: 0 | Q68: 0 | R68: 0 | S68: 0.125
B69: Solar Collector | C69: Fraction | D69: % Solar Collectors to Secondary Heat Source (HP) | E69: %SC.H2 | F69: 0 | G69: 0 | H69: 0 | I69: 0 | J69: 0 | K69: 0 | L69: 0 | M69: 0 | N69: 0 | O69: 0 | P69: 0 | Q69: 0 | R69: 0 | S69: 0.125
B70: Solar Collector | C70: Fraction | D70: % Solar Collectors to Primary Cold Source (ACM) | E70: %SC.C1 | F70: 0 | G70: 0 | H70: 0 | I70: 0 | J70: 0 | K70: 0 | L70: 0 | M70: 0 | N70: 0 | O70: 0 | P70: 0 | Q70: 0 | R70: 0 | S70: 0.125
B71: Solar Collector | C71: Fraction | D71: % Solar Collectors to Secondary Cold Source (ACM) | E71: %SC.C2 | F71: 0 | G71: 0 | H71: 0 | I71: 0 | J71: 0 | K71: 0 | L71: 0 | M71: 0 | N71: 0 | O71: 0 | P71: 0 | Q71: 0 | R71: 0 | S71: 0.125
B72: Solar Collector | C72: Fraction | D72: % Solar Collectors to Hot Storage | E72: %SC.HS | F72: 0 | G72: 0 | H72: 0 | I72: 0 | J72: 0 | K72: 0 | L72: 0 | M72: 0 | N72: 0 | O72: 0 | P72: 0 | Q72: 0 | R72: 0 | S72: 0.125
B73: Solar Collector | C73: Fraction | D73: % Solar Collectors to District Heating | E73: %SC.DH | F73: 0 | G73: 0 | H73: 0 | I73: 0 | J73: 0 | K73: 0 | L73: 0 | M73: 0 | N73: 0 | O73: 0 | P73: 0 | Q73: 0 | R73: 0 | S73: 0.125
B74: Solar Collector | C74: Fraction | D74: % Solar Collectors to Space Heating | E74: %SC.HD | F74: 0 | G74: 0 | H74: 0 | I74: 0 | J74: 0 | K74: 0 | L74: 0 | M74: 0 | N74: 0 | O74: 0 | P74: 0 | Q74: 0 | R74: 0 | S74: 0.125
B75: Solar Collector | C75: Fraction | D75: % Solar Collectors to DHW | E75: %SC.WD | F75: 0 | G75: 0 | H75: 0 | I75: 0 | J75: 0 | K75: 0 | L75: 0 | M75: 0 | N75: 0 | O75: 0 | P75: 0 | Q75: 0 | R75: 0 | S75: 0.125
B76: Solar Collector | C76: Fraction | D76: % Solar Collectors Losses | E76: %SC.LO | F76: 0 | G76: 0 | H76: 0 | I76: 0 | J76: 0 | K76: 0 | L76: 0 | M76: 0 | N76: 0 | O76: 0 | P76: 0 | Q76: 0 | R76: 0 | S76: 0
B77: Primary Heat Source | C77: Fraction | D77: % Primary Heat Source to Primary Cold Source | E77: %H1.C1 | F77: 0 | G77: 0 | H77: 0 | I77: 0 | J77: 0 | K77: 0 | L77: 0 | M77: 0 | N77: 0 | O77: 0 | P77: 0 | Q77: 0 | R77: 0 | S77: 0.1666666667
B78: Primary Heat Source | C78: Fraction | D78: % Primary Heat Source to Secondary Cold Source | E78: %H1.C2 | F78: 0 | G78: 0 | H78: 0 | I78: 0 | J78: 0 | K78: 0 | L78: 0 | M78: 0 | N78: 0 | O78: 0 | P78: 0 | Q78: 0 | R78: 0 | S78: 0.1666666667
B79: Primary Heat Source | C79: Fraction | D79: % Primary Heat Source to Hot Storage | E79: %H1.HS | F79: 1 | G79: 0 | H79: 0 | I79: 0 | J79: 0 | K79: 0 | L79: 0 | M79: 1 | N79: 1 | O79: 0 | P79: 0 | Q79: 0 | R79: 0 | S79: 0.1666666667
B80: Primary Heat Source | C80: Fraction | D80: % Primary Heat Source to District Heating | E80: %H1.DH | F80: 0 | G80: 0 | H80: 0 | I80: 0 | J80: 0 | K80: 0 | L80: 0 | M80: 0 | N80: 0 | O80: 0 | P80: 0 | Q80: 0 | R80: 0 | S80: 0.1666666667
B81: Primary Heat Source | C81: Fraction | D81: % Primary Heat Source to Space Heating | E81: %H1.HD | F81: 0 | G81: 0 | H81: 0 | I81: 0 | J81: 0 | K81: 0 | L81: 0 | M81: 0 | N81: 0 | O81: 0 | P81: 0 | Q81: 0 | R81: 0 | S81: 0.1666666667
B82: Primary Heat Source | C82: Fraction | D82: % Primary Heat Source to DHW | E82: %H1.WD | F82: 0 | G82: 0 | H82: 0 | I82: 0 | J82: 0 | K82: 0 | L82: 0 | M82: 0 | N82: 0 | O82: 0 | P82: 0 | Q82: 0 | R82: 0 | S82: 0.1666666667
B83: Primary Heat Source | C83: Fraction | D83: % Primary Heat Source Losses | E83: %H1.LO | F83: 0.1788601863 | G83: 0 | H83: 0 | I83: 0 | J83: 0 | K83: 0 | L83: 0 | M83: 0.1571269542 | N83: 0.2075787458 | O83: 0 | P83: 0 | Q83: 0 | R83: 0 | S83: 0
B84: Secondary Heat Source | C84: Fraction | D84: % Secondary Heat Source to Primary Cold Source | E84: %H2.C1 | F84: 0 | G84: 0 | H84: 0 | I84: 0 | J84: 0 | K84: 0 | L84: 0 | M84: 0 | N84: 0 | O84: 0 | P84: 0 | Q84: 0 | R84: 0 | S84: 0.1666666667
B85: Secondary Heat Source | C85: Fraction | D85: % Secondary Heat Source to Secondary Cold Source | E85: %H2.C2 | F85: 0 | G85: 0 | H85: 0 | I85: 0 | J85: 0 | K85: 0 | L85: 0 | M85: 0 | N85: 0 | O85: 0 | P85: 0 | Q85: 0 | R85: 0 | S85: 0.1666666667
B86: Secondary Heat Source | C86: Fraction | D86: % Secondary Heat Source to Hot Storage | E86: %H2.HS | F86: 0 | G86: 0 | H86: 0 | I86: 0 | J86: 0 | K86: 0 | L86: 0 | M86: 0 | N86: 0 | O86: 0 | P86: 0 | Q86: 0 | R86: 0 | S86: 0.1666666667
B87: Secondary Heat Source | C87: Fraction | D87: % Secondary Heat Source to District Heating | E87: %H2.DH | F87: 0 | G87: 0 | H87: 0 | I87: 0 | J87: 0 | K87: 0 | L87: 0 | M87: 0 | N87: 0 | O87: 0 | P87: 0 | Q87: 0 | R87: 0 | S87: 0.1666666667
B88: Secondary Heat Source | C88: Fraction | D88: % Secondary Heat Source to Space Heating | E88: %H2.HD | F88: 0 | G88: 0 | H88: 0 | I88: 0 | J88: 0 | K88: 0 | L88: 0 | M88: 0 | N88: 0 | O88: 0 | P88: 0 | Q88: 0 | R88: 0 | S88: 0.1666666667
B89: Secondary Heat Source | C89: Fraction | D89: % Secondary Heat Source to DHW | E89: %H2.WD | F89: 0 | G89: 0 | H89: 0 | I89: 0 | J89: 0 | K89: 0 | L89: 0 | M89: 0 | N89: 0 | O89: 0 | P89: 0 | Q89: 0 | R89: 0 | S89: 0.1666666667
B90: Secondary Heat Source | C90: Fraction | D90: % Secondary Heat Source Losses | E90: %H2.LO | F90: 0 | G90: 0 | H90: 0 | I90: 0 | J90: 0 | K90: 0 | L90: 0 | M90: 0 | N90: 0 | O90: 0 | P90: 0 | Q90: 0 | R90: 0 | S90: 0
B91: Cold Storage IN | C91: Fraction | D91: % Cooling from Cold Storage | E91: %C.CS | F91: 0 | G91: 0 | H91: 0 | I91: 0 | J91: 0 | K91: 0 | L91: 0 | M91: 0 | N91: 0 | O91: 0 | P91: 0 | Q91: 0 | R91: 0 | S91: 0.5
B92: Cold Storage IN | C92: Fraction | D92: % Cooling Grid from Cold Storage | E92: %CG.CS | F92: 0 | G92: 0 | H92: 0 | I92: 0 | J92: 0 | K92: 0 | L92: 0 | M92: 0 | N92: 0 | O92: 0 | P92: 0 | Q92: 0 | R92: 0 | S92: 0.5
B93: Primary Cold Source IN | C93: Fraction | D93: % Cooling from Primary Cold Source (incl. CS) | E93: %C.C1 | F93: 1 | G93: 0 | H93: 0 | I93: 0 | J93: 0 | K93: 0 | L93: 0 | M93: 1 | N93: 1 | O93: 0 | P93: 0 | Q93: 0 | R93: 0 | S93: 0.5
B94: Primary Cold Source IN | C94: Fraction | D94: % Cooling Grid from Primary Cold Source (incl. CS) | E94: %CG.C1 | F94: 0 | G94: 0 | H94: 0 | I94: 0 | J94: 0 | K94: 0 | L94: 0 | M94: 0 | N94: 0 | O94: 0 | P94: 0 | Q94: 0 | R94: 0 | S94: 0.5
B95: Secondary Cold Source IN | C95: Fraction | D95: % Cooling from Secondary Cold Source (incl. CS) | E95: %C.C2 | F95: 0 | G95: 0 | H95: 0 | I95: 0 | J95: 0 | K95: 0 | L95: 0 | M95: 0 | N95: 0 | O95: 0 | P95: 0 | Q95: 0 | R95: 0 | S95: 0.5
B96: Secondary Cold Source IN | C96: Fraction | D96: % Cooling Grid from Secondary Cold Source (incl. CS) | E96: %CG.C2 | F96: 0 | G96: 0 | H96: 0 | I96: 0 | J96: 0 | K96: 0 | L96: 0 | M96: 0 | N96: 0 | O96: 0 | P96: 0 | Q96: 0 | R96: 0 | S96: 0.5
B97: Solar Collector | C97: Fraction | D97: % Solar Collectors for Cooling | E97: %SC.C | F97: 0 | G97: 0 | H97: 0 | I97: 0 | J97: 0 | K97: 0 | L97: 0 | M97: 0 | N97: 0 | O97: 0 | P97: 0 | Q97: 0 | R97: 0 | S97: 0.1428571429
B98: Solar Collector | C98: Fraction | D98: % Solar Collectors for Cooling Grid | E98: %SC.CG | F98: 0 | G98: 0 | H98: 0 | I98: 0 | J98: 0 | K98: 0 | L98: 0 | M98: 0 | N98: 0 | O98: 0 | P98: 0 | Q98: 0 | R98: 0 | S98: 0.1428571429
B99: Solar Collector | C99: Fraction | D99: % Solar Collectors for Space Heating | E99: %SC.SH | F99: 0 | G99: 0 | H99: 0 | I99: 0 | J99: 0 | K99: 0 | L99: 0 | M99: 0 | N99: 0 | O99: 0 | P99: 0 | Q99: 0 | R99: 0 | S99: 0.2222222222
B100: Solar Collector | C100: Fraction | D100: % Solar Collectors for DHW | E100: %SC.DHW | F100: 0 | G100: 0 | H100: 0 | I100: 0 | J100: 0 | K100: 0 | L100: 0 | M100: 0 | N100: 0 | O100: 0 | P100: 0 | Q100: 0 | R100: 0 | S100: 0.2222222222
B101: Solar Collector | C101: Fraction | D101: % Solar Collectors for Heating Grid | E101: %SC.HG | F101: 0 | G101: 0 | H101: 0 | I101: 0 | J101: 0 | K101: 0 | L101: 0 | M101: 0 | N101: 0 | O101: 0 | P101: 0 | Q101: 0 | R101: 0 | S101: 0.2222222239
B102: Primary Heat Source | C102: Fraction | D102: % Primary Heat Source for Cooling | E102: %H1.C | F102: 0 | G102: 0 | H102: 0 | I102: 0 | J102: 0 | K102: 0 | L102: 0 | M102: 0 | N102: 0 | O102: 0 | P102: 0 | Q102: 0 | R102: 0 | S102: 0
B103: Primary Heat Source | C103: Fraction | D103: % Primary Heat Source for Cooling Grid | E103: %H1.CG | F103: 0 | G103: 0 | H103: 0 | I103: 0 | J103: 0 | K103: 0 | L103: 0 | M103: 0 | N103: 0 | O103: 0 | P103: 0 | Q103: 0 | R103: 0 | S103: 0
B104: Primary Heat Source | C104: Fraction | D104: % Primary Heat Source for Space Heating | E104: %H1.SH | F104: 0 | G104: 0 | H104: 0 | I104: 0 | J104: 0 | K104: 0 | L104: 0 | M104: 0 | N104: 0 | O104: 0 | P104: 0 | Q104: 0 | R104: 0 | S104: 0.3174603175
B105: Primary Heat Source | C105: Fraction | D105: % Primary Heat Source for DHW | E105: %H1.DHW | F105: 1 | G105: 0 | H105: 0 | I105: 0 | J105: 0 | K105: 0 | L105: 0 | M105: 1 | N105: 1 | O105: 0 | P105: 0 | Q105: 0 | R105: 0 | S105: 0.3174603175
B106: Primary Heat Source | C106: Fraction | D106: % Primary Heat Source for Heating Grid | E106: %H1.HG | F106: 0 | G106: 0 | H106: 0 | I106: 0 | J106: 0 | K106: 0 | L106: 0 | M106: 0 | N106: 0 | O106: 0 | P106: 0 | Q106: 0 | R106: 0 | S106: 0.3174603175
B107: Secondary Heat Source | C107: Fraction | D107: % Secondary Heat Source for Cooling | E107: %H2.C | F107: 0 | G107: 0 | H107: 0 | I107: 0 | J107: 0 | K107: 0 | L107: 0 | M107: 0 | N107: 0 | O107: 0 | P107: 0 | Q107: 0 | R107: 0 | S107: 0
B108: Secondary Heat Source | C108: Fraction | D108: % Secondary Heat Source for Cooling Grid | E108: %H2.CG | F108: 0 | G108: 0 | H108: 0 | I108: 0 | J108: 0 | K108: 0 | L108: 0 | M108: 0 | N108: 0 | O108: 0 | P108: 0 | Q108: 0 | R108: 0 | S108: 0
B109: Secondary Heat Source | C109: Fraction | D109: % Secondary Heat Source for Space Heating | E109: %H2.SH | F109: 0 | G109: 0 | H109: 0 | I109: 0 | J109: 0 | K109: 0 | L109: 0 | M109: 0 | N109: 0 | O109: 0 | P109: 0 | Q109: 0 | R109: 0 | S109: 0.3174603175
B110: Secondary Heat Source | C110: Fraction | D110: % Secondary Heat Source for DHW | E110: %H2.DHW | F110: 0 | G110: 0 | H110: 0 | I110: 0 | J110: 0 | K110: 0 | L110: 0 | M110: 0 | N110: 0 | O110: 0 | P110: 0 | Q110: 0 | R110: 0 | S110: 0.3174603175
B111: Secondary Heat Source | C111: Fraction | D111: % Secondary Heat Source for Heating Grid | E111: %H2.HG | F111: 0 | G111: 0 | H111: 0 | I111: 0 | J111: 0 | K111: 0 | L111: 0 | M111: 0 | N111: 0 | O111: 0 | P111: 0 | Q111: 0 | R111: 0 | S111: 0.3174603175
B112: Solar Collectors | C112: Fraction | D112: % Input of Primary Heat Source from Solar Collector | E112: %H1:SC | F112: 0 | G112: 0 | H112: 0 | I112: 0 | J112: 0 | K112: 0 | L112: 0 | M112: 0 | N112: 0 | O112: 0 | P112: 0 | Q112: 0 | R112: 0 | S112: 0.28125
B113: Solar Collectors | C113: Fraction | D113: % Input of Secondary Heat Source from Solar Collector | E113: %H2:SC | F113: 0 | G113: 0 | H113: 0 | I113: 0 | J113: 0 | K113: 0 | L113: 0 | M113: 0 | N113: 0 | O113: 0 | P113: 0 | Q113: 0 | R113: 0 | S113: 0.28125
B114: Solar Collectors | C114: Fraction | D114: % Input of Primary Cold Source from Solar Collector | E114: %C1:SC | F114: 0 | G114: 0 | H114: 0 | I114: 0 | J114: 0 | K114: 0 | L114: 0 | M114: 0 | N114: 0 | O114: 0 | P114: 0 | Q114: 0 | R114: 0 | S114: 0.3526785714
B115: Solar Collectors | C115: Fraction | D115: % Input of Secondary Cold Source from Solar Collector | E115: %C2:SC | F115: 0 | G115: 0 | H115: 0 | I115: 0 | J115: 0 | K115: 0 | L115: 0 | M115: 0 | N115: 0 | O115: 0 | P115: 0 | Q115: 0 | R115: 0 | S115: 0.3526785672
B117: Solar Collectors | C117: Thermal IN | D117: Total Cold Distribution from Solar Collector | E117: QCD.sol | F117: 0 | G117: 0 | H117: 0 | I117: 0 | J117: 0 | K117: 0 | L117: 0 | M117: 0 | N117: 0 | O117: 0 | P117: 0 | Q117: 0 | R117: 0 | S117: 1.354285706
B118: Solar Collectors | C118: Thermal OUT | D118: Total Space Heating from Solar Collector | E118: QHD.sol | F118: 0 | G118: 0 | H118: 0 | I118: 0 | J118: 0 | K118: 0 | L118: 0 | M118: 0 | N118: 0 | O118: 0 | P118: 0 | Q118: 0 | R118: 0 | S118: 1.857142857
B119: Solar Collectors | C119: Thermal OUT | D119: Total DHW from Solar Collector | E119: QWD.sol | F119: 0 | G119: 0 | H119: 0 | I119: 0 | J119: 0 | K119: 0 | L119: 0 | M119: 0 | N119: 0 | O119: 0 | P119: 0 | Q119: 0 | R119: 0 | S119: 1.857142857
B120: Solar Collectors | C120: Thermal IN | D120: Total District Cooling from Solar Collector | E120: QDC.sol | F120: 0 | G120: 0 | H120: 0 | I120: 0 | J120: 0 | K120: 0 | L120: 0 | M120: 0 | N120: 0 | O120: 0 | P120: 0 | Q120: 0 | R120: 0 | S120: 1.058035708
B121: Solar Collectors | C121: Thermal OUT | D121: Total District Heating from Solar Collector | E121: QDH.sol | F121: 0 | G121: 0 | H121: 0 | I121: 0 | J121: 0 | K121: 0 | L121: 0 | M121: 0 | N121: 0 | O121: 0 | P121: 0 | Q121: 0 | R121: 0 | S121: 1.857142857
B123: Battery Storage | C123: Electricity IN | D123: Produced Electrictiy to Battery Storage | E123: Qel.BS | F123: 0 | G123: 0 | H123: 0 | I123: 0 | J123: 0 | K123: 0 | L123: 0 | M123: 0 | N123: 0 | O123: 0 | P123: 0 | Q123: 0 | R123: 0 | S123: 3
B124: System | C124: Electricity IN | D124: Total Electricity Input | E124: Qel.sys | F124: 1412.59 | G124: 0 | H124: 0 | I124: 0 | J124: 0 | K124: 0 | L124: 0 | M124: 737.13 | N124: 675.46 | O124: 0 | P124: 0 | Q124: 0 | R124: 0 | S124: 4
B125: System | C125: Electricity IN | D125: Total Electricity HVAC Input | E125: Qel.HVAC | F125: 330.37 | G125: 0 | H125: 0 | I125: 0 | J125: 0 | K125: 0 | L125: 0 | M125: 198.39 | N125: 131.98 | O125: 0 | P125: 0 | Q125: 0 | R125: 0 | S125: 3
B126: System | C126: Electricity IN | D126: Total Electricity PAR Input | E126: Qel.PAR | F126: 330.37 | G126: 0 | H126: 0 | I126: 0 | J126: 0 | K126: 0 | L126: 0 | M126: 198.39 | N126: 131.98 | O126: 0 | P126: 0 | Q126: 0 | R126: 0 | S126: 2
B127: Heat Source | C127: Electricity IN | D127: El. for Primary Heat Source (incl. Pumps) | E127: Qel.H1 | F127: 173.86 | G127: 0 | H127: 0 | I127: 0 | J127: 0 | K127: 0 | L127: 0 | M127: 97.07 | N127: 76.79 | O127: 0 | P127: 0 | Q127: 0 | R127: 0 | S127: 4.333333333
B128: Heat Source | C128: Electricity IN | D128: El. for Secondary Heat Source (incl. Pumps) | E128: Qel.H2 | F128: 0 | G128: 0 | H128: 0 | I128: 0 | J128: 0 | K128: 0 | L128: 0 | M128: 0 | N128: 0 | O128: 0 | P128: 0 | Q128: 0 | R128: 0 | S128: 4.333333333
B129: Chiller | C129: Electricity IN | D129: El. for Primary Cold Source (incl. Pumps & Recooling) | E129: Qel.C1 | F129: 156.51 | G129: 0 | H129: 0 | I129: 0 | J129: 0 | K129: 0 | L129: 0 | M129: 101.32 | N129: 55.19 | O129: 0 | P129: 0 | Q129: 0 | R129: 0 | S129: 4
B130: Chiller | C130: Electricity IN | D130: El. for Secondary Cold Source (incl. Pumps & Recooling) | E130: Qel.C2 | F130: 0 | G130: 0 | H130: 0 | I130: 0 | J130: 0 | K130: 0 | L130: 0 | M130: 0 | N130: 0 | O130: 0 | P130: 0 | Q130: 0 | R130: 0 | S130: 4
B131: Cooling | C131: Electricity IN | D131: El. for Cooling | E131: Qel.C | F131: 156.51 | G131: 0 | H131: 0 | I131: 0 | J131: 0 | K131: 0 | L131: 0 | M131: 101.32 | N131: 55.19 | O131: 0 | P131: 0 | Q131: 0 | R131: 0 | S131: 5.178571429
B132: Cooling Grid | C132: Electricity IN | D132: El. for Cooling Grid | E132: Qel.CG | F132: 0 | G132: 0 | H132: 0 | I132: 0 | J132: 0 | K132: 0 | L132: 0 | M132: 0 | N132: 0 | O132: 0 | P132: 0 | Q132: 0 | R132: 0 | S132: 4.142857143
B133: Domestic Hot Water | C133: Electricity IN | D133: El. for DHW | E133: Qel.DHW | F133: 173.86 | G133: 0 | H133: 0 | I133: 0 | J133: 0 | K133: 0 | L133: 0 | M133: 97.07 | N133: 76.79 | O133: 0 | P133: 0 | Q133: 0 | R133: 0 | S133: 3.116402116
B134: Space Heating | C134: Electricity IN | D134: El. for Space Heating | E134: Qel.SH | F134: 0 | G134: 0 | H134: 0 | I134: 0 | J134: 0 | K134: 0 | L134: 0 | M134: 0 | N134: 0 | O134: 0 | P134: 0 | Q134: 0 | R134: 0 | S134: 3.116402116
B135: Space Heating | C135: Electricity IN | D135: El. for Heating Grid | E135: Qel.HG | F135: 0 | G135: 0 | H135: 0 | I135: 0 | J135: 0 | K135: 0 | L135: 0 | M135: 0 | N135: 0 | O135: 0 | P135: 0 | Q135: 0 | R135: 0 | S135: 3.116402118
B136: Cooling | C136: Electricity IN | D136: El. for solar Cooling | E136: Qel.Csol | F136: 0 | G136: 0 | H136: 0 | I136: 0 | J136: 0 | K136: 0 | L136: 0 | M136: 0 | N136: 0 | O136: 0 | P136: 0 | Q136: 0 | R136: 0 | S136: 1.55357142
B137: Cooling Grid | C137: Electricity IN | D137: El. for solar Cooling Grid | E137: Qel.CGsol | F137: 0 | G137: 0 | H137: 0 | I137: 0 | J137: 0 | K137: 0 | L137: 0 | M137: 0 | N137: 0 | O137: 0 | P137: 0 | Q137: 0 | R137: 0 | S137: 1.55357142
B138: Domestic Hot Water | C138: Electricity IN | D138: El. for solar DHW | E138: Qel.DHWsol | F138: 0 | G138: 0 | H138: 0 | I138: 0 | J138: 0 | K138: 0 | L138: 0 | M138: 0 | N138: 0 | O138: 0 | P138: 0 | Q138: 0 | R138: 0 | S138: 0.996031746
B139: Space Heating | C139: Electricity IN | D139: El. for solar Space Heating | E139: Qel.SHsol | F139: 0 | G139: 0 | H139: 0 | I139: 0 | J139: 0 | K139: 0 | L139: 0 | M139: 0 | N139: 0 | O139: 0 | P139: 0 | Q139: 0 | R139: 0 | S139: 0.996031746
B140: Space Heating | C140: Electricity IN | D140: El. for solar Heating Grid | E140: Qel.HGsol | F140: 0 | G140: 0 | H140: 0 | I140: 0 | J140: 0 | K140: 0 | L140: 0 | M140: 0 | N140: 0 | O140: 0 | P140: 0 | Q140: 0 | R140: 0 | S140: 0.9960317612
B142: Produced Electricity | C142: Electricity IN | D142: % Electricity from Photovoltaic | E142: %PV.El | F142: 2.009514438 | G142: 0 | H142: 0 | I142: 0 | J142: 0 | K142: 0 | L142: 0 | M142: 1.941692781 | N142: 2.083528262 | O142: 0 | P142: 0 | Q142: 0 | R142: 0 | S142: 0.3333333333
B143: Produced Electricity | C143: Electricity IN | D143: % Electricity from CHP1 | E143: %CHP1.El | F143: 0 | G143: 0 | H143: 0 | I143: 0 | J143: 0 | K143: 0 | L143: 0 | M143: 0 | N143: 0 | O143: 0 | P143: 0 | Q143: 0 | R143: 0 | S143: 0.3333333333
B144: Produced Electricity | C144: Electricity IN | D144: % Electricity from CHP2 | E144: %CHP2.El | F144: 0 | G144: 0 | H144: 0 | I144: 0 | J144: 0 | K144: 0 | L144: 0 | M144: 0 | N144: 0 | O144: 0 | P144: 0 | Q144: 0 | R144: 0 | S144: 0.3333333333
B145: Produced Electricity | C145: Electricity IN | D145: % Electricity from Grid | E145: %GD.El | F145: 0.5129867831 | G145: 0 | H145: 0 | I145: 0 | J145: 0 | K145: 0 | L145: 0 | M145: 0.4925047142 | N145: 0.5353388802 | O145: 0 | P145: 0 | Q145: 0 | R145: 0 | S145: 0.25
B146: Produced Electricity | C146: Electricity IN | D146: % Electricity to Grid | E146: %El.GD | F146: -1.522501111 | G146: 0 | H146: 0 | I146: 0 | J146: 0 | K146: 0 | L146: 0 | M146: -1.434197426 | N146: -1.618867159 | O146: 0 | P146: 0 | Q146: 0 | R146: 0 | S146: -0.25
B147: Electricity Pumps | C147: Electricity IN | D147: % Pumps Electricity for Primary Heat Source | E147: %Pumps.H1 | F147: 0 | G147: 0 | H147: 0 | I147: 0 | J147: 0 | K147: 0 | L147: 0 | M147: 0 | N147: 0 | O147: 0 | P147: 0 | Q147: 0 | R147: 0 | S147: 1.939393948
B148: Electricity Pumps | C148: Electricity IN | D148: % Pumps Electricity for Secondary Heat Source | E148: %Pumps.H2 | F148: 0 | G148: 0 | H148: 0 | I148: 0 | J148: 0 | K148: 0 | L148: 0 | M148: 0 | N148: 0 | O148: 0 | P148: 0 | Q148: 0 | R148: 0 | S148: 1.939393948
B149: Electricity Pumps | C149: Electricity IN | D149: % Pumps Electricity for Hot Storage | E149: %Pumps.HS | F149: 0 | G149: 0 | H149: 0 | I149: 0 | J149: 0 | K149: 0 | L149: 0 | M149: 0 | N149: 0 | O149: 0 | P149: 0 | Q149: 0 | R149: 0 | S149: 0.04545454681
B150: Electricity Pumps | C150: Electricity IN | D150: % Pumps Electricity for Space Heating | E150: %Pumps.HD | F150: 0 | G150: 0 | H150: 0 | I150: 0 | J150: 0 | K150: 0 | L150: 0 | M150: 0 | N150: 0 | O150: 0 | P150: 0 | Q150: 0 | R150: 0 | S150: 0.04545454545
B151: Electricity Pumps | C151: Electricity IN | D151: % Pumps Electricity for DHW | E151: %Pumps.WD | F151: 0 | G151: 0 | H151: 0 | I151: 0 | J151: 0 | K151: 0 | L151: 0 | M151: 0 | N151: 0 | O151: 0 | P151: 0 | Q151: 0 | R151: 0 | S151: 0.04545454545
B152: Electricity Pumps | C152: Electricity IN | D152: % Pumps Electricity for District Heating | E152: %Pumps.DH | F152: 0 | G152: 0 | H152: 0 | I152: 0 | J152: 0 | K152: 0 | L152: 0 | M152: 0 | N152: 0 | O152: 0 | P152: 0 | Q152: 0 | R152: 0 | S152: 0.04545454681
B153: Electricity Pumps | C153: Electricity IN | D153: % Pumps Electricity for Primary Cold Source | E153: %Pumps.C1 | F153: 0 | G153: 0 | H153: 0 | I153: 0 | J153: 0 | K153: 0 | L153: 0 | M153: 0 | N153: 0 | O153: 0 | P153: 0 | Q153: 0 | R153: 0 | S153: 1.636363636
B154: Electricity Pumps | C154: Electricity IN | D154: % Pumps Electricity for Secondary Cold Source | E154: %Pumps.C2 | F154: 0 | G154: 0 | H154: 0 | I154: 0 | J154: 0 | K154: 0 | L154: 0 | M154: 0 | N154: 0 | O154: 0 | P154: 0 | Q154: 0 | R154: 0 | S154: 1.636363636
B155: Electricity | C155: Electricity IN | D155: % El. Photovoltaik for Primary Heat Source | E155: %PV.H1 | F155: 0.04037264882 | G155: 0 | H155: 0 | I155: 0 | J155: 0 | K155: 0 | L155: 0 | M155: 0.0446732598 | N155: 0.03567938886 | O155: 0 | P155: 0 | Q155: 0 | R155: 0 | S155: 0.7348484869
B156: Electricity | C156: Electricity IN | D156: % El. Photovoltaik for Secondary Heat Source | E156: %PV.H2 | F156: 0 | G156: 0 | H156: 0 | I156: 0 | J156: 0 | K156: 0 | L156: 0 | M156: 0 | N156: 0 | O156: 0 | P156: 0 | Q156: 0 | R156: 0 | S156: 0.7348484869
B157: Electricity | C157: Electricity IN | D157: % El. Photovoltaik for Hot Storage | E157: %PV.HS | F157: 0 | G157: 0 | H157: 0 | I157: 0 | J157: 0 | K157: 0 | L157: 0 | M157: 0 | N157: 0 | O157: 0 | P157: 0 | Q157: 0 | R157: 0 | S157: 0.2613636367
B158: Electricity | C158: Electricity IN | D158: % El. Photovoltaik for Space Heating | E158: %PV.HD | F158: 0 | G158: 0 | H158: 0 | I158: 0 | J158: 0 | K158: 0 | L158: 0 | M158: 0 | N158: 0 | O158: 0 | P158: 0 | Q158: 0 | R158: 0 | S158: 0.01136363636
B159: Electricity | C159: Electricity IN | D159: % El. Photovoltaik for DHW | E159: %PV.WD | F159: 0 | G159: 0 | H159: 0 | I159: 0 | J159: 0 | K159: 0 | L159: 0 | M159: 0 | N159: 0 | O159: 0 | P159: 0 | Q159: 0 | R159: 0 | S159: 0.01136363636
B160: Electricity | C160: Electricity IN | D160: % El. Photovoltaik for District Heating | E160: %PV.DH | F160: 0 | G160: 0 | H160: 0 | I160: 0 | J160: 0 | K160: 0 | L160: 0 | M160: 0 | N160: 0 | O160: 0 | P160: 0 | Q160: 0 | R160: 0 | S160: 0.0113636367
B161: Electricity | C161: Electricity IN | D161: % El. Photovoltaik for Primary Cold Source | E161: %PV.C1 | F161: 0.06602057214 | G161: 0 | H161: 0 | I161: 0 | J161: 0 | K161: 0 | L161: 0 | M161: 0.08227856687 | N161: 0.0482782104 | O161: 0 | P161: 0 | Q161: 0 | R161: 0 | S161: 0.6590909091
B162: Electricity | C162: Electricity IN | D162: % El. Photovoltaik for Secondary Cold Source | E162: %PV.C2 | F162: 0 | G162: 0 | H162: 0 | I162: 0 | J162: 0 | K162: 0 | L162: 0 | M162: 0 | N162: 0 | O162: 0 | P162: 0 | Q162: 0 | R162: 0 | S162: 0.6590909091
B163: Electricity | C163: Electricity IN | D163: % El. Photovoltaik for Domestic Electricity | E163: %PV.DE | F163: 0.3362334435 | G163: 0 | H163: 0 | I163: 0 | J163: 0 | K163: 0 | L163: 0 | M163: 0.3450002035 | N163: 0.3266662719 | O163: 0 | P163: 0 | Q163: 0 | R163: 0 | S163: 0.25
B164: Electricity | C164: Electricity IN | D164: % El. CHP1 for Primary Heat Source | E164: %CHP1.H1 | F164: 0 | G164: 0 | H164: 0 | I164: 0 | J164: 0 | K164: 0 | L164: 0 | M164: 0 | N164: 0 | O164: 0 | P164: 0 | Q164: 0 | R164: 0 | S164: 0.7348484869
B165: Electricity | C165: Electricity IN | D165: % El. CHP1 for Secondary Heat Source | E165: %CHP1.H2 | F165: 0 | G165: 0 | H165: 0 | I165: 0 | J165: 0 | K165: 0 | L165: 0 | M165: 0 | N165: 0 | O165: 0 | P165: 0 | Q165: 0 | R165: 0 | S165: 0.7348484869
B166: Electricity | C166: Electricity IN | D166: % El. CHP1 for Hot Storage | E166: %CHP1.HS | F166: 0 | G166: 0 | H166: 0 | I166: 0 | J166: 0 | K166: 0 | L166: 0 | M166: 0 | N166: 0 | O166: 0 | P166: 0 | Q166: 0 | R166: 0 | S166: 0.2613636367
B167: Electricity | C167: Electricity IN | D167: % El. CHP1 for Space Heating | E167: %CHP1.HD | F167: 0 | G167: 0 | H167: 0 | I167: 0 | J167: 0 | K167: 0 | L167: 0 | M167: 0 | N167: 0 | O167: 0 | P167: 0 | Q167: 0 | R167: 0 | S167: 0.01136363636
B168: Electricity | C168: Electricity IN | D168: % El. CHP1 for DHW | E168: %CHP1.WD | F168: 0 | G168: 0 | H168: 0 | I168: 0 | J168: 0 | K168: 0 | L168: 0 | M168: 0 | N168: 0 | O168: 0 | P168: 0 | Q168: 0 | R168: 0 | S168: 0.01136363636
B169: Electricity | C169: Electricity IN | D169: % El. CHP1 for District Heating | E169: %CHP1.DH | F169: 0 | G169: 0 | H169: 0 | I169: 0 | J169: 0 | K169: 0 | L169: 0 | M169: 0 | N169: 0 | O169: 0 | P169: 0 | Q169: 0 | R169: 0 | S169: 0.0113636367
B170: Electricity | C170: Electricity IN | D170: % El. CHP1 for Primary Cold Source | E170: %CHP1.C1 | F170: 0 | G170: 0 | H170: 0 | I170: 0 | J170: 0 | K170: 0 | L170: 0 | M170: 0 | N170: 0 | O170: 0 | P170: 0 | Q170: 0 | R170: 0 | S170: 0.6590909091
B171: Electricity | C171: Electricity IN | D171: % El. CHP1 for Secondary Cold Source | E171: %CHP1.C2 | F171: 0 | G171: 0 | H171: 0 | I171: 0 | J171: 0 | K171: 0 | L171: 0 | M171: 0 | N171: 0 | O171: 0 | P171: 0 | Q171: 0 | R171: 0 | S171: 0.6590909091
B172: Electricity | C172: Electricity IN | D172: % El. CHP1 for Domestic Electricity | E172: %CHP1.DE | F172: 0 | G172: 0 | H172: 0 | I172: 0 | J172: 0 | K172: 0 | L172: 0 | M172: 0 | N172: 0 | O172: 0 | P172: 0 | Q172: 0 | R172: 0 | S172: 0.25
B173: Electricity | C173: Electricity IN | D173: % El. CHP2 for Primary Heat Source | E173: %CHP2.H1 | F173: 0 | G173: 0 | H173: 0 | I173: 0 | J173: 0 | K173: 0 | L173: 0 | M173: 0 | N173: 0 | O173: 0 | P173: 0 | Q173: 0 | R173: 0 | S173: 0.7348484869
B174: Electricity | C174: Electricity IN | D174: % El. CHP2 for Secondary Heat Source | E174: %CHP2.H2 | F174: 0 | G174: 0 | H174: 0 | I174: 0 | J174: 0 | K174: 0 | L174: 0 | M174: 0 | N174: 0 | O174: 0 | P174: 0 | Q174: 0 | R174: 0 | S174: 0.7348484869
B175: Electricity | C175: Electricity IN | D175: % El. CHP2 for Hot Storage | E175: %CHP2.HS | F175: 0 | G175: 0 | H175: 0 | I175: 0 | J175: 0 | K175: 0 | L175: 0 | M175: 0 | N175: 0 | O175: 0 | P175: 0 | Q175: 0 | R175: 0 | S175: 0.2613636367
B176: Electricity | C176: Electricity IN | D176: % El. CHP2 for Space Heating | E176: %CHP2.HD | F176: 0 | G176: 0 | H176: 0 | I176: 0 | J176: 0 | K176: 0 | L176: 0 | M176: 0 | N176: 0 | O176: 0 | P176: 0 | Q176: 0 | R176: 0 | S176: 0.01136363636
B177: Electricity | C177: Electricity IN | D177: % El. CHP2 for DHW | E177: %CHP2.WD | F177: 0 | G177: 0 | H177: 0 | I177: 0 | J177: 0 | K177: 0 | L177: 0 | M177: 0 | N177: 0 | O177: 0 | P177: 0 | Q177: 0 | R177: 0 | S177: 0.01136363636
B178: Electricity | C178: Electricity IN | D178: % El. CHP2 for District Heating | E178: %CHP2.DH | F178: 0 | G178: 0 | H178: 0 | I178: 0 | J178: 0 | K178: 0 | L178: 0 | M178: 0 | N178: 0 | O178: 0 | P178: 0 | Q178: 0 | R178: 0 | S178: 0.0113636367
B179: Electricity | C179: Electricity IN | D179: % El. CHP2 for Primary Cold Source | E179: %CHP2.C1 | F179: 0 | G179: 0 | H179: 0 | I179: 0 | J179: 0 | K179: 0 | L179: 0 | M179: 0 | N179: 0 | O179: 0 | P179: 0 | Q179: 0 | R179: 0 | S179: 0.6590909091
B180: Electricity | C180: Electricity IN | D180: % El. CHP2 for Secondary Cold Source | E180: %CHP2.C2 | F180: 0 | G180: 0 | H180: 0 | I180: 0 | J180: 0 | K180: 0 | L180: 0 | M180: 0 | N180: 0 | O180: 0 | P180: 0 | Q180: 0 | R180: 0 | S180: 0.6590909091
B181: Electricity | C181: Electricity IN | D181: % El. CHP2 for Domestic Electricity | E181: %CHP2.DE | F181: 0 | G181: 0 | H181: 0 | I181: 0 | J181: 0 | K181: 0 | L181: 0 | M181: 0 | N181: 0 | O181: 0 | P181: 0 | Q181: 0 | R181: 0 | S181: 0.25
B182: Electricity | C182: Electricity IN | D182: % El. Grid for Primary Heat Source | E182: %GD.H1 | F182: 0.08270623465 | G182: 0 | H182: 0 | I182: 0 | J182: 0 | K182: 0 | L182: 0 | M182: 0.08701314558 | N182: 0.07800609955 | O182: 0 | P182: 0 | Q182: 0 | R182: 0 | S182: -0.9848484869
B183: Electricity | C183: Electricity IN | D183: % El. Grid for Secondary Heat Source | E183: %GD.H2 | F183: 0 | G183: 0 | H183: 0 | I183: 0 | J183: 0 | K183: 0 | L183: 0 | M183: 0 | N183: 0 | O183: 0 | P183: 0 | Q183: 0 | R183: 0 | S183: -0.9848484869
B184: Electricity | C184: Electricity IN | D184: % El. Grid for Hot Storage | E184: %GD.HS | F184: 0 | G184: 0 | H184: 0 | I184: 0 | J184: 0 | K184: 0 | L184: 0 | M184: 0 | N184: 0 | O184: 0 | P184: 0 | Q184: 0 | R184: 0 | S184: -0.5113636367
B185: Electricity | C185: Electricity IN | D185: % El. Grid for Space Heating | E185: %GD.HD | F185: 0 | G185: 0 | H185: 0 | I185: 0 | J185: 0 | K185: 0 | L185: 0 | M185: 0 | N185: 0 | O185: 0 | P185: 0 | Q185: 0 | R185: 0 | S185: -0.01136363636
B186: Electricity | C186: Electricity IN | D186: % El. Grid for DHW | E186: %GD.WD | F186: 0 | G186: 0 | H186: 0 | I186: 0 | J186: 0 | K186: 0 | L186: 0 | M186: 0 | N186: 0 | O186: 0 | P186: 0 | Q186: 0 | R186: 0 | S186: -0.01136363636
B187: Electricity | C187: Electricity IN | D187: % El. Grid for District Heating | E187: %GD.DH | F187: 0 | G187: 0 | H187: 0 | I187: 0 | J187: 0 | K187: 0 | L187: 0 | M187: 0 | N187: 0 | O187: 0 | P187: 0 | Q187: 0 | R187: 0 | S187: -0.0113636367
B188: Electricity | C188: Electricity IN | D188: % El. Grid for Primary Cold Source | E188: %GD.C1 | F188: 0.04477590808 | G188: 0 | H188: 0 | I188: 0 | J188: 0 | K188: 0 | L188: 0 | M188: 0.05517344295 | N188: 0.03342907056 | O188: 0 | P188: 0 | Q188: 0 | R188: 0 | S188: -0.9090909091
B189: Electricity | C189: Electricity IN | D189: % El. Grid for Secondary Cold Source | E189: %GD.C2 | F189: 0 | G189: 0 | H189: 0 | I189: 0 | J189: 0 | K189: 0 | L189: 0 | M189: 0 | N189: 0 | O189: 0 | P189: 0 | Q189: 0 | R189: 0 | S189: -0.9090909091
B190: Electricity | C190: Electricity IN | D190: % El. Grid for Domestic Electricity | E190: %GD.DE | F190: 0.4298911989 | G190: 0 | H190: 0 | I190: 0 | J190: 0 | K190: 0 | L190: 0 | M190: 0.385861367 | N190: 0.4779409468 | O190: 0 | P190: 0 | Q190: 0 | R190: 0 | S190: -0.5
B191: Electricity | C191: Electricity IN | D191: % El. Photovoltaic for Cooling | E191: %PV.C | F191: 0.06602057214 | G191: 0 | H191: 0 | I191: 0 | J191: 0 | K191: 0 | L191: 0 | M191: 0.08227856687 | N191: 0.0482782104 | O191: 0 | P191: 0 | Q191: 0 | R191: 0 | S191: 0.6964285715
B192: Electricity | C192: Electricity IN | D192: % El. Photovoltaic for Cooling Grid | E192: %PV.CG | F192: 0 | G192: 0 | H192: 0 | I192: 0 | J192: 0 | K192: 0 | L192: 0 | M192: 0 | N192: 0 | O192: 0 | P192: 0 | Q192: 0 | R192: 0 | S192: 0.6964285715
B193: Electricity | C193: Electricity IN | D193: % El. Photovoltaic for Space Heating | E193: %PV.SH | F193: 0 | G193: 0 | H193: 0 | I193: 0 | J193: 0 | K193: 0 | L193: 0 | M193: 0 | N193: 0 | O193: 0 | P193: 0 | Q193: 0 | R193: 0 | S193: 0.5152717666
B194: Electricity | C194: Electricity IN | D194: % El. Photovoltaic for DHW | E194: %PV.DHW | F194: 0.04037264882 | G194: 0 | H194: 0 | I194: 0 | J194: 0 | K194: 0 | L194: 0 | M194: 0.0446732598 | N194: 0.03567938886 | O194: 0 | P194: 0 | Q194: 0 | R194: 0 | S194: 0.5152717666
B195: Electricity | C195: Electricity IN | D195: % El. Photovoltaic for Heating Grid | E195: %PV.HG | F195: 0 | G195: 0 | H195: 0 | I195: 0 | J195: 0 | K195: 0 | L195: 0 | M195: 0 | N195: 0 | O195: 0 | P195: 0 | Q195: 0 | R195: 0 | S195: 0.5152717669
B196: Electricity | C196: Electricity IN | D196: % El. CHP1 for Cooling | E196: %CHP1.C | F196: 0 | G196: 0 | H196: 0 | I196: 0 | J196: 0 | K196: 0 | L196: 0 | M196: 0 | N196: 0 | O196: 0 | P196: 0 | Q196: 0 | R196: 0 | S196: 0.6964285715
B197: Electricity | C197: Electricity IN | D197: % El. CHP1 for Cooling Grid | E197: %CHP1.CG | F197: 0 | G197: 0 | H197: 0 | I197: 0 | J197: 0 | K197: 0 | L197: 0 | M197: 0 | N197: 0 | O197: 0 | P197: 0 | Q197: 0 | R197: 0 | S197: 0.6964285715
B198: Electricity | C198: Electricity IN | D198: % El. CHP1 for Space Heating | E198: %CHP1.SH | F198: 0 | G198: 0 | H198: 0 | I198: 0 | J198: 0 | K198: 0 | L198: 0 | M198: 0 | N198: 0 | O198: 0 | P198: 0 | Q198: 0 | R198: 0 | S198: 0.5152717666
B199: Electricity | C199: Electricity IN | D199: % El. CHP1 for DHW | E199: %CHP1.DHW | F199: 0 | G199: 0 | H199: 0 | I199: 0 | J199: 0 | K199: 0 | L199: 0 | M199: 0 | N199: 0 | O199: 0 | P199: 0 | Q199: 0 | R199: 0 | S199: 0.5152717666
B200: Electricity | C200: Electricity IN | D200: % El. CHP1 for Heating Grid | E200: %CHP1.HG | F200: 0 | G200: 0 | H200: 0 | I200: 0 | J200: 0 | K200: 0 | L200: 0 | M200: 0 | N200: 0 | O200: 0 | P200: 0 | Q200: 0 | R200: 0 | S200: 0.5152717669
B201: Electricity | C201: Electricity IN | D201: % El. CHP2 for Cooling | E201: %CHP2.C | F201: 0 | G201: 0 | H201: 0 | I201: 0 | J201: 0 | K201: 0 | L201: 0 | M201: 0 | N201: 0 | O201: 0 | P201: 0 | Q201: 0 | R201: 0 | S201: 0.6964285715
B202: Electricity | C202: Electricity IN | D202: % El. CHP2 for Cooling Grid | E202: %CHP2.CG | F202: 0 | G202: 0 | H202: 0 | I202: 0 | J202: 0 | K202: 0 | L202: 0 | M202: 0 | N202: 0 | O202: 0 | P202: 0 | Q202: 0 | R202: 0 | S202: 0.6964285715
B203: Electricity | C203: Electricity IN | D203: % El. CHP2 for Space Heating | E203: %CHP2.SH | F203: 0 | G203: 0 | H203: 0 | I203: 0 | J203: 0 | K203: 0 | L203: 0 | M203: 0 | N203: 0 | O203: 0 | P203: 0 | Q203: 0 | R203: 0 | S203: 0.5152717666
B204: Electricity | C204: Electricity IN | D204: % El. CHP2 for DHW | E204: %CHP2.DHW | F204: 0 | G204: 0 | H204: 0 | I204: 0 | J204: 0 | K204: 0 | L204: 0 | M204: 0 | N204: 0 | O204: 0 | P204: 0 | Q204: 0 | R204: 0 | S204: 0.5152717666
... 15 more rows

Sheet Results_T53
B1: Boundary | C1: Thermal En. OUT | D1: Thermal Energy Output to Heating | E1: Nomenclature | F1: Yearly Data | G1: January | H1: February | I1: March | J1: April | K1: May | L1: June | M1: July | N1: August | O1: September | P1: October | Q1: November | R1: December | S1: 10-Day Peak
F2: [kWh] | G2: [kWh] | H2: [kWh] | I2: [kWh] | J2: [kWh] | K2: [kWh] | L2: [kWh] | M2: [kWh] | N2: [kWh] | O2: [kWh] | P2: [kWh] | Q2: [kWh] | R2: [kWh] | S2: [kWh]
B3: System | C3: Electricity | D3: Q for electricity of the primary HP/AHP | E3: Q.el.HP.1 | F3: 0 | G3: 0 | H3: 0 | I3: 0 | J3: 0 | K3: 0 | L3: 0 | M3: 0 | N3: 0 | O3: 0 | P3: 0 | Q3: 0 | R3: 0
B4: System | C4: Electricity | D4: Q for electricity of the secondary HP/AHP | E4: Q.el.HP.2 | F4: 0 | G4: 0 | H4: 0 | I4: 0 | J4: 0 | K4: 0 | L4: 0 | M4: 0 | N4: 0 | O4: 0 | P4: 0 | Q4: 0 | R4: 0
B5: System | C5: Electricity | D5: Q for electricity of the primary VCC/ACM | E5: Q.el.VCC.1 | F5: 0 | G5: 0 | H5: 0 | I5: 0 | J5: 0 | K5: 0 | L5: 0 | M5: 0 | N5: 0 | O5: 0 | P5: 0 | Q5: 0 | R5: 0 | S5: 0
B6: System | C6: Electricity | D6: Q for electricity of the secondary VCC/ACM | E6: Q.el.VCC.2 | F6: 0 | G6: 0 | H6: 0 | I6: 0 | J6: 0 | K6: 0 | L6: 0 | M6: 0 | N6: 0 | O6: 0 | P6: 0 | Q6: 0 | R6: 0 | S6: 0
B7: Reference System | C7: Electricity | D7: Q for electricity of the reference HP/AHP | E7: Q.el.HP.ref | F7: 0 | G7: 0 | H7: 0 | I7: 0 | J7: 0 | K7: 0 | L7: 0 | M7: 0 | N7: 0 | O7: 0 | P7: 0 | Q7: 0 | R7: 0
B8: Reference System | C8: Thermal | D8: Q for the reference system | E8: Q.ref.sys | F8: 551.7525714 | G8: 0 | H8: 0 | I8: 0 | J8: 0 | K8: 0 | L8: 0 | M8: 310.8303448 | N8: 240.9222266 | O8: 0 | P8: 0 | Q8: 0 | R8: 0 | S8: 12.10481525
B9: Reference Energy Carrier | C9: Thermal | D9: Q for the reference energy carrier | E9: Q.EC.ref | F9: 610.3457648 | G9: 0 | H9: 0 | I9: 0 | J9: 0 | K9: 0 | L9: 0 | M9: 383.7411664 | N9: 297.4348476 | O9: 0 | P9: 0 | Q9: 0 | R9: 0 | S9: 13.39028236
B10: Reference Electricity | C10: Electricity | D10: Q for the reference electricity | E10: Q.el.ref | F10: 1944.033718 | G10: 0 | H10: 0 | I10: 0 | J10: 0 | K10: 0 | L10: 0 | M10: 1100.67394 | N10: 843.3597779 | O10: 0 | P10: 0 | Q10: 0 | R10: 0 | S10: 5.962096305
B12: Reference System | C12: Primary En. Ratio | D12: PER for the reference system | E12: PER_NRE.ref.sys | F12: 0.5660726979 | G12: 0 | H12: 0 | I12: 0 | J12: 0 | K12: 0 | L12: 0 | M12: 0.5793464335 | N12: 0.5305093387 | O12: 0 | P12: 0 | Q12: 0 | R12: 0 | S12: 0.7386681852
B13: Reference Cooling | C13: Primary En. Ratio | D13: PER for cooling reference system | E13: PER_NRE.ref.C | F13: 0.75 | G13: 0 | H13: 0 | I13: 0 | J13: 0 | K13: 0 | L13: 0 | M13: 0.75 | N13: 0.75 | O13: 0 | P13: 0 | Q13: 0 | R13: 0 | S13: 0.75
B14: Reference Cooling Grid | C14: Primary En. Ratio | D14: PER for cooling grid reference system | E14: PER_NRE.ref.CG | F14: 0 | G14: 0 | H14: 0 | I14: 0 | J14: 0 | K14: 0 | L14: 0 | M14: 0 | N14: 0 | O14: 0 | P14: 0 | Q14: 0 | R14: 0 | S14: 0.75
B15: Reference DHW | C15: Primary En. Ratio | D15: PER for DHW reference system | E15: PER_NRE.ref.DHW | F15: 0.6484169553 | G15: 0 | H15: 0 | I15: 0 | J15: 0 | K15: 0 | L15: 0 | M15: 0.5894497909 | N15: 0.5755128516 | O15: 0 | P15: 0 | Q15: 0 | R15: 0 | S15: 0.761833573
B16: Reference Space Heating | C16: Primary En. Ratio | D16: PER for space heating reference system | E16: PER_NRE.ref.SH | F16: 0 | G16: 0 | H16: 0 | I16: 0 | J16: 0 | K16: 0 | L16: 0 | M16: 0 | N16: 0 | O16: 0 | P16: 0 | Q16: 0 | R16: 0 | S16: 0.7817965183
B17: Reference Heating Grid | C17: Primary En. Ratio | D17: PER for heating grid reference system | E17: PER_NRE.ref.HG | F17: 0 | G17: 0 | H17: 0 | I17: 0 | J17: 0 | K17: 0 | L17: 0 | M17: 0 | N17: 0 | O17: 0 | P17: 0 | Q17: 0 | R17: 0 | S17: 0.8136
B19: System | C19: Primary En. Ratio | D19: PER for the system | E19: PER_NRE.sys | F19: 1.730270944 | G19: 0 | H19: 0 | I19: 0 | J19: 0 | K19: 0 | L19: 0 | M19: 2.028327115 | N19: 1.431027219 | O19: 0 | P19: 0 | Q19: 0 | R19: 0 | S19: 8.799530692
B20: Cooling | C20: Primary En. Ratio | D20: PER for cooling | E20: PER_NRE.C | F20: 4.076856378 | G20: 0 | H20: 0 | I20: 0 | J20: 0 | K20: 0 | L20: 0 | M20: 4.113482241 | N20: 4.009617138 | O20: 0 | P20: 0 | Q20: 0 | R20: 0 | S20: 0.4634383039
B21: Cooling | C21: Primary En. Ratio | D21: PER for solar cooling | E21: PER_NRE.Csol | F21: 0 | G21: 0 | H21: 0 | I21: 0 | J21: 0 | K21: 0 | L21: 0 | M21: 0 | N21: 0 | O21: 0 | P21: 0 | Q21: 0 | R21: 0 | S21: 0.6498853742
B22: Cooling Grid | C22: Primary En. Ratio | D22: PER for cooling grid | E22: PER_NRE.CG | F22: 0 | G22: 0 | H22: 0 | I22: 0 | J22: 0 | K22: 0 | L22: 0 | M22: 0 | N22: 0 | O22: 0 | P22: 0 | Q22: 0 | R22: 0 | S22: 0.2896473819
B23: Cooling Grid | C23: Primary En. Ratio | D23: PER for solar cooling grid | E23: PER_NRE.CGsol | F23: 0 | G23: 0 | H23: 0 | I23: 0 | J23: 0 | K23: 0 | L23: 0 | M23: 0 | N23: 0 | O23: 0 | P23: 0 | Q23: 0 | R23: 0 | S23: 0.6176278237
B24: Domestic Hot Water | C24: Primary En. Ratio | D24: PER for DHW | E24: PER_NRE.DHW | F24: 1.052833304 | G24: 0 | H24: 0 | I24: 0 | J24: 0 | K24: 0 | L24: 0 | M24: 1.073396375 | N24: 1.026839564 | O24: 0 | P24: 0 | Q24: 0 | R24: 0 | S24: 0.5133989819
B25: Domestic Hot Water | C25: Primary En. Ratio | D25: PER for solar DHW | E25: PER_NRE.DHWsol | F25: 0 | G25: 0 | H25: 0 | I25: 0 | J25: 0 | K25: 0 | L25: 0 | M25: 0 | N25: 0 | O25: 0 | P25: 0 | Q25: 0 | R25: 0 | S25: 1.666231021
B26: Space Heating | C26: Primary En. Ratio | D26: PER for space heating | E26: PER_NRE.SH | F26: 0 | G26: 0 | H26: 0 | I26: 0 | J26: 0 | K26: 0 | L26: 0 | M26: 0 | N26: 0 | O26: 0 | P26: 0 | Q26: 0 | R26: 0 | S26: 0.5133989819
B27: Space Heating | C27: Primary En. Ratio | D27: PER for solar space heating | E27: PER_NRE.SHsol | F27: 0 | G27: 0 | H27: 0 | I27: 0 | J27: 0 | K27: 0 | L27: 0 | M27: 0 | N27: 0 | O27: 0 | P27: 0 | Q27: 0 | R27: 0 | S27: 1.666231021
B28: Heating Grid | C28: Primary En. Ratio | D28: PER for heating grid | E28: PER_NRE.HG | F28: 0 | G28: 0 | H28: 0 | I28: 0 | J28: 0 | K28: 0 | L28: 0 | M28: 0 | N28: 0 | O28: 0 | P28: 0 | Q28: 0 | R28: 0 | S28: 0.5133989816
B29: Heating Grid | C29: Primary En. Ratio | D29: PER for solar heating grid | E29: PER_NRE.HGsol | F29: 0 | G29: 0 | H29: 0 | I29: 0 | J29: 0 | K29: 0 | L29: 0 | M29: 0 | N29: 0 | O29: 0 | P29: 0 | Q29: 0 | R29: 0 | S29: 1.666231036
B31: System | C31: Fractional savings | D31: fractional savings of the system | E31: fsav_NRE.PER.sys | F31: 0.6728415859 | G31: 0 | H31: 0 | I31: 0 | J31: 0 | K31: 0 | L31: 0 | M31: 0.7143722878 | N31: 0.629280749 | O31: 0 | P31: 0 | Q31: 0 | R31: 0 | S31: 0.9160559567
B32: Cooling | C32: Fractional savings | D32: fractional savings for cooling | E32: fsav_NRE.PER.C | F32: 0.8160347261 | G32: 0 | H32: 0 | I32: 0 | J32: 0 | K32: 0 | L32: 0 | M32: 0.8176727269 | N32: 0.8129497221 | O32: 0 | P32: 0 | Q32: 0 | R32: 0 | S32: -0.6183383929
B33: Cooling | C33: Fractional savings | D33: fractional savings for solar cooling | E33: fsav_NRE.PER.Csol | F33: 0 | G33: 0 | H33: 0 | I33: 0 | J33: 0 | K33: 0 | L33: 0 | M33: 0 | N33: 0 | O33: 0 | P33: 0 | Q33: 0 | R33: 0 | S33: -0.1540496674
B34: Cooling Grid | C34: Fractional savings | D34: fractional savings for cooling grid | E34: fsav_NRE.PER.CG | F34: 0 | G34: 0 | H34: 0 | I34: 0 | J34: 0 | K34: 0 | L34: 0 | M34: 0 | N34: 0 | O34: 0 | P34: 0 | Q34: 0 | R34: 0 | S34: -1.589355357
B35: Cooling Grid | C35: Fractional savings | D35: fractional savings for solar cooling grid | E35: fsav_NRE.PER.CGsol | F35: 0 | G35: 0 | H35: 0 | I35: 0 | J35: 0 | K35: 0 | L35: 0 | M35: 0 | N35: 0 | O35: 0 | P35: 0 | Q35: 0 | R35: 0 | S35: -0.2143235314
B36: Domestic Hot Water | C36: Fractional savings | D36: fractional savings for DHW | E36: fsav_NRE.PER.DHW | F36: 0.3841219187 | G36: 0 | H36: 0 | I36: 0 | J36: 0 | K36: 0 | L36: 0 | M36: 0.4508554299 | N36: 0.4395299211 | O36: 0 | P36: 0 | Q36: 0 | R36: 0 | S36: -0.4839016047
B37: Domestic Hot Water | C37: Fractional savings | D37: fractional savings for solar DHW | E37: fsav_NRE.PER.DHWsol | F37: 0 | G37: 0 | H37: 0 | I37: 0 | J37: 0 | K37: 0 | L37: 0 | M37: 0 | N37: 0 | O37: 0 | P37: 0 | Q37: 0 | R37: 0 | S37: 0.5427803446
B38: Space Heating | C38: Fractional savings | D38: fractional savings for space heating | E38: fsav_NRE.PER.SH | F38: 0 | G38: 0 | H38: 0 | I38: 0 | J38: 0 | K38: 0 | L38: 0 | M38: 0 | N38: 0 | O38: 0 | P38: 0 | Q38: 0 | R38: 0 | S38: -0.5227854865
B39: Space Heating | C39: Fractional savings | D39: fractional savings for solar space heating | E39: fsav_NRE.PER.SHsol | F39: 0 | G39: 0 | H39: 0 | I39: 0 | J39: 0 | K39: 0 | L39: 0 | M39: 0 | N39: 0 | O39: 0 | P39: 0 | Q39: 0 | R39: 0 | S39: 0.5307994457
B40: Heating Grid | C40: Fractional savings | D40: fractional savings for heating grid | E40: fsav_NRE.PER.HG | F40: 0 | G40: 0 | H40: 0 | I40: 0 | J40: 0 | K40: 0 | L40: 0 | M40: 0 | N40: 0 | O40: 0 | P40: 0 | Q40: 0 | R40: 0 | S40: -0.5847323995
B41: Heating Grid | C41: Fractional savings | D41: fractional savings for solar heating grid | E41: fsav_NRE.PER.HGsol | F41: 0 | G41: 0 | H41: 0 | I41: 0 | J41: 0 | K41: 0 | L41: 0 | M41: 0 | N41: 0 | O41: 0 | P41: 0 | Q41: 0 | R41: 0 | S41: 0.5117123723
B43: System | C43: SPF Equivalent | D43: SPF Equivalent for system | E43: SPFequ.sys | F43: 4.32567736 | G43: 0 | H43: 0 | I43: 0 | J43: 0 | K43: 0 | L43: 0 | M43: 5.070817788 | N43: 3.577568047 | O43: 0 | P43: 0 | Q43: 0 | R43: 0 | S43: 21.99882673
B44: Cooling | C44: SPF Equivalent | D44: SPF Equivalent for cooling | E44: SPFequ.C | F44: 10.19214094 | G44: 0 | H44: 0 | I44: 0 | J44: 0 | K44: 0 | L44: 0 | M44: 10.2837056 | N44: 10.02404285 | O44: 0 | P44: 0 | Q44: 0 | R44: 0 | S44: 1.15859576
B45: Cooling | C45: SPF Equivalent | D45: SPF Equivalent for solar cooling | E45: SPFequ.Csol | F45: 0 | G45: 0 | H45: 0 | I45: 0 | J45: 0 | K45: 0 | L45: 0 | M45: 0 | N45: 0 | O45: 0 | P45: 0 | Q45: 0 | R45: 0 | S45: 1.624713436
B46: Cooling Grid | C46: SPF Equivalent | D46: SPF Equivalent for cooling grid | E46: SPFequ.CG | F46: 0 | G46: 0 | H46: 0 | I46: 0 | J46: 0 | K46: 0 | L46: 0 | M46: 0 | N46: 0 | O46: 0 | P46: 0 | Q46: 0 | R46: 0 | S46: 0.7241184547
B47: Cooling Grid | C47: SPF Equivalent | D47: SPF Equivalent for solar cooling grid | E47: SPFequ.CGsol | F47: 0 | G47: 0 | H47: 0 | I47: 0 | J47: 0 | K47: 0 | L47: 0 | M47: 0 | N47: 0 | O47: 0 | P47: 0 | Q47: 0 | R47: 0 | S47: 1.544069559
B48: Domestic Hot Water | C48: SPF Equivalent | D48: SPF Equivalent for DHW | E48: SPFequ.DHW | F48: 2.632083261 | G48: 0 | H48: 0 | I48: 0 | J48: 0 | K48: 0 | L48: 0 | M48: 2.683490938 | N48: 2.56709891 | O48: 0 | P48: 0 | Q48: 0 | R48: 0 | S48: 1.283497455
B49: Domestic Hot Water | C49: SPF Equivalent | D49: SPF Equivalent for solar DHW | E49: SPFequ.DHWsol | F49: 0 | G49: 0 | H49: 0 | I49: 0 | J49: 0 | K49: 0 | L49: 0 | M49: 0 | N49: 0 | O49: 0 | P49: 0 | Q49: 0 | R49: 0 | S49: 4.165577551
B50: Space Heating | C50: SPF Equivalent | D50: SPF Equivalent for space heating | E50: SPFequ.SH | F50: 0 | G50: 0 | H50: 0 | I50: 0 | J50: 0 | K50: 0 | L50: 0 | M50: 0 | N50: 0 | O50: 0 | P50: 0 | Q50: 0 | R50: 0 | S50: 1.283497455
B51: Space Heating | C51: SPF Equivalent | D51: SPF Equivalent for solar space heating | E51: SPFequ.SHsol | F51: 0 | G51: 0 | H51: 0 | I51: 0 | J51: 0 | K51: 0 | L51: 0 | M51: 0 | N51: 0 | O51: 0 | P51: 0 | Q51: 0 | R51: 0 | S51: 4.165577551
B52: Heating Grid | C52: SPF Equivalent | D52: SPF Equivalent for heating grid | E52: SPFequ.HG | F52: 0 | G52: 0 | H52: 0 | I52: 0 | J52: 0 | K52: 0 | L52: 0 | M52: 0 | N52: 0 | O52: 0 | P52: 0 | Q52: 0 | R52: 0 | S52: 1.283497454
B53: Heating Grid | C53: SPF Equivalent | D53: SPF Equivalent for solar heating grid | E53: SPFequ.HGsol | F53: 0 | G53: 0 | H53: 0 | I53: 0 | J53: 0 | K53: 0 | L53: 0 | M53: 0 | N53: 0 | O53: 0 | P53: 0 | Q53: 0 | R53: 0 | S53: 4.165577412

Sheet Results_spec
B1: Boundary | C1: Thermal En. OUT | D1: Thermal Energy Output to Heating | E1: Nomenclature | F1: Yearly Data | G1: January | H1: February | I1: March | J1: April | K1: May | L1: June | M1: July | N1: August | O1: September | P1: October | Q1: November | R1: December | S1: 10-Day Peak
F2: [kWh] | G2: [kWh] | H2: [kWh] | I2: [kWh] | J2: [kWh] | K2: [kWh] | L2: [kWh] | M2: [kWh] | N2: [kWh] | O2: [kWh] | P2: [kWh] | Q2: [kWh] | R2: [kWh] | S2: [kWh]
B3: System | C3: Electricity | D3: Q for electricity of the primary HP/AHP | E3: Q.el.HP.1 | F3: 0 | G3: 0 | H3: 0 | I3: 0 | J3: 0 | K3: 0 | L3: 0 | M3: 0 | N3: 0 | O3: 0 | P3: 0 | Q3: 0 | R3: 0
B4: System | C4: Electricity | D4: Q for electricity of the secondary HP/AHP | E4: Q.el.HP.2 | F4: 0 | G4: 0 | H4: 0 | I4: 0 | J4: 0 | K4: 0 | L4: 0 | M4: 0 | N4: 0 | O4: 0 | P4: 0 | Q4: 0 | R4: 0
B5: System | C5: Electricity | D5: Q for electricity of the primary VCC/ACM | E5: Q.el.VCC.1 | F5: 0 | G5: 0 | H5: 0 | I5: 0 | J5: 0 | K5: 0 | L5: 0 | M5: 0 | N5: 0 | O5: 0 | P5: 0 | Q5: 0 | R5: 0 | S5: 0
B6: System | C6: Electricity | D6: Q for electricity of the secondary VCC/ACM | E6: Q.el.VCC.2 | F6: 0 | G6: 0 | H6: 0 | I6: 0 | J6: 0 | K6: 0 | L6: 0 | M6: 0 | N6: 0 | O6: 0 | P6: 0 | Q6: 0 | R6: 0 | S6: 0
B7: Reference System | C7: Electricity | D7: Q for electricity of the reference HP/AHP | E7: Q.el.HP.ref | F7: 0 | G7: 0 | H7: 0 | I7: 0 | J7: 0 | K7: 0 | L7: 0 | M7: 0 | N7: 0 | O7: 0 | P7: 0 | Q7: 0 | R7: 0
B8: Reference System | C8: Thermal | D8: Q for the reference system | E8: Q.ref.sys | F8: 551.7525714 | G8: 0 | H8: 0 | I8: 0 | J8: 0 | K8: 0 | L8: 0 | M8: 310.8303448 | N8: 240.9222266 | O8: 0 | P8: 0 | Q8: 0 | R8: 0 | S8: 12.10481525
B9: Reference Energy Carrier | C9: Thermal | D9: Q for the reference energy carrier | E9: Q.EC.ref | F9: 929.1100952 | G9: 0 | H9: 0 | I9: 0 | J9: 0 | K9: 0 | L9: 0 | M9: 355.7768919 | N9: 282.4532033 | O9: 0 | P9: 0 | Q9: 0 | R9: 0 | S9: 20.38360424
B10: Reference Electricity | C10: Electricity | D10: Q for the reference electricity | E10: Q.el.ref | F10: 1624.991718 | G10: 0 | H10: 0 | I10: 0 | J10: 0 | K10: 0 | L10: 0 | M10: 892.2799402 | N10: 732.7117779 | O10: 0 | P10: 0 | Q10: 0 | R10: 0 | S10: 4.162096305
B12: Reference System | C12: Primary En. Ratio | D12: PER for the reference system | E12: PER_NRE.ref.sys | F12: 0.8191623252 | G12: 0 | H12: 0 | I12: 0 | J12: 0 | K12: 0 | L12: 0 | M12: 0.9577796508 | N12: 0.8255117998 | O12: 0 | P12: 0 | Q12: 0 | R12: 0 | S12: 0.7168778567
B13: Reference Cooling | C13: Primary En. Ratio | D13: PER for cooling reference system | E13: PER_NRE.ref.C | F13: 1.773177715 | G13: 0 | H13: 0 | I13: 0 | J13: 0 | K13: 0 | L13: 0 | M13: 1.773177715 | N13: 1.773177715 | O13: 0 | P13: 0 | Q13: 0 | R13: 0 | S13: 1.773177715
B14: Reference Cooling Grid | C14: Primary En. Ratio | D14: PER for cooling grid reference system | E14: PER_NRE.ref.CG | F14: 0 | G14: 0 | H14: 0 | I14: 0 | J14: 0 | K14: 0 | L14: 0 | M14: 0 | N14: 0 | O14: 0 | P14: 0 | Q14: 0 | R14: 0 | S14: 1.773177715
B15: Reference DHW | C15: Primary En. Ratio | D15: PER for DHW reference system | E15: PER_NRE.ref.DHW | F15: 0.4173370057 | G15: 0 | H15: 0 | I15: 0 | J15: 0 | K15: 0 | L15: 0 | M15: 0.6154490214 | N15: 0.5870036466 | O15: 0 | P15: 0 | Q15: 0 | R15: 0 | S15: 0.4903347139
B16: Reference Space Heating | C16: Primary En. Ratio | D16: PER for space heating reference system | E16: PER_NRE.ref.SH | F16: 0 | G16: 0 | H16: 0 | I16: 0 | J16: 0 | K16: 0 | L16: 0 | M16: 0 | N16: 0 | O16: 0 | P16: 0 | Q16: 0 | R16: 0 | S16: 0.5031833533
B17: Reference Heating Grid | C17: Primary En. Ratio | D17: PER for heating grid reference system | E17: PER_NRE.ref.HG | F17: 0 | G17: 0 | H17: 0 | I17: 0 | J17: 0 | K17: 0 | L17: 0 | M17: 0 | N17: 0 | O17: 0 | P17: 0 | Q17: 0 | R17: 0 | S17: 0.5118992022
B19: System | C19: Primary En. Ratio | D19: PER for the system | E19: PER_NRE.sys | F19: 2.556540255 | G19: 0 | H19: 0 | I19: 0 | J19: 0 | K19: 0 | L19: 0 | M19: 2.996927992 | N19: 2.114397443 | O19: 0 | P19: 0 | Q19: 0 | R19: 0 | S19: 13.00227856
B20: Cooling | C20: Primary En. Ratio | D20: PER for cooling | E20: PER_NRE.C | F20: 6.024090482 | G20: 0 | H20: 0 | I20: 0 | J20: 0 | K20: 0 | L20: 0 | M20: 6.078209687 | N20: 5.924736246 | O20: 0 | P20: 0 | Q20: 0 | R20: 0 | S20: 0.6847916894
B21: Cooling | C21: Primary En. Ratio | D21: PER for solar cooling | E21: PER_NRE.Csol | F21: 0 | G21: 0 | H21: 0 | I21: 0 | J21: 0 | K21: 0 | L21: 0 | M21: 0 | N21: 0 | O21: 0 | P21: 0 | Q21: 0 | R21: 0 | S21: 0.9603018857
B22: Cooling Grid | C22: Primary En. Ratio | D22: PER for cooling grid | E22: PER_NRE.CG | F22: 0 | G22: 0 | H22: 0 | I22: 0 | J22: 0 | K22: 0 | L22: 0 | M22: 0 | N22: 0 | O22: 0 | P22: 0 | Q22: 0 | R22: 0 | S22: 0.427991404
B23: Cooling Grid | C23: Primary En. Ratio | D23: PER for solar cooling grid | E23: PER_NRE.CGsol | F23: 0 | G23: 0 | H23: 0 | I23: 0 | J23: 0 | K23: 0 | L23: 0 | M23: 0 | N23: 0 | O23: 0 | P23: 0 | Q23: 0 | R23: 0 | S23: 0.9126365776
B24: Domestic Hot Water | C24: Primary En. Ratio | D24: PER for DHW | E24: PER_NRE.DHW | F24: 1.555707377 | G24: 0 | H24: 0 | I24: 0 | J24: 0 | K24: 0 | L24: 0 | M24: 1.586091829 | N24: 1.517298428 | O24: 0 | P24: 0 | Q24: 0 | R24: 0 | S24: 0.7586134423
B25: Domestic Hot Water | C25: Primary En. Ratio | D25: PER for solar DHW | E25: PER_NRE.DHWsol | F25: 0 | G25: 0 | H25: 0 | I25: 0 | J25: 0 | K25: 0 | L25: 0 | M25: 0 | N25: 0 | O25: 0 | P25: 0 | Q25: 0 | R25: 0 | S25: 2.462103095
B26: Space Heating | C26: Primary En. Ratio | D26: PER for space heating | E26: PER_NRE.SH | F26: 0 | G26: 0 | H26: 0 | I26: 0 | J26: 0 | K26: 0 | L26: 0 | M26: 0 | N26: 0 | O26: 0 | P26: 0 | Q26: 0 | R26: 0 | S26: 0.7586134423
B27: Space Heating | C27: Primary En. Ratio | D27: PER for solar space heating | E27: PER_NRE.SHsol | F27: 0 | G27: 0 | H27: 0 | I27: 0 | J27: 0 | K27: 0 | L27: 0 | M27: 0 | N27: 0 | O27: 0 | P27: 0 | Q27: 0 | R27: 0 | S27: 2.462103095
B28: Heating Grid | C28: Primary En. Ratio | D28: PER for heating grid | E28: PER_NRE.HG | F28: 0 | G28: 0 | H28: 0 | I28: 0 | J28: 0 | K28: 0 | L28: 0 | M28: 0 | N28: 0 | O28: 0 | P28: 0 | Q28: 0 | R28: 0 | S28: 0.7586134419
B29: Heating Grid | C29: Primary En. Ratio | D29: PER for solar heating grid | E29: PER_NRE.HGsol | F29: 0 | G29: 0 | H29: 0 | I29: 0 | J29: 0 | K29: 0 | L29: 0 | M29: 0 | N29: 0 | O29: 0 | P29: 0 | Q29: 0 | R29: 0 | S29: 2.462103128
B31: System | C31: Fractional savings | D31: fractional savings of the system | E31: fsav_NRE.PER.sys | F31: 0.6795816833 | G31: 0 | H31: 0 | I31: 0 | J31: 0 | K31: 0 | L31: 0 | M31: 0.6804128583 | N31: 0.6095758616 | O31: 0 | P31: 0 | Q31: 0 | R31: 0 | S31: 0.9448652132
B32: Cooling | C32: Fractional savings | D32: fractional savings for cooling | E32: fsav_NRE.PER.C | F32: 0.7056522109 | G32: 0 | H32: 0 | I32: 0 | J32: 0 | K32: 0 | L32: 0 | M32: 0.7082730267 | N32: 0.7007161768 | O32: 0 | P32: 0 | Q32: 0 | R32: 0 | S32: -1.58936804
B33: Cooling | C33: Fractional savings | D33: fractional savings for solar cooling | E33: fsav_NRE.PER.Csol | F33: 0 | G33: 0 | H33: 0 | I33: 0 | J33: 0 | K33: 0 | L33: 0 | M33: 0 | N33: 0 | O33: 0 | P33: 0 | Q33: 0 | R33: 0 | S33: -0.8464794679
B34: Cooling Grid | C34: Fractional savings | D34: fractional savings for cooling grid | E34: fsav_NRE.PER.CG | F34: 0 | G34: 0 | H34: 0 | I34: 0 | J34: 0 | K34: 0 | L34: 0 | M34: 0 | N34: 0 | O34: 0 | P34: 0 | Q34: 0 | R34: 0 | S34: -3.143021795
B35: Cooling Grid | C35: Fractional savings | D35: fractional savings for solar cooling grid | E35: fsav_NRE.PER.CGsol | F35: 0 | G35: 0 | H35: 0 | I35: 0 | J35: 0 | K35: 0 | L35: 0 | M35: 0 | N35: 0 | O35: 0 | P35: 0 | Q35: 0 | R35: 0 | S35: -0.9429176503
B36: Domestic Hot Water | C36: Fractional savings | D36: fractional savings for DHW | E36: fsav_NRE.PER.DHW | F36: 0.7317381072 | G36: 0 | H36: 0 | I36: 0 | J36: 0 | K36: 0 | L36: 0 | M36: 0.6119713815 | N36: 0.6131257796 | O36: 0 | P36: 0 | Q36: 0 | R36: 0 | S36: 0.3536435205
B37: Domestic Hot Water | C37: Fractional savings | D37: fractional savings for solar DHW | E37: fsav_NRE.PER.DHWsol | F37: 0 | G37: 0 | H37: 0 | I37: 0 | J37: 0 | K37: 0 | L37: 0 | M37: 0 | N37: 0 | O37: 0 | P37: 0 | Q37: 0 | R37: 0 | S37: 0.8008472046
B38: Space Heating | C38: Fractional savings | D38: fractional savings for space heating | E38: fsav_NRE.PER.SH | F38: 0 | G38: 0 | H38: 0 | I38: 0 | J38: 0 | K38: 0 | L38: 0 | M38: 0 | N38: 0 | O38: 0 | P38: 0 | Q38: 0 | R38: 0 | S38: 0.3367065158
B39: Space Heating | C39: Fractional savings | D39: fractional savings for solar space heating | E39: fsav_NRE.PER.SHsol | F39: 0 | G39: 0 | H39: 0 | I39: 0 | J39: 0 | K39: 0 | L39: 0 | M39: 0 | N39: 0 | O39: 0 | P39: 0 | Q39: 0 | R39: 0 | S39: 0.7956286419
B40: Heating Grid | C40: Fractional savings | D40: fractional savings for heating grid | E40: fsav_NRE.PER.HG | F40: 0 | G40: 0 | H40: 0 | I40: 0 | J40: 0 | K40: 0 | L40: 0 | M40: 0 | N40: 0 | O40: 0 | P40: 0 | Q40: 0 | R40: 0 | S40: 0.3252173321
B41: Heating Grid | C41: Fractional savings | D41: fractional savings for solar heating grid | E41: fsav_NRE.PER.HGsol | F41: 0 | G41: 0 | H41: 0 | I41: 0 | J41: 0 | K41: 0 | L41: 0 | M41: 0 | N41: 0 | O41: 0 | P41: 0 | Q41: 0 | R41: 0 | S41: 0.7920886278
B43: System | C43: SPF Equivalent | D43: SPF Equivalent for system | E43: SPFequ.sys | F43: 4.325353686 | G43: 0 | H43: 0 | I43: 0 | J43: 0 | K43: 0 | L43: 0 | M43: 5.070435918 | N43: 3.577302081 | O43: 0 | P43: 0 | Q43: 0 | R43: 0 | S43: 21.99826636
B44: Cooling | C44: SPF Equivalent | D44: SPF Equivalent for cooling | E44: SPFequ.C | F44: 10.19202491 | G44: 0 | H44: 0 | I44: 0 | J44: 0 | K44: 0 | L44: 0 | M44: 10.283588 | N44: 10.02392969 | O44: 0 | P44: 0 | Q44: 0 | R44: 0 | S44: 1.158583853
B45: Cooling | C45: SPF Equivalent | D45: SPF Equivalent for solar cooling | E45: SPFequ.Csol | F45: 0 | G45: 0 | H45: 0 | I45: 0 | J45: 0 | K45: 0 | L45: 0 | M45: 0 | N45: 0 | O45: 0 | P45: 0 | Q45: 0 | R45: 0 | S45: 1.624713436
B46: Cooling Grid | C46: SPF Equivalent | D46: SPF Equivalent for cooling grid | E46: SPFequ.CG | F46: 0 | G46: 0 | H46: 0 | I46: 0 | J46: 0 | K46: 0 | L46: 0 | M46: 0 | N46: 0 | O46: 0 | P46: 0 | Q46: 0 | R46: 0 | S46: 0.7241091523
B47: Cooling Grid | C47: SPF Equivalent | D47: SPF Equivalent for solar cooling grid | E47: SPFequ.CGsol | F47: 0 | G47: 0 | H47: 0 | I47: 0 | J47: 0 | K47: 0 | L47: 0 | M47: 0 | N47: 0 | O47: 0 | P47: 0 | Q47: 0 | R47: 0 | S47: 1.544069559
B48: Domestic Hot Water | C48: SPF Equivalent | D48: SPF Equivalent for DHW | E48: SPFequ.DHW | F48: 2.632066765 | G48: 0 | H48: 0 | I48: 0 | J48: 0 | K48: 0 | L48: 0 | M48: 2.683473545 | N48: 2.567083518 | O48: 0 | P48: 0 | Q48: 0 | R48: 0 | S48: 1.283481237
B49: Domestic Hot Water | C49: SPF Equivalent | D49: SPF Equivalent for solar DHW | E49: SPFequ.DHWsol | F49: 0 | G49: 0 | H49: 0 | I49: 0 | J49: 0 | K49: 0 | L49: 0 | M49: 0 | N49: 0 | O49: 0 | P49: 0 | Q49: 0 | R49: 0 | S49: 4.165577551
B50: Space Heating | C50: SPF Equivalent | D50: SPF Equivalent for space heating | E50: SPFequ.SH | F50: 0 | G50: 0 | H50: 0 | I50: 0 | J50: 0 | K50: 0 | L50: 0 | M50: 0 | N50: 0 | O50: 0 | P50: 0 | Q50: 0 | R50: 0 | S50: 1.283481237
B51: Space Heating | C51: SPF Equivalent | D51: SPF Equivalent for solar space heating | E51: SPFequ.SHsol | F51: 0 | G51: 0 | H51: 0 | I51: 0 | J51: 0 | K51: 0 | L51: 0 | M51: 0 | N51: 0 | O51: 0 | P51: 0 | Q51: 0 | R51: 0 | S51: 4.165577551
B52: Heating Grid | C52: SPF Equivalent | D52: SPF Equivalent for heating grid | E52: SPFequ.HG | F52: 0 | G52: 0 | H52: 0 | I52: 0 | J52: 0 | K52: 0 | L52: 0 | M52: 0 | N52: 0 | O52: 0 | P52: 0 | Q52: 0 | R52: 0 | S52: 1.283481236
B53: Heating Grid | C53: SPF Equivalent | D53: SPF Equivalent for solar heating grid | E53: SPFequ.HGsol | F53: 0 | G53: 0 | H53: 0 | I53: 0 | J53: 0 | K53: 0 | L53: 0 | M53: 0 | N53: 0 | O53: 0 | P53: 0 | Q53: 0 | R53: 0 | S53: 4.165577412

Sheet Labelling
A2: System | F2: Cooling | K2: Cooling grid | P2: Domestic hot water | U2: Space heating | Z2: Heating grid
B30: System | D30: 67.28415859 | F30: Solar cooling | K30: Solar cooling grid | P30: Solar domestic hot water | U30: Solar space heating | Z30: Solar heating grid
B31: Cooling | D31: 81.60347261
B32: Solar Cooling | D32: 0
B33: Cooling Grid | D33: 0
B34: Solar Cooling Grid | D34: 0
B35: Domestic Hot Water | D35: 38.41219187
B36: Solar DHW | D36: 0
B37: Space Heating | D37: 0
B38: Solar Space Heating | D38: 0
B39: Heating Grid | D39: 0
B40: Solar Heating Grid | D40: 0

Sheet Eco_base
B2: OVERVIEW economic INPUTS
B4: drop downs menu | C4: please select an option, some option are just for information, others influence the result signifcantly!
B5: value to be filled in | C5: please fill in the certain value, ALL values are needed!
B6: T53 Standard | C6: Input Values to the T53 Standard calculation can not be changed. The were defined and agreed during the work on Task 53
B7: specific value | C7: Input values can be adopted at different highlighted position in this Tool. This allowes a country or project specific calculation of both technical and economic key figures
B8: editing specific values | C8: cell to edit the specific value
H9: 0.7 | I9: 0.8 | J9: 0.9 | K9: 1 | L9: 1.1 | M9: 1.2 | N9: 1.3
B10: Description | C10: Unit | D10: Abbreviation | F10: T53 Standard | G10: specific calculation
B11: Economics
G13: =HLOOKUP(INPUTS!$E$17,Eco_base!$I$13:$R$49,ROW()-12,FALSE) -> Austria (Vienna) | I13: =Conversion!B36 -> Austria (Vienna) | J13: =Conversion!B37 -> Australia (New Castle) | K13: =Conversion!B38 -> France (Perpignon) | L13: =Conversion!B39 -> Germany (Munich) | M13: =Conversion!B40 -> Italy (Rome) | N13: =Conversion!B41 -> P.R. China (Beijing) | O13: =Conversion!B42 -> Spain (Madrid) | P13: =Conversion!B43 -> Singapore | Q13: =Conversion!B44 -> x1 | R13: =Conversion!B45 -> x2
B14: Period under consideration | C14: a | D14: N | F14: 25 | G14: =HLOOKUP(INPUTS!$E$17,Eco_base!$I$13:$R$49,ROW()-12,FALSE) -> 25 | I14: 25 | J14: 25 | K14: 25 | L14: 25 | M14: 20 | N14: 25 | O14: 25 | P14: 25 | Q14: 25 | R14: 25
B15: Credit period | C15: a | D15: NL | F15: 10 | G15: =HLOOKUP(INPUTS!$E$17,Eco_base!$I$13:$R$49,ROW()-12,FALSE) -> 10 | I15: 10 | J15: 10 | K15: 10 | L15: 10 | M15: 10 | N15: 10 | O15: 10 | P15: 10 | Q15: 10 | R15: 10
B16: Inflation rate | C16: % | D16: i | F16: 0.03 | G16: =HLOOKUP(INPUTS!$E$17,Eco_base!$I$13:$R$49,ROW()-12,FALSE) -> 0.022 | I16: 0.022 | J16: 0.028 | K16: 0.022 | L16: 0.022 | M16: 0.023 | N16: 0.028 | O16: 0.022 | P16: 0.028 | Q16: 0.03 | R16: 0.028
B17: Market discount rate | C17: % | D17: d | F17: 0.03 | G17: =HLOOKUP(INPUTS!$E$17,Eco_base!$I$13:$R$49,ROW()-12,FALSE) -> 0.055 | H17: 0.7 | I17: 0.055 | J17: 0.028 | K17: 0.055 | L17: 0.055 | M17: 0.023 | N17: 0.028 | O17: 0.055 | P17: 0.028 | Q17: 0.03 | R17: 0.028
B18: Credit interest rate | C18: % | D18: m | F18: 0.03 | G18: =HLOOKUP(INPUTS!$E$17,Eco_base!$I$13:$R$49,ROW()-12,FALSE) -> 0.03 | I18: 0.03 | J18: 0.03 | K18: 0.03 | L18: 0.03 | M18: 0.03 | N18: 0.03 | O18: 0.03 | P18: 0.03 | Q18: 0.03 | R18: 0.03
B19: Inflation rate for energy prices electricity | C19: % | D19: iee | F19: 0.03 | G19: =HLOOKUP(INPUTS!$E$17,Eco_base!$I$13:$R$49,ROW()-12,FALSE) -> 0.03 | I19: 0.03 | J19: 0.02 | K19: 0.03 | L19: 0.03 | M19: 0.081 | N19: 0.02 | O19: 0.03 | P19: 0.02 | Q19: 0.03 | R19: 0.02
B20: Inflation rate for energy prices gas | C20: % | D20: ieg | F20: 0.03 | G20: =HLOOKUP(INPUTS!$E$17,Eco_base!$I$13:$R$49,ROW()-12,FALSE) -> 0.03 | I20: 0.03 | J20: 0.03 | K20: 0.03 | L20: 0.03 | M20: 0.083 | N20: 0.03 | O20: 0.03 | P20: 0.03 | Q20: 0.03 | R20: 0.03
B21: Equity ratio | C21: % | D21: fL | F21: 0 | G21: =HLOOKUP(INPUTS!$E$17,Eco_base!$I$13:$R$49,ROW()-12,FALSE) -> 0 | I21: 0 | J21: 0.1 | K21: 0 | L21: 0 | M21: 0 | N21: 0 | O21: 0 | P21: 0 | Q21: 0 | R21: 0.1
B22: Public fundings rate | C22: % | D22: p | F22: 0 | G22: =HLOOKUP(INPUTS!$E$17,Eco_base!$I$13:$R$49,ROW()-12,FALSE) -> 0 | I22: 0 | J22: 0.1 | K22: 0 | L22: 0 | M22: 0 | N22: 0 | O22: 0 | P22: 0 | Q22: 0 | R22: 0
B24: Consumption based prices for electricity, energy carrier and water
B25: Electricity | H25: 0.7 | I25: 0.8 | J25: 0.9 | K25: 1 | L25: 1.1 | M25: 1.2 | N25: 1.3
B26: Electricity consumption | C26: €/kWh | D26: Cel.c | F26: 0.1 | G26: =HLOOKUP(INPUTS!$E$17,Eco_base!$I$13:$R$49,ROW()-12,FALSE) -> 0.09 | I26: 0.09 | J26: 0.2 | K26: 0.14 | L26: 0.2 | M26: 0.22 | N26: 0.1 | O26: 0.1 | P26: 0.1 | Q26: 0.18 | R26: 0.2
B27: Electricity peak power | C27: €/(kW.a) | D27: CPel | F27: 80 | G27: =HLOOKUP(INPUTS!$E$17,Eco_base!$I$13:$R$49,ROW()-12,FALSE) -> 80 | I27: 80 | J27: 80 | K27: 0 | L27: 80 | M27: 0 | N27: 80 | O27: 80 | P27: 80 | Q27: 0 | R27: 80
B28: Feed-in tariff for CHP (only 15 years) | C28: €/kWh | D28: CCHP | F28: =0.03225+IF(INPUTS!E31=Conversion!C40,IF(INPUTS!E33<250,0.18275,IF(INPUTS!E33<500,0.15705,IF(INPUTS!E33<750,0.12115,0.11705))))*INPUTS!F31+IF(INPUTS!E34=Conversion!C40,IF(INPUTS!E36<250,0.18275,IF(INPUTS!E36<500,0.15705,IF(INPUTS!E36<750,0.12115,0.11705))))*INPUTS!F34 -> 0.03225 | G28: =HLOOKUP(INPUTS!$E$17,Eco_base!$I$13:$R$49,ROW()-12,FALSE) -> 0.03225 | I28: =0.03225+IF(INPUTS!E31=Conversion!C40,IF(INPUTS!E33<250,0.18275,IF(INPUTS!E33<500,0.15705,IF(INPUTS!E33<750,0.12115,0.11705))))*INPUTS!F31+IF(INPUTS!E34=Conversion!C40,IF(INPUTS!E36<250,0.18275,IF(INPUTS!E36<500,0.15705,IF(INPUTS!E36<750,0.12115,0.11705))))*INPUTS!F34 -> 0.03225 | J28: =0.03225+IF(INPUTS!E31=Conversion!C40,IF(INPUTS!E33<250,0.18275,IF(INPUTS!E33<500,0.15705,IF(INPUTS!E33<750,0.12115,0.11705))))*INPUTS!F31+IF(INPUTS!E34=Conversion!C40,IF(INPUTS!E36<250,0.18275,IF(INPUTS!E36<500,0.15705,IF(INPUTS!E36<750,0.12115,0.11705))))*INPUTS!F34 -> 0.03225 | K28: =0.03225+IF(INPUTS!E31=Conversion!C40,IF(INPUTS!E33<250,0.18275,IF(INPUTS!E33<500,0.15705,IF(INPUTS!E33<750,0.12115,0.11705))))*INPUTS!F31+IF(INPUTS!E34=Conversion!C40,IF(INPUTS!E36<250,0.18275,IF(INPUTS!E36<500,0.15705,IF(INPUTS!E36<750,0.12115,0.11705))))*INPUTS!F34 -> 0.03225 | L28: =0.03225+IF(INPUTS!E31=Conversion!C40,IF(INPUTS!E33<250,0.18275,IF(INPUTS!E33<500,0.15705,IF(INPUTS!E33<750,0.12115,0.11705))))*INPUTS!F31+IF(INPUTS!E34=Conversion!C40,IF(INPUTS!E36<250,0.18275,IF(INPUTS!E36<500,0.15705,IF(INPUTS!E36<750,0.12115,0.11705))))*INPUTS!F34 -> 0.03225 | M28: =0.03225+IF(INPUTS!E31=Conversion!C40,IF(INPUTS!E33<250,0.18275,IF(INPUTS!E33<500,0.15705,IF(INPUTS!E33<750,0.12115,0.11705))))*INPUTS!F31+IF(INPUTS!E34=Conversion!C40,IF(INPUTS!E36<250,0.18275,IF(INPUTS!E36<500,0.15705,IF(INPUTS!E36<750,0.12115,0.11705))))*INPUTS!F34 -> 0.03225 | N28: =0.03225+IF(INPUTS!E31=Conversion!C40,IF(INPUTS!E33<250,0.18275,IF(INPUTS!E33<500,0.15705,IF(INPUTS!E33<750,0.12115,0.11705))))*INPUTS!F31+IF(INPUTS!E34=Conversion!C40,IF(INPUTS!E36<250,0.18275,IF(INPUTS!E36<500,0.15705,IF(INPUTS!E36<750,0.12115,0.11705))))*INPUTS!F34 -> 0.03225 | O28: 0.03225 | P28: =0.03225+IF(INPUTS!E31=Conversion!C40,IF(INPUTS!E33<250,0.18275,IF(INPUTS!E33<500,0.15705,IF(INPUTS!E33<750,0.12115,0.11705))))*INPUTS!F31+IF(INPUTS!E34=Conversion!C40,IF(INPUTS!E36<250,0.18275,IF(INPUTS!E36<500,0.15705,IF(INPUTS!E36<750,0.12115,0.11705))))*INPUTS!F34 -> 0.03225 | Q28: 0.05 | R28: =0.03225+IF(INPUTS!E31=Conversion!C40,IF(INPUTS!E33<250,0.18275,IF(INPUTS!E33<500,0.15705,IF(INPUTS!E33<750,0.12115,0.11705))))*INPUTS!F31+IF(INPUTS!E34=Conversion!C40,IF(INPUTS!E36<250,0.18275,IF(INPUTS!E36<500,0.15705,IF(INPUTS!E36<750,0.12115,0.11705))))*INPUTS!F34 -> 0.03225
B29: Tariff duration for CHP | C29: a | D29: CCHP_a | F29: 15 | G29: =HLOOKUP(INPUTS!$E$17,Eco_base!$I$13:$R$49,ROW()-12,FALSE) -> 15 | I29: 15 | J29: 15 | K29: 15 | L29: 15 | M29: 15 | N29: 15 | O29: 15 | P29: 15 | Q29: 15 | R29: 15
B30: Feed-in tariff for PV (only 13 years) | C30: €/kWh | D30: CPV | F30: =IF(AND(INPUTS!E28>5,INPUTS!E28<200),0.115,0.03225) -> 0.115 | G30: =HLOOKUP(INPUTS!$E$17,Eco_base!$I$13:$R$49,ROW()-12,FALSE) -> 0.115 | I30: =IF(AND(INPUTS!E28>5,INPUTS!E28<200),0.115,0.03225) -> 0.115 | J30: =IF(AND(INPUTS!E28>5,INPUTS!E28<200),0.115,0.03225) -> 0.115 | K30: =IF(AND(INPUTS!E28>5,INPUTS!E28<200),0.115,0.03225) -> 0.115 | L30: =IF(AND(INPUTS!E28>5,INPUTS!E28<200),0.115,0.03225) -> 0.115 | M30: =IF(AND(INPUTS!E28>5,INPUTS!E28<200),0.115,0.03225) -> 0.115 | N30: =IF(AND(INPUTS!E28>5,INPUTS!E28<200),0.115,0.03225) -> 0.115 | O30: 0.03225 | P30: =IF(AND(INPUTS!E28>5,INPUTS!E28<200),0.115,0.03225) -> 0.115 | Q30: 0.05 | R30: =IF(AND(INPUTS!E28>5,INPUTS!E28<200),0.115,0.03225) -> 0.115
B31: Tariff duration for PV | C31: a | D31: CPV_a | F31: 13 | G31: =HLOOKUP(INPUTS!$E$17,Eco_base!$I$13:$R$49,ROW()-12,FALSE) -> 13 | I31: 13 | J31: 13 | K31: 13 | L31: 13 | M31: 13 | N31: 13 | O31: 13 | P31: 13 | Q31: 13 | R31: 13
B32: Feed-in without subsidies | C32: €/kWh | D32: Cfeed-in w/o sub | F32: 0.03225 | G32: =HLOOKUP(INPUTS!$E$17,Eco_base!$I$13:$R$49,ROW()-12,FALSE) -> 0.03225 | I32: 0.03225 | J32: 0.03225 | K32: 0.03225 | L32: 0.03225 | M32: 0.03225 | N32: 0.03225 | O32: 0.03225 | P32: 0.03225 | Q32: 0.05 | R32: 0.03225
B33: Energy Carrier | H33: 0.7
B34: Natural gas consumption | C34: €/kWh | D34: Cgas.c | F34: 0.05 | G34: =HLOOKUP(INPUTS!$E$17,Eco_base!$I$13:$R$49,ROW()-12,FALSE) -> 0.045 | I34: 0.045 | J34: 0.05 | K34: 0.075 | L34: 0.05 | M34: 0.087 | N34: 0.02 | O34: 0.05 | P34: 0.02 | Q34: 0.045 | R34: 0.05
B35: Natural gas annual fix | C35: €/a | D35: Cgas.a | F35: 70 | G35: =HLOOKUP(INPUTS!$E$17,Eco_base!$I$13:$R$49,ROW()-12,FALSE) -> 70 | I35: 70 | J35: 45 | K35: 0 | L35: 45 | M35: 0 | N35: 70 | O35: 70 | P35: 70 | Q35: 70 | R35: 45
B36: Biogas cosumption | C36: €/kWh | D36: Cbiogas.c | F36: 0.0696132 | G36: =HLOOKUP(INPUTS!$E$17,Eco_base!$I$13:$R$49,ROW()-12,FALSE) -> 0.0696132 | I36: 0.0696132 | J36: 0.0696132 | K36: 0.0696132 | L36: 0.0696132 | M36: 0.0696132 | N36: 0.0696132 | O36: 0.0696132 | P36: 0.0696132 | Q36: 0.0696132 | R36: 0.0696132
B37: Biogas annual fix | C37: €/a | D37: Cbiogas.a | F37: 170.9316 | G37: =HLOOKUP(INPUTS!$E$17,Eco_base!$I$13:$R$49,ROW()-12,FALSE) -> 170.9316 | I37: 170.9316 | J37: 170.9316 | K37: 170.9316 | L37: 170.9316 | M37: 170.9316 | N37: 170.9316 | O37: 170.9316 | P37: 170.9316 | Q37: 170.9316 | R37: 170.9316
B38: Pellets consumption | C38: €/kWh | D38: Cpellets.c | F38: 0.05 | G38: =HLOOKUP(INPUTS!$E$17,Eco_base!$I$13:$R$49,ROW()-12,FALSE) -> 0.05 | I38: 0.05 | J38: 0.05 | K38: 0.059 | L38: 0.05 | M38: 0.05 | N38: 0.05 | O38: 0.05 | P38: 0.05 | Q38: 0.05 | R38: 0.05
B39: Pellets annual | C39: €/a | D39: Cpellets.a | F39: 40 | G39: =HLOOKUP(INPUTS!$E$17,Eco_base!$I$13:$R$49,ROW()-12,FALSE) -> 40 | I39: 40 | J39: 40 | K39: 0 | L39: 40 | M39: 0 | N39: 40 | O39: 40 | P39: 40 | Q39: 40 | R39: 40
B40: Oil consumption | C40: €/kWh | D40: Coil.c | F40: 0.0556 | G40: =HLOOKUP(INPUTS!$E$17,Eco_base!$I$13:$R$49,ROW()-12,FALSE) -> 0.0556 | I40: 0.0556 | J40: 0.0556 | K40: 0.0556 | L40: 0.0556 | M40: 0.0556 | N40: 0.0556 | O40: 0.0556 | P40: 0.0556 | Q40: 0.0556 | R40: 0.06
B41: Oil annual | C41: €/a | D41: Coil.a | F41: 167 | G41: =HLOOKUP(INPUTS!$E$17,Eco_base!$I$13:$R$49,ROW()-12,FALSE) -> 0.8 | H41: 0.7 | I41: 0.8 | J41: 0.9 | K41: 1 | L41: 1.1 | M41: 1.2 | N41: 1.3 | O41: 167 | P41: 167 | Q41: 167 | R41: 0
B42: District heating consumption | C42: €/kWh | D42: CDH.c | F42: =0.0686 -> 0.0686 | G42: =HLOOKUP(INPUTS!$E$17,Eco_base!$I$13:$R$49,ROW()-12,FALSE) -> 0.08232 | I42: =0.0686*1.2 -> 0.08232 | J42: =0.0686*1.2 -> 0.08232 | K42: 0.08232 | L42: 0.08232 | M42: 0.08232 | N42: 0.08232 | O42: 0.0686 | P42: 0.08232 | Q42: 0.08232 | R42: 0.08232
B43: District heating annual | C43: €/a | D43: CDH.a | F43: =IF(INPUTS!E31=Conversion!C47,(11.03+1.782*INPUTS!E33)*12*1.2)+IF(INPUTS!E34=Conversion!C47,(11.03+1.782*INPUTS!E36)*12*1.2,0) -> 0 | G43: =HLOOKUP(INPUTS!$E$17,Eco_base!$I$13:$R$49,ROW()-12,FALSE) -> 0 | I43: =IF(INPUTS!$E$31=Conversion!$C$47,(11.03+1.782*INPUTS!$E$33)*12*1.2,IF(INPUTS!$E$34=Conversion!$C$47,(11.03+1.782*INPUTS!$E$36)*12*1.2,0)) -> 0 | J43: =IF(INPUTS!$E$31=Conversion!$C$47,(11.03+1.782*INPUTS!$E$33)*12*1.2,IF(INPUTS!$E$34=Conversion!$C$47,(11.03+1.782*INPUTS!$E$36)*12*1.2,0)) -> 0 | K43: =IF(INPUTS!$E$31=Conversion!$C$47,(11.03+1.782*INPUTS!$E$33)*12*1.2,IF(INPUTS!$E$34=Conversion!$C$47,(11.03+1.782*INPUTS!$E$36)*12*1.2,0)) -> 0 | L43: =IF(INPUTS!$E$31=Conversion!$C$47,(11.03+1.782*INPUTS!$E$33)*12*1.2,IF(INPUTS!$E$34=Conversion!$C$47,(11.03+1.782*INPUTS!$E$36)*12*1.2,0)) -> 0 | M43: =IF(INPUTS!$E$31=Conversion!$C$47,(11.03+1.782*INPUTS!$E$33)*12*1.2,IF(INPUTS!$E$34=Conversion!$C$47,(11.03+1.782*INPUTS!$E$36)*12*1.2,0)) -> 0 | N43: =IF(INPUTS!$E$31=Conversion!$C$47,(11.03+1.782*INPUTS!$E$33)*12*1.2,IF(INPUTS!$E$34=Conversion!$C$47,(11.03+1.782*INPUTS!$E$36)*12*1.2,0)) -> 0 | O43: 0 | P43: =IF(INPUTS!$E$31=Conversion!$C$47,(11.03+1.782*INPUTS!$E$33)*12*1.2,IF(INPUTS!$E$34=Conversion!$C$47,(11.03+1.782*INPUTS!$E$36)*12*1.2,0)) -> 0 | Q43: 0 | R43: =IF(INPUTS!$E$31=Conversion!$C$47,(11.03+1.782*INPUTS!$E$33)*12*1.2,IF(INPUTS!$E$34=Conversion!$C$47,(11.03+1.782*INPUTS!$E$36)*12*1.2,0)) -> 0
B44: District cooling consumption | C44: €/kWh | D44: CDC.c | F44: =0.0686*1.5 -> 0.1029 | G44: =HLOOKUP(INPUTS!$E$17,Eco_base!$I$13:$R$49,ROW()-12,FALSE) -> 0.12348 | I44: =0.0686*1.2*1.5 -> 0.12348 | J44: =0.0686*1.2*1.5 -> 0.12348 | K44: 0.12348 | L44: 0.12348 | M44: 0.12348 | N44: 0.12348 | O44: 0.1029 | P44: 0.12348 | Q44: 0.12348 | R44: 0.12348
B45: District cooling annual | C45: €/a | D45: CDC.a | F45: =IF(INPUTS!E41=Conversion!F44,(11.03+1.782*INPUTS!E41)*12*1.2,0)+IF(INPUTS!E43=Conversion!F44,(11.03+1.782*INPUTS!E43)*12*1.2,0) -> 0 | G45: =HLOOKUP(INPUTS!$E$17,Eco_base!$I$13:$R$49,ROW()-12,FALSE) -> 0 | I45: =IF(INPUTS!$E$31=Conversion!$C$47,(11.03+1.782*INPUTS!$E$33)*12*1.2,IF(INPUTS!$E$34=Conversion!$C$47,(11.03+1.782*INPUTS!$E$36)*12*1.2,0)) -> 0 | J45: =IF(INPUTS!$E$31=Conversion!$C$47,(11.03+1.782*INPUTS!$E$33)*12*1.2,IF(INPUTS!$E$34=Conversion!$C$47,(11.03+1.782*INPUTS!$E$36)*12*1.2,0)) -> 0 | K45: =IF(INPUTS!$E$31=Conversion!$C$47,(11.03+1.782*INPUTS!$E$33)*12*1.2,IF(INPUTS!$E$34=Conversion!$C$47,(11.03+1.782*INPUTS!$E$36)*12*1.2,0)) -> 0 | L45: =IF(INPUTS!$E$31=Conversion!$C$47,(11.03+1.782*INPUTS!$E$33)*12*1.2,IF(INPUTS!$E$34=Conversion!$C$47,(11.03+1.782*INPUTS!$E$36)*12*1.2,0)) -> 0 | M45: =IF(INPUTS!$E$31=Conversion!$C$47,(11.03+1.782*INPUTS!$E$33)*12*1.2,IF(INPUTS!$E$34=Conversion!$C$47,(11.03+1.782*INPUTS!$E$36)*12*1.2,0)) -> 0 | N45: =IF(INPUTS!$E$31=Conversion!$C$47,(11.03+1.782*INPUTS!$E$33)*12*1.2,IF(INPUTS!$E$34=Conversion!$C$47,(11.03+1.782*INPUTS!$E$36)*12*1.2,0)) -> 0 | O45: 0 | P45: =IF(INPUTS!$E$31=Conversion!$C$47,(11.03+1.782*INPUTS!$E$33)*12*1.2,IF(INPUTS!$E$34=Conversion!$C$47,(11.03+1.782*INPUTS!$E$36)*12*1.2,0)) -> 0 | Q45: 0 | R45: =IF(INPUTS!$E$31=Conversion!$C$47,(11.03+1.782*INPUTS!$E$33)*12*1.2,IF(INPUTS!$E$34=Conversion!$C$47,(11.03+1.782*INPUTS!$E$36)*12*1.2,0)) -> 0
B46: Feed-in tariff for district heating | C46: €/kWh | D46: CfiT_DH | F46: 0.04 | G46: =HLOOKUP(INPUTS!$E$17,Eco_base!$I$13:$R$49,ROW()-12,FALSE) -> 0.04 | I46: 0.04 | J46: 0.04 | K46: 0.04 | L46: 0.04 | M46: 0.04 | N46: 0.04 | O46: 0.04 | P46: 0.04 | Q46: 0.04 | R46: 0.04
B47: Feed-in tariff for district cooling | C47: €/kWh | D47: CfiT_DC | F47: 0.06 | G47: =HLOOKUP(INPUTS!$E$17,Eco_base!$I$13:$R$49,ROW()-12,FALSE) -> 0.06 | I47: 0.06 | J47: 0.06 | K47: 0.06 | L47: 0.06 | M47: 0.06 | N47: 0.06 | O47: 0.06 | P47: 0.06 | Q47: 0.06 | R47: 0.06
B48: Water consumption
B49: Water consumption | C49: €/m3 | D49: CWA.c | F49: 2.5 | G49: =HLOOKUP(INPUTS!$E$17,Eco_base!$I$13:$R$49,ROW()-12,FALSE) -> 1.2 | H49: 0.7 | I49: 1.2 | J49: 2.2 | K49: 3 | L49: 2.2 | M49: 1.62 | N49: 0.66 | O49: 2.5 | P49: 0.66 | Q49: 1.2 | R49: 2.2
F51: Investment-material & installation | J51: lifetime | M51: Maintenance, service and inspection % of invest
A52: Source | B52: Description | G52: T53 Standard | H52: specific | J52: T53 Standard | K52: specific | M52: T53 Standard | N52: specific
D53: Cost per unit | E53: Decreasing coefficient | G53: Economy of scale | H53: user defined costs/unit | J53: years acc. to VDI 2067 | K53: user defined years | M53: % of invest acc. to VDI 2067 | N53: user defined % of invest
B54: Solar collectors (SC) | D54: c (€/m²) | E54: e (-) | G54: Csol/m² (€/m²) | H54: (€/m²) | J54: (a) | K54: (a) | M54: (-) | N54: (-)
A55: 1 | B55: Flat plate collectors (FPC) | D55: 400 | E55: -0.5 | G55: =IF(INPUTS!$E$25=Conversion!$D$36,0,210+Eco_base!D$55*INPUTS!$E$26^(Eco_base!E$55)) -> 0 | H55: 180 | J55: 20 | K55: 26 | M55: 0.015 | N55: 0.015
A56: 1 | B56: Evacuated tube collectors (ETC) | D56: 740 | E56: -0.32 | G56: =IF(INPUTS!$E$25=Conversion!$D$36,0,210+Eco_base!D$56*INPUTS!$E$26^(Eco_base!E$56)) -> 0 | H56: 424 | J56: 18 | K56: 18 | M56: 0.015 | N56: 0.015
B57: specific SC | H57: 500 | I57: 0.8 | J57: 18 | K57: 18 | L57: 1.1 | M57: 0.02 | N57: 0.02
B59: Solar collectors auxiliaries | D59: c (€/m²) | E59: e (-) | G59: Csol/m² (€/m²)
A60: 2 | B60: Flat plate collectors (FPC) | D60: 815 | E60: -0.3553 | G60: =IF(INPUTS!$E$25=Conversion!$D$36,0,Eco_base!D$60*INPUTS!$E$26^(Eco_base!E$60)) -> 0 | H60: 100 | J60: 20 | K60: 20 | M60: 0.025 | N60: 0.02
A61: 2 | B61: Evacuated tube collectors (ETC) | D61: 5500 | E61: -0.696 | G61: =IF(INPUTS!$E$25=Conversion!$D$36,0,Eco_base!D$61*INPUTS!$E$26^(Eco_base!E$61)) -> 0 | H61: 300 | J61: 20 | K61: 20 | M61: 0.025 | N61: 0.025
B62: specific SC | H62: 500 | J62: 20 | K62: 20 | M62: 0.025 | N62: 0.025
B64: PV collectors | D64: c (€/kWp) | E64: e (-) | G64: Csol/kW (€/kWp)
A65: 3 | B65: PV | D65: 1830.4 | E65: -0.071 | G65: =IF(INPUTS!$E$27=Conversion!$E$36,0,D65*INPUTS!E28^(E65)) -> 1542.865527 | H65: 1650 | I65: 0.8 | J65: 20 | K65: 20 | L65: 1.1 | M65: 0.02 | N65: 0.02
B66: specific PV | H66: 1500 | J66: 20 | K66: 20 | M66: 0.02 | N66: 0.015
B68: Auxiliary heating system | D68: c (€/kW) | E68: e (-) | G68: CAux/kW (€/kW)
A69: 4 | B69: Natural Gas | C69: =IF(INPUTS!$E$31=B69,1,0) -> 0 | D69: 600 | E69: -0.289 | F69: Primary HB | G69: =IF(C69=0,0,$D$69*INPUTS!$E$33^($E$69)) -> 0 | H69: 100 | J69: 15 | K69: 15 | M69: 0.035 | N69: 0.035
C70: =IF(INPUTS!$E$68=B69,1,0) -> 0 | F70: Secondary HB | G70: =IF(C70=0,0,$D$69*INPUTS!$E$36^($E$69)) -> 0
C71: =IF(AND(INPUTS!E31=Conversion!C36,INPUTS!E34=Conversion!C36),0,IF(INPUTS!$E$68>0,1,0)) -> 1 | F71: Reference | G71: =IF(C71=0,0,$D$69*(INPUTS!$E$68)^($E$69)) -> 303.2758687
B73: Condensing Boiler | C73: =IF(INPUTS!$E$31=B73,1,0) -> 0 | D73: 357.93 | E73: -0.392 | F73: Primary HB | G73: =IF(C73=0,0,D73*INPUTS!$E$33^(E73)) -> 0 | H73: 100 | I73: 0.8 | J73: 15 | K73: 15 | L73: 1.1 | M73: 0.04 | N73: 0.04
C74: =IF(INPUTS!$E$34=B73,1,0) -> 0 | F74: Secondary HB | G74: =IF(C74=0,0,D73*INPUTS!$E$36^(E73)) -> 0
F75: Reference | G75: =IF(INPUTS!$E$67=B73,D73*(INPUTS!$E$68)^(E73),0) -> 0
B77: Oil Boiler | C77: =IF(INPUTS!$E$31=B77,1,0) -> 0 | D77: 4287.5 | E77: -0.984 | F77: Primary HB | G77: =IF(C77=0,0,D77*INPUTS!$E$33^(E77)) -> 0 | H77: 200 | J77: 12 | K77: 12 | M77: 0.12 | N77: 0.12
C78: =IF(INPUTS!$E$34=B77,1,0) -> 0 | F78: Secondary HB | G78: =IF(C78=0,0,D77*INPUTS!$E$36^(E77)) -> 0
F79: Reference | G79: =IF(INPUTS!$E$67=B77,D77*(INPUTS!$E$68)^(E77),0) -> 0
B81: Electric Heater | C81: =IF(INPUTS!$E$31=B81,1,0) -> 0 | D81: 154.8 | E81: -0.674 | F81: Primary HB | G81: =IF(C81=0,0,D81*INPUTS!$E$33^E81) -> 0 | H81: 50 | I81: 0.8000000119 | J81: 15 | K81: 15 | L81: 1.100000024 | M81: 0.02 | N81: 0.02
C82: =IF(INPUTS!$E$34=B81,1,0) -> 0 | F82: Secondary HB | G82: =IF(C82=0,0,D81*INPUTS!$E$36^E81) -> 0
F83: Reference | G83: =IF(INPUTS!$E$67=B81,D81*(INPUTS!$E$68)^(E81),0) -> 0
A85: 5 | B85: Pellets | C85: =IF(INPUTS!$E$31=B85,1,0) -> 0 | D85: 2231 | E85: -0.488 | F85: Primary HB | G85: =IF(C85=0,0,D85*INPUTS!$E$33^E85) -> 0 | H85: 170 | J85: 15 | K85: 15 | M85: 0.06 | N85: 0.06
C86: =IF(INPUTS!$E$34=B85,1,0) -> 0 | F86: Secondary HB | G86: =IF(C86=0,0,D85*INPUTS!$E$36^E85) -> 0
F87: Reference | G87: =IF(INPUTS!$E$67=B85,D85*(INPUTS!$E$68)^(E85),0) -> 0
B89: Heat Pump | C89: =IF(INPUTS!$E$31=B89,1,0) -> 1 | D89: 380.11 | E89: -0.183 | F89: Primary HB | G89: =IF(C89=0,0,D89*INPUTS!$E$33^E89) -> 246.7620229 | H89: 420 | J89: 18 | K89: 15 | M89: 0.025 | N89: 0.03
C90: =IF(INPUTS!$E$34=B89,1,0) -> 0 | F90: Secondary HB | G90: =IF(C90=0,0,D89*INPUTS!$E$36^E89) -> 0
F91: Reference | G91: =IF(INPUTS!$E$67=B89,D89*(INPUTS!E72)^(E89),0) -> 0
B93: Reversible Heat Pump | C93: =IF(INPUTS!$E$31=B93,1,0) -> 0 | D93: 2173.3 | E93: -0.439 | F93: Primary HB | G93: =IF(INPUTS!$E$31=B93,D93*INPUTS!$E$33^E93,0) -> 0 | H93: 660 | J93: 18 | K93: 18 | M93: 0.025 | N93: 0.025
C94: =IF(INPUTS!$E$34=B93,1,0) -> 0 | F94: Secondary HB | G94: =IF(INPUTS!$E$34=Eco_base!B93,D93*INPUTS!$E$36^E93,0) -> 0
C95: =IF(INPUTS!$E$40=B93,1,0) -> 0 | F95: Primary cooling | G95: =IF(INPUTS!$E$40=B93,D93*INPUTS!$E$41^E93,0) -> 0
C96: =IF(INPUTS!$E$42=B93,1,0) -> 0 | F96: Secondary cooling | G96: =IF(INPUTS!$E$42=B93,D93*INPUTS!$E$43^E93,0) -> 0
F97: Reference | G97: =IF(INPUTS!$E$67=B93,D93*(INPUTS!$E$68)^(E93),0) -> 0 | H97: 0.7
B99: Absorption Heat Pump (AHP) | C99: =IF(AND(INPUTS!$E$31=B99,INPUTS!$E$40=B99),1,IF(OR(INPUTS!$E$31=B99,INPUTS!$E$40=B99),1,0)) -> 0 | D99: =D118 -> 3700 | E99: =E118 -> -0.45 | F99: Primary HB | G99: =IF(C99=0,0,D99*INPUTS!$E$33^E99) -> 0 | H99: 1000 | J99: 18 | K99: 18 | M99: 0.025 | N99: 0.025
C100: =IF(AND(INPUTS!$E$34=B99,INPUTS!$E$42=B99),1,IF(OR(INPUTS!$E$34=B99,INPUTS!$E$42=B99),1,0)) -> 0 | F100: Secondary HB | G100: =IF(C100=0,0,D99*INPUTS!$E$36^E99) -> 0
F101: Reference | G101: =IF(INPUTS!$E$67=B99,D99*(INPUTS!$E$68)^(E99),0) -> 0
B103: Reversible AHP | C103: =IF(INPUTS!$E$31=B103,1,0) -> 0 | D103: =D118 -> 3700 | E103: =E118 -> -0.45 | F103: Primary HB | G103: =IF(INPUTS!$E$31=B103,D103*INPUTS!$E$33^E103,0) -> 0 | H103: 1000 | J103: 18 | K103: 18 | M103: 0.025 | N103: 0.025
C104: =IF(INPUTS!$E$34=B103,1,0) -> 0 | F104: Secondary HB | G104: =IF(INPUTS!$E$34=Eco_base!B103,D103*INPUTS!$E$36^E103,0) -> 0
C105: =IF(INPUTS!$E$40=B103,1,0) -> 0 | F105: Primary cooling | G105: =IF(INPUTS!$E$40=B103,D103*INPUTS!$E$41^E103,0) -> 0 | H105: 0.7
C106: =IF(INPUTS!$E$42=B103,1,0) -> 0 | F106: Secondary cooling | G106: =IF(INPUTS!$E$42=B103,D103*INPUTS!$E$43^E103,0) -> 0
F107: Reference | G107: =IF(INPUTS!$E$67=B103,D103*(INPUTS!$E$68)^(E103),0) -> 0
A109: 6 | B109: CHP | C109: =IF(INPUTS!$E$31=B109,1,0) -> 0 | D109: =15648 -> 15648 | E109: -0.5361 | F109: Primary HB | G109: =IF(C109=0,0,D109*INPUTS!$E$33^E109) -> 0 | H109: 1500 | J109: 15 | K109: 15 | M109: 0.08 | N109: 0.08
C110: =IF(INPUTS!$E$34=B109,1,0) -> 0 | F110: Secondary HB | G110: =IF(C110=0,0,D109*INPUTS!$E$36^E109) -> 0
F111: Reference | G111: =IF(INPUTS!$E$67=B109,D109*(INPUTS!$E$68)^(E109),0) -> 0
B113: District Heating | C113: =IF(INPUTS!$E$31=B113,1,0) -> 0 | D113: 297.79 | E113: -0.161 | F113: Primary HB | G113: =IF(C113=0,0,D113*INPUTS!$E$33^E113) -> 0 | H113: 150 | J113: 30 | K113: 30 | M113: 0.03 | N113: 0.03
C114: =IF(INPUTS!$E$34=B113,1,0) -> 0 | F114: Secondary HB | G114: =IF(C114=0,0,D113*INPUTS!$E$36^E113) -> 0
F115: Reference | G115: =IF(INPUTS!$E$67=B113,D113*(INPUTS!$E$68)^(E113),0) -> 0
B117: Solar cold production | D117: c (€/kW) | E117: e (-) | G117: CSolC/kW (€/kW)
A118: 1 | B118: Absorption chiller SE | C118: =IF(INPUTS!$E$40=B118,1,0) -> 0 | D118: 3700 | E118: -0.45 | F118: Primary cooling | G118: =IF(C118=0,0,40+D118*(INPUTS!$E$41*C118)^(E118)) -> 0 | H118: 600 | J118: 30 | K118: 30 | M118: 0.03 | N118: 0.02
C119: =IF(INPUTS!$E$42=B118,1,0) -> 0 | F119: Secondary cooling | G119: =IF(C119=0,0,40+D118*(INPUTS!$E$43*C119)^(E118)) -> 0
F120: Sum | G120: =IF(C118+C119=0,0,40+D118*(INPUTS!$E$41*C118+INPUTS!$E$43*C119)^(E118)) -> 0
A122: 1 | B122: Absorption chiller DE | C122: =IF(INPUTS!$E$40=B122,1,0) -> 0 | D122: 4300 | E122: -0.46 | F122: Primary cooling | G122: =IF(C122=0,0,40+D122*(INPUTS!$E$41*C122)^(E122)) -> 0 | H122: 1000 | J122: 18 | K122: 18 | M122: 0.03 | N122: 0.03
C123: =IF(INPUTS!$E$42=B122,1,0) -> 0 | F123: Secondary cooling | G123: =IF(C123=0,0,40+D122*(INPUTS!$E$43*C123)^(E122)) -> 0
F124: Sum | G124: =IF(C122+C123=0,0,40+D122*(INPUTS!$E$41*C122+INPUTS!$E$43*C123)^(E122)) -> 0
A126: 1 | B126: Adsorption chiller | C126: =IF(INPUTS!$E$40=B126,1,0) -> 0 | D126: 3700 | E126: -0.45 | F126: Primary cooling | G126: =IF(C126=0,0,40+D126*(INPUTS!$E$41*C126)^(E126)) -> 0 | H126: 1000 | J126: 18 | K126: 18 | M126: 0.03 | N126: 0.03
C127: =IF(INPUTS!$E$42=B126,1,0) -> 0 | F127: Secondary cooling | G127: =IF(C127=0,0,40+D126*(INPUTS!$E$43*C127)^(E126)) -> 0
F128: Sum | G128: =IF(C126+C127=0,0,40+D126*(INPUTS!$E$41*C126+INPUTS!$E$43*C127)^(E126)) -> 0
B130: District Cooling | C130: =IF(INPUTS!$E$40=B130,1,0) -> 0 | D130: 297.79 | E130: -0.161 | F130: Primary cooling | G130: =IF(C130=0,0,D130*(INPUTS!$E$41*C130)^(E130)) -> 0 | H130: 200 | J130: 30 | K130: 30 | M130: 0.03 | N130: 0.03
C131: =IF(INPUTS!$E$42=B130,1,0) -> 0 | F131: Secondary cooling | G131: =IF(C131=0,0,D130*(INPUTS!$E$43*C131)^(E130)) -> 0
F132: Sum cooling | G132: =IF(C130+C131=0,0,D130*(INPUTS!$E$41*C130+INPUTS!$E$43*C131)^(E130)) -> 0
F133: Reference | G133: =IF(INPUTS!$E$71=B130,D130*(INPUTS!$E$72)^(E130),0) -> 0
B135: Heat rejection | D135: c (€) | E135: e (-) | G135: CHR/kW (€)
A136: 7 | B136: Cooling tower - wet | C136: =IF(INPUTS!$E$47=B136,1,0) -> 0 | D136: 21.186 | E136: 1649.4 | F136: Primary CT | G136: =IF(C136=1,D136*INPUTS!$E$48+E136,0) -> 0 | H136: 3000 | J136: 15 | K136: 15 | M136: 0.035 | N136: 0.035
C137: =IF(INPUTS!$E$50=B136,1,0) -> 0 | F137: Secondary CT | G137: =IF(C137=1,D136*INPUTS!$E$51+E136,0) -> 0
F138: Sum CT | G138: =SUM(G136:G137) -> 0
A140: 7 | B140: Cooling tower - dry | C140: =IF(INPUTS!$E$47=B140,1,0) -> 0 | D140: 46.756 | E140: 2638.6 | F140: Primary CT | G140: =IF(C140=1,D140*INPUTS!$E$48+E140,0) -> 0 | H140: 4000 | J140: 20 | K140: 20 | M140: 0.02 | N140: 0.01
C141: =IF(INPUTS!$E$50=B140,1,0) -> 0 | F141: Secondary CT | G141: =IF(C141=1,D140*INPUTS!$E$51+E140,0) -> 0
F142: Sum CT | G142: =SUM(G140:G141) -> 0
A144: 7 | B144: Cooling tower - hybrid | C144: =IF(INPUTS!$E$47=B144,1,0) -> 0 | D144: 105.41 | E144: 593.53 | F144: Primary CT | G144: =IF(C144=1,D144*INPUTS!$E$48+E144,0) -> 0 | H144: 6000 | J144: 15 | K144: 20 | M144: 0.02 | N144: 0.035
C145: =IF(INPUTS!$E$50=B144,1,0) -> 0 | F145: Secondary CT | G145: =IF(C145=1,D144*INPUTS!$E$51+E144,0) -> 0
F146: Sum CT | G146: =SUM(G144:G145) -> 0
B148: specific CT | C148: =IF(INPUTS!$E$47=B148,1,0) -> 0 | H148: 3500 | J148: 20 | K148: 20 | M148: 0.035 | N148: 0.035
C149: =IF(INPUTS!$E$50=B148,1,0) -> 0
B151: Storage | D151: c (€/m³) or (€/kWh) | E151: e (-) | G151: Cstore/m³ (€/m³) or Cstore/kWh (€/kWh)
A152: 4 | B152: Hot tank | D152: 2500 | E152: -0.28 | F152: Primary HS | G152: =IF((INPUTS!$E$55)=0,0,D152*(INPUTS!$E$55)^(E152)) -> 3035.487211 | H152: 2100 | J152: 20 | K152: 20 | M152: 0.02 | N152: 0.02
B153: secondary hot tank | F153: Secondary HS | G153: =IF((INPUTS!$E$56)=0,0,D152*(INPUTS!$E$56)^(E152)) -> 0 | H153: =H152 -> 2100
F154: REF | G154: =IF(Cost_calc!AA18=0,0,D152*(Cost_calc!AA18)^(E152)) -> 4763.651795
A156: 4 | B156: Cold tank | D156: 2135 | E156: -0.299 | F156: Primary HS | G156: =IF((INPUTS!$E$57)=0,0,D156*(INPUTS!$E$57)^(E156)) -> 0 | J156: 20 | K156: 20 | M156: 0.02 | N156: 0.02
B157: secondary cold tank | F157: Secondary HS | G157: =IF((INPUTS!$E$58)=0,0,D156*(INPUTS!$E$58)^(E156)) -> 0 | H157: =H156 -> 0
A159: 8 | B159: Battery | D159: 393.26 | E159: -0.292 | F159: Primary BS | G159: =IF((INPUTS!$E$59)=0,0,D159*(INPUTS!$E$59)^(E159)) -> 0 | H159: 3000 | J159: 10 | K159: 10 | M159: 0.02 | N159: 0.02
B160: secondary battery | F160: Secondary BS | G160: =IF((INPUTS!$E$60)=0,0,D159*(INPUTS!$E$60)^(E159)) -> 0 | H160: =H159 -> 3000
B162: Back-up cold production | D162: c (€/kW) | E162: e (-) | G162: CVCC/kW (€/kW)
A163: 9 | B163: Water Cooled VCC (>20kW) | C163: =IF(INPUTS!$E$40=B163,1,0) -> 0 | D163: 3096 | E163: -0.514 | F163: prim VCC | G163: =IF(C163=0,0,IF((INPUTS!$E$41*C163)<250,D163*(INPUTS!$E$41*C163)^(E163),6543.5*(INPUTS!$E$41*C163)^(-0.534))) -> 0 | H163: 650 | J163: 15 | K163: 15 | M163: 0.035 | N163: 0.035
C164: =IF(INPUTS!$E$42=B163,1,0) -> 0 | F164: sec VCC | G164: =IF(C164=0,0,IF((INPUTS!$E$43*C164)<250,D163*(INPUTS!$E$43*C164)^(E163),6543.5*(INPUTS!$E$43*C164)^(-0.534))) -> 0
F165: Reference | G165: =IF(INPUTS!$E$71=B163,IF((INPUTS!$E$72)<250,D163*(INPUTS!$E$72)^(E163),6543.5*(INPUTS!$E$72)^(-0.534)),0) -> 0
A167: 9 | B167: Air Cooled VCC (5-600kW) | C167: =IF(INPUTS!$E$40=B167,1,0) -> 0 | D167: 1258.9 | E167: -0.301 | F167: prim VCC | G167: =IF(C167=0,0,IF((INPUTS!$E$41*C167)<250,D167*(INPUTS!$E$41*C167)^(E167),1530.9*(INPUTS!$E$41*C167)^(-0.258))) -> 0 | H167: 550 | J167: 15 | K167: 15 | M167: 0.035 | N167: 0.035
C168: =IF(INPUTS!$E$42=B167,1,0) -> 0 | F168: sec VCC | G168: =IF(C168=0,0,IF((INPUTS!$E$43*C168)<250,D167*(INPUTS!$E$43*C168)^(E167),1530.9*(INPUTS!$E$43*C168)^(-0.258))) -> 0
F169: Reference | G169: =IF((INPUTS!$E$72)<250,IF((INPUTS!$E$72)=0,0,D167*(INPUTS!$E$72)^(E167)),1530.9*(INPUTS!$E$72)^(-0.258)) -> 629.4934761
B171: specific chiller | H171: 200 | J171: 15 | K171: 15 | M171: 0.035 | N171: 0.035
B173: Auxilliaries heat/cold
B174: heating | G174: 0.5 | H174: 0.5 | J174: 20 | K174: 20 | M174: 0.015 | N174: 0
B175: cooling | G175: 0.5 | H175: 0.5 | J175: 20 | K175: 20 | M175: 0.015 | N175: 0
B177: Control, electricity and monitoring | C177: % of Material | G177: 0.07 | H177: 0.07
B178: Investment-Design/planning
B179: Design, planning and commissioning | C179: % of total Material | G179: 0.1 | H179: 0.1
B181: Other costs over the TOTAL INVESTMENT
B182: General costs associated to works | C182: % of total Material | E182: Construction costs | G182: 0.15 | H182: 0.15
B183: Indirect costs and industrial benefits | C183: % of total Material | E183: Construction managment | G183: 0.05 | H183: 0.05
B186: Cost of REFERENCE Plant
B187: Auxilliaries | C187: % of boiler | E187: heating | G187: 0.5 | H187: 0.55 | J187: 20 | K187: 20 | M187: 0.015 | N187: 0.02
C188: % of chiller | E188: cooling | G188: 0.5 | H188: 0.55 | J188: 20 | K188: 20 | M188: 0.015 | N188: 0.02
B189: Control, electricity and monitoring | C189: % of Material | G189: 0.07 | H189: 0.07
B190: Investment-Design/planning
B191: Design, planning and commissioning | C191: % of total Material | G191: 0.15 | H191: 0.15
B193: Other costs over the TOTAL INVESTMENT
B194: General costs associated to works | C194: % of total Material | G194: 0.3 | H194: 0.3
B195: Indirect cost and industrial beneffits | C195: % of total Material | G195: 0.05 | H195: 0.05
A201: 1 | B201: EvaSolK
A202: 2 | B202: ROCOCO
A203: 3 | B203: BSW-Solar
A204: 4 | B204: Solar cooling Handbook
A205: 5 | B205: BMVIT
A206: 6 | B206: Asue
A207: 7 | B207: T48/A3
A208: 8 | B208: Tesla Motors
A209: 9 | B209: Cofely Kältetechnik GmbH

Sheet Cost_calc
B2: SOLAR HEATING AND COOLING (in €) | U2: REFERENCE SYSTEM (in €)
J3: T53 Standard | Q3: specific values | AC3: T53 Standard | AJ3: specific values
B4: Investment-material & installation SOLAR Cooling Plant | U4: Investment-material & inst. REFERENCE Plant
C5: Solar collectors | V5: Heating system
D6: Flat plate collectors (FPC) | J6: =IF(INPUTS!E25=D6,Eco_base!G55*INPUTS!E26,0) -> 0 | Q6: =IF(INPUTS!E25=D6,Eco_base!H55*INPUTS!E26,0) -> 0 | W6: =Eco_base!B69 -> Natural Gas | AC6: =Eco_base!$G$71*INPUTS!$E$68 -> 3214.724208 | AJ6: =IF(INPUTS!$E$67=W6,Eco_base!$H$69*INPUTS!$E$68,0) -> 1060
D7: Evacuated tube collectors (ETC) | J7: =IF(INPUTS!E25=D7,Eco_base!G56*INPUTS!E26,0) -> 0 | Q7: =IF(INPUTS!E25=D7,Eco_base!H56*INPUTS!E26,0) -> 0 | W7: =Eco_base!B73 -> Condensing Boiler | AJ7: =IF(INPUTS!$E$67=W7,Eco_base!$H$73*INPUTS!$E$68,0) -> 0
D8: specific SC | J8: =IF(INPUTS!E25=D8,Eco_base!H57*INPUTS!E26,0) -> 0 | Q8: =IF(INPUTS!E25=D8,Eco_base!H57*INPUTS!E26,0) -> 0 | W8: =Eco_base!B77 -> Oil Boiler | AJ8: =IF(INPUTS!$E$67=W8,Eco_base!$H$77*INPUTS!$E$68,0) -> 0
C9: Solar collectors auxiliaries | W9: =Eco_base!B81 -> Electric Heater | AJ9: =IF(INPUTS!$E$67=W9,Eco_base!$H$81*INPUTS!$E$68,0) -> 0
D10: Flat plate collectors (FPC) | J10: =IF(INPUTS!E25=D10,Eco_base!G60*INPUTS!$E$26,0) -> 0 | Q10: =IF(INPUTS!E25=D10,Eco_base!H60*INPUTS!$E$26,0) -> 0 | W10: =Eco_base!B85 -> Pellets | AJ10: =IF(INPUTS!$E$67=W10,Eco_base!$H$85*INPUTS!$E$68,0) -> 0
D11: Evacuated tube collectors (ETC) | J11: =IF(INPUTS!E25=D11,Eco_base!G61*INPUTS!$E$26,0) -> 0 | Q11: =IF(INPUTS!E25=D11,Eco_base!H61*INPUTS!$E$26,0) -> 0 | W11: =Eco_base!B89 -> Heat Pump | AJ11: =IF(INPUTS!$E$67=W11,Eco_base!$H$89*INPUTS!$E$68,0) -> 0
D12: specific SC | J12: =IF(INPUTS!E25=D12,Eco_base!H62*INPUTS!$E$26,0) -> 0 | Q12: =IF(INPUTS!E25=D12,Eco_base!H62*INPUTS!$E$26,0) -> 0 | W12: District Heating | AJ12: =IF(INPUTS!$E$67=W12,Eco_base!$H$113*INPUTS!$E$68,0) -> 0
C13: PV collectors | V13: Cold production
D14: PV | J14: =IF(INPUTS!E27=D14,Eco_base!G65*INPUTS!$E$28,0) -> 17125.80735 | Q14: =IF(INPUTS!E27=D14,Eco_base!H65*INPUTS!$E$28,0) -> 18315 | W14: =Eco_base!B163 -> Water Cooled VCC (>20kW) | AJ14: =IF(INPUTS!E71=W14,Eco_base!$H$163*INPUTS!$E$72,0) -> 0
D15: specific PV | J15: =IF(INPUTS!E27=D15,Eco_base!H66*INPUTS!$E$28,0) -> 0 | Q15: =IF(INPUTS!E27=D15,Eco_base!H66*INPUTS!$E$28,0) -> 0 | W15: =Eco_base!B167 -> Air Cooled VCC (5-600kW) | AC15: =Eco_base!$G$169*INPUTS!$E$72 -> 6294.934761 | AJ15: =IF(INPUTS!E71=W15,Eco_base!$H$167*INPUTS!$E$72,0) -> 5500
C16: Heating system | W16: District Cooling | AJ16: =IF(INPUTS!E71=W16,Eco_base!$H$171*INPUTS!$E$72,0) -> 0
D17: =Eco_base!B69 -> Natural Gas | J17: =Eco_base!$G$69*INPUTS!$E$33+Eco_base!$G$70*INPUTS!$E$36 -> 0 | Q17: =IF(AND(INPUTS!$E$31=Cost_calc!$D$17,INPUTS!$E$34=Cost_calc!$D$17),Eco_base!$H$69*(INPUTS!$E$33+INPUTS!$E$36),IF(INPUTS!$E$31=Cost_calc!$D$17,Eco_base!$H$69*INPUTS!$E$33,IF(INPUTS!$E$34=Cost_calc!$D$17,Eco_base!$H$69*INPUTS!$E$36,0))) -> 0 | V17: Storage
D18: =Eco_base!B73 -> Condensing Boiler | J18: =Eco_base!G73*INPUTS!$E$33+Eco_base!G74*INPUTS!$E$36 -> 0 | Q18: =IF(AND(INPUTS!$E$31=Cost_calc!$D$18,INPUTS!$E$34=Cost_calc!$D$18),Eco_base!$H$73*(INPUTS!$E$33+INPUTS!$E$36),IF(INPUTS!$E$31=Cost_calc!$D$18,Eco_base!$H$73*INPUTS!$E$33,IF(INPUTS!$E$34=Cost_calc!$D$18,Eco_base!H73*INPUTS!$E$36,0))) -> 0 | W18: Hot tank | X18: only for DHW | Z18: V= | AA18: =IF(INPUTS!E81>0,MAX(INPUTS!E81/10/1000,0.1),0) -> 0.1 | AB18: m³ | AC18: =IF(AA18=0,0,Eco_base!G154*AA18) -> 476.3651795 | AJ18: =IF(INPUTS!$E$75=0,0,Eco_base!H152*INPUTS!$E$75) -> 1050
D19: =Eco_base!B77 -> Oil Boiler | J19: =Eco_base!G77*INPUTS!$E$33+Eco_base!G78*INPUTS!$E$36 -> 0 | Q19: =IF(AND(INPUTS!$E$31=Cost_calc!$D$19,INPUTS!$E$34=Cost_calc!$D$19),Eco_base!$H$77*(INPUTS!$E$33+INPUTS!$E$36),IF(INPUTS!$E$31=Cost_calc!$D$19,Eco_base!$H$77*INPUTS!$E$33,IF(INPUTS!$E$34=Cost_calc!$D$19,Eco_base!$H$77*INPUTS!$E$36,0))) -> 0 | W19: Cold tank | Z19: V= | AA19: =SUMMARY!D48 -> 0.2914857262 | AB19: m³ | AC19: =Eco_base!$D$156*(AA19)^(1+Eco_base!$E$156) -> 899.6935386 | AJ19: =IF(INPUTS!$E$76=0,0,Eco_base!H156*INPUTS!$E$76) -> 0
D20: =Eco_base!B81 -> Electric Heater | J20: =Eco_base!G81*INPUTS!$E$33+Eco_base!G82*INPUTS!$E$36 -> 0 | Q20: =IF(AND(INPUTS!$E$31=Cost_calc!$D$20,INPUTS!$E$34=Cost_calc!$D$20),Eco_base!$H$81*(INPUTS!$E$33+INPUTS!$E$36),IF(INPUTS!$E$31=Cost_calc!$D$20,Eco_base!$H$81*INPUTS!$E$33,IF(INPUTS!$E$34=Cost_calc!$D$20,Eco_base!$H$81*INPUTS!$E$36,0))) -> 0 | V20: Reference auxiliaries
D21: =Eco_base!B85 -> Pellets | J21: =Eco_base!G85*INPUTS!$E$33+Eco_base!G86*INPUTS!$E$36 -> 0 | Q21: =IF(AND(INPUTS!$E$31=Cost_calc!$D$21,INPUTS!$E$34=Cost_calc!$D$21),Eco_base!$H$85*(INPUTS!$E$33+INPUTS!$E$36),IF(INPUTS!$E$31=Cost_calc!$D$21,Eco_base!$H$85*INPUTS!$E$33,IF(INPUTS!$E$34=Cost_calc!$D$21,Eco_base!$H$85*INPUTS!$E$36,0))) -> 0 | W21: heating | AC21: =AC6*Eco_base!G187 -> 1607.362104 | AJ21: =SUM(AJ6:AJ12)*Eco_base!H187 -> 583
D22: =Eco_base!B89 -> Heat Pump | J22: =Eco_base!G89*INPUTS!$E$33+Eco_base!G90*INPUTS!$E$36 -> 2615.677443 | Q22: =IF(AND(INPUTS!$E$31=Cost_calc!$D$22,INPUTS!$E$34=Cost_calc!$D$22),Eco_base!$H$89*(INPUTS!$E$33+INPUTS!$E$36),IF(INPUTS!$E$31=Cost_calc!$D$22,Eco_base!$H$89*INPUTS!$E$33,IF(INPUTS!$E$34=Cost_calc!$D$22,Eco_base!$H$89*INPUTS!$E$36,0))) -> 4452 | W22: cooling | AC22: =AC15*Eco_base!G188 -> 3147.46738 | AJ22: =SUM(AJ14:AJ16)*Eco_base!H188 -> 3025
D23: =Eco_base!B93 -> Reversible Heat Pump | E23: =IF(INPUTS!$E$31=Eco_base!$B$93,Eco_base!$G$93*INPUTS!$E$33,0) -> 0 | F23: =IF(INPUTS!$E$34=Eco_base!$B$93,Eco_base!$G$93*INPUTS!$E$36,0) -> 0 | G23: =IF(INPUTS!$E$40=Eco_base!$B$93,Eco_base!$G$93*INPUTS!$E$41,0) -> 0 | H23: =IF(INPUTS!$E$42=Eco_base!$B$93,Eco_base!$G$93*INPUTS!$E$43,0) -> 0 | J23: =IF(AND(INPUTS!$E$31=Cost_calc!$D$23,INPUTS!$E$40=Cost_calc!$D$23),MAX(Eco_base!$G$93*INPUTS!$E$33,Eco_base!$G$95*INPUTS!$E$41),IF(AND(INPUTS!$E$34=Cost_calc!$D$23,INPUTS!$E$42=Cost_calc!$D$23),MAX(Eco_base!$G$94*INPUTS!$E$36,Eco_base!$G$96*INPUTS!$E$41),IF(INPUTS!$E$40=Cost_calc!$D$23,Eco_base!$G$95*INPUTS!$E$41,IF(INPUTS!$E$42=Cost_calc!$D$23,Eco_base!$G$96*INPUTS!$E$43,0)))) -> 0 | Q23: =IF(AND(INPUTS!$E$31=Cost_calc!$D$23,INPUTS!$E$40=Cost_calc!$D$23),Eco_base!$H$93*(INPUTS!$E$33+INPUTS!$E$41),IF(AND(INPUTS!$E$34=Cost_calc!$D$23,INPUTS!$E$40=Cost_calc!$D$23),Eco_base!$H$93*(INPUTS!$E$36+INPUTS!$E$41),IF(INPUTS!$E$40=Cost_calc!$D$23,Eco_base!$H$93*INPUTS!$E$41,IF(INPUTS!$E$42=Cost_calc!$D$23,Eco_base!$H$93*INPUTS!$E$43,0)))) -> 0
D24: =Eco_base!B99 -> Absorption Heat Pump (AHP) | J24: =Eco_base!G99*INPUTS!$E$33+Eco_base!G100*INPUTS!$E$36 -> 0 | Q24: =IF(AND(INPUTS!$E$31=Cost_calc!$D$24,INPUTS!$E$34=Cost_calc!$D$24),Eco_base!$H$99*(INPUTS!$E$33+INPUTS!$E$36),IF(INPUTS!$E$31=Cost_calc!$D$24,Eco_base!$H$99*INPUTS!$E$33,IF(INPUTS!$E$34=Cost_calc!$D$24,Eco_base!$H$99*INPUTS!$E$36,0))) -> 0
D25: =Eco_base!B103 -> Reversible AHP | E25: =IF(INPUTS!$E$31=Eco_base!$B$103,Eco_base!$G$103*INPUTS!$E$33,0) -> 0 | F25: =IF(INPUTS!$E$34=Eco_base!$B$103,Eco_base!$G$103*INPUTS!$E$36,0) -> 0 | G25: =IF(INPUTS!$E$40=Eco_base!$B$103,Eco_base!$G$103*INPUTS!$E$41,0) -> 0 | H25: =IF(INPUTS!$E$42=Eco_base!$B$103,Eco_base!$G$103*INPUTS!$E$43,0) -> 0 | J25: =IF(AND(INPUTS!$E$31=Cost_calc!$D$25,INPUTS!$E$40=Cost_calc!$D$25),MAX(Eco_base!$G$103*INPUTS!$E$33,Eco_base!$G$105*INPUTS!$E$41),IF(AND(INPUTS!$E$34=Cost_calc!$D$25,INPUTS!$E$42=Cost_calc!$D$25),MAX(Eco_base!$G$104*INPUTS!$E$36+Eco_base!$G$106*INPUTS!$E$41),IF(INPUTS!$E$40=Cost_calc!$D$25,Eco_base!$G$105*INPUTS!$E$41,IF(INPUTS!$E$42=Cost_calc!$D$25,Eco_base!$G$106*INPUTS!$E$43,0)))) -> 0 | Q25: =IF(AND(INPUTS!$E$31=Cost_calc!$D$25,INPUTS!$E$40=Cost_calc!$D$25),Eco_base!$H$103*(INPUTS!$E$33+INPUTS!$E$41),IF(AND(INPUTS!$E$34=Cost_calc!$D$25,INPUTS!$E$40=Cost_calc!$D$25),Eco_base!$H$103*(INPUTS!$E$36+INPUTS!$E$41),IF(INPUTS!$E$40=Cost_calc!$D$25,Eco_base!$H$103*INPUTS!$E$41,IF(INPUTS!$E$42=Cost_calc!$D$25,Eco_base!$H$103*INPUTS!$E$43,0)))) -> 0
D26: =Eco_base!B109 -> CHP | J26: =Eco_base!G109*INPUTS!$E$33+Eco_base!G110*INPUTS!$E$36 -> 0 | Q26: =IF(AND(INPUTS!$E$31=Cost_calc!$D$26,INPUTS!$E$34=Cost_calc!$D$26),Eco_base!$H$109*(INPUTS!$E$33+INPUTS!$E$36),IF(INPUTS!$E$31=Cost_calc!$D$26,Eco_base!$H$109*INPUTS!$E$33,IF(INPUTS!$E$34=Cost_calc!$D$26,Eco_base!$H$109*INPUTS!$E$36,0))) -> 0
D27: =Eco_base!B113 -> District Heating | J27: =Eco_base!G113*INPUTS!$E$33+Eco_base!G114*INPUTS!$E$36 -> 0 | Q27: =IF(AND(INPUTS!$E$31=Cost_calc!$D$27,INPUTS!$E$34=Cost_calc!$D$27),Eco_base!$H$113*(INPUTS!$E$33+INPUTS!$E$36),IF(INPUTS!$E$31=Cost_calc!$D$27,Eco_base!$H$113*INPUTS!$E$33,IF(INPUTS!$E$34=Cost_calc!$D$27,Eco_base!$H$113*INPUTS!$E$36,0))) -> 0
C28: Cold production
D29: =Eco_base!B118 -> Absorption chiller SE | J29: =IF(Eco_base!$C118=1,Eco_base!G118*INPUTS!$E$41,0)+IF(Eco_base!$C119=1,Eco_base!G119*INPUTS!$E$43,0) -> 0 | Q29: =IF(Eco_base!$C118=1,Eco_base!H118*INPUTS!$E$41)+IF(Eco_base!$C119=1,Eco_base!H118*INPUTS!$E$43,0) -> 0
D30: =Eco_base!B122 -> Absorption chiller DE | J30: =IF(Eco_base!$C122=1,Eco_base!G122*INPUTS!$E$41,0)+IF(Eco_base!$C123=1,Eco_base!G123*INPUTS!$E$43,0) -> 0 | Q30: =IF(Eco_base!$C122=1,Eco_base!H122*INPUTS!$E$41)+IF(Eco_base!$C123=1,Eco_base!H122*INPUTS!$E$43,0) -> 0
D31: =Eco_base!B126 -> Adsorption chiller | J31: =IF(Eco_base!$C126=1,Eco_base!G126*INPUTS!$E$41,0)+IF(Eco_base!$C127=1,Eco_base!G127*INPUTS!$E$43,0) -> 0 | Q31: =IF(Eco_base!$C126=1,Eco_base!H126*INPUTS!$E$41)+IF(Eco_base!$C127=1,Eco_base!H126*INPUTS!$E$43,0) -> 0
D32: =Eco_base!B163 -> Water Cooled VCC (>20kW) | J32: =Eco_base!G163*INPUTS!$E$41+Eco_base!G164*INPUTS!$E$43 -> 0 | Q32: =IF(Eco_base!$C163=1,Eco_base!H163*INPUTS!$E$41)+IF(Eco_base!$C164=1,Eco_base!H163*INPUTS!$E$43,0) -> 0
D33: =Eco_base!B167 -> Air Cooled VCC (5-600kW) | J33: =Eco_base!G167*INPUTS!$E$41+Eco_base!G168*INPUTS!$E$43 -> 0 | Q33: =IF(Eco_base!$C167=1,Eco_base!H167*INPUTS!$E$41)+IF(Eco_base!$C168=1,Eco_base!H167*INPUTS!$E$43,0) -> 0
D34: =Eco_base!B130 -> District Cooling | J34: =IF(Eco_base!$C130=1,Eco_base!G130*INPUTS!$E$41,0)+IF(Eco_base!$C131=1,Eco_base!G131*INPUTS!$E$43,0) -> 0 | Q34: =IF(Eco_base!$C130=1,Eco_base!H130*INPUTS!$E$41)+IF(Eco_base!$C131=1,Eco_base!H130*INPUTS!$E$43,0) -> 0
C35: Heat rejection
D36: =Eco_base!B136 -> Cooling tower - wet | J36: =Eco_base!G138 -> 0 | Q36: =Eco_base!H136*(Eco_base!$C$136+Eco_base!$C$137) -> 0
D37: =Eco_base!B140 -> Cooling tower - dry | J37: =Eco_base!G142 -> 0 | Q37: =Eco_base!H140*(Eco_base!$C$140+Eco_base!$C$141) -> 0
D38: =Eco_base!B144 -> Cooling tower - hybrid | J38: =Eco_base!G146 -> 0 | Q38: =Eco_base!H144*(Eco_base!$C$144+Eco_base!$C$145) -> 0
D39: =Eco_base!B148 -> specific CT | J39: =Eco_base!H148*(Eco_base!$C$148+Eco_base!$C$149) -> 0 | Q39: =Eco_base!H148*(Eco_base!$C$148+Eco_base!$C$149) -> 0
C40: Storage
D41: =Eco_base!B152 -> Hot tank | J41: =Eco_base!G152*INPUTS!$E$55+Eco_base!G153*INPUTS!$E$56 -> 1517.743605 | Q41: =Eco_base!H152*INPUTS!$E$55+Eco_base!H153*INPUTS!$E$56 -> 1050
D42: =Eco_base!B156 -> Cold tank | J42: =Eco_base!G156*INPUTS!$E$57+Eco_base!G157*INPUTS!$E$58 -> 0 | Q42: =Eco_base!H156*INPUTS!$E$57+Eco_base!H157*INPUTS!$E$58 -> 0
D43: =Eco_base!B159 -> Battery | J43: =Eco_base!G159*INPUTS!$E$59+Eco_base!G160*INPUTS!$E$60 -> 0 | Q43: =Eco_base!H159*INPUTS!$E$59+Eco_base!H160*INPUTS!$E$60 -> 0
C44: Auxiliaries (not solar)
D45: heating | J45: =Eco_base!$G$174*SUM(Cost_calc!$J$17:$J$27) -> 1307.838722 | Q45: =Eco_base!$H$174*SUM(Cost_calc!$Q$17:$Q$27) -> 2226
D46: cooling | J46: =Eco_base!$G$175*SUM(Cost_calc!$J$29:$J$34) -> 0 | Q46: =Eco_base!$H$175*SUM(Cost_calc!$Q$29:$Q$34) -> 0
C47: Sum investment material & installation | J47: =SUM(J6:P46) -> 22567.06712 | Q47: =SUM(Q6:Q46) -> 26043 | V47: Sum investment material & installation | AC47: =SUM(AC6:AI46) -> 15640.54717 | AJ47: =SUM(AJ6:AJ46) -> 11218
C50: INVESTMENT Material | V50: INVESTMENT Material
C51: Control, electricity and monitoring | J51: =J47*Eco_base!G177 -> 1579.694699 | Q51: =Q47*Eco_base!H177 -> 1823.01 | V51: Control system and electricity | AC51: =AC47*Eco_base!G189 -> 1094.838302 | AJ51: =AJ47*Eco_base!H189 -> 785.26
C53: TOTAL INVESTMENT Material | J53: =J51+J47 -> 24146.76182 | Q53: =Q51+Q47 -> 27866.01 | V53: TOTAL INVESTMENT MATERIAL | AC53: =AC51+AC47 -> 16735.38547 | AJ53: =AJ51+AJ47 -> 12003.26
C54: Spec. costs for total system regarding total invesmtent-material | J54: =J53/(INPUTS!E33+INPUTS!E36+INPUTS!E41+INPUTS!E43) -> 2277.996398 | Q54: =Q53/(INPUTS!E33+INPUTS!E36+INPUTS!E41+INPUTS!E43) -> 2628.868868 | V54: Specific cost for total system regarding total invesmtent-material | AC54: =AC53/(INPUTS!E37+INPUTS!E44) -> 812.3973531 | AJ54: =AJ53/(INPUTS!E37+INPUTS!E44) -> 582.6825243
B57: Investment-Design/planning | U57: Investment-Design/planning
C58: Design, planning and commissioning | J58: =J53*Eco_base!G179 -> 2414.676182 | Q58: =Q53*Eco_base!H179 -> 2786.601 | V58: Design, planning and commissioning | AC58: =AC53*Eco_base!G191 -> 2510.307821 | AJ58: =AJ53*Eco_base!H191 -> 1800.489
B60: Other costs over the TOTAL INVESTMENT | U60: Other costs over the TOTAL INVESTMENT
C61: General costs associated to works | J61: =J53*Eco_base!G182 -> 3622.014274 | Q61: =Q53*Eco_base!H182 -> 4179.9015 | V61: General costs associated to works | AC61: =AC53*Eco_base!G194 -> 5020.615642 | AJ61: =AJ53*Eco_base!H194 -> 3600.978
C62: Indirect costs and industrial benefits | J62: =J53*Eco_base!G183 -> 1207.338091 | Q62: =Q53*Eco_base!H183 -> 1393.3005 | V62: Indirect cost and industrial beneffits | AC62: =AC53*Eco_base!G195 -> 836.7692736 | AJ62: =AJ53*Eco_base!H195 -> 600.163
B64: TOTAL | U64: TOTAL
C65: INVESTMENT Cost | J65: =J53+J58+J61+J62 -> 31390.79037 | Q65: =Q53+Q58+Q61+Q62 -> 36225.813 | V65: INVESTMENT Cost | AC65: =AC53+AC58+AC61+AC62 -> 25103.07821 | AJ65: =AJ53+AJ58+AJ61+AJ62 -> 18004.89
C66: Specific cost for total system | J66: =J65/(INPUTS!E33+INPUTS!E36+INPUTS!E41+INPUTS!E43) -> 2961.395318 | Q66: =Q65/(INPUTS!E33+INPUTS!E36+INPUTS!E41+INPUTS!E43) -> 3417.529528 | V66: Specific cost for total system | AC66: =IF(INPUTS!E44=0,0,AC65/(INPUTS!E37+INPUTS!E44)) -> 1218.59603 | AJ66: =IF(INPUTS!E44=0,0,AJ65/(INPUTS!E37+INPUTS!E44)) -> 874.0237864
C67: INVESTMENT Costs without public funding's | J67: =J65*(1-p) -> 31390.79037 | Q67: =Q65*(1-p_spec) -> 36225.813
B70: Replacement costs SOLAR Cooling Plant | H70: replacement cost | I70: residual value | J70: replacement & residual | O70: replacement cost | P70: residual value | Q70: replacement & residual | U70: replacement costs REFERENCE SYSTEM | AB70: replacement costs | AC70: residual value | AI70: replacement costs | AJ70: residual value
C71: Solar collectors | E71: n | F71: k1 | G71: k2 | H71: €/a | I71: €/a | J71: €/a | L71: n | M71: k1 | N71: k2 | O71: €/a | P71: €/a | Q71: €/a | V71: Heating system | X71: n | Y71: k | AB71: €/a | AC71: €/a | AE71: n | AF71: k | AI71: €/a | AJ71: €/a
D72: Flat plate collectors | E72: =Eco_base!J55 -> 20 | F72: =FLOOR(N/E72,1) -> 1 | G72: =1-(N/E72-TRUNC(N/E72)) -> 0.75 | H72: =IF(E72>=N,0,IF(i=d,(F72*J6)/(N*(1+i)),J6/N*((((1+i)^E72/(1+d)^E72)^(F72)-1)/(((1+i)^E72/(1+d)^E72)-1))*(1/(1+d)))) -> 0 | I72: =IF(G72=1,0,IF(i=d,(G72*J6)/(N*(1+i)),J6/N*((((1+i)^E72/(1+d)^E72)^(G72)-1)/(((1+i)^E72/(1+d)^E72)-1))*(1/(1+d)))) -> 0 | J72: =H72-I72 -> 0 | L72: =Eco_base!K55 -> 26 | M72: =FLOOR(N_spec/L72,1) -> 0 | N72: =1-(N_spec/L72-TRUNC(N_spec/L72)) -> 0.03846153846 | O72: =IF(L72>=N_spec,0,IF(i_spec=d_spec,(M72*Q6)/(N_spec*(1+i_spec)),Q6/N_spec*((((1+i_spec)^L72/(1+d_spec)^L72)^(M72)-1)/(((1+i_spec)^L72/(1+d_spec)^L72)-1))*(1/(1+d_spec)))) -> 0 | P72: =IF(N72=1,0,IF(i_spec=d_spec,(N72*Q6)/(N_spec*(1+i_spec)),Q6/N_spec*((((1+i_spec)^L72/(1+d_spec)^L72)^(N72)-1)/(((1+i_spec)^L72/(1+d_spec)^L72)-1))*(1/(1+d_spec)))) -> 0 | Q72: =O72-P72 -> 0 | W72: =W6 -> Natural Gas | X72: =Eco_base!J69 -> 15 | Y72: =FLOOR(N/X72,1) -> 1 | Z72: =1-(N/X72-TRUNC(N/X72)) -> 0.3333333333 | AA72: =IF(X72>=N,0,IF(i=d,(Y72*AC6)/(N*(1+i)),AC6/N*((((1+i)^X72/(1+d)^X72)^(Y72)-1)/(((1+i)^X72/(1+d)^X72)-1))*(1/(1+d)))) -> 124.8436586 | AB72: =IF(Z72=1,0,IF(i=d,(Z72*AC6)/(N*(1+i)),AC6/N*((((1+i)^X72/(1+d)^X72)^(Z72)-1)/(((1+i)^X72/(1+d)^X72)-1))*(1/(1+d)))) -> 41.61455285 | AC72: =AA72-AB72 -> 83.2291057 | AE72: =Eco_base!K69 -> 15 | AF72: =FLOOR(N_spec/AE72,1) -> 1 | AG72: =1-(N/AE72-TRUNC(N/AE72)) -> 0.3333333333 | AH72: =IF(AE72>=N_spec,0,IF(i_spec=d_spec,(AF72*AJ6)/(N_spec*(1+i_spec)),AJ6/N_spec*((((1+i_spec)^AE72/(1+d_spec)^AE72)^(AF72)-1)/(((1+i_spec)^AE72/(1+d_spec)^AE72)-1))*(1/(1+d_spec)))) -> 40.18957346 | AI72: =IF(AG72=1,0,IF(i_spec=d_spec,(AG72*AJ6)/(N_spec*(1+i_spec)),AJ6/N_spec*((((1+i_spec)^AE72/(1+d_spec)^AE72)^(AG72)-1)/(((1+i_spec)^AE72/(1+d_spec)^AE72)-1))*(1/(1+d_spec)))) -> 15.57229394 | AJ72: =AH72-AI72 -> 24.61727952
D73: Evacuated tube collectors | E73: =Eco_base!J56 -> 18 | F73: =FLOOR(N/E73,1) -> 1 | G73: =1-(N/E73-TRUNC(N/E73)) -> 0.6111111111 | H73: =IF(E73>=N,0,IF(i=d,(F73*J7)/(N*(1+i)),J7/N*((((1+i)^E73/(1+d)^E73)^(F73)-1)/(((1+i)^E73/(1+d)^E73)-1))*(1/(1+d)))) -> 0 | I73: =IF(G73=1,0,IF(i=d,(G73*J7)/(N*(1+i)),J7/N*((((1+i)^E73/(1+d)^E73)^(G73)-1)/(((1+i)^E73/(1+d)^E73)-1))*(1/(1+d)))) -> 0 | J73: =H73-I73 -> 0 | L73: =Eco_base!K56 -> 18 | M73: =FLOOR(N_spec/L73,1) -> 1 | N73: =1-(N_spec/L73-TRUNC(N_spec/L73)) -> 0.6111111111 | O73: =IF(L73>=N_spec,0,IF(i_spec=d_spec,(M73*Q7)/(N_spec*(1+i_spec)),Q7/N_spec*((((1+i_spec)^L73/(1+d_spec)^L73)^(M73)-1)/(((1+i_spec)^L73/(1+d_spec)^L73)-1))*(1/(1+d_spec)))) -> 0 | P73: =IF(N73=1,0,IF(i_spec=d_spec,(N73*Q7)/(N_spec*(1+i_spec)),Q7/N_spec*((((1+i_spec)^L73/(1+d_spec)^L73)^(N73)-1)/(((1+i_spec)^L73/(1+d_spec)^L73)-1))*(1/(1+d_spec)))) -> 0 | Q73: =O73-P73 -> 0 | W73: Condensing Boiler | AE73: =Eco_base!K73 -> 15 | AF73: 1 | AG73: 0.3333333333 | AH73: 0 | AI73: 0 | AJ73: =AH73-AI73 -> 0
D74: specific SC | E74: =Eco_base!J57 -> 18 | F74: =FLOOR(N/E74,1) -> 1 | G74: =1-(N/E74-TRUNC(N/E74)) -> 0.6111111111 | H74: =IF(E74>=N,0,IF(i=d,(F74*J8)/(N*(1+i)),J8/N*((((1+i)^E74/(1+d)^E74)^(F74)-1)/(((1+i)^E74/(1+d)^E74)-1))*(1/(1+d)))) -> 0 | I74: =IF(G74=1,0,IF(i=d,(G74*J8)/(N*(1+i)),J8/N*((((1+i)^E74/(1+d)^E74)^(G74)-1)/(((1+i)^E74/(1+d)^E74)-1))*(1/(1+d)))) -> 0 | J74: =H74-I74 -> 0 | L74: =Eco_base!K57 -> 18 | M74: =FLOOR(N_spec/L74,1) -> 1 | N74: =1-(N_spec/L74-TRUNC(N_spec/L74)) -> 0.6111111111 | O74: =IF(L74>=N_spec,0,IF(i_spec=d_spec,(M74*Q8)/(N_spec*(1+i_spec)),Q8/N_spec*((((1+i_spec)^L74/(1+d_spec)^L74)^(M74)-1)/(((1+i_spec)^L74/(1+d_spec)^L74)-1))*(1/(1+d_spec)))) -> 0 | P74: =IF(N74=1,0,IF(i_spec=d_spec,(N74*Q8)/(N_spec*(1+i_spec)),Q8/N_spec*((((1+i_spec)^L74/(1+d_spec)^L74)^(N74)-1)/(((1+i_spec)^L74/(1+d_spec)^L74)-1))*(1/(1+d_spec)))) -> 0 | Q74: =O74-P74 -> 0 | W74: Oil Boiler | AE74: =Eco_base!K77 -> 12 | AF74: 2 | AG74: 0.9166666667 | AH74: 0 | AI74: 0 | AJ74: 0
C75: Solar collectors auxiliaries | W75: Electric Heater | AE75: =Eco_base!K81 -> 15 | AF75: 1 | AG75: 0.3333333333 | AH75: 0 | AI75: 0 | AJ75: 0
D76: Flat plate collectors | E76: =Eco_base!J60 -> 20 | F76: =FLOOR(N/E76,1) -> 1 | G76: =1-(N/E76-TRUNC(N/E76)) -> 0.75 | H76: =IF(E76>=N,0,IF(i=d,(F76*J10)/(N*(1+i)),J10/N*((((1+i)^E76/(1+d)^E76)^(F76)-1)/(((1+i)^E76/(1+d)^E76)-1))*(1/(1+d)))) -> 0 | I76: =IF(G76=1,0,IF(i=d,(G76*J10)/(N*(1+i)),J10/N*((((1+i)^E76/(1+d)^E76)^(G76)-1)/(((1+i)^E76/(1+d)^E76)-1))*(1/(1+d)))) -> 0 | J76: =H76-I76 -> 0 | L76: =Eco_base!K60 -> 20 | M76: =FLOOR(N_spec/L76,1) -> 1 | N76: =1-(N_spec/L76-TRUNC(N_spec/L76)) -> 0.75 | O76: =IF(L76>=N_spec,0,IF(i_spec=d_spec,(M76*Q10)/(N_spec*(1+i_spec)),Q10/N_spec*((((1+i_spec)^L76/(1+d_spec)^L76)^(M76)-1)/(((1+i_spec)^L76/(1+d_spec)^L76)-1))*(1/(1+d_spec)))) -> 0 | P76: =IF(N76=1,0,IF(i_spec=d_spec,(N76*Q10)/(N_spec*(1+i_spec)),Q10/N_spec*((((1+i_spec)^L76/(1+d_spec)^L76)^(N76)-1)/(((1+i_spec)^L76/(1+d_spec)^L76)-1))*(1/(1+d_spec)))) -> 0 | Q76: =O76-P76 -> 0 | W76: Pellets | AE76: =Eco_base!K85 -> 15 | AF76: 1 | AG76: 0.3333333333 | AH76: 0 | AI76: 0 | AJ76: 0
D77: Evacuated tube collectors | E77: =Eco_base!J61 -> 20 | F77: =FLOOR(N/E77,1) -> 1 | G77: =1-(N/E77-TRUNC(N/E77)) -> 0.75 | H77: =IF(E77>=N,0,IF(i=d,(F77*J11)/(N*(1+i)),J11/N*((((1+i)^E77/(1+d)^E77)^(F77)-1)/(((1+i)^E77/(1+d)^E77)-1))*(1/(1+d)))) -> 0 | I77: =IF(G77=1,0,IF(i=d,(G77*J11)/(N*(1+i)),J11/N*((((1+i)^E77/(1+d)^E77)^(G77)-1)/(((1+i)^E77/(1+d)^E77)-1))*(1/(1+d)))) -> 0 | J77: =H77-I77 -> 0 | L77: =Eco_base!K61 -> 20 | M77: =FLOOR(N_spec/L77,1) -> 1 | N77: =1-(N_spec/L77-TRUNC(N_spec/L77)) -> 0.75 | O77: =IF(L77>=N_spec,0,IF(i_spec=d_spec,(M77*Q11)/(N_spec*(1+i_spec)),Q11/N_spec*((((1+i_spec)^L77/(1+d_spec)^L77)^(M77)-1)/(((1+i_spec)^L77/(1+d_spec)^L77)-1))*(1/(1+d_spec)))) -> 0 | P77: =IF(N77=1,0,IF(i_spec=d_spec,(N77*Q11)/(N_spec*(1+i_spec)),Q11/N_spec*((((1+i_spec)^L77/(1+d_spec)^L77)^(N77)-1)/(((1+i_spec)^L77/(1+d_spec)^L77)-1))*(1/(1+d_spec)))) -> 0 | Q77: =O77-P77 -> 0 | W77: Heat Pump | AE77: =Eco_base!K89 -> 15 | AF77: 1 | AG77: 0.3333333333 | AH77: 0 | AI77: 0 | AJ77: 0
D78: specific SC | E78: =Eco_base!J62 -> 20 | F78: =FLOOR(N/E78,1) -> 1 | G78: =1-(N/E78-TRUNC(N/E78)) -> 0.75 | H78: =IF(E78>=N,0,IF(i=d,(F78*J12)/(N*(1+i)),J12/N*((((1+i)^E78/(1+d)^E78)^(F78)-1)/(((1+i)^E78/(1+d)^E78)-1))*(1/(1+d)))) -> 0 | I78: =IF(G78=1,0,IF(i=d,(G78*J12)/(N*(1+i)),J12/N*((((1+i)^E78/(1+d)^E78)^(G78)-1)/(((1+i)^E78/(1+d)^E78)-1))*(1/(1+d)))) -> 0 | J78: =H78-I78 -> 0 | L78: =Eco_base!K62 -> 20 | M78: =FLOOR(N_spec/L78,1) -> 1 | N78: =1-(N_spec/L78-TRUNC(N_spec/L78)) -> 0.75 | O78: =IF(L78>=N_spec,0,IF(i_spec=d_spec,(M78*Q12)/(N_spec*(1+i_spec)),Q12/N_spec*((((1+i_spec)^L78/(1+d_spec)^L78)^(M78)-1)/(((1+i_spec)^L78/(1+d_spec)^L78)-1))*(1/(1+d_spec)))) -> 0 | P78: =IF(N78=1,0,IF(i_spec=d_spec,(N78*Q12)/(N_spec*(1+i_spec)),Q12/N_spec*((((1+i_spec)^L78/(1+d_spec)^L78)^(N78)-1)/(((1+i_spec)^L78/(1+d_spec)^L78)-1))*(1/(1+d_spec)))) -> 0 | Q78: =O78-P78 -> 0 | W78: District Heating | AE78: =Eco_base!K113 -> 30 | AF78: 0 | AG78: 0.1666666667 | AH78: 0 | AI78: 0 | AJ78: 0
C79: PV collectors | V79: Cold production
D80: PV | E80: =Eco_base!J65 -> 20 | F80: =FLOOR(N/E80,1) -> 1 | G80: =1-(N/E80-TRUNC(N/E80)) -> 0.75 | H80: =IF(E80>=N,0,IF(i=d,(F80*J14)/(N*(1+i)),J14/N*((((1+i)^E80/(1+d)^E80)^(F80)-1)/(((1+i)^E80/(1+d)^E80)-1))*(1/(1+d)))) -> 665.0798973 | I80: =IF(G80=1,0,IF(i=d,(G80*J14)/(N*(1+i)),J14/N*((((1+i)^E80/(1+d)^E80)^(G80)-1)/(((1+i)^E80/(1+d)^E80)-1))*(1/(1+d)))) -> 498.8099229 | J80: =H80-I80 -> 166.2699743 | L80: =Eco_base!K65 -> 20 | M80: =FLOOR(N_spec/L80,1) -> 1 | N80: =1-(N_spec/L80-TRUNC(N_spec/L80)) -> 0.75 | O80: =IF(L80>=N_spec,0,IF(i_spec=d_spec,(M80*Q14)/(N_spec*(1+i_spec)),Q14/N_spec*((((1+i_spec)^L80/(1+d_spec)^L80)^(M80)-1)/(((1+i_spec)^L80/(1+d_spec)^L80)-1))*(1/(1+d_spec)))) -> 694.4075829 | P80: =IF(N80=1,0,IF(i_spec=d_spec,(N80*Q14)/(N_spec*(1+i_spec)),Q14/N_spec*((((1+i_spec)^L80/(1+d_spec)^L80)^(N80)-1)/(((1+i_spec)^L80/(1+d_spec)^L80)-1))*(1/(1+d_spec)))) -> 559.7552421 | Q80: =O80-P80 -> 134.6523409 | W80: =W14 -> Water Cooled VCC (>20kW) | AE80: =Eco_base!K163 -> 15 | AF80: =FLOOR(N_spec/AE80,1) -> 1 | AG80: =1-(N/AE80-TRUNC(N/AE80)) -> 0.3333333333 | AH80: =IF(AE80>=N_spec,0,IF(i_spec=d_spec,(AF80*AJ14)/(N_spec*(1+i_spec)),AJ14/N_spec*((((1+i_spec)^AE80/(1+d_spec)^AE80)^(AF80)-1)/(((1+i_spec)^AE80/(1+d_spec)^AE80)-1))*(1/(1+d_spec)))) -> 0 | AI80: =IF(AG80=1,0,IF(i_spec=d_spec,(AG80*AJ14)/(N_spec*(1+i_spec)),AJ14/N_spec*((((1+i_spec)^AE80/(1+d_spec)^AE80)^(AG80)-1)/(((1+i_spec)^AE80/(1+d_spec)^AE80)-1))*(1/(1+d_spec)))) -> 0 | AJ80: =AH80-AI80 -> 0
D81: specific PV | E81: =Eco_base!J66 -> 20 | F81: =FLOOR(N/E81,1) -> 1 | G81: =1-(N/E81-TRUNC(N/E81)) -> 0.75 | H81: =IF(E81>=N,0,IF(i=d,(F81*J15)/(N*(1+i)),J15/N*((((1+i)^E81/(1+d)^E81)^(F81)-1)/(((1+i)^E81/(1+d)^E81)-1))*(1/(1+d)))) -> 0 | I81: =IF(G81=1,0,IF(i=d,(G81*J15)/(N*(1+i)),J15/N*((((1+i)^E81/(1+d)^E81)^(G81)-1)/(((1+i)^E81/(1+d)^E81)-1))*(1/(1+d)))) -> 0 | J81: =H81-I81 -> 0 | L81: =Eco_base!K66 -> 20 | M81: =FLOOR(N_spec/L81,1) -> 1 | N81: =1-(N_spec/L81-TRUNC(N_spec/L81)) -> 0.75 | O81: =IF(L81>=N_spec,0,IF(i_spec=d_spec,(M81*Q15)/(N_spec*(1+i_spec)),Q15/N_spec*((((1+i_spec)^L81/(1+d_spec)^L81)^(M81)-1)/(((1+i_spec)^L81/(1+d_spec)^L81)-1))*(1/(1+d_spec)))) -> 0 | P81: =IF(N81=1,0,IF(i_spec=d_spec,(N81*Q15)/(N_spec*(1+i_spec)),Q15/N_spec*((((1+i_spec)^L81/(1+d_spec)^L81)^(N81)-1)/(((1+i_spec)^L81/(1+d_spec)^L81)-1))*(1/(1+d_spec)))) -> 0 | Q81: =O81-P81 -> 0 | W81: =W15 -> Air Cooled VCC (5-600kW) | X81: =Eco_base!J167 -> 15 | Y81: =FLOOR(N/X81,1) -> 1 | Z81: =1-(N/X81-TRUNC(N/X81)) -> 0.3333333333 | AA81: =IF(X81>=N,0,IF(i=d,(Y81*AC15)/(N*(1+i)),AC15/N*((((1+i)^X81/(1+d)^X81)^(Y81)-1)/(((1+i)^X81/(1+d)^X81)-1))*(1/(1+d)))) -> 244.4634859 | AB81: =IF(Z81=1,0,IF(i=d,(Z81*AC15)/(N*(1+i)),AC15/N*((((1+i)^X81/(1+d)^X81)^(Z81)-1)/(((1+i)^X81/(1+d)^X81)-1))*(1/(1+d)))) -> 81.48782862 | AC81: =AA81-AB81 -> 162.9756572 | AE81: =Eco_base!K167 -> 15 | AF81: =FLOOR(N_spec/AE81,1) -> 1 | AG81: =1-(N/AE81-TRUNC(N/AE81)) -> 0.3333333333 | AH81: =IF(AE81>=N_spec,0,IF(i_spec=d_spec,(AF81*AJ15)/(N_spec*(1+i_spec)),AJ15/N_spec*((((1+i_spec)^AE81/(1+d_spec)^AE81)^(AF81)-1)/(((1+i_spec)^AE81/(1+d_spec)^AE81)-1))*(1/(1+d_spec)))) -> 208.5308057 | AI81: =IF(AG81=1,0,IF(i_spec=d_spec,(AG81*AJ15)/(N_spec*(1+i_spec)),AJ15/N_spec*((((1+i_spec)^AE81/(1+d_spec)^AE81)^(AG81)-1)/(((1+i_spec)^AE81/(1+d_spec)^AE81)-1))*(1/(1+d_spec)))) -> 80.79963839 | AJ81: =AH81-AI81 -> 127.7311673
C82: Heating system | W82: =W16 -> District Cooling | AE82: =Eco_base!K171 -> 15 | AF82: =FLOOR(N_spec/AE82,1) -> 1 | AG82: =1-(N/AE82-TRUNC(N/AE82)) -> 0.3333333333 | AH82: =IF(AE82>=N_spec,0,IF(i_spec=d_spec,(AF82*AJ16)/(N_spec*(1+i_spec)),AJ16/N_spec*((((1+i_spec)^AE82/(1+d_spec)^AE82)^(AF82)-1)/(((1+i_spec)^AE82/(1+d_spec)^AE82)-1))*(1/(1+d_spec)))) -> 0 | AI82: =IF(AG82=1,0,IF(i_spec=d_spec,(AG82*AJ16)/(N_spec*(1+i_spec)),AJ16/N_spec*((((1+i_spec)^AE82/(1+d_spec)^AE82)^(AG82)-1)/(((1+i_spec)^AE82/(1+d_spec)^AE82)-1))*(1/(1+d_spec)))) -> 0 | AJ82: =AH82-AI82 -> 0
D83: Natural Gas | E83: =Eco_base!J69 -> 15 | F83: =FLOOR(N/E83,1) -> 1 | G83: =1-(N/E83-TRUNC(N/E83)) -> 0.3333333333 | H83: =IF(E83>=N,0,IF(i=d,(F83*J17)/(N*(1+i)),J17/N*((((1+i)^E83/(1+d)^E83)^(F83)-1)/(((1+i)^E83/(1+d)^E83)-1))*(1/(1+d)))) -> 0 | I83: =IF(G83=1,0,IF(i=d,(G83*J17)/(N*(1+i)),J17/N*((((1+i)^E83/(1+d)^E83)^(G83)-1)/(((1+i)^E83/(1+d)^E83)-1))*(1/(1+d)))) -> 0 | J83: =H83-I83 -> 0 | L83: =Eco_base!K69 -> 15 | M83: =FLOOR(N_spec/L83,1) -> 1 | N83: =1-(N_spec/L83-TRUNC(N_spec/L83)) -> 0.3333333333 | O83: =IF(L83>=N_spec,0,IF(i_spec=d_spec,(M83*Q17)/(N_spec*(1+i_spec)),Q17/N_spec*((((1+i_spec)^L83/(1+d_spec)^L83)^(M83)-1)/(((1+i_spec)^L83/(1+d_spec)^L83)-1))*(1/(1+d_spec)))) -> 0 | P83: =IF(N83=1,0,IF(i_spec=d_spec,(N83*Q17)/(N_spec*(1+i_spec)),Q17/N_spec*((((1+i_spec)^L83/(1+d_spec)^L83)^(N83)-1)/(((1+i_spec)^L83/(1+d_spec)^L83)-1))*(1/(1+d_spec)))) -> 0 | Q83: =O83-P83 -> 0 | V83: Storage
D84: Condensing Boiler | E84: =Eco_base!J73 -> 15 | F84: =FLOOR(N/E84,1) -> 1 | G84: =1-(N/E84-TRUNC(N/E84)) -> 0.3333333333 | H84: 0 | I84: 0 | J84: =H84-I84 -> 0 | L84: =Eco_base!K73 -> 15 | M84: =FLOOR(N_spec/L84,1) -> 1 | N84: =1-(N_spec/L84-TRUNC(N_spec/L84)) -> 0.3333333333 | O84: 0 | P84: 0 | Q84: =O84-P84 -> 0 | W84: Hot tank | X84: =Eco_base!J152 -> 20 | Y84: =FLOOR(N_spec/X84,1) -> 1 | Z84: =1-(N/X84-TRUNC(N/X84)) -> 0.75 | AA84: =IF(X84>=N,0,IF(i=d,(Y84*AC18)/(N*(1+i)),AC18/N*((((1+i)^X84/(1+d)^X84)^(Y84)-1)/(((1+i)^X84/(1+d)^X84)-1))*(1/(1+d)))) -> 18.49961862 | AB84: =IF(Z84=1,0,IF(i=d,(Z84*AC18)/(N*(1+i)),AC18/N*((((1+i)^X84/(1+d)^X84)^(Z84)-1)/(((1+i)^X84/(1+d)^X84)-1))*(1/(1+d)))) -> 13.87471397 | AC84: =AA84-AB84 -> 4.624904655 | AE84: =Eco_base!K152 -> 20 | AF84: =FLOOR(N_spec/AE84,1) -> 1 | AG84: =1-(N/AE84-TRUNC(N/AE84)) -> 0.75 | AH84: =IF(AE84>=N_spec,0,IF(i_spec=d_spec,(AF84*AJ18)/(N_spec*(1+i_spec)),AJ18/N_spec*((((1+i_spec)^AE84/(1+d_spec)^AE84)^(AF84)-1)/(((1+i_spec)^AE84/(1+d_spec)^AE84)-1))*(1/(1+d_spec)))) -> 39.81042654 | AI84: =IF(AG84=1,0,IF(i_spec=d_spec,(AG84*AJ18)/(N_spec*(1+i_spec)),AJ18/N_spec*((((1+i_spec)^AE84/(1+d_spec)^AE84)^(AG84)-1)/(((1+i_spec)^AE84/(1+d_spec)^AE84)-1))*(1/(1+d_spec)))) -> 32.09080012 | AJ84: =AH84-AI84 -> 7.719626422
D85: Oil Boiler | E85: =Eco_base!J77 -> 12 | F85: =FLOOR(N/E85,1) -> 2 | G85: =1-(N/E85-TRUNC(N/E85)) -> 0.9166666667 | H85: 0 | I85: 0 | J85: =H85-I85 -> 0 | L85: =Eco_base!K77 -> 12 | M85: =FLOOR(N_spec/L85,1) -> 2 | N85: =1-(N_spec/L85-TRUNC(N_spec/L85)) -> 0.9166666667 | O85: 0 | P85: 0 | Q85: =O85-P85 -> 0 | W85: Cold tank | X85: =Eco_base!J156 -> 20 | Y85: =FLOOR(N_spec/X85,1) -> 1 | Z85: =1-(N/X85-TRUNC(N/X85)) -> 0.75 | AA85: =IF(X85>=N,0,IF(i=d,(Y85*AC19)/(N*(1+i)),AC19/N*((((1+i)^X85/(1+d)^X85)^(Y85)-1)/(((1+i)^X85/(1+d)^X85)-1))*(1/(1+d)))) -> 34.9395549 | AB85: =IF(Z85=1,0,IF(i=d,(Z85*AC19)/(N*(1+i)),AC19/N*((((1+i)^X85/(1+d)^X85)^(Z85)-1)/(((1+i)^X85/(1+d)^X85)-1))*(1/(1+d)))) -> 26.20466617 | AC85: =AA85-AB85 -> 8.734888725 | AE85: =Eco_base!K156 -> 20 | AF85: =FLOOR(N_spec/AE85,1) -> 1 | AG85: =1-(N/AE85-TRUNC(N/AE85)) -> 0.75 | AH85: =IF(AE85>=N_spec,0,IF(i_spec=d_spec,(AF85*AJ19)/(N_spec*(1+i_spec)),AJ19/N_spec*((((1+i_spec)^AE85/(1+d_spec)^AE85)^(AF85)-1)/(((1+i_spec)^AE85/(1+d_spec)^AE85)-1))*(1/(1+d_spec)))) -> 0 | AI85: =IF(AG85=1,0,IF(i_spec=d_spec,(AG85*AJ19)/(N_spec*(1+i_spec)),AJ19/N_spec*((((1+i_spec)^AE85/(1+d_spec)^AE85)^(AG85)-1)/(((1+i_spec)^AE85/(1+d_spec)^AE85)-1))*(1/(1+d_spec)))) -> 0 | AJ85: =AH85-AI85 -> 0
D86: Electric Heater | E86: =Eco_base!J81 -> 15 | F86: =FLOOR(N/E86,1) -> 1 | G86: =1-(N/E86-TRUNC(N/E86)) -> 0.3333333333 | H86: 0 | I86: 0 | J86: =H86-I86 -> 0 | L86: =Eco_base!K81 -> 15 | M86: =FLOOR(N_spec/L86,1) -> 1 | N86: =1-(N_spec/L86-TRUNC(N_spec/L86)) -> 0.3333333333 | O86: 0 | P86: 0 | Q86: =O86-P86 -> 0 | V86: Reference auxiliaries
D87: Pellets | E87: =Eco_base!J85 -> 15 | F87: =FLOOR(N/E87,1) -> 1 | G87: =1-(N/E87-TRUNC(N/E87)) -> 0.3333333333 | H87: 0 | I87: 0 | J87: =H87-I87 -> 0 | L87: =Eco_base!K85 -> 15 | M87: =FLOOR(N_spec/L87,1) -> 1 | N87: =1-(N_spec/L87-TRUNC(N_spec/L87)) -> 0.3333333333 | O87: 0 | P87: 0 | Q87: =O87-P87 -> 0 | W87: heating | X87: =Eco_base!J187 -> 20 | Y87: =FLOOR(N/X87,1) -> 1 | Z87: =1-(N/X87-TRUNC(N/X87)) -> 0.75 | AA87: =IF(X87>=N,0,IF(i=d,(Y87*AC21)/(N*(1+i)),AC21/N*((((1+i)^X87/(1+d)^X87)^(Y87)-1)/(((1+i)^X87/(1+d)^X87)-1))*(1/(1+d)))) -> 62.42182928 | AB87: =IF(Z87=1,0,IF(i=d,(Z87*AC21)/(N*(1+i)),AC21/N*((((1+i)^X87/(1+d)^X87)^(Z87)-1)/(((1+i)^X87/(1+d)^X87)-1))*(1/(1+d)))) -> 46.81637196 | AC87: =AA87-AB87 -> 15.60545732 | AE87: =Eco_base!K187 -> 20 | AF87: =FLOOR(N_spec/AE87,1) -> 1 | AG87: =1-(N/AE87-TRUNC(N/AE87)) -> 0.75 | AH87: =IF(AE87>=N_spec,0,IF(i_spec=d_spec,(AF87*AJ21)/(N_spec*(1+i_spec)),AJ21/N_spec*((((1+i_spec)^AE87/(1+d_spec)^AE87)^(AF87)-1)/(((1+i_spec)^AE87/(1+d_spec)^AE87)-1))*(1/(1+d_spec)))) -> 22.1042654 | AI87: =IF(AG87=1,0,IF(i_spec=d_spec,(AG87*AJ21)/(N_spec*(1+i_spec)),AJ21/N_spec*((((1+i_spec)^AE87/(1+d_spec)^AE87)^(AG87)-1)/(((1+i_spec)^AE87/(1+d_spec)^AE87)-1))*(1/(1+d_spec)))) -> 17.81803473 | AJ87: =AH87-AI87 -> 4.28623067
D88: Heat Pump | E88: =Eco_base!J89 -> 18 | F88: 1 | G88: 0.6111111111 | H88: 101.5797065 | I88: 62.07648732 | J88: 39.50321921 | L88: =Eco_base!K89 -> 15 | M88: 1 | N88: 0.3333333333 | O88: 168.7962085 | P88: 65.40363456 | Q88: 103.392574 | W88: cooling | X88: =Eco_base!J188 -> 20 | Y88: =FLOOR(N/X88,1) -> 1 | Z88: =1-(N/X88-TRUNC(N/X88)) -> 0.75 | AA88: =IF(X88>=N,0,IF(i=d,(Y88*AC22)/(N*(1+i)),AC22/N*((((1+i)^X88/(1+d)^X88)^(Y88)-1)/(((1+i)^X88/(1+d)^X88)-1))*(1/(1+d)))) -> 122.2317429 | AB88: =IF(Z88=1,0,IF(i=d,(Z88*AC22)/(N*(1+i)),AC22/N*((((1+i)^X88/(1+d)^X88)^(Z88)-1)/(((1+i)^X88/(1+d)^X88)-1))*(1/(1+d)))) -> 91.6738072 | AC88: =AA88-AB88 -> 30.55793573 | AE88: =Eco_base!K188 -> 20 | AF88: =FLOOR(N_spec/AE88,1) -> 1 | AG88: =1-(N/AE88-TRUNC(N/AE88)) -> 0.75 | AH88: =IF(AE88>=N_spec,0,IF(i_spec=d_spec,(AF88*AJ22)/(N_spec*(1+i_spec)),AJ22/N_spec*((((1+i_spec)^AE88/(1+d_spec)^AE88)^(AF88)-1)/(((1+i_spec)^AE88/(1+d_spec)^AE88)-1))*(1/(1+d_spec)))) -> 114.6919431 | AI88: =IF(AG88=1,0,IF(i_spec=d_spec,(AG88*AJ22)/(N_spec*(1+i_spec)),AJ22/N_spec*((((1+i_spec)^AE88/(1+d_spec)^AE88)^(AG88)-1)/(((1+i_spec)^AE88/(1+d_spec)^AE88)-1))*(1/(1+d_spec)))) -> 92.45206701 | AJ88: =AH88-AI88 -> 22.23987612
D89: Reversible Heat Pump | E89: =Eco_base!J93 -> 18 | F89: 1 | G89: 0.6111111111 | H89: 0 | I89: 0 | J89: 0 | L89: =Eco_base!K93 -> 18 | M89: 1 | N89: 0.6111111111 | O89: 0 | P89: 0 | Q89: 0
D90: Absorption Heat Pump | E90: =Eco_base!J99 -> 18 | F90: 1 | G90: 0.6111111111 | H90: 0 | I90: 0 | J90: 0 | L90: =Eco_base!K99 -> 18 | M90: 1 | N90: 0.6111111111 | O90: 0 | P90: 0 | Q90: 0
D91: Reversible AHP | E91: =Eco_base!J103 -> 18 | F91: 1 | G91: 0.6111111111 | H91: 0 | I91: 0 | J91: 0 | L91: =Eco_base!K103 -> 18 | M91: 1 | N91: 0.6111111111 | O91: 0 | P91: 0 | Q91: 0
D92: CHP | E92: =Eco_base!J109 -> 15 | F92: 1 | G92: 0.3333333333 | H92: 0 | I92: 0 | J92: 0 | L92: =Eco_base!K109 -> 15 | M92: 1 | N92: 0.3333333333 | O92: 0 | P92: 0 | Q92: 0
D93: District Heating | E93: =Eco_base!J113 -> 30 | F93: 0 | G93: 0.1666666667 | H93: 0 | I93: 0 | J93: 0 | L93: =Eco_base!K113 -> 30 | M93: 0 | N93: 0.1666666667 | O93: 0 | P93: 0 | Q93: 0
C94: Cold production
D95: =D29 -> Absorption chiller SE | E95: =Eco_base!J118 -> 30 | F95: =FLOOR(N/E95,1) -> 0 | G95: =1-(N/E95-TRUNC(N/E95)) -> 0.1666666667 | H95: =IF(E95>=N,0,IF(i=d,(F95*J29)/(N*(1+i)),J29/N*((((1+i)^E95/(1+d)^E95)^(F95)-1)/(((1+i)^E95/(1+d)^E95)-1))*(1/(1+d)))) -> 0 | I95: =IF(G95=1,0,IF(i=d,(G95*J29)/(N*(1+i)),J29/N*((((1+i)^E95/(1+d)^E95)^(G95)-1)/(((1+i)^E95/(1+d)^E95)-1))*(1/(1+d)))) -> 0 | J95: =H95-I95 -> 0 | L95: =Eco_base!K118 -> 30 | M95: =FLOOR(N_spec/L95,1) -> 0 | N95: =1-(N_spec/L95-TRUNC(N_spec/L95)) -> 0.1666666667 | O95: =IF(L95>=N_spec,0,IF(i_spec=d_spec,(M95*Q29)/(N_spec*(1+i_spec)),Q29/N_spec*((((1+i_spec)^L95/(1+d_spec)^L95)^(M95)-1)/(((1+i_spec)^L95/(1+d_spec)^L95)-1))*(1/(1+d_spec)))) -> 0 | P95: =IF(N95=1,0,IF(i_spec=d_spec,(N95*Q29)/(N_spec*(1+i_spec)),Q29/N_spec*((((1+i_spec)^L95/(1+d_spec)^L95)^(N95)-1)/(((1+i_spec)^L95/(1+d_spec)^L95)-1))*(1/(1+d_spec)))) -> 0 | Q95: =O95-P95 -> 0
D96: Absorption chiller DE | E96: =Eco_base!J122 -> 18 | F96: 1 | G96: 0.6111111111 | H96: 0 | I96: 0 | J96: 0 | L96: =Eco_base!K122 -> 18 | M96: 1 | N96: 0.6111111111 | O96: 0 | P96: 0 | Q96: 0
D97: Adsorption chiller | E97: =Eco_base!J126 -> 18 | F97: 1 | G97: 0.6111111111 | H97: 0 | I97: 0 | J97: 0 | L97: =Eco_base!K126 -> 18 | M97: 1 | N97: 0.6111111111 | O97: 0 | P97: 0 | Q97: 0
D98: Water Cooled VCC (>20kW) | E98: =Eco_base!J163 -> 15 | F98: 1 | G98: 0.3333333333 | H98: 0 | I98: 0 | J98: 0 | L98: =Eco_base!K163 -> 15 | M98: 1 | N98: 0.3333333333 | O98: 0 | P98: 0 | Q98: 0
D99: Air Cooled VCC (5-600kW) | E99: =Eco_base!J167 -> 15 | F99: 1 | G99: 0.3333333333 | H99: 0 | I99: 0 | J99: 0 | L99: =Eco_base!K167 -> 15 | M99: 1 | N99: 0.3333333333 | O99: 0 | P99: 0 | Q99: 0
D100: District Cooling | E100: =Eco_base!J130 -> 30 | F100: 0 | G100: 0.1666666667 | H100: 0 | I100: 0 | J100: 0 | L100: =Eco_base!K130 -> 30 | M100: 0 | N100: 0.1666666667 | O100: 0 | P100: 0 | Q100: 0
C101: Heat rejection
D102: Cooling tower - wet | E102: =Eco_base!J136 -> 15 | F102: =FLOOR(N/E102,1) -> 1 | G102: =1-(N/E102-TRUNC(N/E102)) -> 0.3333333333 | H102: =IF(E102>=N,0,IF(i=d,(F102*J36)/(N*(1+i)),J36/N*((((1+i)^E102/(1+d)^E102)^(F102)-1)/(((1+i)^E102/(1+d)^E102)-1))*(1/(1+d)))) -> 0 | I102: =IF(G102=1,0,IF(i=d,(G102*J36)/(N*(1+i)),J36/N*((((1+i)^E102/(1+d)^E102)^(G102)-1)/(((1+i)^E102/(1+d)^E102)-1))*(1/(1+d)))) -> 0 | J102: =H102-I102 -> 0 | L102: =Eco_base!K136 -> 15 | M102: =FLOOR(N_spec/L102,1) -> 1 | N102: =1-(N_spec/L102-TRUNC(N_spec/L102)) -> 0.3333333333 | O102: =IF(L102>=N_spec,0,IF(i_spec=d_spec,(M102*Q36)/(N_spec*(1+i_spec)),Q36/N_spec*((((1+i_spec)^L102/(1+d_spec)^L102)^(M102)-1)/(((1+i_spec)^L102/(1+d_spec)^L102)-1))*(1/(1+d_spec)))) -> 0 | P102: =IF(N102=1,0,IF(i_spec=d_spec,(N102*Q36)/(N_spec*(1+i_spec)),Q36/N_spec*((((1+i_spec)^L102/(1+d_spec)^L102)^(N102)-1)/(((1+i_spec)^L102/(1+d_spec)^L102)-1))*(1/(1+d_spec)))) -> 0 | Q102: =O102-P102 -> 0
D103: Cooling tower - dry | E103: =Eco_base!J140 -> 20 | F103: =FLOOR(N/E103,1) -> 1 | G103: =1-(N/E103-TRUNC(N/E103)) -> 0.75 | H103: =IF(E103>=N,0,IF(i=d,(F103*J37)/(N*(1+i)),J37/N*((((1+i)^E103/(1+d)^E103)^(F103)-1)/(((1+i)^E103/(1+d)^E103)-1))*(1/(1+d)))) -> 0 | I103: =IF(G103=1,0,IF(i=d,(G103*J37)/(N*(1+i)),J37/N*((((1+i)^E103/(1+d)^E103)^(G103)-1)/(((1+i)^E103/(1+d)^E103)-1))*(1/(1+d)))) -> 0 | J103: =H103-I103 -> 0 | L103: =Eco_base!K140 -> 20 | M103: =FLOOR(N_spec/L103,1) -> 1 | N103: =1-(N_spec/L103-TRUNC(N_spec/L103)) -> 0.75 | O103: =IF(L103>=N_spec,0,IF(i_spec=d_spec,(M103*Q37)/(N_spec*(1+i_spec)),Q37/N_spec*((((1+i_spec)^L103/(1+d_spec)^L103)^(M103)-1)/(((1+i_spec)^L103/(1+d_spec)^L103)-1))*(1/(1+d_spec)))) -> 0 | P103: =IF(N103=1,0,IF(i_spec=d_spec,(N103*Q37)/(N_spec*(1+i_spec)),Q37/N_spec*((((1+i_spec)^L103/(1+d_spec)^L103)^(N103)-1)/(((1+i_spec)^L103/(1+d_spec)^L103)-1))*(1/(1+d_spec)))) -> 0 | Q103: =O103-P103 -> 0
D104: Cooling tower - hybrid | E104: =Eco_base!J144 -> 15 | F104: =FLOOR(N/E104,1) -> 1 | G104: =1-(N/E104-TRUNC(N/E104)) -> 0.3333333333 | H104: =IF(E104>=N,0,IF(i=d,(F104*J38)/(N*(1+i)),J38/N*((((1+i)^E104/(1+d)^E104)^(F104)-1)/(((1+i)^E104/(1+d)^E104)-1))*(1/(1+d)))) -> 0 | I104: =IF(G104=1,0,IF(i=d,(G104*J38)/(N*(1+i)),J38/N*((((1+i)^E104/(1+d)^E104)^(G104)-1)/(((1+i)^E104/(1+d)^E104)-1))*(1/(1+d)))) -> 0 | J104: =H104-I104 -> 0 | L104: =Eco_base!K144 -> 20 | M104: =FLOOR(N_spec/L104,1) -> 1 | N104: =1-(N_spec/L104-TRUNC(N_spec/L104)) -> 0.75 | O104: =IF(L104>=N_spec,0,IF(i_spec=d_spec,(M104*Q38)/(N_spec*(1+i_spec)),Q38/N_spec*((((1+i_spec)^L104/(1+d_spec)^L104)^(M104)-1)/(((1+i_spec)^L104/(1+d_spec)^L104)-1))*(1/(1+d_spec)))) -> 0 | P104: =IF(N104=1,0,IF(i_spec=d_spec,(N104*Q38)/(N_spec*(1+i_spec)),Q38/N_spec*((((1+i_spec)^L104/(1+d_spec)^L104)^(N104)-1)/(((1+i_spec)^L104/(1+d_spec)^L104)-1))*(1/(1+d_spec)))) -> 0 | Q104: =O104-P104 -> 0
D105: specific CT | E105: =Eco_base!J148 -> 20 | F105: =FLOOR(N/E105,1) -> 1 | G105: =1-(N/E105-TRUNC(N/E105)) -> 0.75 | H105: =IF(E105>=N,0,IF(i=d,(F105*J39)/(N*(1+i)),J39/N*((((1+i)^E105/(1+d)^E105)^(F105)-1)/(((1+i)^E105/(1+d)^E105)-1))*(1/(1+d)))) -> 0 | I105: =IF(G105=1,0,IF(i=d,(G105*J39)/(N*(1+i)),J39/N*((((1+i)^E105/(1+d)^E105)^(G105)-1)/(((1+i)^E105/(1+d)^E105)-1))*(1/(1+d)))) -> 0 | J105: =H105-I105 -> 0 | L105: =Eco_base!K148 -> 20 | M105: =FLOOR(N_spec/L105,1) -> 1 | N105: =1-(N_spec/L105-TRUNC(N_spec/L105)) -> 0.75 | O105: =IF(L105>=N_spec,0,IF(i_spec=d_spec,(M105*Q39)/(N_spec*(1+i_spec)),Q39/N_spec*((((1+i_spec)^L105/(1+d_spec)^L105)^(M105)-1)/(((1+i_spec)^L105/(1+d_spec)^L105)-1))*(1/(1+d_spec)))) -> 0 | P105: =IF(N105=1,0,IF(i_spec=d_spec,(N105*Q39)/(N_spec*(1+i_spec)),Q39/N_spec*((((1+i_spec)^L105/(1+d_spec)^L105)^(N105)-1)/(((1+i_spec)^L105/(1+d_spec)^L105)-1))*(1/(1+d_spec)))) -> 0 | Q105: =O105-P105 -> 0
C106: Storage
D107: Hot tank | E107: =Eco_base!J152 -> 20 | F107: =FLOOR(N/E107,1) -> 1 | G107: =1-(N/E107-TRUNC(N/E107)) -> 0.75 | H107: =IF(E107>=N,0,IF(i=d,(F107*J41)/(N*(1+i)),J41/N*((((1+i)^E107/(1+d)^E107)^(F107)-1)/(((1+i)^E107/(1+d)^E107)-1))*(1/(1+d)))) -> 58.94149924 | I107: =IF(G107=1,0,IF(i=d,(G107*J41)/(N*(1+i)),J41/N*((((1+i)^E107/(1+d)^E107)^(G107)-1)/(((1+i)^E107/(1+d)^E107)-1))*(1/(1+d)))) -> 44.20612443 | J107: =H107-I107 -> 14.73537481 | L107: =Eco_base!K152 -> 20 | M107: =FLOOR(N_spec/L107,1) -> 1 | N107: =1-(N_spec/L107-TRUNC(N_spec/L107)) -> 0.75 | O107: =IF(L107>=N_spec,0,IF(i_spec=d_spec,(M107*Q41)/(N_spec*(1+i_spec)),Q41/N_spec*((((1+i_spec)^L107/(1+d_spec)^L107)^(M107)-1)/(((1+i_spec)^L107/(1+d_spec)^L107)-1))*(1/(1+d_spec)))) -> 39.81042654 | P107: =IF(N107=1,0,IF(i_spec=d_spec,(N107*Q41)/(N_spec*(1+i_spec)),Q41/N_spec*((((1+i_spec)^L107/(1+d_spec)^L107)^(N107)-1)/(((1+i_spec)^L107/(1+d_spec)^L107)-1))*(1/(1+d_spec)))) -> 32.09080012 | Q107: =O107-P107 -> 7.719626422
D108: Cold tank | E108: =Eco_base!J156 -> 20 | F108: =FLOOR(N/E108,1) -> 1 | G108: =1-(N/E108-TRUNC(N/E108)) -> 0.75 | H108: =IF(E108>=N,0,IF(i=d,(F108*J42)/(N*(1+i)),J42/N*((((1+i)^E108/(1+d)^E108)^(F108)-1)/(((1+i)^E108/(1+d)^E108)-1))*(1/(1+d)))) -> 0 | I108: =IF(G108=1,0,IF(i=d,(G108*J42)/(N*(1+i)),J42/N*((((1+i)^E108/(1+d)^E108)^(G108)-1)/(((1+i)^E108/(1+d)^E108)-1))*(1/(1+d)))) -> 0 | J108: =H108-I108 -> 0 | L108: =Eco_base!K156 -> 20 | M108: =FLOOR(N_spec/L108,1) -> 1 | N108: =1-(N_spec/L108-TRUNC(N_spec/L108)) -> 0.75 | O108: =IF(L108>=N_spec,0,IF(i_spec=d_spec,(M108*Q42)/(N_spec*(1+i_spec)),Q42/N_spec*((((1+i_spec)^L108/(1+d_spec)^L108)^(M108)-1)/(((1+i_spec)^L108/(1+d_spec)^L108)-1))*(1/(1+d_spec)))) -> 0 | P108: =IF(N108=1,0,IF(i_spec=d_spec,(N108*Q42)/(N_spec*(1+i_spec)),Q42/N_spec*((((1+i_spec)^L108/(1+d_spec)^L108)^(N108)-1)/(((1+i_spec)^L108/(1+d_spec)^L108)-1))*(1/(1+d_spec)))) -> 0 | Q108: =O108-P108 -> 0
D109: Battery | E109: =Eco_base!J159 -> 10 | F109: =FLOOR(N/E109,1) -> 2 | G109: =1-(N/E109-TRUNC(N/E109)) -> 0.5 | H109: =IF(E109>=N,0,IF(i=d,(F109*J43)/(N*(1+i)),J43/N*((((1+i)^E109/(1+d)^E109)^(F109)-1)/(((1+i)^E109/(1+d)^E109)-1))*(1/(1+d)))) -> 0 | I109: =IF(G109=1,0,IF(i=d,(G109*J43)/(N*(1+i)),J43/N*((((1+i)^E109/(1+d)^E109)^(G109)-1)/(((1+i)^E109/(1+d)^E109)-1))*(1/(1+d)))) -> 0 | J109: =H109-I109 -> 0 | L109: =Eco_base!K159 -> 10 | M109: =FLOOR(N_spec/L109,1) -> 2 | N109: =1-(N_spec/L109-TRUNC(N_spec/L109)) -> 0.5 | O109: =IF(L109>=N_spec,0,IF(i_spec=d_spec,(M109*Q43)/(N_spec*(1+i_spec)),Q43/N_spec*((((1+i_spec)^L109/(1+d_spec)^L109)^(M109)-1)/(((1+i_spec)^L109/(1+d_spec)^L109)-1))*(1/(1+d_spec)))) -> 0 | P109: =IF(N109=1,0,IF(i_spec=d_spec,(N109*Q43)/(N_spec*(1+i_spec)),Q43/N_spec*((((1+i_spec)^L109/(1+d_spec)^L109)^(N109)-1)/(((1+i_spec)^L109/(1+d_spec)^L109)-1))*(1/(1+d_spec)))) -> 0 | Q109: =O109-P109 -> 0
C110: Auxiliaries (not solar)
D111: heating | E111: =Eco_base!J174 -> 20 | F111: =FLOOR(N/E111,1) -> 1 | G111: =1-(N/E111-TRUNC(N/E111)) -> 0.75 | H111: =IF(E111>=N,0,IF(i=d,(F111*J45)/(N*(1+i)),J45/N*((((1+i)^E111/(1+d)^E111)^(F111)-1)/(((1+i)^E111/(1+d)^E111)-1))*(1/(1+d)))) -> 50.78985327 | I111: =IF(G111=1,0,IF(i=d,(G111*J45)/(N*(1+i)),J45/N*((((1+i)^E111/(1+d)^E111)^(G111)-1)/(((1+i)^E111/(1+d)^E111)-1))*(1/(1+d)))) -> 38.09238995 | J111: =H111-I111 -> 12.69746332 | L111: =Eco_base!K174 -> 20 | M111: =FLOOR(N_spec/L111,1) -> 1 | N111: =1-(N_spec/L111-TRUNC(N_spec/L111)) -> 0.75 | O111: =IF(L111>=N_spec,0,IF(i_spec=d_spec,(M111*Q45)/(N_spec*(1+i_spec)),Q45/N_spec*((((1+i_spec)^L111/(1+d_spec)^L111)^(M111)-1)/(((1+i_spec)^L111/(1+d_spec)^L111)-1))*(1/(1+d_spec)))) -> 84.39810427 | P111: =IF(N111=1,0,IF(i_spec=d_spec,(N111*Q45)/(N_spec*(1+i_spec)),Q45/N_spec*((((1+i_spec)^L111/(1+d_spec)^L111)^(N111)-1)/(((1+i_spec)^L111/(1+d_spec)^L111)-1))*(1/(1+d_spec)))) -> 68.03249625 | Q111: =O111-P111 -> 16.36560801
D112: cooling | E112: =Eco_base!J175 -> 20 | F112: =FLOOR(N/E112,1) -> 1 | G112: =1-(N/E112-TRUNC(N/E112)) -> 0.75 | H112: =IF(E112>=N,0,IF(i=d,(F112*J46)/(N*(1+i)),J46/N*((((1+i)^E112/(1+d)^E112)^(F112)-1)/(((1+i)^E112/(1+d)^E112)-1))*(1/(1+d)))) -> 0 | I112: =IF(G112=1,0,IF(i=d,(G112*J46)/(N*(1+i)),J46/N*((((1+i)^E112/(1+d)^E112)^(G112)-1)/(((1+i)^E112/(1+d)^E112)-1))*(1/(1+d)))) -> 0 | J112: =H112-I112 -> 0 | L112: =Eco_base!K175 -> 20 | M112: =FLOOR(N_spec/L112,1) -> 1 | N112: =1-(N_spec/L112-TRUNC(N_spec/L112)) -> 0.75 | O112: =IF(L112>=N_spec,0,IF(i_spec=d_spec,(M112*Q46)/(N_spec*(1+i_spec)),Q46/N_spec*((((1+i_spec)^L112/(1+d_spec)^L112)^(M112)-1)/(((1+i_spec)^L112/(1+d_spec)^L112)-1))*(1/(1+d_spec)))) -> 0 | P112: =IF(N112=1,0,IF(i_spec=d_spec,(N112*Q46)/(N_spec*(1+i_spec)),Q46/N_spec*((((1+i_spec)^L112/(1+d_spec)^L112)^(N112)-1)/(((1+i_spec)^L112/(1+d_spec)^L112)-1))*(1/(1+d_spec)))) -> 0 | Q112: =O112-P112 -> 0
C113: TOTAL | H113: =SUM(H72:H112) -> 876.3909563 | I113: =SUM(I72:I112) -> 643.1849247 | J113: =H113-I113 -> 233.2060316 | O113: =SUM(O72:O112) -> 987.4123223 | P113: =SUM(P72:P112) -> 725.282173 | Q113: =O113-P113 -> 262.1301493 | V113: TOTAL | AA113: =SUM(AA72:AA112) -> 607.3998901 | AB113: =SUM(AB72:AB112) -> 301.6719408 | AC113: =AA113-AB113 -> 305.7279494 | AH113: =SUM(AH72:AH112) -> 425.3270142 | AI113: =SUM(AI72:AI112) -> 238.7328342 | AJ113: =AH113-AI113 -> 186.59418
B116: maintanance costs SOLAR Cooling Plant | U116: maintanance costs REFERENCE SYSTEM
C117: Solar collectors | J117: €/a | Q117: €/a | V117: Heating system | AC117: €/a | AJ117: €/a
D118: Flat plate collectors | I118: =Eco_base!M55 -> 0.015 | J118: =I118*J6 -> 0 | P118: =Eco_base!N55 -> 0.015 | Q118: =P118*Q6 -> 0 | W118: =W72 -> Natural Gas | AB118: =Eco_base!M69 -> 0.035 | AC118: =AB118*AC6 -> 112.5153473 | AI118: =Eco_base!N69 -> 0.035 | AJ118: =AI118*AJ6 -> 37.1
D119: Evacuated tube collectors | I119: =Eco_base!M56 -> 0.015 | J119: =I119*J7 -> 0 | P119: =Eco_base!N56 -> 0.015 | Q119: =P119*Q7 -> 0 | W119: =W73 -> Condensing Boiler | AI119: =Eco_base!N73 -> 0.04 | AJ119: 0
D120: specific SC | I120: =Eco_base!M57 -> 0.02 | J120: =I120*J8 -> 0 | P120: =Eco_base!N57 -> 0.02 | Q120: =P120*Q8 -> 0 | W120: Oil Boiler | AI120: =Eco_base!N77 -> 0.12 | AJ120: 0
C121: Solar collectors auxiliaries | W121: Electric Heater | AI121: =Eco_base!N81 -> 0.02 | AJ121: 0
D122: Flat plate collectors | I122: =Eco_base!M60 -> 0.025 | J122: =I122*J10 -> 0 | P122: =Eco_base!N60 -> 0.02 | Q122: =P122*Q10 -> 0 | W122: Pellets | AI122: =Eco_base!N85 -> 0.06 | AJ122: 0
D123: Evacuated tube collectors | I123: =Eco_base!M61 -> 0.025 | J123: =I123*J11 -> 0 | P123: =Eco_base!N61 -> 0.025 | Q123: =P123*Q11 -> 0 | W123: Heat Pump | AI123: =Eco_base!N89 -> 0.03 | AJ123: 0
D124: specific SC | I124: =Eco_base!M62 -> 0.025 | J124: =I124*J12 -> 0 | P124: =Eco_base!N62 -> 0.025 | Q124: =P124*Q12 -> 0 | W124: District Heating | AI124: =Eco_base!N113 -> 0.03 | AJ124: 0
C125: PV collectors | V125: Cold production
D126: PV | I126: =Eco_base!M65 -> 0.02 | J126: =I126*J14 -> 342.5161471 | P126: =Eco_base!N65 -> 0.02 | Q126: =P126*Q14 -> 366.3 | W126: =W80 -> Water Cooled VCC (>20kW) | AI126: =Eco_base!N163 -> 0.035 | AJ126: =AI126*AJ14 -> 0
D127: specific PV | I127: =Eco_base!M66 -> 0.02 | J127: =I127*J15 -> 0 | P127: =Eco_base!N66 -> 0.015 | Q127: =P127*Q15 -> 0 | W127: =W81 -> Air Cooled VCC (5-600kW) | AB127: =Eco_base!M167 -> 0.035 | AC127: =AB127*AC15 -> 220.3227166 | AI127: =Eco_base!N167 -> 0.035 | AJ127: =AI127*AJ15 -> 192.5
C128: Heating system | W128: =W82 -> District Cooling | AI128: =Eco_base!N171 -> 0.035 | AJ128: =AI128*AJ16 -> 0
D129: Natural Gas | I129: =Eco_base!M69 -> 0.035 | J129: =I129*J17 -> 0 | P129: =Eco_base!N69 -> 0.035 | Q129: =P129*Q17 -> 0 | V129: Storage
D130: Condensing Boiler | I130: =Eco_base!M73 -> 0.04 | J130: 0 | P130: =Eco_base!N70 -> 0 | Q130: 0 | W130: Hot tank | AB130: =Eco_base!M152 -> 0.02 | AC130: =AB130*AC18 -> 9.52730359 | AI130: =Eco_base!N152 -> 0.02 | AJ130: =AI130*AJ18 -> 21
D131: Oil Boiler | I131: =Eco_base!M77 -> 0.12 | J131: 0 | P131: =Eco_base!N73 -> 0.04 | Q131: 0 | W131: Cold tank | AB131: =Eco_base!M156 -> 0.02 | AC131: =AB131*AC19 -> 17.99387077 | AI131: =Eco_base!N156 -> 0.02 | AJ131: =AI131*AJ19 -> 0
D132: Electric Heater | I132: =Eco_base!M81 -> 0.02 | J132: 0 | P132: =Eco_base!N74 -> 0 | Q132: 0 | V132: Reference auxiliaries
D133: Pellets | I133: =Eco_base!M85 -> 0.06 | J133: 0 | P133: =Eco_base!N85 -> 0.06 | Q133: 0 | W133: heating | AB133: =Eco_base!M187 -> 0.015 | AC133: =AB133*AC21 -> 24.11043156 | AI133: =Eco_base!N187 -> 0.02 | AJ133: =AI133*AJ21 -> 11.66
D134: Heat Pump | I134: =Eco_base!M89 -> 0.025 | J134: 65.39193608 | P134: =Eco_base!N89 -> 0.03 | Q134: 133.56 | W134: cooling | AB134: =Eco_base!M188 -> 0.015 | AC134: =AB134*AC22 -> 47.21201071 | AI134: =Eco_base!N188 -> 0.02 | AJ134: =AI134*AJ22 -> 60.5
D135: Reversible Heat Pump | I135: =Eco_base!M93 -> 0.025 | J135: 0 | P135: =Eco_base!N93 -> 0.025 | Q135: 0
D136: Absorption Heat Pump | I136: =Eco_base!M99 -> 0.025 | J136: 0 | P136: =Eco_base!N99 -> 0.025 | Q136: 0
D137: Reversible AHP | I137: =Eco_base!M103 -> 0.025 | J137: 0 | P137: =Eco_base!N103 -> 0.025 | Q137: 0
D138: CHP | I138: =Eco_base!M109 -> 0.08 | J138: 0 | P138: =Eco_base!N109 -> 0.08 | Q138: 0
D139: District Heating | I139: =Eco_base!M113 -> 0.03 | J139: 0 | P139: =Eco_base!N113 -> 0.03 | Q139: 0
C140: Cold production
D141: =D95 -> Absorption chiller SE | I141: =Eco_base!M118 -> 0.03 | J141: =I141*J29 -> 0 | P141: =Eco_base!N118 -> 0.02 | Q141: =P141*Q29 -> 0
D142: Absorption chiller DE | I142: =Eco_base!M122 -> 0.03 | J142: 0 | P142: =Eco_base!N122 -> 0.03 | Q142: 0
D143: Adsorption chiller | I143: =Eco_base!M126 -> 0.03 | J143: 0 | P143: =Eco_base!N126 -> 0.03 | Q143: 0
D144: Water Cooled VCC (>20kW) | I144: =Eco_base!M163 -> 0.035 | J144: 0 | P144: =Eco_base!N163 -> 0.035 | Q144: 0
D145: Air Cooled VCC (5-600kW) | I145: =Eco_base!M167 -> 0.035 | J145: 0 | P145: =Eco_base!N167 -> 0.035 | Q145: 0
D146: District Cooling | I146: =Eco_base!M130 -> 0.03 | J146: 0 | P146: =Eco_base!N130 -> 0.03 | Q146: 0
C147: Heat rejection
D148: Cooling tower - wet | I148: =Eco_base!M136 -> 0.035 | J148: =I148*J36 -> 0 | P148: =Eco_base!N136 -> 0.035 | Q148: =P148*Q36 -> 0
D149: Cooling tower - dry | I149: =Eco_base!M140 -> 0.02 | J149: =I149*J37 -> 0 | P149: =Eco_base!N140 -> 0.01 | Q149: =P149*Q37 -> 0
D150: Cooling tower - hybrid | I150: =Eco_base!M144 -> 0.02 | J150: =I150*J38 -> 0 | P150: =Eco_base!N144 -> 0.035 | Q150: =P150*Q38 -> 0
D151: specific CT | I151: =Eco_base!M148 -> 0.035 | J151: =I151*J39 -> 0 | P151: =Eco_base!N148 -> 0.035 | Q151: =P151*Q39 -> 0
C152: Storage
D153: Hot tank | I153: =Eco_base!M152 -> 0.02 | J153: =I153*J41 -> 30.35487211 | P153: =Eco_base!N152 -> 0.02 | Q153: =P153*Q41 -> 21
D154: Cold tank | I154: =Eco_base!M156 -> 0.02 | J154: =I154*J42 -> 0 | P154: =Eco_base!N156 -> 0.02 | Q154: =P154*Q42 -> 0
D155: Battery | I155: =Eco_base!M171 -> 0.035 | J155: =I155*J43 -> 0 | P155: =Eco_base!N171 -> 0.035 | Q155: =P155*Q43 -> 0
C156: PV collectors
D157: PV | I157: =Eco_base!M174 -> 0.015 | J157: =I157*J45 -> 19.61758082 | P157: =Eco_base!N174 -> 0 | Q157: =P157*Q45 -> 0
D158: specific PV | I158: =Eco_base!M175 -> 0.015 | J158: =I158*J46 -> 0 | P158: =Eco_base!N175 -> 0 | Q158: =P158*Q46 -> 0
C159: TOTAL | I159: Cmain | J159: =SUM(J118:J158) -> 457.8805361 | Q159: =SUM(Q118:Q158) -> 520.86 | V159: TOTAL | AC159: =SUM(AC118:AC158) -> 431.6816805 | AJ159: =SUM(AJ118:AJ158) -> 322.76
B162: Total Costs of SOLAR Cooling Plant | U162: Total Costs of REFERENCE Plant
I163: Unit | J163: Cost (€) | AB163: Unit | AC163: Cost (€)
B164: INVESTMENT | U164: INVESTMENT
C165: Total investment of SOLAR COOLING SYSTEM | I165: € | J165: =J67 -> 31390.79037 | Q165: =Q67 -> 36225.813 | V165: Total investment of REFERENCE SYSTEM | AB165: € | AC165: =AC65 -> 25103.07821 | AJ165: =AJ65 -> 18004.89
C166: Annualized investment cost of SHC SYSTEM | I166: €/a | J166: =(J165*fL+(J165-J165*fL)*NL/(1/m*(1-(1/(1+m))^NL)))/N -> 1471.983303 | Q166: =(Q165*fl_spec+(Q165-Q165*fl_spec)*NL_spec/(1/m_spec*(1-(1/(1+m_spec))^NL_spec)))/N_spec -> 1698.708164 | V166: Annualized investment cost of REF SYSTEM | AB166: €/a | AC166: =(AC165*fL+(AC165-AC165*fL)*NL/(1/m*(1-(1/(1+m))^NL)))/N -> 1177.13863 | AJ166: =(AJ165*fl_spec+(AJ165-AJ165*fl_spec)*NL_spec/(1/m_spec*(1-(1/(1+m_spec))^NL_spec)))/N_spec -> 844.2889504
C167: Annualized replacement cost of SHC SYSTEM | I167: €/a | J167: =J113 -> 233.2060316 | Q167: =Q113 -> 262.1301493 | V167: Annualized replacement cost of REF SYSTEM | AB167: €/a | AC167: =AC113 -> 305.7279494 | AJ167: =AJ113 -> 186.59418
B168: OPERATION-ENERGY | U168: OPERATION-ENERGY
C169: Electricity Cost of renewable heating and cooling system for HVAC only | I169: €/a | J169: =IF(AND(INPUTS!E25=Conversion!D36, INPUTS!E27=Conversion!E36, INPUTS!E31=Conversion!C36, INPUTS!E34=Conversion!C36, INPUTS!E40=Conversion!F36, INPUTS!E42=Conversion!F36,INPUTS!E47=Conversion!G36, INPUTS!E50=Conversion!G36, SUM(INPUTS!E55:E60)=0),0,IF(INPUTS!K64=Conversion!L37,INPUTS!E63*Eco_base!F27+(SUMMARY!D32*SUM(Results!F182:F189)/(SUM(Results!F182:F189)+Results!F190))*Eco_base!F26,(SUMMARY!D32*SUM(Results!F182:F189)/(SUM(Results!F182:F189)+Results!F190))*Eco_base!F26)) -> 336.5739286 | Q169: =IF(AND(INPUTS!E25=Conversion!D36, INPUTS!E27=Conversion!E36, INPUTS!E31=Conversion!C36, INPUTS!E34=Conversion!C36, INPUTS!E40=Conversion!F36, INPUTS!E42=Conversion!F36,INPUTS!E47=Conversion!G36, INPUTS!E50=Conversion!G36,SUM(INPUTS!E55:E60)=0),0,IF(INPUTS!L64=Conversion!L37,INPUTS!E63*Eco_base!G27+(SUMMARY!D32*SUM(Results!F182:F189)/(SUM(Results!F182:F189)+Results!F190))*Eco_base!G26,(SUMMARY!D32*SUM(Results!F182:F189)/(SUM(Results!F182:F189)+Results!F190))*Eco_base!G26)) -> 334.9165358 | V169: Electricity Cost of REFERENCE SYSTEM | AB169: €/a | AC169: =IF(INPUTS!K64=Conversion!L37,INPUTS!K80*Eco_base!F27+(SUMMARY!D57-SUMMARY!D35)*Eco_base!F26,(SUMMARY!D57-SUMMARY!D35)*Eco_base!F26) -> 486.1813718 | AJ169: =IF(INPUTS!L64=Conversion!L37,INPUTS!L80*Eco_base!G27+(SUMMARY!G57-SUMMARY!D35)*Eco_base!G26,(SUMMARY!G57-SUMMARY!D35)*Eco_base!G26) -> 448.8494546
C170: Annualized Electricity Cost of renewable heating and cooling system for HVAC only | I170: €/a | J170: =IF(iee=d,J169/(1+iee),J169/N*(1/(d-iee)*(1-((1+iee)/(1+d))^N))) -> 326.7708045 | Q170: =IF(iee_spec=d_spec,Q169/(1+iee_spec),Q169/N_spec*(1/(d_spec-iee_spec)*(1-((1+iee_spec)/(1+d_spec))^N_spec))) -> 241.6440802 | V170: Annualized Electricity Cost of REF SYSTEM | AB170: €/a | AC170: =IF(iee=d,Cost_calc!AC169/(1+iee),AC169/N*(1/(d-iee)*(1-((1+iee)/(1+d))^N))) -> 472.0207493 | AJ170: =IF(iee_spec=d_spec,AJ169/(1+iee_spec),AJ169/N_spec*(1/(d_spec-iee_spec)*(1-((1+iee_spec)/(1+d_spec))^N_spec))) -> 323.8472934
C171: Feed-in tariffs electrical power | J171: =IF((SUMMARY!D32+SUMMARY!D33+SUMMARY!D34-SUMMARY!D31)>0,IF(OR(SUMMARY!$G$33*Eco_base!F29>N,SUMMARY!$G$34*Eco_base!F31>N),(-1)*(SUMMARY!D32+SUMMARY!D33+SUMMARY!D34-SUMMARY!D31)*(Eco_base!F28*SUMMARY!$G$33*N/N+Eco_base!F30*SUMMARY!$G$34*N/N),(-1)*(SUMMARY!D32+SUMMARY!D33+SUMMARY!D34-SUMMARY!D31)*(Eco_base!F28*SUMMARY!$G$33*Eco_base!F29/N+Eco_base!F30*SUMMARY!$G$34*Eco_base!F31/N)),0) -> -128.610066 | Q171: =IF((SUMMARY!D32+SUMMARY!D33+SUMMARY!D34-SUMMARY!D31)>0,IF(OR(SUMMARY!$G$33*Eco_base!G29>N,SUMMARY!$G$34*Eco_base!G31>N),(-1)*(SUMMARY!D32+SUMMARY!D33+SUMMARY!D34-SUMMARY!D31)*(Eco_base!G28*SUMMARY!$G$33*N/N+Eco_base!G30*SUMMARY!$G$34*N/N),(-1)*(SUMMARY!D32+SUMMARY!D33+SUMMARY!D34-SUMMARY!D31)*(Eco_base!G28*SUMMARY!$G$33*Eco_base!G29/N+Eco_base!G30*SUMMARY!$G$34*Eco_base!G31/N)),0) -> -128.610066
C172: Annualized feed-in tariffs electrical power | J172: =IF(iee=d,J171/(1+iee),J171/N*(1/(d-iee)*(1-((1+iee)/(1+d))^N))) -> -124.8641417 | Q172: =IF(iee=d,Q171/(1+iee),Q171/N*(1/(d-iee)*(1-((1+iee)/(1+d))^N))) -> -124.8641417
C173: Feed-in NO subsidies | J173: =IF((SUMMARY!D32+SUMMARY!D33+SUMMARY!D34-SUMMARY!D31)<0,0,IF(AND(Eco_base!F29<Eco_base!F14,SUMMARY!D34=0),(SUMMARY!D32+SUMMARY!D33+SUMMARY!D34-SUMMARY!D31)*(Eco_base!F32*SUMMARY!G33*(1-Eco_base!F29/Eco_base!F14)),IF(AND(Eco_base!F31<Eco_base!F14,SUMMARY!D33=0),(SUMMARY!D32+SUMMARY!D33+SUMMARY!D34-SUMMARY!D31)*(Eco_base!F32*SUMMARY!G34*(1-Eco_base!F31/Eco_base!F14)),IF(AND(Eco_base!F29<Eco_base!F14,Eco_base!F31<N),(SUMMARY!D32+SUMMARY!D33+SUMMARY!D34-SUMMARY!D31)*((Eco_base!F32*SUMMARY!G33*(1-Eco_base!F29/Eco_base!F14))+(Eco_base!F32*SUMMARY!G34*(1-Eco_base!F31/Eco_base!F14))),0))))*-(1) -> -33.2923716 | Q173: =IF((SUMMARY!D32+SUMMARY!D33+SUMMARY!D34-SUMMARY!D31)<0,0,IF(AND(Eco_base!G29<Eco_base!G14,SUMMARY!D34=0),(SUMMARY!D32+SUMMARY!D33+SUMMARY!D34-SUMMARY!D31)*(Eco_base!G32*SUMMARY!G33*(1-Eco_base!G29/Eco_base!G14)),IF(AND(Eco_base!G31<Eco_base!G14,SUMMARY!D33=0),(SUMMARY!D32+SUMMARY!D33+SUMMARY!D34-SUMMARY!D31)*(Eco_base!G32*SUMMARY!G34*(1-Eco_base!G31/Eco_base!G14)),IF(AND(Eco_base!G29<Eco_base!G14,Eco_base!G31<N),(SUMMARY!D32+SUMMARY!D33+SUMMARY!D34-SUMMARY!D31)*((Eco_base!G32*SUMMARY!G33*(1-Eco_base!G29/Eco_base!G14))+(Eco_base!G32*SUMMARY!G34*(1-Eco_base!G31/Eco_base!G14))),0))))*(-1) -> -33.2923716
C174: Annualized feed-in NO subsidies | J174: =IF(iee=d,J173/(1+iee),J173/N*(1/(d-iee)*(1-((1+iee)/(1+d))^N))) -> -32.32269087 | Q174: =IF(iee=d,Q173/(1+iee),Q173/N*(1/(d-iee)*(1-((1+iee)/(1+d))^N))) -> -32.32269087
C175: Feed-in tariffs district heating/cooling | I175: €/a | J175: =(-1)*(Eco_base!F46*SUMMARY!$D$30+Eco_base!F47*SUMMARY!$D$27) -> 0 | Q175: =(-1)*(Eco_base!G46*SUMMARY!$D$30+Eco_base!G47*SUMMARY!$D$27) -> 0
C176: Annualized feed-in tariffs district heating/cooling | J176: =IF(ieg=d,J175/(1+ieg),J175/N*(1/(d-ieg)*(1-((1+ieg)/(1+d))^N))) -> 0 | Q176: =IF(iee=d,Q175/(1+iee),Q175/N*(1/(d-iee)*(1-((1+iee)/(1+d))^N))) -> 0
C177: EC costs SHC SYSTEM 1 | E177: type: | F177: =INPUTS!E31 -> Heat Pump | I177: €/a | J177: =IF(OR(F177=Conversion!$C$36,F177=Conversion!$C$46,F177=Conversion!$C$37,),0,IF(F177=Conversion!$C$40,Eco_base!$F$37+SUMMARY!D36*(Eco_base!$F$36*INPUTS!$F$31+Eco_base!$F$34*(1-INPUTS!$F$31)),IF(OR(F177=Conversion!$C$38,F177=Conversion!$C$39,F177=Conversion!$C$42, F177=Conversion!$C$41),Eco_base!$F$35+SUMMARY!$D$36*Eco_base!$F$34,IF(F177=Conversion!$C$43,Eco_base!$F$41+SUMMARY!$D$36*Eco_base!$F$40,IF(F177=Conversion!$C$45,Eco_base!$F$39+SUMMARY!$D$36*Eco_base!$F$38,IF(F177=Conversion!$C$44,SUMMARY!$D$36*Eco_base!$F$26,Eco_base!$F$43+SUMMARY!$D$36*Eco_base!$F$42))))))+IF(SUMMARY!D27>0, SUMMARY!D27*Eco_base!F44+Eco_base!F45,0) -> 0 | M177: type: | N177: =INPUTS!E31 -> Heat Pump | Q177: =IF(OR(N177=Conversion!$C$36,N177=Conversion!$C$46,N177=Conversion!$C$37),0,IF(N177=Conversion!$C$40,Eco_base!$G$37+SUMMARY!D36*(Eco_base!$G$36*INPUTS!$F$31+Eco_base!$G$34*(1-INPUTS!$F$31)),IF(OR(N177=Conversion!$C$38,N177=Conversion!$C$39,N177=Conversion!$C$42, N177=Conversion!$C$41),Eco_base!$G$35+SUMMARY!$D$36*Eco_base!$G$34,IF(N177=Conversion!$C$43,Eco_base!$G$41+SUMMARY!$D$36*Eco_base!$G$40,IF(N177=Conversion!$C$45,Eco_base!$G$39+SUMMARY!$D$36*Eco_base!$G$38,IF(N177=Conversion!$C$44,SUMMARY!$D$36*Eco_base!$G$26,(Eco_base!$G$43+SUMMARY!$D$36*Eco_base!$G$42)))))))+IF(SUMMARY!D27>0, SUMMARY!D27*Eco_base!G44+Eco_base!G45,0) -> 0 | V177: EC costs REF SYSTEM | X177: type: | Y177: Natural Gas | AB177: €/a | AC177: =IF(AND(INPUTS!E31=Conversion!C36,INPUTS!E34=Conversion!C36),0,Eco_base!$F$35+(SUMMARY!$D$56*Eco_base!$F$34)) -> 100.5172882 | AF177: type: | AG177: =INPUTS!E67 -> Natural Gas | AJ177: =IF(OR(AG177=Conversion!$C$36,AG177=Conversion!$C$46,AG177=Conversion!$C$37),0,IF(AG177=Conversion!$C$40,Eco_base!$G$37+SUMMARY!$G$56*(Eco_base!$G$36*INPUTS!$F$31+Eco_base!$G$34*(1-INPUTS!$F$31)),IF(OR(AG177=Conversion!$C$38,AG177=Conversion!$C$39,AG177=Conversion!$C$42, AG177=Conversion!$C$41),Eco_base!$G$35+SUMMARY!$G$56*Eco_base!$G$34,IF(AG177=Conversion!$C$43,Eco_base!$G$41+SUMMARY!$G$58*Eco_base!$G$40,IF(AG177=Conversion!$C$45,Eco_base!$G$39+SUMMARY!$D$36*Eco_base!$G$38,IF(AG177=Conversion!$C$44,SUMMARY!$G$56*Eco_base!$G$26,(Eco_base!$G$43+SUMMARY!$G$56*Eco_base!$G$42)))))))+IF(SUMMARY!D27>0, SUMMARY!D27*Eco_base!G44+Eco_base!G45,0) -> 111.8099543
C178: Annualized EC Cost of SHC SYSTEM 1 | I178: €/a | J178: =IF(ieg=d,J177/(1+ieg),J177/N*(1/(d-ieg)*(1-((1+ieg)/(1+d))^N))) -> 0 | Q178: =IF(ieg=d,Q177/(1+ieg),Q177/N*(1/(d-ieg)*(1-((1+ieg)/(1+d))^N))) -> 0 | V178: Annualized EC Cost of REF SYSTEM | AB178: €/a | AC178: =IF(ieg=d,AC177/(1+ieg),AC177/N*(1/(d-ieg)*(1-((1+ieg)/(1+d))^N))) -> 97.58960023 | AJ178: =IF(ieg_spec=d_spec,AJ177/(1+ieg_spec),AJ177/N_spec*(1/(d_spec-ieg_spec)*(1-((1+ieg_spec)/(1+d_spec))^N_spec))) -> 80.67148281
C179: EC costs SHC SYSTEM 2 | E179: type: | F179: =INPUTS!E34 -> no heat source | I179: €/a | J179: =IF(OR(F179=Conversion!$C$36,F179=Conversion!$C$46,F179=Conversion!$C$37),0,IF(F179=Conversion!$C$40,Eco_base!$F$37+SUMMARY!$D$37*(Eco_base!$F$36*INPUTS!$F$31+Eco_base!$F$34*(1-INPUTS!$F$31)),IF(OR(F179=Conversion!$C$38,F179=Conversion!$C$39,F179=Conversion!$C$42, F179=Conversion!$C$41),Eco_base!$F$35+SUMMARY!$D$37*Eco_base!$F$34,IF(F179=Conversion!$C$43,Eco_base!$F$41+SUMMARY!$D$37*Eco_base!$F$40,IF(F179=Conversion!$C$45,Eco_base!$F$39+SUMMARY!$D$37*Eco_base!$F$38,IF(F177=Conversion!$C$44,SUMMARY!$D$37*Eco_base!$F$26,Eco_base!$F$43+SUMMARY!$D$37*Eco_base!$F$42))))))+IF(SUMMARY!D27>0, SUMMARY!D27*Eco_base!F44+Eco_base!F45,0) -> 0 | M179: type: | N179: =INPUTS!E34 -> no heat source | Q179: =IF(OR(N179=Conversion!$C$36,N179=Conversion!$C$46,N179=Conversion!$C$37),0,IF(N179=Conversion!$C$40,Eco_base!$G$37+SUMMARY!$D$37*(Eco_base!$G$36*INPUTS!$F$31+Eco_base!$G$34*(1-INPUTS!$F$31)),IF(OR(N179=Conversion!$C$38,N179=Conversion!$C$39,N179=Conversion!$C$42, N179=Conversion!$C$41),Eco_base!$G$35+SUMMARY!$D$37*Eco_base!$G$34,IF(N179=Conversion!$C$43,Eco_base!$G$41+SUMMARY!$D$37*Eco_base!$G$40,IF(N179=Conversion!$C$45,Eco_base!$G$39+SUMMARY!$D$37*Eco_base!$G$38,IF(N177=Conversion!$C$44,SUMMARY!$D$37*Eco_base!$G$26,(Eco_base!$G$43+SUMMARY!$D$37*Eco_base!$G$42)))))))+IF(SUMMARY!D27>0, SUMMARY!D27*Eco_base!G44+Eco_base!G45,0) -> 0
C180: Annualized EC Cost of SHC SYSTEM 2 | I180: €/a | J180: =IF(ieg=d,J179/(1+ieg),J179/N*(1/(d-ieg)*(1-((1+ieg)/(1+d))^N))) -> 0 | Q180: =IF(ieg=d,Q179/(1+ieg),Q179/N*(1/(d-ieg)*(1-((1+ieg)/(1+d))^N))) -> 0
B181: OPERATION-WATER | U181: OPERATION-WATER
C182: Water Cost of Cooling Tower 1 | I182: €/a | J182: =INPUTS!E49*Eco_base!F49 -> 0 | Q182: =INPUTS!E49*Eco_base!G49 -> 0 | V182: Water Cost of REFERENCE SYSTEM | AB182: €/a | AC182: =(IF(INPUTS!K79=Conversion!L37,INPUTS!$E$79*Eco_base!$F$49,0)) -> 0 | AJ182: =(IF(INPUTS!L79=Conversion!L37,INPUTS!$E$79*Eco_base!$G$49,0)) -> 0
C183: Annualized Water Cost of CT1 | I183: €/a | J183: =IF(i=d,J182/(1+i),J182/N*(1/(d-i)*(1-((1+i)/(1+d))^N))) -> 0 | Q183: =IF(i_spec=d_spec,Q182/(1+i_spec),Q182/N_spec*(1/(d_spec-i_spec)*(1-((1+i_spec)/(1+d_spec))^N_spec))) -> 0 | V183: Annualized Water Cost of REF SYSTEM | AB183: €/a | AC183: =IF(i=d,AC182/(1+i),AC182/N*(1/(d-i)*(1-((1+i)/(1+d))^N))) -> 0 | AJ183: =IF(i_spec=d_spec,AJ182/(1+i_spec),AJ182/N_spec*(1/(d_spec-i_spec)*(1-((1+i_spec)/(1+d_spec))^N_spec))) -> 0
C184: Water Cost of Cooling Tower 2 | I184: €/a | J184: =INPUTS!E52*Eco_base!F49 -> 0 | Q184: =INPUTS!E52*Eco_base!G49 -> 0
C185: Annualized Water Cost of CT2 | I185: €/a | J185: =IF(i=d,J184/(1+i),J184/N*(1/(d-i)*(1-((1+i)/(1+d))^N))) -> 0 | Q185: =IF(i_spec=d_spec,Q184/(1+i_spec),Q184/N_spec*(1/(d_spec-i_spec)*(1-((1+i_spec)/(1+d_spec))^N_spec))) -> 0
B186: OPERATION-MAINTENANCE | U186: OPERATION-MAINTENANCE
C187: Maintenance Cost of SOLAR COOLING SYSTEM | I187: €/a | J187: =J159 -> 457.8805361 | Q187: =Q159 -> 520.86 | V187: Maintenance Cost of REFERENCE SYSTEM | AB187: €/a | AC187: =AC159 -> 431.6816805 | AJ187: =AJ159 -> 322.76
C188: Annualized Maintenance Cost of SHC SYSTEM | I188: €/a | J188: =IF(i=d,J187/(1+i),J187/N*(1/(d-i)*(1-((1+i)/(1+d))^N))) -> 444.5442098 | Q188: =IF(i_spec=d_spec,Q187/(1+i_spec),Q187/N_spec*(1/(d_spec-i_spec)*(1-((1+i_spec)/(1+d_spec))^N_spec))) -> 346.0939379 | V188: Annualized Maintenance Cost of REF SYSTEM | AB188: €/a | AC188: =IF(i=d,Cost_calc!AC187/(1+i),Cost_calc!AC187/N*(1/(d-i)*(1-((1+i)/(1+d))^N))) -> 419.1084277 | AJ188: =IF(i_spec=d_spec,AJ187/(1+i_spec),AJ187/N_spec*(1/(d_spec-i_spec)*(1-((1+i_spec)/(1+d_spec))^N_spec))) -> 214.4631559
B189: DOMESTIC-ENERGY | U189: DOMESTIC-ENERGY
C190: Electricity Cost of Domestic Electricity | I190: €/a | J190: =SUMMARY!D35*Results!F190*Eco_base!F26 -> 46.52368532 | Q190: =SUMMARY!D35*Results!F190*Eco_base!G26 -> 41.87131679 | V190: Electricity Cost of Domestic Electricity | AB190: €/a | AC190: =(SUMMARY!D35)*Eco_base!F26 -> 108.222 | AJ190: =(SUMMARY!D35)*Eco_base!G26 -> 97.3998
C191: Annualized Electricity Cost of Domestic Electricity | I191: €/a | J191: =IF(iee=d,J190/(1+iee),J190/N*(1/(d-iee)*(1-((1+iee)/(1+d))^N))) -> 45.16862653 | Q191: =IF(iee_spec=d_spec,Q190/(1+iee_spec),Q190/N_spec*(1/(d_spec-iee_spec)*(1-((1+iee_spec)/(1+d_spec))^N_spec))) -> 30.21038006 | V191: Annualized Electricity Cost of Domestic Electricity | AB191: €/a | AC191: =IF(iee=d,AC190/(1+iee),AC190/N*(1/(d-iee)*(1-((1+iee)/(1+d))^N))) -> 105.0699029 | AJ191: =IF(iee_spec=d_spec,AJ190/(1+iee_spec),AJ190/N_spec*(1/(d_spec-iee_spec)*(1-((1+iee_spec)/(1+d_spec))^N_spec))) -> 70.27447907
B192: TOTAL ANNUALIZED COST OF SOLAR COOLING SYSTEM | U192: TOTAL ANNUALIAZED COST OF REFERENCE SYSTEM
C193: Total Annualized Cost of SOLAR COOLING SYSTEM | I193: €/a | J193: =SUM(J166,J167,J170,J178,J183,J188,J180,J185,J172,J176,J191,J174) -> 2364.486143 | Q193: =Q166+Q167+Q170+Q178+Q183+Q188+Q180+Q185+Q172+Q176+Q191+Q174 -> 2421.599879 | V193: Total Annualized Cost of REF SYSTEM | AB193: €/a | AC193: =AC166+AC167+AC170+AC178+AC183+AC188+AC191 -> 2576.65526 | AJ193: =AJ166+AJ167+AJ170+AJ178+AJ183+AJ188+AJ191 -> 1720.139542
D195: COST RATIO T53 | J195: =J193/AC193 -> 0.917657158
D196: COST RATIO spec | J196: =Q193/AJ193 -> 1.407792694
B200: Summary | D200: Invest | J200: =J166 -> 1471.983303 | Q200: =Q166 -> 1698.708164 | AC200: =AC166 -> 1177.13863 | AJ200: =AJ166 -> 844.2889504
D201: Replace+Residual | J201: =J167 -> 233.2060316 | Q201: =Q167 -> 262.1301493 | AC201: =AC167 -> 305.7279494 | AJ201: =AJ167 -> 186.59418
D202: Electricty - HVAC | J202: =J170 -> 326.7708045 | Q202: =Q170 -> 241.6440802 | AC202: =AC170 -> 472.0207493 | AJ202: =AJ170 -> 323.8472934
D203: feed-in electrical | J203: =J172+J174 -> -157.1868326 | Q203: =Q172+Q174 -> -157.1868326 | AC203: =AC172+AC174 -> 0 | AJ203: =AJ172+AJ174 -> 0
D204: feed-in district h/c | J204: =J176 -> 0 | Q204: =Q176 -> 0 | AC204: =AC176 -> 0 | AJ204: =AJ176 -> 0
D205: Energy carrier | J205: =J178+J180 -> 0 | Q205: =Q178+Q180 -> 0 | AC205: =AC178+AC180 -> 97.58960023 | AJ205: =AJ178+AJ180 -> 80.67148281
D206: Water | J206: =J183+J185 -> 0 | Q206: =Q183+Q185 -> 0 | AC206: =AC183+AC185 -> 0 | AJ206: =AJ183+AJ185 -> 0
D207: Maintanance | J207: =+J188 -> 444.5442098 | Q207: =+Q188 -> 346.0939379 | AC207: =+AC188 -> 419.1084277 | AJ207: =+AJ188 -> 214.4631559
D208: Electricty - domestic | J208: =J191 -> 45.16862653 | Q208: =Q191 -> 30.21038006 | AC208: =AC191 -> 105.0699029 | AJ208: =AJ191 -> 70.27447907

Sheet SUMMARY
B3: Summary
B6: System information
B7: Gerneral Information - SHC plant
B8: =INPUTS!C19 -> Building category | D8: =INPUTS!E19 -> Residential
B9: =INPUTS!C20 -> Cooled/heated area | D9: =INPUTS!E20 -> 200 | E9: m²
B10: =INPUTS!C21 -> Distribution system | D10: =INPUTS!E21 -> Other
B11: =INPUTS!C17 -> Project location | D11: =INPUTS!E17 -> Austria (Vienna)
B12: Renewable and non-renewable heat and electricity sources - SHC plant
B13: =INPUTS!C25 -> Thermal collector type | D13: =INPUTS!E25 -> no collector
B14: =INPUTS!C26 -> Thermal collector area | D14: =INPUTS!E26 -> 0 | E14: m²
B15: =INPUTS!C55 -> Primary hot water storage | D15: =INPUTS!E55 -> 0.5 | E15: m³
B16: =INPUTS!C31 -> Primary boiler type | D16: =INPUTS!E31 -> Heat Pump
B17: =INPUTS!C33 -> Primary boiler peak load (SH/DHW) | D17: =INPUTS!E33 -> 10.6 | E17: kW
B18: Average DHW demand | D18: =INPUTS!E81 -> 25.43110466 | E18: l/day
B19: Cold sources - SHC plant
B20: =INPUTS!C40 -> Primary chiller type | D20: =INPUTS!E40 -> no chiller
B21: =INPUTS!C41 -> Primary chiller capacity | D21: =INPUTS!E41 -> 0 | E21: kW
B22: =INPUTS!C57 -> Primary cold storage | D22: =INPUTS!E57 -> 0 | E22: m³
B23: =INPUTS!C42 -> Secondary chiller type | D23: =INPUTS!E42 -> no chiller
B24: =INPUTS!C43 -> Secondary chiller capacity | D24: =INPUTS!E43 -> 0 | E24: kW
B25: Energy flows - SHC plant
B26: Cold Distribution to System | C26: QCD.System | D26: 1595.21 | E26: kWh/a | G26: =D26/SUM($D$26:$D$29) -> 0.7770784722
B27: District Cooling | C27: QDC.System | D27: 0 | E27: kWh/a | G27: =D27/SUM($D$26:$D$29) -> 0
B28: Space heating | C28: QHD.System | D28: 0 | E28: kWh/a | G28: =D28/SUM($D$26:$D$29) -> 0
B29: Domestic hot water | C29: QWD.System | D29: 457.62 | E29: kWh/a | G29: =D29/SUM($D$26:$D$29) -> 0.2229215278
B30: District Heating | C30: QDH.System | D30: 0 | E30: kWh/a | G30: =D30/SUM($D$26:$D$29) -> 0
B31: Electricity demand of the system | C31: Qel.sys | D31: 1412.59 | E31: kWh/a
B32: Electricity demand from Grid | C32: Qel.GD | D32: 724.64 | E32: kWh/a
B33: Electricity production from CHP | C33: Qel.CHP | D33: 0 | E33: kWh/a | G33: =IF(SUM($D$33:$D$34)=0,0,D33/SUM($D$33:$D$34)) -> 0
B34: Electricity production from PV | C34: Qel.PV | D34: 2838.62 | E34: kWh/a | G34: =IF(SUM($D$33:$D$34)=0,0,D34/SUM($D$33:$D$34)) -> 1
B35: Electricity demand of domestic electricity | C35: Qel.DE | D35: 1082.22 | E35: kWh/a
B36: Energy Carrier to primary Heat Source | C36: EC.H1 | D36: 1.2e-05 | E36: kWh/a
B37: Energy Carrier to secondary Heat Source | C37: EC.H2 | D37: 0 | E37: kWh/a
B38: Efficiency and transformation factors - SHC plant | D38: T53 Standard | G38: specific values
B39: Primary energy factor for electricity | C39: εel | D39: =INPUTS!$K$19 -> 0.4 | E39: - | G39: =INPUTS!$L$19 -> 0.5910592383 | H39: -
B40: Primary efficiency of the boiler | C40: ηHB1 | D40: =INPUTS!$K$31 -> 3.3 | E40: - | G40: =INPUTS!$L$31 -> 2 | H40: -
B41: Primary energy factor for Energy Carrier | C41: εEC1 | D41: =INPUTS!$K$32 -> 1000000000000000 | E41: - | G41: =INPUTS!$L$32 -> 1000000000000000 | H41: -
B42: Secondary efficiency of the boiler | C42: ηHB2 | D42: =INPUTS!$K$34 -> 0.856 | E42: - | G42: =INPUTS!$L$34 -> 0.814 | H42: -
B43: Secondary energy factor for Energy Carrier | C43: εEC2 | D43: =INPUTS!$K$35 -> 10 | E43: - | G43: =INPUTS!$L$35 -> 16.7 | H43: -
B44: Refrence System
B45: Heat source | D45: Natural Gas | G45: =INPUTS!$E$67 -> Natural Gas
B46: Hot water storage volume | C46: V_HS | D46: 0 | E46: m³ | G46: =INPUTS!$E$75 -> 0.5 | H46: m³
B47: Cold source | D47: Air Cooled VCC (5-600kW) | G47: =INPUTS!$E$71 -> Air Cooled VCC (5-600kW)
B48: Cold water storage volume | C48: V_CS | D48: =IF(INPUTS!$E$44=0,0,(0.0609*INPUTS!$E$44^(-0.32)*INPUTS!$E$44)) -> 0.2914857262 | E48: m³ | G48: =INPUTS!$E$76 -> 0 | H48: m³
B50: RESULTS
B52: Overall Primary Energy demand | D52: T53 Standard | G52: specific values
B53: Solar Heating and Cooling | D53: =IF(INPUTS!K19=0,IF(INPUTS!K32=0,IF(INPUTS!K35=0,0,D37/INPUTS!K35),IF(INPUTS!K35=0,D36/INPUTS!K32,D36/INPUTS!K32+D37/INPUTS!K35)),IF(INPUTS!K32=0,IF(INPUTS!K35=0,D32/INPUTS!K19,D32/INPUTS!K19+D37/INPUTS!K35),IF(INPUTS!K35=0,D32/INPUTS!K19+D36/INPUTS!K32,D32/INPUTS!K19+D36/INPUTS!K32+D37/INPUTS!K35))) -> 1811.6 | E53: kWhprim/a | G53: =IF(INPUTS!L19=0,IF(INPUTS!L32=0,IF(INPUTS!L35=0,0,D37/INPUTS!L35),IF(INPUTS!L35=0,D36/INPUTS!L32,D36/INPUTS!L32+D37/INPUTS!L35)),IF(INPUTS!L32=0,IF(INPUTS!L35=0,D32/INPUTS!L19,D32/INPUTS!L19+D37/INPUTS!L35),IF(INPUTS!L35=0,D32/INPUTS!L19+D36/INPUTS!L32,D32/INPUTS!L19+D36/INPUTS!L32+D37/INPUTS!L35))) -> 1226.002324 | H53: kWhprim/a
B54: Electricity demand reference system | C54: Qel.HVAC.ref | D54: 11.03505143 | E54: kWh | G54: =Results!F218+IF(INPUTS!L70>0,(SUMMARY!D28+SUMMARY!D29+SUMMARY!D30+SUMMARY!G55)/INPUTS!L70,0) -> 11.03505143 | H54: kWh
B55: Reference losses for SH+DHW | C55: Qloss.ref | D55: 94.13257138 | E55: kWh | G55: =D55 -> 94.13257138 | H55: kWh
B56: Reference energy carrier energy demand | C56: Q EC.ref | D56: =IF(INPUTS!K67=0,0,(SUMMARY!D28+SUMMARY!D29+SUMMARY!D30+SUMMARY!D55)/INPUTS!K67) -> 610.3457648 | E56: kWh | G56: =IF(INPUTS!E67="Heat Pump",0,(SUMMARY!D28+SUMMARY!D29+SUMMARY!D30+SUMMARY!G55)/INPUTS!L67) -> 929.1100952 | H56: kWh
B57: Reference electricity energy demand | C57: Q el.ref | D57: =(D26+D27)/INPUTS!K71+D54+D35 -> 1944.033718 | E57: kWh | G57: =(D26+D27)/INPUTS!L71+G54+D35 -> 1624.991718 | H57: kWh
B58: Reference System | D58: =IF(INPUTS!K68=0,(D57/INPUTS!K19),(D57/INPUTS!K19)+(D56/INPUTS!K68)) -> 5538.246256 | E58: kWhprim/a | G58: =IF(INPUTS!L68=0,G57/INPUTS!L19,(G57/INPUTS!L19)+(G56/INPUTS!L68)) -> 3827.141341 | H58: kWhprim/a
B59: CO2 Emissions
B60: Solar Heating and Cooling | D60: =D32*INPUTS!K20+D36*INPUTS!K33+D37*INPUTS!K36 -> 398.552 | E60: kg CO2/a | G60: =D32*INPUTS!L20+D36*INPUTS!L33+D37*INPUTS!L36 -> 77.91854736 | H60: kg CO2/a
B61: Reference System | D61: =D57*INPUTS!K20+D56*INPUTS!K69 -> 1227.908444 | E61: kg CO2/a | G61: =G57*INPUTS!L20+G56*INPUTS!L69 -> 394.0008753 | H61: kg CO2/a
B63: Perfomances Figures
B65: Technical key figures | D65: T53 Standard | G65: specific values
B66: Electrical equivalent SPF | C66: SPFequ Cooling | D66: 10.19214094 | E66: - | G66: 10.19202491 | H66: -
C67: SPFequ Solar Cooling | D67: 0 | E67: - | G67: 0 | H67: -
C68: SPFequ Cooling Grid | D68: 0 | E68: - | G68: 0 | H68: -
C69: SPFequ Solar Cooling Grid | D69: 0 | E69: - | G69: 0 | H69: -
C70: SPFequ DHW | D70: 2.632083261 | E70: - | G70: 2.632066765 | H70: -
C71: SPFequ Solar DHW | D71: 0 | E71: - | G71: 0 | H71: -
C72: SPFequ Space Heating | D72: 0 | E72: - | G72: 0 | H72: -
C73: SPFequ Solar Space Heating | D73: 0 | E73: - | G73: 0 | H73: -
C74: SPFequ Heating Grid | D74: 0 | E74: - | G74: 0 | H74: -
C75: SPFequ Solar Heating Grid | D75: 0 | E75: - | G75: 0 | H75: -
C76: SPFequ System | D76: 4.32567736 | E76: - | G76: 4.325353686 | H76: -
B78: Economic key figures
B79: Investment costs SHC System | C79: Total investment | D79: =Cost_calc!J165 -> 31390.79037 | E79: € | G79: =Cost_calc!Q165 -> 36225.813 | H79: €
C80: Annualized costs | D80: =Cost_calc!J193 -> 2364.486143 | E80: €/a | G80: =Cost_calc!Q193 -> 2421.599879 | H80: €/a
C81: Costs per kW cold | D81: =IF(INPUTS!E44=0,0,D79/(INPUTS!E44)) -> 3139.079037 | E81: €/kWc | G81: =IF(INPUTS!E44=0,0,G79/(INPUTS!E44)) -> 3622.5813 | H81: €/kWc
C82: Costs per m² floor area | D82: =D79/D9 -> 156.9539519 | E82: €/m² | G82: =G79/D9 -> 181.129065 | H82: €/m²
B84: Investment costs Reference System | C84: Total investment | D84: =Cost_calc!AC165 -> 25103.07821 | E84: € | G84: =Cost_calc!AJ165 -> 18004.89 | H84: €
C85: Annualized costs | D85: =Cost_calc!AC193 -> 2576.65526 | E85: €/a | G85: =Cost_calc!AJ193 -> 1720.139542 | H85: €/a
C86: Costs per kW cold | D86: =IF(INPUTS!E44=0,0,D84/(INPUTS!E44)) -> 2510.307821 | E86: €/kWc | G86: =IF(INPUTS!E44=0,0,G84/(INPUTS!E44)) -> 1800.489 | H86: €/kWc
C87: Costs per m² floor area | D87: =D84/D9 -> 125.515391 | E87: €/m² | G87: =G84/D9 -> 90.02445 | H87: €/m²
B88: Energy Costs
B89: SHC System | D89: =D80/SUM(D26,D28,D29,D27,D30,D35) -> 0.7542100263 | E89: €/kWh | G89: =G80/SUM(D26,D28,D29,D27,D30,D35) -> 0.7724278333 | H89: €/kWh
B90: Reference System | D90: =D85/SUM(D26,D28,D29,D27,D30,D35) -> 0.8218864962 | E90: €/kWh | G90: =G85/SUM(D26,D28,D29,D27,D30,D35) -> 0.5486800981 | H90: €/kWh
B91: Cost Ratio | D91: =D89/D90 -> 0.917657158 | E91: - | G91: =G89/G90 -> 1.407792694 | H91: -
B92: Avoidance costs
B93: Primary energy | D93: =(D80-D85)/(D58-D53) -> -0.05693299075 | E93: €/kWhprim | G93: =(G80-G85)/(G58-G53) -> 0.2696742975 | H93: €/kWh
B94: CO2 | D94: =(D80-D85)/(D61-D60) -> -0.2558237998 | E94: €/kg CO2 | G94: =(G80-G85)/(G61-G60) -> 2.219233014 | H94: €/kg CO2

Sheet sens_def
B2: DEFINITION OF SENSITIVITY ANALYSIS
B3: number of paramters | C3: =COUNTA(C8:C67) -> 38 | D3: max 60!
B4: values of T53 or spec | C4: T53 | D4: not yet implemented!
B6: cluster | C6: parameter | D6: 1 | E6: 2 | F6: 3 | G6: 4 | H6: 5 | I6: 6 | J6: 7
B8: Investment | C8: ST + ST aux | D8: 0.4 | E8: 0.55 | F8: 0.7 | G8: 0.85 | H8: 1 | I8: 1.15 | J8: 1.3
C9: PV | D9: 0.4 | E9: 0.55 | F9: 0.7 | G9: 0.85 | H9: 1 | I9: 1.15 | J9: 1.3
C10: Heat production | D10: 0.4 | E10: 0.55 | F10: 0.7 | G10: 0.85 | H10: 1 | I10: 1.15 | J10: 1.3
C11: Cold production | D11: 0.4 | E11: 0.55 | F11: 0.7 | G11: 0.85 | H11: 1 | I11: 1.15 | J11: 1.3
C12: Other | D12: 0.4 | E12: 0.55 | F12: 0.7 | G12: 0.85 | H12: 1 | I12: 1.15 | J12: 1.3
C13: Other % | D13: 0.4 | E13: 0.55 | F13: 0.7 | G13: 0.85 | H13: 1 | I13: 1.15 | J13: 1.3
B14: Investment REF | C14: Heat production REF | D14: 0.4 | E14: 0.55 | F14: 0.7 | G14: 0.85 | H14: 1 | I14: 1.15 | J14: 1.3
C15: cold production REF | D15: 0.4 | E15: 0.55 | F15: 0.7 | G15: 0.85 | H15: 1 | I15: 1.15 | J15: 1.3
C16: Other REF | D16: 0.4 | E16: 0.55 | F16: 0.7 | G16: 0.85 | H16: 1 | I16: 1.15 | J16: 1.3
C17: other % REF | D17: 0.4 | E17: 0.55 | F17: 0.7 | G17: 0.85 | H17: 1 | I17: 1.15 | J17: 1.3
B18: Economics | C18: Period under consideration | D18: 0.5 | E18: 0.75 | F18: 1 | G18: 1.25 | H18: 1.5 | I18: 1.75 | J18: 2
C19: Credit period | D19: 0.5 | E19: 0.75 | F19: 1 | G19: 1.25 | H19: 1.5 | I19: 1.75 | J19: 2
C20: Inflation rate | D20: 0.5 | E20: 0.75 | F20: 1 | G20: 1.25 | H20: 1.5 | I20: 1.75 | J20: 2
C21: Market discount rate | D21: 0.5 | E21: 0.75 | F21: 1 | G21: 1.25 | H21: 1.5 | I21: 1.75 | J21: 2
C22: Credit interest rate | D22: 0.5 | E22: 0.75 | F22: 1 | G22: 1.25 | H22: 1.5 | I22: 1.75 | J22: 2
C23: Inflation rate for energy prices electricity | D23: 0.5 | E23: 0.75 | F23: 1 | G23: 1.25 | H23: 1.5 | I23: 1.75 | J23: 2
C24: Inflation rate for energy prices gas | D24: 0.5 | E24: 0.75 | F24: 1 | G24: 1.25 | H24: 1.5 | I24: 1.75 | J24: 2
C25: Equity ratio | D25: 0 | E25: 0 | F25: 0 | G25: 0 | H25: 0 | I25: 0 | J25: 0
C26: public funding | D26: 0 | E26: 0 | F26: 0 | G26: 0 | H26: 0 | I26: 0 | J26: 0
B27: Other economic parameters | C27: LF ST | D27: 0.5 | E27: 0.75 | F27: 1 | G27: 1.25 | H27: 1.5 | I27: 1.75 | J27: 2
C28: LF PV | D28: 0.5 | E28: 0.75 | F28: 1 | G28: 1.25 | H28: 1.5 | I28: 1.75 | J28: 2
C29: LF heat production | D29: 0.5 | E29: 0.75 | F29: 1 | G29: 1.25 | H29: 1.5 | I29: 1.75 | J29: 2
C30: LF cold production | D30: 0.5 | E30: 0.75 | F30: 1 | G30: 1.25 | H30: 1.5 | I30: 1.75 | J30: 2
C31: LF Other | D31: 0.5 | E31: 0.75 | F31: 1 | G31: 1.25 | H31: 1.5 | I31: 1.75 | J31: 2
C32: MT ST | D32: 0.5 | E32: 0.75 | F32: 1 | G32: 1.25 | H32: 1.5 | I32: 1.75 | J32: 2
C33: MT PV | D33: 0.5 | E33: 0.75 | F33: 1 | G33: 1.25 | H33: 1.5 | I33: 1.75 | J33: 2
C34: MT heat production | D34: 0.5 | E34: 0.75 | F34: 1 | G34: 1.25 | H34: 1.5 | I34: 1.75 | J34: 2
C35: MT cold production | D35: 0.5 | E35: 0.75 | F35: 1 | G35: 1.25 | H35: 1.5 | I35: 1.75 | J35: 2
C36: MT Other | D36: 0.5 | E36: 0.75 | F36: 1 | G36: 1.25 | H36: 1.5 | I36: 1.75 | J36: 2
B37: Energy | C37: electricity (energy) | D37: 0.5 | E37: 1 | F37: 1.5 | G37: 2 | H37: 2.5 | I37: 3 | J37: 3.5
C38: electricity (power) | D38: 1.25 | E38: 1 | F38: 0.75 | G38: 0.5 | H38: 0.25 | I38: 0 | J38: 0
C39: Feed in | D39: 0.5 | E39: 0.75 | F39: 1 | G39: 1.25 | H39: 1.5 | I39: 1.75 | J39: 2
C40: EC REN | D40: 0.5 | E40: 0.75 | F40: 1 | G40: 1.25 | H40: 1.5 | I40: 1.75 | J40: 2
C41: EC nonREN | D41: 0.5 | E41: 0.75 | F41: 1 | G41: 1.25 | H41: 1.5 | I41: 1.75 | J41: 2
B42: Efficiency SHC | C42: CD C1 | D42: 0.8 | E42: 0.9 | F42: 1 | G42: 1.1 | H42: 1.2 | I42: 1.3 | J42: 1.4
C43: el.sum | D43: 0.5 | E43: 0.6 | F43: 0.7 | G43: 0.8 | H43: 0.9 | I43: 1 | J43: 1.1
B44: Efficiency REF | C44: Heat pump | D44: 0.5 | E44: 0.75 | F44: 1 | G44: 1.25 | H44: 1.5 | I44: 1.75 | J44: 2
B45: conversion | C45: primary energy factor electricity | D45: 0.8 | E45: 0.9 | F45: 1 | G45: 1.1 | H45: 1.2 | I45: 1.3 | J45: 1.4
B71: CALCULATION OF SENSITIVITY
A72: =ROW() -> 72 | B72: Investment | C72: ST + ST aux | G72: =COUNTA(G73:G78) -> 6 | I72: Value | J72: equation | L72: 1 | M72: 2 | N72: 3 | O72: 4 | P72: 5 | Q72: 6 | R72: 7
D73: Flat plate collectors (FPC) | G73: Eco_base | H73: G55 | I73: 235.819889 | J73: =IF(INPUTS!$E$25=Conversion!$D$36,0,210+Eco_base!G$55*INPUTS!$E$26^(Eco_base!H$55)) -> 0 | L73: 94.327957 | M73: 129.7009417 | N73: 165.0739195 | O73: 200.4469113 | P73: 235.819889 | Q73: 271.1928667 | R73: 306.5658444
D74: Evacuated tube collectors (ETC) | G74: Eco_base | H74: G56 | I74: 338.1044223 | J74: =IF(INPUTS!$E$25=Conversion!$D$36,0,210+Eco_base!G$56*INPUTS!$E$26^(Eco_base!H$56)) -> 0 | L74: 135.2417709 | M74: 185.9574363 | N74: 236.6730916 | O74: 287.388767 | P74: 338.1044223 | Q74: 388.8200776 | R74: 439.5357329
D75: specific SC | G75: Eco_base | H75: H57 | I75: 500 | J75: 500 | L75: 200.000003 | M75: 275.000006 | N75: 349.999994 | O75: 425.0000119 | P75: 500 | Q75: 574.9999881 | R75: 649.9999762
D76: Flat plate collectors (FPC) | G76: Eco_base | H76: G60 | I76: 116.2702362 | J76: =IF(INPUTS!$E$25=Conversion!$D$36,0,Eco_base!G$60*INPUTS!$E$26^(Eco_base!H$60)) -> 0 | L76: 46.50809516 | M76: 63.94863127 | N76: 81.38916392 | O76: 98.8297035 | P76: 116.2702362 | Q76: 133.7107688 | R76: 151.1513015
D77: Evacuated tube collectors (ETC) | G77: Eco_base | H77: G61 | I77: 121.2650542 | J77: =IF(INPUTS!$E$25=Conversion!$D$36,0,Eco_base!G$61*INPUTS!$E$26^(Eco_base!H$61)) -> 0 | L77: 48.50602241 | M77: 66.69578126 | N77: 84.8855365 | O77: 103.075299 | P77: 121.2650542 | Q77: 139.4548095 | R77: 157.6445647
D78: specific SC | G78: Eco_base | H78: H62 | I78: 500 | J78: 500 | L78: 200.000003 | M78: 275.000006 | N78: 349.999994 | O78: 425.0000119 | P78: 500 | Q78: 574.9999881 | R78: 649.9999762
A80: =ROW()-$A$72-1 -> 7 | C80: PV | G80: =COUNTA(G81:G82) -> 2
D81: PV | G81: Eco_base | H81: G65 | I81: 0 | J81: =IF(INPUTS!$E$27=Conversion!$E$36,0,G81*INPUTS!H44^(H81)) ->  | L81: 0 | M81: 0 | N81: 0 | O81: 0 | P81: 0 | Q81: 0 | R81: 0
D82: specific PV | G82: Eco_base | H82: H66 | I82: 1500 | J82: 1500 | L82: 600.0000089 | M82: 825.0000179 | N82: 1049.999982 | O82: 1275.000036 | P82: 1500 | Q82: 1724.999964 | R82: 1949.999928
A84: =ROW()-$A$72-1 -> 11 | C84: Heat production | G84: =COUNTA(G85:G110) -> 26
D85: Natural Gas | E85: Primary HB | G85: Eco_base | H85: G69 | I85: 175.7591392 | J85: =IF(F85=0,0,$D$69*INPUTS!$E$33^($E$69)) -> 0 | L85: 70.30365671 | M85: 96.66752863 | N85: 123.0313953 | O85: 149.3952725 | P85: 175.7591392 | Q85: 202.1230058 | R85: 228.4868725
E86: Secondary HB | G86: Eco_base | H86: G70 | I86: 0 | J86: =IF(F86=0,0,$D$69*INPUTS!$E$36^($E$69)) -> 0 | L86: 0 | M86: 0 | N86: 0 | O86: 0 | P86: 0 | Q86: 0 | R86: 0
D87: Condensing Boiler | E87: Primary HB | G87: Eco_base | H87: G73 | I87: 0 | J87: =IF(F87=0,0,G87*INPUTS!$E$33^(H87)) -> 0 | L87: 0 | M87: 0 | N87: 0 | O87: 0 | P87: 0 | Q87: 0 | R87: 0
E88: Secondary HB | G88: Eco_base | H88: G74 | I88: 0 | J88: =IF(F88=0,0,G87*INPUTS!$E$36^(H87)) -> 0 | L88: 0 | M88: 0 | N88: 0 | O88: 0 | P88: 0 | Q88: 0 | R88: 0
D89: Oil Boiler | E89: Primary HB | G89: Eco_base | H89: G77 | I89: 0 | J89: =IF(F89=0,0,G89*INPUTS!$E$33^(H89)) -> 0 | L89: 0 | M89: 0 | N89: 0 | O89: 0 | P89: 0 | Q89: 0 | R89: 0
E90: Secondary HB | G90: Eco_base | H90: G78 | I90: 0 | J90: =IF(F90=0,0,G89*INPUTS!$E$36^(H89)) -> 0 | L90: 0 | M90: 0 | N90: 0 | O90: 0 | P90: 0 | Q90: 0 | R90: 0
D91: Electric Heater | E91: Primary HB | G91: Eco_base | H91: G81 | I91: 0 | J91: =IF(F91=0,0,G91*INPUTS!$E$33^H91) -> 0 | L91: 0 | M91: 0 | N91: 0 | O91: 0 | P91: 0 | Q91: 0 | R91: 0
E92: Secondary HB | G92: Eco_base | H92: G82 | I92: 0 | J92: =IF(F92=0,0,G91*INPUTS!$E$36^H91) -> 0 | L92: 0 | M92: 0 | N92: 0 | O92: 0 | P92: 0 | Q92: 0 | R92: 0
D93: Pellets | E93: Primary HB | G93: Eco_base | H93: G85 | I93: 0 | J93: =IF(F93=0,0,G93*INPUTS!$E$33^H93) -> 0 | L93: 0 | M93: 0 | N93: 0 | O93: 0 | P93: 0 | Q93: 0 | R93: 0
E94: Secondary HB | G94: Eco_base | H94: G86 | I94: 0 | J94: =IF(F94=0,0,G93*INPUTS!$E$36^H93) -> 0 | L94: 0 | M94: 0 | N94: 0 | O94: 0 | P94: 0 | Q94: 0 | R94: 0
D95: Heat Pump | E95: Primary HB | G95: Eco_base | H95: G89 | I95: 0 | J95: =IF(F95=0,0,G95*INPUTS!$E$33^H95) -> 0 | L95: 0 | M95: 0 | N95: 0 | O95: 0 | P95: 0 | Q95: 0 | R95: 0
E96: Secondary HB | G96: Eco_base | H96: G90 | I96: 0 | J96: =IF(F96=0,0,G95*INPUTS!$E$36^H95) -> 0 | L96: 0 | M96: 0 | N96: 0 | O96: 0 | P96: 0 | Q96: 0 | R96: 0
D97: Reversible Heat Pump | E97: Primary HB | G97: Eco_base | H97: G93 | I97: 0 | J97: =IF(INPUTS!$E$31=E97,G97*INPUTS!$E$33^H97,0) -> 0 | L97: 0 | M97: 0 | N97: 0 | O97: 0 | P97: 0 | Q97: 0 | R97: 0
E98: Secondary HB | G98: Eco_base | H98: G94 | I98: 0 | J98: =IF(INPUTS!$E$34=Eco_base!E97,G97*INPUTS!$E$36^H97,0) -> 0 | L98: 0 | M98: 0 | N98: 0 | O98: 0 | P98: 0 | Q98: 0 | R98: 0
E99: Primary cooling | G99: Eco_base | H99: G95 | I99: 0 | J99: =IF(INPUTS!$E$40=E97,G97*INPUTS!$E$41^H97,0) -> 0 | L99: 0 | M99: 0 | N99: 0 | O99: 0 | P99: 0 | Q99: 0 | R99: 0
E100: Secondary cooling | G100: Eco_base | H100: G96 | I100: 0 | J100: =IF(INPUTS!$E$42=E97,G97*INPUTS!$E$43^H97,0) -> 0 | L100: 0 | M100: 0 | N100: 0 | O100: 0 | P100: 0 | Q100: 0 | R100: 0
D101: Absorption Heat Pump (AHP) | E101: Primary HB | G101: Eco_base | H101: G99 | I101: 0 | J101: =IF(F101=0,0,G101*INPUTS!$E$33^H101) -> 0 | L101: 0 | M101: 0 | N101: 0 | O101: 0 | P101: 0 | Q101: 0 | R101: 0
E102: Secondary HB | G102: Eco_base | H102: G100 | I102: 0 | J102: =IF(F102=0,0,G101*INPUTS!$E$36^H101) -> 0 | L102: 0 | M102: 0 | N102: 0 | O102: 0 | P102: 0 | Q102: 0 | R102: 0
D103: Reversible AHP | E103: Primary HB | G103: Eco_base | H103: G103 | I103: 0 | J103: =IF(INPUTS!$E$31=E103,G103*INPUTS!$E$33^H103,0) -> 0 | L103: 0 | M103: 0 | N103: 0 | O103: 0 | P103: 0 | Q103: 0 | R103: 0
E104: Secondary HB | G104: Eco_base | H104: G104 | I104: 0 | J104: =IF(INPUTS!$E$34=Eco_base!E103,G103*INPUTS!$E$36^H103,0) -> 0 | L104: 0 | M104: 0 | N104: 0 | O104: 0 | P104: 0 | Q104: 0 | R104: 0
E105: Primary cooling | G105: Eco_base | H105: G105 | I105: 0 | J105: =IF(INPUTS!$E$40=E103,G103*INPUTS!$E$41^H103,0) -> 0 | L105: 0 | M105: 0 | N105: 0 | O105: 0 | P105: 0 | Q105: 0 | R105: 0
E106: Secondary cooling | G106: Eco_base | H106: G106 | I106: 0 | J106: =IF(INPUTS!$E$42=E103,G103*INPUTS!$E$43^H103,0) -> 0 | L106: 0 | M106: 0 | N106: 0 | O106: 0 | P106: 0 | Q106: 0 | R106: 0
D107: CHP | E107: Primary HB | G107: Eco_base | H107: G109 | I107: 0 | J107: =IF(F107=0,0,G107*INPUTS!$E$33^H107) -> 0 | L107: 0 | M107: 0 | N107: 0 | O107: 0 | P107: 0 | Q107: 0 | R107: 0
E108: Secondary HB | G108: Eco_base | H108: G110 | I108: 0 | J108: =IF(F108=0,0,G107*INPUTS!$E$36^H107) -> 0 | L108: 0 | M108: 0 | N108: 0 | O108: 0 | P108: 0 | Q108: 0 | R108: 0
D109: District Heating | E109: Primary HB | G109: Eco_base | H109: G113 | I109: 0 | J109: =IF(F109=0,0,G109*INPUTS!$E$33^H109) -> 0 | L109: 0 | M109: 0 | N109: 0 | O109: 0 | P109: 0 | Q109: 0 | R109: 0
E110: Secondary HB | G110: Eco_base | H110: G114 | I110: 0 | J110: =IF(F110=0,0,G109*INPUTS!$E$36^H109) -> 0 | L110: 0 | M110: 0 | N110: 0 | O110: 0 | P110: 0 | Q110: 0 | R110: 0
A112: =ROW()-$A$72-1 -> 39 | C112: Cold production | G112: =COUNTA(G113:G139) -> 27
D113: Absorption chiller SE | E113: Primary cooling | G113: Eco_base | H113: G118 | I113: 787.0868706 | J113: =IF(F113=0,0,40+G113*(INPUTS!$E$41*F113)^(H113)) -> 0 | L113: 314.8347529 | M113: 432.8977882 | N113: 550.9608 | O113: 669.0238587 | P113: 787.0868706 | Q113: 905.1498824 | R113: 1023.212894
E114: Secondary cooling | G114: Eco_base | H114: G119 | I114: 0 | J114: =IF(F114=0,0,40+G113*(INPUTS!$E$43*F114)^(H113)) -> 0 | L114: 0 | M114: 0 | N114: 0 | O114: 0 | P114: 0 | Q114: 0 | R114: 0
E115: Sum | G115: Eco_base | H115: G120 | I115: 787.0868706 | J115: =IF(F113+F114=0,0,40+G113*(INPUTS!$E$41*F113+INPUTS!$E$43*F114)^(H113)) -> 0 | L115: 314.8347529 | M115: 432.8977882 | N115: 550.9608 | O115: 669.0238587 | P115: 787.0868706 | Q115: 905.1498824 | R115: 1023.212894
D116: Absorption chiller DE | E116: Primary cooling | G116: Eco_base | H116: G122 | I116: 0 | J116: =IF(F116=0,0,40+G116*(INPUTS!$E$41*F116)^(H116)) -> 0 | L116: 0 | M116: 0 | N116: 0 | O116: 0 | P116: 0 | Q116: 0 | R116: 0
E117: Secondary cooling | G117: Eco_base | H117: G123 | I117: 0 | J117: =IF(F117=0,0,40+G116*(INPUTS!$E$43*F117)^(H116)) -> 0 | L117: 0 | M117: 0 | N117: 0 | O117: 0 | P117: 0 | Q117: 0 | R117: 0
E118: Sum | G118: Eco_base | H118: G124 | I118: 0 | J118: =IF(F116+F117=0,0,40+G116*(INPUTS!$E$41*F116+INPUTS!$E$43*F117)^(H116)) -> 0 | L118: 0 | M118: 0 | N118: 0 | O118: 0 | P118: 0 | Q118: 0 | R118: 0
D119: Adsorption chiller | E119: Primary cooling | G119: Eco_base | H119: G126 | I119: 0 | J119: =IF(F119=0,0,40+G119*(INPUTS!$E$41*F119)^(H119)) -> 0 | L119: 0 | M119: 0 | N119: 0 | O119: 0 | P119: 0 | Q119: 0 | R119: 0
E120: Secondary cooling | G120: Eco_base | H120: G127 | I120: 0 | J120: =IF(F120=0,0,40+G119*(INPUTS!$E$43*F120)^(H119)) -> 0 | L120: 0 | M120: 0 | N120: 0 | O120: 0 | P120: 0 | Q120: 0 | R120: 0
E121: Sum | G121: Eco_base | H121: G128 | I121: 0 | J121: =IF(F119+F120=0,0,40+G119*(INPUTS!$E$41*F119+INPUTS!$E$43*F120)^(H119)) -> 0 | L121: 0 | M121: 0 | N121: 0 | O121: 0 | P121: 0 | Q121: 0 | R121: 0
D122: District Cooling | E122: Primary cooling | G122: Eco_base | H122: G130 | I122: 0 | J122: =IF(F122=0,0,G122*(INPUTS!$E$41*F122)^(H122)) -> 0 | L122: 0 | M122: 0 | N122: 0 | O122: 0 | P122: 0 | Q122: 0 | R122: 0
E123: Secondary cooling | G123: Eco_base | H123: G131 | I123: 0 | J123: =IF(F123=0,0,G122*(INPUTS!$E$43*F123)^(H122)) -> 0 | L123: 0 | M123: 0 | N123: 0 | O123: 0 | P123: 0 | Q123: 0 | R123: 0
E124: Sum cooling | G124: Eco_base | H124: G132 | I124: 0 | J124: =IF(F122+F123=0,0,G122*(INPUTS!$E$41*F122+INPUTS!$E$43*F123)^(H122)) -> 0 | L124: 0 | M124: 0 | N124: 0 | O124: 0 | P124: 0 | Q124: 0 | R124: 0
D125: Water Cooled VCC (>20kW) | E125: prim VCC | G125: Eco_base | H125: G163 | I125: 0 | J125: =IF(F125=0,0,IF((INPUTS!$E$41*F125)<250,G125*(INPUTS!$E$41*F125)^(H125),6543.5*(INPUTS!$E$41*F125)^(-0.534))) -> 0 | L125: 0 | M125: 0 | N125: 0 | O125: 0 | P125: 0 | Q125: 0 | R125: 0
E126: sec VCC | G126: Eco_base | H126: G164 | I126: 0 | J126: =IF(F126=0,0,IF((INPUTS!$E$43*F126)<250,G125*(INPUTS!$E$43*F126)^(H125),6543.5*(INPUTS!$E$43*F126)^(-0.534))) -> 0 | L126: 0 | M126: 0 | N126: 0 | O126: 0 | P126: 0 | Q126: 0 | R126: 0
D127: Air Cooled VCC (5-600kW) | E127: prim VCC | G127: Eco_base | H127: G167 | I127: 0 | J127: =IF(F127=0,0,IF((INPUTS!$E$41*F127)<250,G127*(INPUTS!$E$41*F127)^(H127),1530.9*(INPUTS!$E$41*F127)^(-0.258))) -> 0 | L127: 0 | M127: 0 | N127: 0 | O127: 0 | P127: 0 | Q127: 0 | R127: 0
E128: sec VCC | G128: Eco_base | H128: G168 | I128: 0 | J128: =IF(F128=0,0,IF((INPUTS!$E$43*F128)<250,G127*(INPUTS!$E$43*F128)^(H127),1530.9*(INPUTS!$E$43*F128)^(-0.258))) -> 0 | L128: 0 | M128: 0 | N128: 0 | O128: 0 | P128: 0 | Q128: 0 | R128: 0
D129: specific chiller | G129: Eco_base | H129: H171 | I129: 200 | J129: 200 | L129: 80.00000119 | M129: 110.0000024 | N129: 139.9999976 | O129: 170.0000048 | P129: 200 | Q129: 229.9999952 | R129: 259.9999905
D130: Cooling tower - wet | E130: Primary CT | G130: Eco_base | H130: G136 | I130: 0 | J130: =IF(F130=1,G130*INPUTS!$E$48+H130,0) -> 0 | L130: 0 | M130: 0 | N130: 0 | O130: 0 | P130: 0 | Q130: 0 | R130: 0
E131: Secondary CT | G131: Eco_base | H131: G137 | I131: 0 | J131: =IF(F131=1,G130*INPUTS!$E$51+H130,0) -> 0 | L131: 0 | M131: 0 | N131: 0 | O131: 0 | P131: 0 | Q131: 0 | R131: 0
E132: Sum CT | G132: Eco_base | H132: G138 | I132: 0 | J132: =SUM(J130:J131) -> 0 | L132: 0 | M132: 0 | N132: 0 | O132: 0 | P132: 0 | Q132: 0 | R132: 0
D133: Cooling tower - dry | E133: Primary CT | G133: Eco_base | H133: G140 | I133: 0 | J133: =IF(F133=1,G133*INPUTS!$E$48+H133,0) -> 0 | L133: 0 | M133: 0 | N133: 0 | O133: 0 | P133: 0 | Q133: 0 | R133: 0
E134: Secondary CT | G134: Eco_base | H134: G141 | I134: 0 | J134: =IF(F134=1,G133*INPUTS!$E$51+H133,0) -> 0 | L134: 0 | M134: 0 | N134: 0 | O134: 0 | P134: 0 | Q134: 0 | R134: 0
E135: Sum CT | G135: Eco_base | H135: G142 | I135: 0 | J135: =SUM(J133:J134) -> 0 | L135: 0 | M135: 0 | N135: 0 | O135: 0 | P135: 0 | Q135: 0 | R135: 0
D136: Cooling tower - hybrid | E136: Primary CT | G136: Eco_base | H136: G144 | I136: 9553.38 | J136: =IF(F136=1,G136*INPUTS!$E$48+H136,0) -> 0 | L136: 3821.352057 | M136: 5254.359114 | N136: 6687.365886 | O136: 8120.373228 | P136: 9553.38 | Q136: 10986.38677 | R136: 12419.39354
E137: Secondary CT | G137: Eco_base | H137: G145 | I137: 0 | J137: =IF(F137=1,G136*INPUTS!$E$51+H136,0) -> 0 | L137: 0 | M137: 0 | N137: 0 | O137: 0 | P137: 0 | Q137: 0 | R137: 0
E138: Sum CT | G138: Eco_base | H138: G146 | I138: 9553.38 | J138: =SUM(J136:J137) -> 0 | L138: 3821.352057 | M138: 5254.359114 | N138: 6687.365886 | O138: 8120.373228 | P138: 9553.38 | Q138: 10986.38677 | R138: 12419.39354
D139: specific CT | G139: Eco_base | H139: H148 | I139: 3500 | J139: 3500 | L139: 1400.000021 | M139: 1925.000042 | N139: 2449.999958 | O139: 2975.000083 | P139: 3500 | Q139: 4024.999917 | R139: 4549.999833
A141: =ROW()-$A$72-1 -> 68 | C141: Other | G141: =COUNTA(G142:G149) -> 8
D142: Hot tank | E142: Primary HS | G142: Eco_base | H142: G152 | I142: 2231.693025 | J142: =IF((INPUTS!$E$55)=0,0,G142*(INPUTS!$E$55)^(H142)) ->  | L142: 892.6772234 | M142: 1227.431191 | N142: 1562.185091 | O142: 1896.939125 | P142: 2231.693025 | Q142: 2566.446926 | R142: 2901.200827
E143: Secondary HS | G143: Eco_base | H143: G153 | I143: 0 | J143: =IF((INPUTS!$E$56)=0,0,G142*(INPUTS!$E$56)^(H142)) -> 0 | L143: 0 | M143: 0 | N143: 0 | O143: 0 | P143: 0 | Q143: 0 | R143: 0
D144: Cold tank | E144: Primary HS | G144: Eco_base | H144: G156 | I144: 0 | J144: =IF((INPUTS!$E$57)=0,0,G144*(INPUTS!$E$57)^(H144)) -> 0 | L144: 0 | M144: 0 | N144: 0 | O144: 0 | P144: 0 | Q144: 0 | R144: 0
E145: Secondary HS | G145: Eco_base | H145: G157 | I145: 0 | J145: =IF((INPUTS!$E$58)=0,0,G144*(INPUTS!$E$58)^(H144)) -> 0 | L145: 0 | M145: 0 | N145: 0 | O145: 0 | P145: 0 | Q145: 0 | R145: 0
D146: Battery | E146: Primary BS | G146: Eco_base | H146: G159 | I146: 0 | J146: =IF((INPUTS!$E$59)=0,0,G146*(INPUTS!$E$59)^(H146)) -> 0 | L146: 0 | M146: 0 | N146: 0 | O146: 0 | P146: 0 | Q146: 0 | R146: 0
E147: Secondary BS | G147: Eco_base | H147: G160 | I147: 0 | J147: =IF((INPUTS!$E$60)=0,0,G146*(INPUTS!$E$60)^(H146)) -> 0 | L147: 0 | M147: 0 | N147: 0 | O147: 0 | P147: 0 | Q147: 0 | R147: 0
D148: Auxillaries | E148: heating | G148: Eco_base | H148: G174 | I148: 0.5 | J148: 0.5 | L148: 0.200000003 | M148: 0.275000006 | N148: 0.349999994 | O148: 0.4250000119 | P148: 0.5 | Q148: 0.5749999881 | R148: 0.6499999762
E149: cooling | G149: Eco_base | H149: G175 | I149: 0.5 | J149: 0.5 | L149: 0.200000003 | M149: 0.275000006 | N149: 0.349999994 | O149: 0.4250000119 | P149: 0.5 | Q149: 0.5749999881 | R149: 0.6499999762
A151: =ROW()-$A$72-1 -> 78 | C151: Other % | G151: =COUNTA(G152:G155) -> 4
D152: Control, electricity and monitoring | G152: Eco_base | H152: G177 | I152: 0.07 | J152: 0.07 | L152: 0.02800000042 | M152: 0.03850000083 | N152: 0.04899999917 | O152: 0.05950000167 | P152: 0.07 | Q152: 0.08049999833 | R152: 0.09099999666
D153: Design, planning and commissioning | G153: Eco_base | H153: G179 | I153: 0.1 | J153: 0.1 | L153: 0.0400000006 | M153: 0.05500000119 | N153: 0.06999999881 | O153: 0.08500000238 | P153: 0.1 | Q153: 0.1149999976 | R153: 0.1299999952
D154: General costs associated to works | G154: Eco_base | H154: G182 | I154: 0.15 | J154: 0.15 | L154: 0.06000000089 | M154: 0.08250000179 | N154: 0.1049999982 | O154: 0.1275000036 | P154: 0.15 | Q154: 0.1724999964 | R154: 0.1949999928
D155: Indirect costs and industrial benefits | G155: Eco_base | H155: G183 | I155: 0.05 | J155: 0.05 | L155: 0.0200000003 | M155: 0.0275000006 | N155: 0.0349999994 | O155: 0.04250000119 | P155: 0.05 | Q155: 0.05749999881 | R155: 0.06499999762
A157: =ROW()-$A$72-1 -> 84 | B157: Investment REF | C157: Heat production REF | G157: =COUNTA(G158:G168) -> 11
D158: Natural Gas | E158: Reference | G158: Eco_base | H158: G71 | I158: 175.7591392 | J158: =IF(F158=0,0,$D$69*(INPUTS!$E$68)^($E$69)) -> 0 | L158: 70.30365671 | M158: 96.66752863 | N158: 123.0313953 | O158: 149.3952725 | P158: 175.7591392 | Q158: 202.1230058 | R158: 228.4868725
D159: Condensing Boiler | E159: Reference | G159: Eco_base | H159: G75 | I159: 0 | J159: =IF(INPUTS!$E$67=E157,G157*(INPUTS!$E$68)^(H157),0) -> 0 | L159: 0 | M159: 0 | N159: 0 | O159: 0 | P159: 0 | Q159: 0 | R159: 0
D160: Oil Boiler | E160: Reference | G160: Eco_base | H160: G79 | I160: 0 | J160: =IF(INPUTS!$E$67=E158,G158*(INPUTS!$E$68)^(H158),0) -> 0 | L160: 0 | M160: 0 | N160: 0 | O160: 0 | P160: 0 | Q160: 0 | R160: 0
D161: Electric Heater | E161: Reference | G161: Eco_base | H161: G83 | I161: 0 | J161: =IF(INPUTS!$E$67=E159,G159*(INPUTS!$E$68)^(H159),0) -> 0 | L161: 0 | M161: 0 | N161: 0 | O161: 0 | P161: 0 | Q161: 0 | R161: 0
D162: Pellets | E162: Reference | G162: Eco_base | H162: G87 | I162: 0 | J162: =IF(INPUTS!$E$67=E160,G160*(INPUTS!$E$68)^(H160),0) -> 0 | L162: 0 | M162: 0 | N162: 0 | O162: 0 | P162: 0 | Q162: 0 | R162: 0
D163: Heat Pump | E163: Reference | G163: Eco_base | H163: G91 | I163: 0 | J163: =IF(INPUTS!$E$67=E161,G161*(INPUTS!H144)^(H161),0) -> 0 | L163: 0 | M163: 0 | N163: 0 | O163: 0 | P163: 0 | Q163: 0 | R163: 0
D164: Reversible Heat Pump | E164: Reference | G164: Eco_base | H164: G97 | I164: 0 | J164: =IF(INPUTS!$E$67=E160,G160*(INPUTS!$E$68)^(H160),0) -> 0 | L164: 0 | M164: 0 | N164: 0 | O164: 0 | P164: 0 | Q164: 0 | R164: 0
D165: Absorption Heat Pump (AHP) | E165: Reference | G165: Eco_base | H165: G101 | I165: 0 | J165: =IF(INPUTS!$E$67=E163,G163*(INPUTS!$E$68)^(H163),0) -> 0 | L165: 0 | M165: 0 | N165: 0 | O165: 0 | P165: 0 | Q165: 0 | R165: 0
D166: Reversible AHP | E166: Reference | G166: Eco_base | H166: G107 | I166: 0 | J166: =IF(INPUTS!$E$67=E162,G162*(INPUTS!$E$68)^(H162),0) -> 0 | L166: 0 | M166: 0 | N166: 0 | O166: 0 | P166: 0 | Q166: 0 | R166: 0
D167: CHP | E167: Reference | G167: Eco_base | H167: G111 | I167: 0 | J167: =IF(INPUTS!$E$67=E165,G165*(INPUTS!$E$68)^(H165),0) -> 0 | L167: 0 | M167: 0 | N167: 0 | O167: 0 | P167: 0 | Q167: 0 | R167: 0
D168: District Heating | E168: Reference | G168: Eco_base | H168: G115 | I168: 0 | J168: =IF(INPUTS!$E$67=E166,G166*(INPUTS!$E$68)^(H166),0) -> 0 | L168: 0 | M168: 0 | N168: 0 | O168: 0 | P168: 0 | Q168: 0 | R168: 0
A170: =ROW()-$A$72-1 -> 97 | C170: cold production REF | G170: =COUNTA(G171:G174) -> 4
D171: District Cooling | E171: Reference | G171: Eco_base | H171: G133 | I171: 0 | J171: =IF(INPUTS!$E$71=E168,G168*(INPUTS!$E$72)^(H168),0) -> 0 | L171: 0 | M171: 0 | N171: 0 | O171: 0 | P171: 0 | Q171: 0 | R171: 0
D172: Water Cooled VCC (>20kW) | E172: Reference | G172: Eco_base | H172: G165 | I172: 497.9090008 | J172: =IF(INPUTS!$E$71=E170,IF((INPUTS!$E$72)<250,G170*(INPUTS!$E$72)^(H170),6543.5*(INPUTS!$E$72)^(-0.534)),0) -> 0 | L172: 199.1636033 | M172: 273.8499564 | N172: 348.5362947 | O172: 423.2226626 | P172: 497.9090008 | Q172: 572.5953391 | R172: 647.2816774
D173: Air Cooled VCC (5-600kW) | E173: Reference | G173: Eco_base | H173: G169 | I173: 431.7444388 | J173: =IF((INPUTS!$E$72)<250,IF((INPUTS!$E$72)=0,0,G171*(INPUTS!$E$72)^(H171)),1530.9*(INPUTS!$E$72)^(-0.258)) ->  | L173: 172.6977781 | M173: 237.4594465 | N173: 302.221102 | O173: 366.9827832 | P173: 431.7444388 | Q173: 496.5060943 | R173: 561.2677498
D174: specific chiller | E174: Reference | G174: Eco_base | H174: H171 | I174: 200 | J174: 200 | L174: 80.00000119 | M174: 110.0000024 | N174: 139.9999976 | O174: 170.0000048 | P174: 200 | Q174: 229.9999952 | R174: 259.9999905
A176: =ROW()-$A$72-1 -> 103 | C176: Other REF | G176: =COUNTA(G177:G180) -> 4
D177: Hot tank | E177: Reference | G177: Eco_base | H177: G154 | I177: 2127.275912 | J177: =IF(Cost_calc!AD41=0,0,G175*(Cost_calc!AD41)^(H175)) -> 0 | L177: 850.9103774 | M177: 1170.001777 | N177: 1489.093113 | O177: 1808.184576 | P177: 2127.275912 | Q177: 2446.367248 | R177: 2765.458584
D178: Cold tank | E178: Reference | G178: Cost_Calc | H178: AC19 | I178: 1634.710894 | J178: =Eco_base!$D$156*(H178)^(1+Eco_base!$E$156) ->  | L178: 653.8843674 | M178: 899.0910112 | N178: 1144.297606 | O178: 1389.504299 | P178: 1634.710894 | Q178: 1879.917489 | R178: 2125.124084
D179: Auxillaries | E179: heating | G179: Eco_base | H179: G187 | I179: 0.5 | J179: 0.5 | L179: 0.200000003 | M179: 0.275000006 | N179: 0.349999994 | O179: 0.4250000119 | P179: 0.5 | Q179: 0.5749999881 | R179: 0.6499999762
E180: cooling | G180: Eco_base | H180: G188 | I180: 0.5 | J180: 0.5 | L180: 0.200000003 | M180: 0.275000006 | N180: 0.349999994 | O180: 0.4250000119 | P180: 0.5 | Q180: 0.5749999881 | R180: 0.6499999762
A182: =ROW()-$A$72-1 -> 109 | C182: other % REF | G182: =COUNTA(G183:G186) -> 4
D183: Control, electricity and monitoring | E183: Reference | G183: Eco_base | H183: G189 | I183: 0.07 | J183: 0.07 | L183: 0.02800000042 | M183: 0.03850000083 | N183: 0.04899999917 | O183: 0.05950000167 | P183: 0.07 | Q183: 0.08049999833 | R183: 0.09099999666
D184: Design, planning and commissioning | E184: Reference | G184: Eco_base | H184: G191 | I184: 0.15 | J184: 0.15 | L184: 0.06000000089 | M184: 0.08250000179 | N184: 0.1049999982 | O184: 0.1275000036 | P184: 0.15 | Q184: 0.1724999964 | R184: 0.1949999928
D185: General costs associated to works | E185: Reference | G185: Eco_base | H185: G194 | I185: 0.3 | J185: 0.3 | L185: 0.1200000018 | M185: 0.1650000036 | N185: 0.2099999964 | O185: 0.2550000072 | P185: 0.3 | Q185: 0.3449999928 | R185: 0.3899999857
D186: Indirect costs and industrial benefits | E186: Reference | G186: Eco_base | H186: G195 | I186: 0.05 | J186: 0.05 | L186: 0.0200000003 | M186: 0.0275000006 | N186: 0.0349999994 | O186: 0.04250000119 | P186: 0.05 | Q186: 0.05749999881 | R186: 0.06499999762
A188: =ROW()-$A$72-1 -> 115 | B188: Economics | C188: Period under consideration | G188: =COUNTA(G189) -> 1
D189: Period under consideration | G189: Eco_base | H189: F14 | I189: 25 | J189: 25 | L189: 12.5 | M189: 18.75 | N189: 25 | O189: 31.25 | P189: 37.5 | Q189: 43.75 | R189: 50
A191: =ROW()-$A$72-1 -> 118 | C191: Credit period | G191: =COUNTA(G192) -> 1
D192: Credit period | G192: Eco_base | H192: F15 | I192: 10 | J192: 10 | L192: 5 | M192: 7.5 | N192: 10 | O192: 12.5 | P192: 15 | Q192: 17.5 | R192: 20
A194: =ROW()-$A$72-1 -> 121 | C194: Inflation rate | G194: =COUNTA(G195) -> 1
D195: Inflation rate | G195: Eco_base | H195: F16 | I195: 0.03 | J195: 0.03 | L195: 0.015 | M195: 0.0225 | N195: 0.03 | O195: 0.0375 | P195: 0.045 | Q195: 0.0525 | R195: 0.06
A197: =ROW()-$A$72-1 -> 124 | C197: Market discount rate | G197: =COUNTA(G198) -> 1
D198: Market discount rate | G198: Eco_base | H198: F17 | I198: 0.03 | J198: 0.03 | L198: 0.015 | M198: 0.0225 | N198: 0.03 | O198: 0.0375 | P198: 0.045 | Q198: 0.0525 | R198: 0.06
A200: =ROW()-$A$72-1 -> 127 | C200: Credit interest rate | G200: =COUNTA(G201) -> 1
D201: Credit interest rate | G201: Eco_base | H201: F18 | I201: 0.03 | J201: 0.03 | L201: 0.015 | M201: 0.0225 | N201: 0.03 | O201: 0.0375 | P201: 0.045 | Q201: 0.0525 | R201: 0.06
A203: =ROW()-$A$72-1 -> 130 | C203: Inflation rate for energy prices electricity | G203: =COUNTA(G204) -> 1
D204: Inflation rate for energy prices electricity | G204: Eco_base | H204: F19 | I204: 0.03 | J204: 0.03 | L204: 0.015 | M204: 0.0225 | N204: 0.03 | O204: 0.0375 | P204: 0.045 | Q204: 0.0525 | R204: 0.06
A206: =ROW()-$A$72-1 -> 133 | C206: Inflation rate for energy prices gas | G206: =COUNTA(G207) -> 1
D207: Inflation rate for energy prices gas | G207: Eco_base | H207: F20 | I207: 0.03 | J207: 0.03 | L207: 0.015 | M207: 0.0225 | N207: 0.03 | O207: 0.0375 | P207: 0.045 | Q207: 0.0525 | R207: 0.06
A209: =ROW()-$A$72-1 -> 136 | C209: Equity ratio | G209: =COUNTA(G210) -> 1
D210: Equity ratio | G210: Eco_base | H210: F21 | I210: 0 | J210: 0 | L210: 0 | M210: 0 | N210: 0 | O210: 0 | P210: 0 | Q210: 0 | R210: 0
A212: =ROW()-$A$72-1 -> 139 | C212: public funding | G212: =COUNTA(G213) -> 1
D213: public funding | G213: Eco_base | H213: F22 | I213: 0 | J213: 0 | L213: 0 | M213: 0 | N213: 0 | O213: 0 | P213: 0 | Q213: 0 | R213: 0
A215: =ROW()-$A$72-1 -> 142 | C215: LF ST | G215: =COUNTA(G216:G221) -> 6
B216: Other economic parameters | D216: Flat plate collectors (FPC) | G216: Eco_base | H216: J55 | I216: 20 | J216: 20 | L216: 10 | M216: 15 | N216: 20 | O216: 25 | P216: 30 | Q216: 35 | R216: 40
D217: Evacuated tube collectors (ETC) | G217: Eco_base | H217: J56 | I217: 18 | J217: 18 | L217: 9 | M217: 13.5 | N217: 18 | O217: 22.5 | P217: 27 | Q217: 31.5 | R217: 36
D218: specific SC | G218: Eco_base | H218: J57 | I218: 18 | J218: 18 | L218: 9 | M218: 13.5 | N218: 18 | O218: 22.5 | P218: 27 | Q218: 31.5 | R218: 36
D219: Flat plate collectors (FPC) | G219: Eco_base | H219: J60 | I219: 20 | J219: 20 | L219: 10 | M219: 15 | N219: 20 | O219: 25 | P219: 30 | Q219: 35 | R219: 40
D220: Evacuated tube collectors (ETC) | G220: Eco_base | H220: J61 | I220: 20 | J220: 20 | L220: 10 | M220: 15 | N220: 20 | O220: 25 | P220: 30 | Q220: 35 | R220: 40
D221: specific SC | G221: Eco_base | H221: J62 | I221: 20 | J221: 20 | L221: 10 | M221: 15 | N221: 20 | O221: 25 | P221: 30 | Q221: 35 | R221: 40
A223: =ROW()-$A$72-1 -> 150 | C223: LF PV | G223: =COUNTA(G224:G225) -> 2
D224: PV | G224: Eco_base | H224: J65 | I224: 20 | J224: 20 | L224: 10 | M224: 15 | N224: 20 | O224: 25 | P224: 30 | Q224: 35 | R224: 40
D225: specific PV | G225: Eco_base | H225: J66 | I225: 20 | J225: 20 | L225: 10 | M225: 15 | N225: 20 | O225: 25 | P225: 30 | Q225: 35 | R225: 40
A227: =ROW()-$A$72-1 -> 154 | C227: LF heat production | G227: =COUNTA(G228:G238) -> 11
D228: Natural Gas | G228: Eco_base | H228: J69 | I228: 15 | J228: 15 | L228: 7.5 | M228: 11.25 | N228: 15 | O228: 18.75 | P228: 22.5 | Q228: 26.25 | R228: 30
D229: Condensing Boiler | G229: Eco_base | H229: J73 | I229: 15 | J229: 15 | L229: 7.5 | M229: 11.25 | N229: 15 | O229: 18.75 | P229: 22.5 | Q229: 26.25 | R229: 30
D230: Oil Boiler | G230: Eco_base | H230: J77 | I230: 12 | J230: 12 | L230: 6 | M230: 9 | N230: 12 | O230: 15 | P230: 18 | Q230: 21 | R230: 24
D231: Electric Heater | G231: Eco_base | H231: J81 | I231: 15 | J231: 15 | L231: 7.5 | M231: 11.25 | N231: 15 | O231: 18.75 | P231: 22.5 | Q231: 26.25 | R231: 30
D232: Pellets | G232: Eco_base | H232: J85 | I232: 15 | J232: 15 | L232: 7.5 | M232: 11.25 | N232: 15 | O232: 18.75 | P232: 22.5 | Q232: 26.25 | R232: 30
D233: Heat Pump | G233: Eco_base | H233: J89 | I233: 18 | J233: 18 | L233: 9 | M233: 13.5 | N233: 18 | O233: 22.5 | P233: 27 | Q233: 31.5 | R233: 36
D234: Reversible Heat Pump | G234: Eco_base | H234: J93 | I234: 18 | J234: 18 | L234: 9 | M234: 13.5 | N234: 18 | O234: 22.5 | P234: 27 | Q234: 31.5 | R234: 36
D235: Absorption Heat Pump (AHP) | G235: Eco_base | H235: J99 | I235: 18 | J235: 18 | L235: 9 | M235: 13.5 | N235: 18 | O235: 22.5 | P235: 27 | Q235: 31.5 | R235: 36
D236: Reversible AHP | G236: Eco_base | H236: J103 | I236: 18 | J236: 18 | L236: 9 | M236: 13.5 | N236: 18 | O236: 22.5 | P236: 27 | Q236: 31.5 | R236: 36
D237: CHP | G237: Eco_base | H237: J109 | I237: 15 | J237: 15 | L237: 7.5 | M237: 11.25 | N237: 15 | O237: 18.75 | P237: 22.5 | Q237: 26.25 | R237: 30
D238: District Heating | G238: Eco_base | H238: J113 | I238: 30 | J238: 30 | L238: 15 | M238: 22.5 | N238: 30 | O238: 37.5 | P238: 45 | Q238: 52.5 | R238: 60
A240: =ROW()-$A$72-1 -> 167 | C240: LF cold production | G240: =COUNTA(G241:G251) -> 11
D241: Absorption chiller SE | G241: Eco_base | H241: J118 | I241: 30 | J241: 30 | L241: 15 | M241: 22.5 | N241: 30 | O241: 37.5 | P241: 45 | Q241: 52.5 | R241: 60
D242: Absorption chiller DE | G242: Eco_base | H242: J122 | I242: 18 | J242: 18 | L242: 9 | M242: 13.5 | N242: 18 | O242: 22.5 | P242: 27 | Q242: 31.5 | R242: 36
D243: Adsorption chiller | G243: Eco_base | H243: J126 | I243: 18 | J243: 18 | L243: 9 | M243: 13.5 | N243: 18 | O243: 22.5 | P243: 27 | Q243: 31.5 | R243: 36
D244: District Cooling | G244: Eco_base | H244: J130 | I244: 30 | J244: 30 | L244: 15 | M244: 22.5 | N244: 30 | O244: 37.5 | P244: 45 | Q244: 52.5 | R244: 60
D245: Water Cooled VCC (>20kW) | G245: Eco_base | H245: J163 | I245: 15 | J245: 15 | L245: 7.5 | M245: 11.25 | N245: 15 | O245: 18.75 | P245: 22.5 | Q245: 26.25 | R245: 30
D246: Air Cooled VCC (5-600kW) | G246: Eco_base | H246: J167 | I246: 15 | J246: 15 | L246: 7.5 | M246: 11.25 | N246: 15 | O246: 18.75 | P246: 22.5 | Q246: 26.25 | R246: 30
D247: specific chiller | G247: Eco_base | H247: J171 | I247: 15 | J247: 15 | L247: 7.5 | M247: 11.25 | N247: 15 | O247: 18.75 | P247: 22.5 | Q247: 26.25 | R247: 30
D248: Cooling tower - wet | G248: Eco_base | H248: J136 | I248: 15 | J248: 15 | L248: 7.5 | M248: 11.25 | N248: 15 | O248: 18.75 | P248: 22.5 | Q248: 26.25 | R248: 30
D249: Cooling tower - dry | G249: Eco_base | H249: J140 | I249: 20 | J249: 20 | L249: 10 | M249: 15 | N249: 20 | O249: 25 | P249: 30 | Q249: 35 | R249: 40
D250: Cooling tower - hybrid | G250: Eco_base | H250: J144 | I250: 15 | J250: 15 | L250: 7.5 | M250: 11.25 | N250: 15 | O250: 18.75 | P250: 22.5 | Q250: 26.25 | R250: 30
... 408 more rows

Sheet sens_res
Q2: Sensitivity CR | AI2: Sensitivity fsav
H4: =sens_def!D6 -> 1 | I4: =sens_def!E6 -> 2 | J4: =sens_def!F6 -> 3 | K4: =sens_def!G6 -> 4 | L4: =sens_def!H6 -> 5 | M4: =sens_def!I6 -> 6 | N4: =sens_def!J6 -> 7
B5: 1 | C5: =sens_def!C8 -> ST + ST aux | D5: fsav.sys | E5: =Results_T53!$F$31 -> 0.6728415859 | F5: =Results_T53!$F$31 -> 0.6728415859 | H5: 0.2713729365 | I5: 0.2713729365 | J5: 0.2713729365 | K5: 0.2713729365 | L5: 0.2713729365 | M5: 0.2713729365 | N5: 0.2713729365
C6: ABSOLUTE | D6: SPFequ.sys | E6: =Results_T53!$F$43 -> 4.32567736 | F6: =Results_T53!$F$43 -> 4.32567736 | H6: 2.659426979 | I6: 2.659426979 | J6: 2.659426979 | K6: 2.659426979 | L6: 2.659426979 | M6: 2.659426979 | N6: 2.659426979
D7: CR | E7: =Cost_calc!$J$195 -> 0.917657158 | F7: =Cost_calc!$J$195 -> 0.917657158 | H7: 0.9428176775 | I7: 0.9886045571 | J7: 1.034391428 | K7: 1.080178316 | L7: 1.125965187 | M7: 1.171752057 | N7: 1.217538928
C8: PARAMETER VARIATION | H8: 0.400000006 | I8: 0.5500000119 | J8: 0.6999999881 | K8: 0.8500000238 | L8: 1 | M8: 1.149999976 | N8: 1.299999952
D9: fsav.sys | F9: =F5/$E5 -> 1 | H9: =H5/$E5 -> 0.4033236681 | I9: 0.4033236681 | J9: 0.4033236681 | K9: 0.4033236681 | L9: 0.4033236681 | M9: 0.4033236681 | N9: 0.4033236681
C10: RELATIVE | D10: SPFequ.sys | F10: =F6/$E6 -> 1 | H10: 0.6148001245 | I10: 0.6148001245 | J10: 0.6148001245 | K10: 0.6148001245 | L10: 0.6148001245 | M10: 0.6148001245 | N10: 0.6148001245
D11: CR | F11: =F7/$E7 -> 1 | H11: =H7/$E7 -> 1.027418213 | I11: =I7/$E7 -> 1.077313622 | J11: 1.127209022 | K11: 1.177104441 | L11: 1.226999841 | M11: 1.27689524 | N11: 1.32679064
B13: =B5+1 -> 2 | C13: PV | D13: fsav.sys | E13: =Results_T53!$F$31 -> 0.6728415859 | F13: =Results_T53!$F$31 -> 0.6728415859 | H13: 0.2713729365 | I13: 0.2713729365 | J13: 0.2713729365 | K13: 0.2713729365 | L13: 0.2713729365 | M13: 0.2713729365 | N13: 0.2713729365
C14: ABSOLUTE | D14: SPFequ.sys | E14: =Results_T53!$F$43 -> 4.32567736 | F14: =Results_T53!$F$43 -> 4.32567736 | H14: 2.659426979 | I14: 2.659426979 | J14: 2.659426979 | K14: 2.659426979 | L14: 2.659426979 | M14: 2.659426979 | N14: 2.659426979
D15: CR | E15: =Cost_calc!$J$195 -> 0.917657158 | F15: =Cost_calc!$J$195 -> 0.917657158 | H15: 1.125965187 | I15: 1.125965187 | J15: 1.125965187 | K15: 1.125965187 | L15: 1.125965187 | M15: 1.125965187 | N15: 1.125965187
C16: PARAMETER VARIATION | H16: 0.400000006 | I16: 0.5500000119 | J16: 0.6999999881 | K16: 0.8500000238 | L16: 1 | M16: 1.149999976 | N16: 1.299999952
D17: fsav.sys | F17: =F13/$E13 -> 1 | H17: =H13/$E13 -> 0.4033236681 | I17: 0.4033236681 | J17: 0.4033236681 | K17: 0.4033236681 | L17: 0.4033236681 | M17: 0.4033236681 | N17: 0.4033236681
C18: RELATIVE | D18: SPFequ.sys | F18: =F14/$E14 -> 1 | H18: =H14/$E14 -> 0.6148001245 | I18: 0.6148001245 | J18: 0.6148001245 | K18: 0.6148001245 | L18: 0.6148001245 | M18: 0.6148001245 | N18: 0.6148001245
D19: CR | F19: =F15/$E15 -> 1 | H19: =H15/$E15 -> 1.226999841 | I19: =I15/$E15 -> 1.226999841 | J19: 1.226999841 | K19: 1.226999841 | L19: 1.226999841 | M19: 1.226999841 | N19: 1.226999841
B21: =B13+1 -> 3 | C21: Heat production | D21: fsav.sys | E21: =Results_T53!$F$31 -> 0.6728415859 | F21: =Results_T53!$F$31 -> 0.6728415859 | H21: 0.2713729365 | I21: 0.2713729365 | J21: 0.2713729365 | K21: 0.2713729365 | L21: 0.2713729365 | M21: 0.2713729365 | N21: 0.2713729365
C22: ABSOLUTE | D22: SPFequ.sys | E22: =Results_T53!$F$43 -> 4.32567736 | F22: =Results_T53!$F$43 -> 4.32567736 | H22: 2.659426979 | I22: 2.659426979 | J22: 2.659426979 | K22: 2.659426979 | L22: 2.659426979 | M22: 2.659426979 | N22: 2.659426979
D23: CR | E23: =Cost_calc!$J$195 -> 0.917657158 | F23: =Cost_calc!$J$195 -> 0.917657158 | H23: 1.077110443 | I23: 1.08932413 | J23: 1.101537814 | K23: 1.113751503 | L23: 1.125965187 | M23: 1.138178871 | N23: 1.150392555
C24: PARAMETER VARIATION | H24: 0.400000006 | I24: 0.5500000119 | J24: 0.6999999881 | K24: 0.8500000238 | L24: 1 | M24: 1.149999976 | N24: 1.299999952
D25: fsav.sys | F25: =F21/$E21 -> 1 | H25: =H21/$E21 -> 0.4033236681 | I25: 0.4033236681 | J25: 0.4033236681 | K25: 0.4033236681 | L25: 0.4033236681 | M25: 0.4033236681 | N25: 0.4033236681
C26: RELATIVE | D26: SPFequ.sys | F26: =F22/$E22 -> 1 | H26: =H22/$E22 -> 0.6148001245 | I26: 0.6148001245 | J26: 0.6148001245 | K26: 0.6148001245 | L26: 0.6148001245 | M26: 0.6148001245 | N26: 0.6148001245
D27: CR | F27: =F23/$E23 -> 1 | H27: =H23/$E23 -> 1.173761283 | I27: =I23/$E23 -> 1.187070923 | J27: 1.200380561 | K27: 1.213690203 | L27: 1.226999841 | M27: 1.240309478 | N27: 1.253619116
B29: =B21+1 -> 4 | C29: Cold production | D29: fsav.sys | E29: =Results_T53!$F$31 -> 0.6728415859 | F29: =Results_T53!$F$31 -> 0.6728415859 | H29: 0.2713729365 | I29: 0.2713729365 | J29: 0.2713729365 | K29: 0.2713729365 | L29: 0.2713729365 | M29: 0.2713729365 | N29: 0.2713729365
C30: ABSOLUTE | D30: SPFequ.sys | E30: =Results_T53!$F$43 -> 4.32567736 | F30: =Results_T53!$F$43 -> 4.32567736 | H30: 2.659426979 | I30: 2.659426979 | J30: 2.659426979 | K30: 2.659426979 | L30: 2.659426979 | M30: 2.659426979 | N30: 2.659426979
D31: CR | E31: =Cost_calc!$J$195 -> 0.917657158 | F31: =Cost_calc!$J$195 -> 0.917657158 | H31: 1.015855826 | I31: 1.043383167 | J31: 1.070910504 | K31: 1.098437851 | L31: 1.125965187 | M31: 1.153492523 | N31: 1.181019859
C32: PARAMETER VARIATION | H32: 0.400000006 | I32: 0.5500000119 | J32: 0.6999999881 | K32: 0.8500000238 | L32: 1 | M32: 1.149999976 | N32: 1.299999952 | AI32: CR vs. fsav
D33: fsav.sys | F33: =F29/$E29 -> 1 | H33: =H29/$E29 -> 0.4033236681 | I33: 0.4033236681 | J33: 0.4033236681 | K33: 0.4033236681 | L33: 0.4033236681 | M33: 0.4033236681 | N33: 0.4033236681
C34: RELATIVE | D34: SPFequ.sys | F34: =F30/$E30 -> 1 | H34: =H30/$E30 -> 0.6148001245 | I34: 0.6148001245 | J34: 0.6148001245 | K34: 0.6148001245 | L34: 0.6148001245 | M34: 0.6148001245 | N34: 0.6148001245
D35: CR | F35: =F31/$E31 -> 1 | H35: =H31/$E31 -> 1.107010191 | I35: =I31/$E31 -> 1.137007605 | J35: 1.167005013 | K35: 1.197002433 | L35: 1.226999841 | M35: 1.256997249 | N35: 1.286994657
B37: =B29+1 -> 5 | C37: Other | D37: fsav.sys | E37: =Results_T53!$F$31 -> 0.6728415859 | F37: =Results_T53!$F$31 -> 0.6728415859 | H37: 0.2713729365 | I37: 0.2713729365 | J37: 0.2713729365 | K37: 0.2713729365 | L37: 0.2713729365 | M37: 0.2713729365 | N37: 0.2713729365
C38: ABSOLUTE | D38: SPFequ.sys | E38: =Results_T53!$F$43 -> 4.32567736 | F38: =Results_T53!$F$43 -> 4.32567736 | H38: 2.659426979 | I38: 2.659426979 | J38: 2.659426979 | K38: 2.659426979 | L38: 2.659426979 | M38: 2.659426979 | N38: 2.659426979
D39: CR | E39: =Cost_calc!$J$195 -> 0.917657158 | F39: =Cost_calc!$J$195 -> 0.917657158 | H39: 1.076887927 | I39: 1.089157243 | J39: 1.101426556 | K39: 1.113695874 | L39: 1.125965187 | M39: 1.1382345 | N39: 1.150503813
C40: PARAMETER VARIATION | H40: 0.400000006 | I40: 0.5500000119 | J40: 0.6999999881 | K40: 0.8500000238 | L40: 1 | M40: 1.149999976 | N40: 1.299999952
D41: fsav.sys | F41: =F37/$E37 -> 1 | H41: =H37/$E37 -> 0.4033236681 | I41: 0.4033236681 | J41: 0.4033236681 | K41: 0.4033236681 | L41: 0.4033236681 | M41: 0.4033236681 | N41: 0.4033236681
C42: RELATIVE | D42: SPFequ.sys | F42: =F38/$E38 -> 1 | H42: =H38/$E38 -> 0.6148001245 | I42: 0.6148001245 | J42: 0.6148001245 | K42: 0.6148001245 | L42: 0.6148001245 | M42: 0.6148001245 | N42: 0.6148001245
D43: CR | F43: =F39/$E39 -> 1 | H43: =H39/$E39 -> 1.1735188 | I43: =I39/$E39 -> 1.186889061 | J43: 1.200259319 | K43: 1.213629583 | L43: 1.226999841 | M43: 1.240370099 | N43: 1.253740357
B45: =B37+1 -> 6 | C45: Other % | D45: fsav.sys | E45: =Results_T53!$F$31 -> 0.6728415859 | F45: =Results_T53!$F$31 -> 0.6728415859 | H45: 0.2713729365 | I45: 0.2713729365 | J45: 0.2713729365 | K45: 0.2713729365 | L45: 0.2713729365 | M45: 0.2713729365 | N45: 0.2713729365
C46: ABSOLUTE | D46: SPFequ.sys | E46: =Results_T53!$F$43 -> 4.32567736 | F46: =Results_T53!$F$43 -> 4.32567736 | H46: 2.659426979 | I46: 2.659426979 | J46: 2.659426979 | K46: 2.659426979 | L46: 2.659426979 | M46: 2.659426979 | N46: 2.659426979
D47: CR | E47: =Cost_calc!$J$195 -> 0.917657158 | F47: =Cost_calc!$J$195 -> 0.917657158 | H47: 1.05714167 | I47: 1.07394045 | J47: 1.091010627 | K47: 1.108352211 | L47: 1.125965187 | M47: 1.143849563 | N47: 1.162005338
C48: PARAMETER VARIATION | H48: 0.400000006 | I48: 0.5500000119 | J48: 0.6999999881 | K48: 0.8500000238 | L48: 1 | M48: 1.149999976 | N48: 1.299999952
D49: fsav.sys | F49: =F45/$E45 -> 1 | H49: =H45/$E45 -> 0.4033236681 | I49: 0.4033236681 | J49: 0.4033236681 | K49: 0.4033236681 | L49: 0.4033236681 | M49: 0.4033236681 | N49: 0.4033236681
C50: RELATIVE | D50: SPFequ.sys | F50: =F46/$E46 -> 1 | H50: =H46/$E46 -> 0.6148001245 | I50: 0.6148001245 | J50: 0.6148001245 | K50: 0.6148001245 | L50: 0.6148001245 | M50: 0.6148001245 | N50: 0.6148001245
D51: CR | F51: =F47/$E47 -> 1 | H51: =H47/$E47 -> 1.15200068 | I51: =I47/$E47 -> 1.170306842 | J51: 1.188908753 | K51: 1.207806424 | L51: 1.226999841 | M51: 1.24648901 | N51: 1.266273933
B53: =B45+1 -> 7 | C53: Heat production REF | D53: fsav.sys | E53: =Results_T53!$F$31 -> 0.6728415859 | F53: =Results_T53!$F$31 -> 0.6728415859 | H53: 0.2713729365 | I53: 0.2713729365 | J53: 0.2713729365 | K53: 0.2713729365 | L53: 0.2713729365 | M53: 0.2713729365 | N53: 0.2713729365
C54: ABSOLUTE | D54: SPFequ.sys | E54: =Results_T53!$F$43 -> 4.32567736 | F54: =Results_T53!$F$43 -> 4.32567736 | H54: 2.659426979 | I54: 2.659426979 | J54: 2.659426979 | K54: 2.659426979 | L54: 2.659426979 | M54: 2.659426979 | N54: 2.659426979
D55: CR | E55: =Cost_calc!$J$195 -> 0.917657158 | F55: =Cost_calc!$J$195 -> 0.917657158 | H55: 1.189212766 | I55: 1.172743957 | J55: 1.156725058 | K55: 1.141137871 | L55: 1.125965187 | M55: 1.111190684 | N55: 1.096798891
C56: PARAMETER VARIATION | H56: 0.400000006 | I56: 0.5500000119 | J56: 0.6999999881 | K56: 0.8500000238 | L56: 1 | M56: 1.149999976 | N56: 1.299999952
D57: fsav.sys | F57: =F53/$E53 -> 1 | H57: =H53/$E53 -> 0.4033236681 | I57: 0.4033236681 | J57: 0.4033236681 | K57: 0.4033236681 | L57: 0.4033236681 | M57: 0.4033236681 | N57: 0.4033236681
C58: RELATIVE | D58: SPFequ.sys | F58: =F54/$E54 -> 1 | H58: =H54/$E54 -> 0.6148001245 | I58: 0.6148001245 | J58: 0.6148001245 | K58: 0.6148001245 | L58: 0.6148001245 | M58: 0.6148001245 | N58: 0.6148001245
D59: CR | F59: =F55/$E55 -> 1 | H59: =H55/$E55 -> 1.295922726 | I59: =I55/$E55 -> 1.277976145 | J59: 1.260519844 | K59: 1.243533994 | L59: 1.226999841 | M59: 1.210899598 | N59: 1.195216406
B61: =B53+1 -> 8 | C61: cold production REF | D61: fsav.sys | E61: =Results_T53!$F$31 -> 0.6728415859 | F61: =Results_T53!$F$31 -> 0.6728415859 | H61: 0.2713729365 | I61: 0.2713729365 | J61: 0.2713729365 | K61: 0.2713729365 | L61: 0.2713729365 | M61: 0.2713729365 | N61: 0.2713729365
C62: ABSOLUTE | D62: SPFequ.sys | E62: =Results_T53!$F$43 -> 4.32567736 | F62: =Results_T53!$F$43 -> 4.32567736 | H62: 2.659426979 | I62: 2.659426979 | J62: 2.659426979 | K62: 2.659426979 | L62: 2.659426979 | M62: 2.659426979 | N62: 2.659426979
D63: CR | E63: =Cost_calc!$J$195 -> 0.917657158 | F63: =Cost_calc!$J$195 -> 0.917657158 | H63: 1.204656426 | I63: 1.183970155 | J63: 1.163982341 | K63: 1.144658184 | L63: 1.125965187 | M63: 1.107872916 | N63: 1.090352873
C64: PARAMETER VARIATION | H64: 0.400000006 | I64: 0.5500000119 | J64: 0.6999999881 | K64: 0.8500000238 | L64: 1 | M64: 1.149999976 | N64: 1.299999952
D65: fsav.sys | F65: =F61/$E61 -> 1 | H65: =H61/$E61 -> 0.4033236681 | I65: 0.4033236681 | J65: 0.4033236681 | K65: 0.4033236681 | L65: 0.4033236681 | M65: 0.4033236681 | N65: 0.4033236681
C66: RELATIVE | D66: SPFequ.sys | F66: =F62/$E62 -> 1 | H66: =H62/$E62 -> 0.6148001245 | I66: 0.6148001245 | J66: 0.6148001245 | K66: 0.6148001245 | L66: 0.6148001245 | M66: 0.6148001245 | N66: 0.6148001245
D67: CR | F67: =F63/$E63 -> 1 | H67: =H63/$E63 -> 1.31275217 | I67: =I63/$E63 -> 1.290209687 | J67: 1.268428335 | K67: 1.247370191 | L67: 1.226999841 | M67: 1.207284122 | N67: 1.188191977
B69: =B61+1 -> 9 | C69: Other REF | D69: fsav.sys | E69: =Results_T53!$F$31 -> 0.6728415859 | F69: =Results_T53!$F$31 -> 0.6728415859 | H69: 0.2713729365 | I69: 0.2713729365 | J69: 0.2713729365 | K69: 0.2713729365 | L69: 0.2713729365 | M69: 0.2713729365 | N69: 0.2713729365
C70: ABSOLUTE | D70: SPFequ.sys | E70: =Results_T53!$F$43 -> 4.32567736 | F70: =Results_T53!$F$43 -> 4.32567736 | H70: 2.659426979 | I70: 2.659426979 | J70: 2.659426979 | K70: 2.659426979 | L70: 2.659426979 | M70: 2.659426979 | N70: 2.659426979
D71: CR | E71: =Cost_calc!$J$195 -> 0.917657158 | F71: =Cost_calc!$J$195 -> 0.917657158 | H71: 1.17917867 | I71: 1.165409264 | J71: 1.151957722 | K71: 1.138813156 | L71: 1.125965187 | M71: 1.113403882 | N71: 1.101119754
C72: PARAMETER VARIATION | H72: 0.400000006 | I72: 0.5500000119 | J72: 0.6999999881 | K72: 0.8500000238 | L72: 1 | M72: 1.149999976 | N72: 1.299999952
D73: fsav.sys | F73: =F69/$E69 -> 1 | H73: =H69/$E69 -> 0.4033236681 | I73: 0.4033236681 | J73: 0.4033236681 | K73: 0.4033236681 | L73: 0.4033236681 | M73: 0.4033236681 | N73: 0.4033236681
C74: RELATIVE | D74: SPFequ.sys | F74: =F70/$E70 -> 1 | H74: =H70/$E70 -> 0.6148001245 | I74: 0.6148001245 | J74: 0.6148001245 | K74: 0.6148001245 | L74: 0.6148001245 | M74: 0.6148001245 | N74: 0.6148001245
D75: CR | F75: =F71/$E71 -> 1 | H75: =H71/$E71 -> 1.284988255 | I75: =I71/$E71 -> 1.269983298 | J75: 1.255324728 | K75: 1.241000679 | L75: 1.226999841 | M75: 1.21331139 | N75: 1.199924988
B77: =B69+1 -> 10 | C77: other % REF | D77: fsav.sys | E77: =Results_T53!$F$31 -> 0.6728415859 | F77: =Results_T53!$F$31 -> 0.6728415859 | H77: 0.2713729365 | I77: 0.2713729365 | J77: 0.2713729365 | K77: 0.2713729365 | L77: 0.2713729365 | M77: 0.2713729365 | N77: 0.2713729365
C78: ABSOLUTE | D78: SPFequ.sys | E78: =Results_T53!$F$43 -> 4.32567736 | F78: =Results_T53!$F$43 -> 4.32567736 | H78: 2.659426979 | I78: 2.659426979 | J78: 2.659426979 | K78: 2.659426979 | L78: 2.659426979 | M78: 2.659426979 | N78: 2.659426979
D79: CR | E79: =Cost_calc!$J$195 -> 0.917657158 | F79: =Cost_calc!$J$195 -> 0.917657158 | H79: 1.162688096 | I79: 1.153521994 | J79: 1.144343488 | K79: 1.135156586 | L79: 1.125965187 | M79: 1.116773058 | N79: 1.107583852
C80: PARAMETER VARIATION | H80: 0.400000006 | I80: 0.5500000119 | J80: 0.6999999881 | K80: 0.8500000238 | L80: 1 | M80: 1.149999976 | N80: 1.299999952
D81: fsav.sys | F81: =F77/$E77 -> 1 | H81: =H77/$E77 -> 0.4033236681 | I81: 0.4033236681 | J81: 0.4033236681 | K81: 0.4033236681 | L81: 0.4033236681 | M81: 0.4033236681 | N81: 0.4033236681
C82: RELATIVE | D82: SPFequ.sys | F82: =F78/$E78 -> 1 | H82: =H78/$E78 -> 0.6148001245 | I82: 0.6148001245 | J82: 0.6148001245 | K82: 0.6148001245 | L82: 0.6148001245 | M82: 0.6148001245 | N82: 0.6148001245
D83: CR | F83: =F79/$E79 -> 1 | H83: =H79/$E79 -> 1.267017955 | I83: =I79/$E79 -> 1.257029364 | J83: 1.247027257 | K83: 1.237015999 | L83: 1.226999841 | M83: 1.216982888 | N83: 1.206969119
B85: =B77+1 -> 11 | C85: Period under consideration | D85: fsav.sys | E85: =Results_T53!$F$31 -> 0.6728415859 | F85: =Results_T53!$F$31 -> 0.6728415859 | H85: 0.2713729365 | I85: 0.2713729365 | J85: 0.2713729365 | K85: 0.2713729365 | L85: 0.2713729365 | M85: 0.2713729365 | N85: 0.2713729365
C86: ABSOLUTE | D86: SPFequ.sys | E86: =Results_T53!$F$43 -> 4.32567736 | F86: =Results_T53!$F$43 -> 4.32567736 | H86: 2.659426979 | I86: 2.659426979 | J86: 2.659426979 | K86: 2.659426979 | L86: 2.659426979 | M86: 2.659426979 | N86: 2.659426979
D87: CR | E87: =Cost_calc!$J$195 -> 0.917657158 | F87: =Cost_calc!$J$195 -> 0.917657158 | H87: 1.207814677 | I87: 1.154424056 | J87: 1.125965187 | K87: 1.108280189 | L87: 1.096224719 | M87: 1.092751642 | N87: 1.08545088
C88: PARAMETER VARIATION | H88: 0.5 | I88: 0.75 | J88: 1 | K88: 1.25 | L88: 1.5 | M88: 1.75 | N88: 2
D89: fsav.sys | F89: =F85/$E85 -> 1 | H89: =H85/$E85 -> 0.4033236681 | I89: 0.4033236681 | J89: 0.4033236681 | K89: 0.4033236681 | L89: 0.4033236681 | M89: 0.4033236681 | N89: 0.4033236681
